Workbook

Sheet Documentation

Sheet DATA
B1: Dev. | C1: Scenario | F1: Line Item | G1: 2013 | H1: 2014 | I1: 2015 | J1: 2016 | K1: 2017 | L1: 2018 | M1: 2019 | N1: 2020 | O1: 2021 | P1: 2022 | Q1: 2023 | R1: 2024 | S1: 2025 | T1: 2026 | U1: 2027 | V1: 2028 | W1: 2029 | X1: 2030 | Y1: 2031 | Z1: 2032 | AA1: 2033 | AB1: 2034 | AC1: 2035 | AD1: 2036 | AE1: 2037 | AF1: 2038 | AG1: 2039 | AH1: 2040 | AI1: 2041 | AJ1: 2042 | AK1: 2043 | AL1: 2044 | AM1: 2045 | AN1: 2046 | AO1: 2047 | AP1: 2048 | AQ1: 2049 | AR1: 2050 | AS1: 2051 | AT1: 2052 | AU1: 2053 | AV1: 2054 | AW1: 2055 | AX1: 2056 | AY1: 2057 | AZ1: 2058 | BA1: 2059 | BB1: 2060 | BC1: 2061 | BD1: 2062
A2: Data Source | B2: Plan | C2: Econ | D2: Rev | E2: Cap | F2: A | G2: B | H2: C | I2: D | J2: E | K2: F | L2: G | M2: H | N2: I | O2: J | P2: K | Q2: L | R2: M | S2: N | T2: O | U2: P | V2: Q | W2: R | X2: S | Y2: T | Z2: U | AA2: V | AB2: W | AC2: X | AD2: Y | AE2: Z | AF2: B | AG2: C | AH2: D | AI2: E | AJ2: F | AK2: G | AL2: H | AM2: I | AN2: J | AO2: K | AP2: L | AQ2: M | AR2: N | AS2: O | AT2: P | AU2: Q | AV2: R | AW2: S | AX2: T | AY2: U | AZ2: V | BA2: W | BB2: X | BC2: Y | BD2: Z
A3: 11.4 | B3: All Gas | C3: REF | D3: REF | E3: REF | F3: Development Plan | G3: All Gas | AF3: All Gas
A4: 11.4 | B4: All Gas | C4: REF | D4: REF | E4: REF | F4: Development Plan Scenario | G4: Economics:REF Rev:REF Cap:REF | AF4: Economics:REF Rev:REF Cap:REF
A5: 11.4 | B5: All Gas | C5: REF | D5: REF | E5: REF | F5: ELECTRIC OPERATIONS
A6: 11.4 | B6: All Gas | C6: REF | D6: REF | E6: REF | F6: PROJECTED OPERATING STATEMENT
A7: 11.4 | B7: All Gas | C7: REF | D7: REF | E7: REF | F7: In Millions of Dollars
A8: 11.4 | B8: All Gas | C8: REF | D8: REF | E8: REF | F8: For the year ended March 31 | G8: 2013 | H8: 2014 | I8: 2015 | J8: 2016 | K8: 2017 | L8: 2018 | M8: 2019 | N8: 2020 | O8: 2021 | P8: 2022 | Q8: 2023 | R8: 2024 | S8: 2025 | T8: 2026 | U8: 2027 | V8: 2028 | W8: 2029 | X8: 2030 | Y8: 2031 | Z8: 2032 | AA8: 2033 | AB8: 2034 | AC8: 2035 | AD8: 2036 | AE8: 2037 | AF8: 2038 | AG8: 2039 | AH8: 2040 | AI8: 2041 | AJ8: 2042 | AK8: 2043 | AL8: 2044 | AM8: 2045 | AN8: 2046 | AO8: 2047 | AP8: 2048 | AQ8: 2049 | AR8: 2050 | AS8: 2051 | AT8: 2052 | AU8: 2053 | AV8: 2054 | AW8: 2055 | AX8: 2056 | AY8: 2057 | AZ8: 2058 | BA8: 2059 | BB8: 2060 | BC8: 2061 | BD8: 2062
A9: 11.4 | B9: All Gas | C9: REF | D9: REF | E9: REF | F9: REVENUES
A10: 11.4 | B10: All Gas | C10: REF | D10: REF | E10: REF | F10: General Consumers Revenue at approved rates | G10: 1331 | H10: 1361 | I10: 1374 | J10: 1390 | K10: 1404 | L10: 1424 | M10: 1447 | N10: 1462 | O10: 1485 | P10: 1506 | Q10: 1529 | R10: 1552 | S10: 1575 | T10: 1598 | U10: 1621 | V10: 1644 | W10: 1669 | X10: 1693 | Y10: 1717 | Z10: 1741 | AA10: 1765 | AB10: 1790 | AC10: 1814 | AD10: 1838 | AE10: 1862 | AF10: 1886 | AG10: 1910 | AH10: 1935 | AI10: 1959 | AJ10: 1983 | AK10: 2007 | AL10: 2031 | AM10: 2056 | AN10: 2080 | AO10: 2104 | AP10: 2128 | AQ10: 2128 | AR10: 2128 | AS10: 2128 | AT10: 2128 | AU10: 2128 | AV10: 2128 | AW10: 2128 | AX10: 2128 | AY10: 2128 | AZ10: 2128 | BA10: 2128 | BB10: 2128 | BC10: 2128 | BD10: 2128
A11: 11.4 | B11: All Gas | C11: REF | D11: REF | E11: REF | F11: Additional General Consumers Revenue | G11: 0 | H11: 48 | I11: 97 | J11: 149 | K11: 204 | L11: 263 | M11: 325 | N11: 390 | O11: 461 | P11: 535 | Q11: 614 | R11: 698 | S11: 787 | T11: 880 | U11: 979 | V11: 1083 | W11: 1194 | X11: 1311 | Y11: 1434 | Z11: 1564 | AA11: 999 | AB11: 1054 | AC11: 1223 | AD11: 1281 | AE11: 1309 | AF11: 1471 | AG11: 1551 | AH11: 1597 | AI11: 1779 | AJ11: 1895 | AK11: 2039 | AL11: 2085 | AM11: 2257 | AN11: 2409 | AO11: 2540 | AP11: 2620 | AQ11: 2628 | AR11: 2675 | AS11: 2804 | AT11: 2875 | AU11: 2963 | AV11: 3096 | AW11: 3158 | AX11: 3236 | AY11: 3308 | AZ11: 3350 | BA11: 3440 | BB11: 3525 | BC11: 3614 | BD11: 3754
A12: 11.4 | B12: All Gas | C12: REF | D12: REF | E12: REF | F12: Extraprovincial | G12: 357 | H12: 344 | I12: 335 | J12: 374 | K12: 391 | L12: 418 | M12: 403 | N12: 401 | O12: 447 | P12: 457 | Q12: 451 | R12: 442 | S12: 440 | T12: 359 | U12: 343 | V12: 328 | W12: 312 | X12: 297 | Y12: 320 | Z12: 349 | AA12: 327 | AB12: 305 | AC12: 291 | AD12: 280 | AE12: 282 | AF12: 298 | AG12: 280 | AH12: 277 | AI12: 298 | AJ12: 287 | AK12: 283 | AL12: 290 | AM12: 310 | AN12: 300 | AO12: 295 | AP12: 284 | AQ12: 304 | AR12: 309 | AS12: 315 | AT12: 321 | AU12: 326 | AV12: 332 | AW12: 338 | AX12: 344 | AY12: 351 | AZ12: 357 | BA12: 363 | BB12: 370 | BC12: 377 | BD12: 383
A13: 11.4 | B13: All Gas | C13: REF | D13: REF | E13: REF | F13: Other | G13: 14 | H13: 15 | I13: 15 | J13: 15 | K13: 15 | L13: 16 | M13: 16 | N13: 16 | O13: 17 | P13: 17 | Q13: 17 | R13: 18 | S13: 18 | T13: 18 | U13: 19 | V13: 19 | W13: 19 | X13: 20 | Y13: 20 | Z13: 21 | AA13: 21 | AB13: 21 | AC13: 22 | AD13: 22 | AE13: 23 | AF13: 23 | AG13: 24 | AH13: 24 | AI13: 24 | AJ13: 25 | AK13: 25 | AL13: 26 | AM13: 26 | AN13: 27 | AO13: 27 | AP13: 28 | AQ13: 29 | AR13: 29 | AS13: 30 | AT13: 30 | AU13: 31 | AV13: 31 | AW13: 32 | AX13: 33 | AY13: 33 | AZ13: 34 | BA13: 35 | BB13: 35 | BC13: 36 | BD13: 37
A14: 11.4 | B14: All Gas | C14: REF | D14: REF | E14: REF | F14: Total Revenue | G14: 1702 | H14: 1768 | I14: 1821 | J14: 1928 | K14: 2014 | L14: 2120 | M14: 2192 | N14: 2270 | O14: 2409 | P14: 2516 | Q14: 2611 | R14: 2709 | S14: 2820 | T14: 2856 | U14: 2961 | V14: 3074 | W14: 3194 | X14: 3321 | Y14: 3491 | Z14: 3674 | AA14: 3113 | AB14: 3170 | AC14: 3349 | AD14: 3421 | AE14: 3476 | AF14: 3679 | AG14: 3765 | AH14: 3833 | AI14: 4061 | AJ14: 4191 | AK14: 4355 | AL14: 4432 | AM14: 4648 | AN14: 4816 | AO14: 4966 | AP14: 5060 | AQ14: 5088 | AR14: 5142 | AS14: 5277 | AT14: 5354 | AU14: 5448 | AV14: 5588 | AW14: 5657 | AX14: 5741 | AY14: 5820 | AZ14: 5869 | BA14: 5966 | BB14: 6058 | BC14: 6154 | BD14: 6302
A15: 11.4 | B15: All Gas | C15: REF | D15: REF | E15: REF
A16: 11.4 | B16: All Gas | C16: REF | D16: REF | E16: REF | F16: EXPENSES
A17: 11.4 | B17: All Gas | C17: REF | D17: REF | E17: REF | F17: Operating and Administrative | G17: 455 | H17: 471 | I17: 546 | J17: 559 | K17: 570 | L17: 593 | M17: 605 | N17: 616 | O17: 628 | P17: 641 | Q17: 660 | R17: 675 | S17: 690 | T17: 708 | U17: 721 | V17: 737 | W17: 761 | X17: 776 | Y17: 792 | Z17: 825 | AA17: 844 | AB17: 867 | AC17: 894 | AD17: 916 | AE17: 936 | AF17: 973 | AG17: 997 | AH17: 1020 | AI17: 1060 | AJ17: 1087 | AK17: 1114 | AL17: 1141 | AM17: 1185 | AN17: 1216 | AO17: 1247 | AP17: 1281 | AQ17: 1311 | AR17: 1343 | AS17: 1376 | AT17: 1410 | AU17: 1432 | AV17: 1467 | AW17: 1489 | AX17: 1512 | AY17: 1535 | AZ17: 1558 | BA17: 1582 | BB17: 1606 | BC17: 1631 | BD17: 1656
A18: 11.4 | B18: All Gas | C18: REF | D18: REF | E18: REF | F18: Finance Expense | G18: 451 | H18: 440 | I18: 536 | J18: 589 | K18: 658 | L18: 737 | M18: 857 | N18: 849 | O18: 849 | P18: 836 | Q18: 844 | R18: 859 | S18: 857 | T18: 866 | U18: 843 | V18: 827 | W18: 811 | X18: 789 | Y18: 815 | Z18: 802 | AA18: 779 | AB18: 789 | AC18: 857 | AD18: 863 | AE18: 867 | AF18: 902 | AG18: 905 | AH18: 903 | AI18: 967 | AJ18: 975 | AK18: 975 | AL18: 975 | AM18: 1021 | AN18: 1022 | AO18: 1044 | AP18: 1022 | AQ18: 1019 | AR18: 1001 | AS18: 989 | AT18: 977 | AU18: 998 | AV18: 996 | AW18: 978 | AX18: 976 | AY18: 961 | AZ18: 937 | BA18: 933 | BB18: 918 | BC18: 908 | BD18: 942
A19: 11.4 | B19: All Gas | C19: REF | D19: REF | E19: REF | F19: Depreciation and Amortization | G19: 399 | H19: 430 | I19: 439 | J19: 479 | K19: 488 | L19: 509 | M19: 544 | N19: 541 | O19: 537 | P19: 547 | Q19: 558 | R19: 559 | S19: 564 | T19: 581 | U19: 590 | V19: 590 | W19: 598 | X19: 608 | Y19: 635 | Z19: 663 | AA19: 598 | AB19: 582 | AC19: 615 | AD19: 621 | AE19: 627 | AF19: 682 | AG19: 690 | AH19: 696 | AI19: 733 | AJ19: 747 | AK19: 813 | AL19: 823 | AM19: 859 | AN19: 905 | AO19: 922 | AP19: 940 | AQ19: 964 | AR19: 979 | AS19: 1065 | AT19: 1090 | AU19: 1113 | AV19: 1191 | AW19: 1226 | AX19: 1262 | AY19: 1306 | AZ19: 1326 | BA19: 1369 | BB19: 1417 | BC19: 1461 | BD19: 1519
A20: 11.4 | B20: All Gas | C20: REF | D20: REF | E20: REF | F20: Water Rentals and Assessments | G20: 117 | H20: 116 | I20: 112 | J20: 112 | K20: 112 | L20: 113 | M20: 112 | N20: 112 | O20: 114 | P20: 114 | Q20: 113 | R20: 113 | S20: 113 | T20: 114 | U20: 115 | V20: 115 | W20: 114 | X20: 114 | Y20: 118 | Z20: 117 | AA20: 116 | AB20: 116 | AC20: 116 | AD20: 117 | AE20: 119 | AF20: 118 | AG20: 118 | AH20: 120 | AI20: 119 | AJ20: 118 | AK20: 119 | AL20: 121 | AM20: 120 | AN20: 120 | AO20: 120 | AP20: 121 | AQ20: 125 | AR20: 127 | AS20: 129 | AT20: 131 | AU20: 134 | AV20: 136 | AW20: 139 | AX20: 141 | AY20: 144 | AZ20: 146 | BA20: 149 | BB20: 151 | BC20: 154 | BD20: 157
A21: 11.4 | B21: All Gas | C21: REF | D21: REF | E21: REF | F21: Fuel and Power Purchased | G21: 143 | H21: 166 | I21: 167 | J21: 178 | K21: 191 | L21: 197 | M21: 206 | N21: 209 | O21: 218 | P21: 233 | Q21: 257 | R21: 278 | S21: 296 | T21: 277 | U21: 286 | V21: 307 | W21: 339 | X21: 362 | Y21: 357 | Z21: 421 | AA21: 454 | AB21: 488 | AC21: 527 | AD21: 554 | AE21: 568 | AF21: 636 | AG21: 678 | AH21: 706 | AI21: 787 | AJ21: 861 | AK21: 921 | AL21: 949 | AM21: 1033 | AN21: 1119 | AO21: 1194 | AP21: 1259 | AQ21: 1233 | AR21: 1256 | AS21: 1278 | AT21: 1301 | AU21: 1325 | AV21: 1348 | AW21: 1373 | AX21: 1397 | AY21: 1423 | AZ21: 1448 | BA21: 1474 | BB21: 1501 | BC21: 1528 | BD21: 1555
A22: 11.4 | B22: All Gas | C22: REF | D22: REF | E22: REF | F22: Capital and Other Taxes | G22: 87 | H22: 95 | I22: 99 | J22: 104 | K22: 108 | L22: 110 | M22: 110 | N22: 110 | O22: 111 | P22: 113 | Q22: 114 | R22: 116 | S22: 118 | T22: 119 | U22: 121 | V22: 123 | W22: 128 | X22: 132 | Y22: 135 | Z22: 137 | AA22: 139 | AB22: 142 | AC22: 145 | AD22: 149 | AE22: 152 | AF22: 155 | AG22: 159 | AH22: 163 | AI22: 165 | AJ22: 169 | AK22: 174 | AL22: 178 | AM22: 180 | AN22: 183 | AO22: 185 | AP22: 187 | AQ22: 188 | AR22: 190 | AS22: 192 | AT22: 195 | AU22: 197 | AV22: 200 | AW22: 202 | AX22: 204 | AY22: 206 | AZ22: 208 | BA22: 211 | BB22: 215 | BC22: 218 | BD22: 219
A23: 11.4 | B23: All Gas | C23: REF | D23: REF | E23: REF | F23: Corporate Allocation | G23: 9 | H23: 9 | I23: 8 | J23: 8 | K23: 8 | L23: 8 | M23: 8 | N23: 8 | O23: 8 | P23: 8 | Q23: 8 | R23: 8 | S23: 8 | T23: 8 | U23: 8 | V23: 8 | W23: 8 | X23: 8 | Y23: 7 | Z23: 7 | AA23: 7 | AB23: 7 | AC23: 7 | AD23: 7 | AE23: 7 | AF23: 7 | AG23: 7 | AH23: 7 | AI23: 7 | AJ23: 7 | AK23: 7 | AL23: 7 | AM23: 6 | AN23: 6 | AO23: 6 | AP23: 6 | AQ23: 6 | AR23: 6 | AS23: 6 | AT23: 6 | AU23: 6 | AV23: 6 | AW23: 6 | AX23: 6 | AY23: 6 | AZ23: 6 | BA23: 6 | BB23: 6 | BC23: 6 | BD23: 6
A24: 11.4 | B24: All Gas | C24: REF | D24: REF | E24: REF | F24: Total Expenses | G24: 1662 | H24: 1728 | I24: 1907 | J24: 2030 | K24: 2135 | L24: 2267 | M24: 2442 | N24: 2445 | O24: 2465 | P24: 2491 | Q24: 2555 | R24: 2608 | S24: 2646 | T24: 2674 | U24: 2685 | V24: 2707 | W24: 2759 | X24: 2788 | Y24: 2859 | Z24: 2970 | AA24: 2938 | AB24: 2991 | AC24: 3161 | AD24: 3226 | AE24: 3274 | AF24: 3472 | AG24: 3553 | AH24: 3615 | AI24: 3839 | AJ24: 3965 | AK24: 4122 | AL24: 4192 | AM24: 4404 | AN24: 4569 | AO24: 4718 | AP24: 4816 | AQ24: 4845 | AR24: 4901 | AS24: 5035 | AT24: 5111 | AU24: 5204 | AV24: 5343 | AW24: 5412 | AX24: 5497 | AY24: 5578 | AZ24: 5629 | BA24: 5724 | BB24: 5814 | BC24: 5905 | BD24: 6053
A25: 11.4 | B25: All Gas | C25: REF | D25: REF | E25: REF
A26: 11.4 | B26: All Gas | C26: REF | D26: REF | E26: REF | F26: Non-Controlling Interest | G26: -14 | H26: -24 | I26: -22 | J26: -17 | K26: -14 | L26: -13 | M26: -10 | N26: -5 | O26: -2 | P26: 1 | Q26: 2 | R26: 5 | S26: 6 | T26: 9 | U26: 1 | V26: 2 | W26: 3 | X26: 5 | Y26: 7 | Z26: 9 | AA26: 11 | AB26: 12 | AC26: 13 | AD26: 15 | AE26: 17 | AF26: 18 | AG26: 20 | AH26: 22 | AI26: 24 | AJ26: 25 | AK26: 27 | AL26: 29 | AM26: 32 | AN26: 33 | AO26: 35 | AP26: 36 | AQ26: 37 | AR26: 38 | AS26: 38 | AT26: 39 | AU26: 40 | AV26: 40 | AW26: 41 | AX26: 43 | AY26: 44 | AZ26: 46 | BA26: 47 | BB26: 49 | BC26: 51 | BD26: 53
A27: 11.4 | B27: All Gas | C27: REF | D27: REF | E27: REF
A28: 11.4 | B28: All Gas | C28: REF | D28: REF | E28: REF | F28: Net Income | G28: 54 | H28: 65 | I28: -65 | J28: -85 | K28: -106 | L28: -134 | M28: -241 | N28: -170 | O28: -54 | P28: 24 | Q28: 54 | R28: 96 | S28: 167 | T28: 173 | U28: 275 | V28: 365 | W28: 432 | X28: 527 | Y28: 625 | Z28: 695 | AA28: 164 | AB28: 167 | AC28: 175 | AD28: 180 | AE28: 185 | AF28: 188 | AG28: 192 | AH28: 196 | AI28: 198 | AJ28: 201 | AK28: 205 | AL28: 211 | AM28: 213 | AN28: 213 | AO28: 213 | AP28: 208 | AQ28: 207 | AR28: 203 | AS28: 204 | AT28: 204 | AU28: 205 | AV28: 205 | AW28: 203 | AX28: 201 | AY28: 198 | AZ28: 195 | BA28: 194 | BB28: 195 | BC28: 199 | BD28: 196
A29: 11.4 | B29: All Gas | C29: REF | D29: REF | E29: REF
A30: 11.4 | B30: All Gas | C30: REF | D30: REF | E30: REF | F30: Additional General Consumers Revenue Percent Increase | G30: 0 | H30: 0.035 | I30: 0.0343 | J30: 0.0343 | K30: 0.0343 | L30: 0.0343 | M30: 0.0343 | N30: 0.0343 | O30: 0.0343 | P30: 0.0343 | Q30: 0.0343 | R30: 0.0343 | S30: 0.0343 | T30: 0.0343 | U30: 0.0343 | V30: 0.0343 | W30: 0.0343 | X30: 0.0343 | Y30: 0.0343 | Z30: 0.0343 | AA30: -0.1751 | AB30: 0.0146 | AC30: 0.0539 | AD30: 0.0135 | AE30: 0.0034 | AF30: 0.0453 | AG30: 0.0177 | AH30: 0.0076 | AI30: 0.0455 | AJ30: 0.0249 | AK30: 0.0308 | AL30: 0.0051 | AM30: 0.0353 | AN30: 0.0288 | AO30: 0.0226 | AP30: 0.0108 | AQ30: 0.0017 | AR30: 0.0099 | AS30: 0.0269 | AT30: 0.0143 | AU30: 0.0176 | AV30: 0.0262 | AW30: 0.0119 | AX30: 0.0146 | AY30: 0.0135 | AZ30: 0.0078 | BA30: 0.0162 | BB30: 0.0153 | BC30: 0.0158 | BD30: 0.0243
A31: 11.4 | B31: All Gas | C31: REF | D31: REF | E31: REF | F31: Cumulative General Consumers Revenue Percent Increase | G31: 0 | H31: 0.035 | I31: 0.0705 | J31: 0.1072 | K31: 0.1451 | L31: 0.1844 | M31: 0.2249 | N31: 0.2669 | O31: 0.3103 | P31: 0.3553 | Q31: 0.4017 | R31: 0.4497 | S31: 0.4994 | T31: 0.5508 | U31: 0.604 | V31: 0.6589 | W31: 0.7158 | X31: 0.7746 | Y31: 0.8354 | Z31: 0.8983 | AA31: 0.5659 | AB31: 0.5888 | AC31: 0.6744 | AD31: 0.6971 | AE31: 0.7029 | AF31: 0.7801 | AG31: 0.8116 | AH31: 0.8253 | AI31: 0.9083 | AJ31: 0.9558 | AK31: 1.016 | AL31: 1.0263 | AM31: 1.0978 | AN31: 1.1583 | AO31: 1.2071 | AP31: 1.2309 | AQ31: 1.2348 | AR31: 1.257 | AS31: 1.3178 | AT31: 1.3509 | AU31: 1.3922 | AV31: 1.455 | AW31: 1.4841 | AX31: 1.5204 | AY31: 1.5545 | AZ31: 1.5744 | BA31: 1.6162 | BB31: 1.6562 | BC31: 1.6981 | BD31: 1.7638
A32: 11.4 | B32: All Gas | C32: REF | D32: REF | E32: REF | F32: Debt Ratio | G32: 76 | H32: 78 | I32: 84 | J32: 86 | K32: 87 | L32: 88 | M32: 90 | N32: 91 | O32: 91 | P32: 92 | Q32: 91 | R32: 91 | S32: 90 | T32: 89 | U32: 87 | V32: 85 | W32: 84 | X32: 81 | Y32: 78 | Z32: 75 | AA32: 74 | AB32: 74 | AC32: 74 | AD32: 73 | AE32: 73 | AF32: 73 | AG32: 72 | AH32: 72 | AI32: 72 | AJ32: 71 | AK32: 71 | AL32: 71 | AM32: 70 | AN32: 70 | AO32: 69 | AP32: 68 | AQ32: 67 | AR32: 66 | AS32: 66 | AT32: 65 | AU32: 64 | AV32: 64 | AW32: 63 | AX32: 62 | AY32: 61 | AZ32: 60 | BA32: 60 | BB32: 60 | BC32: 59 | BD32: 58
A33: 11.4 | B33: All Gas | C33: REF | D33: REF | E33: REF | F33: Interest Coverage Ratio | G33: 1.09 | H33: 1.11 | I33: 0.9 | J33: 0.89 | K33: 0.87 | L33: 0.84 | M33: 0.72 | N33: 0.8 | O33: 0.94 | P33: 1.03 | Q33: 1.06 | R33: 1.11 | S33: 1.19 | T33: 1.19 | U33: 1.31 | V33: 1.42 | W33: 1.49 | X33: 1.59 | Y33: 1.71 | Z33: 1.83 | AA33: 1.2 | AB33: 1.2 | AC33: 1.2 | AD33: 1.2 | AE33: 1.2 | AF33: 1.2 | AG33: 1.2 | AH33: 1.2 | AI33: 1.2 | AJ33: 1.2 | AK33: 1.2 | AL33: 1.2 | AM33: 1.2 | AN33: 1.2 | AO33: 1.2 | AP33: 1.2 | AQ33: 1.2 | AR33: 1.2 | AS33: 1.2 | AT33: 1.2 | AU33: 1.2 | AV33: 1.2 | AW33: 1.2 | AX33: 1.2 | AY33: 1.2 | AZ33: 1.2 | BA33: 1.2 | BB33: 1.2 | BC33: 1.2 | BD33: 1.2
A34: 11.4 | B34: All Gas | C34: REF | D34: REF | E34: REF | F34: Capital Coverage Ratio | G34: 1.09 | H34: 0.9 | I34: 0.67 | J34: 0.76 | K34: 0.96 | L34: 1.04 | M34: 0.76 | N34: 1.12 | O34: 1.23 | P34: 1.33 | Q34: 1.25 | R34: 1.32 | S34: 1.48 | T34: 1.61 | U34: 2.04 | V34: 1.96 | W34: 1.95 | X34: 2.02 | Y34: 2.12 | Z34: 2.67 | AA34: 1.34 | AB34: 1.16 | AC34: 1.14 | AD34: 1.11 | AE34: 1.08 | AF34: 1.1 | AG34: 1.07 | AH34: 1.02 | AI34: 1 | AJ34: 1.01 | AK34: 1.09 | AL34: 1.16 | AM34: 1.15 | AN34: 1.04 | AO34: 1.27 | AP34: 1.28 | AQ34: 1.3 | AR34: 1.32 | AS34: 1.28 | AT34: 1.3 | AU34: 1.3 | AV34: 1.35 | AW34: 1.35 | AX34: 1.35 | AY34: 1.36 | AZ34: 1.36 | BA34: 1.36 | BB34: 1.37 | BC34: 1.38 | BD34: 1.4
A35: 11.4 | B35: All Gas | C35: REF | D35: REF | E35: REF
A36: 11.4 | B36: All Gas | C36: REF | D36: REF | E36: REF | F36: Development Plan | G36: All Gas | AF36: All Gas
A37: 11.4 | B37: All Gas | C37: REF | D37: REF | E37: REF | F37: Development Plan Scenario | G37: Economics:REF Rev:REF Cap:REF | AF37: Economics:REF Rev:REF Cap:REF
A38: 11.4 | B38: All Gas | C38: REF | D38: REF | E38: REF | F38: ELECTRIC OPERATIONS
A39: 11.4 | B39: All Gas | C39: REF | D39: REF | E39: REF | F39: PROJECTED BALANCE SHEET
A40: 11.4 | B40: All Gas | C40: REF | D40: REF | E40: REF | F40: In Millions of Dollars
A41: 11.4 | B41: All Gas | C41: REF | D41: REF | E41: REF | F41: For the year ended March 31 | G41: 2013 | H41: 2014 | I41: 2015 | J41: 2016 | K41: 2017 | L41: 2018 | M41: 2019 | N41: 2020 | O41: 2021 | P41: 2022 | Q41: 2023 | R41: 2024 | S41: 2025 | T41: 2026 | U41: 2027 | V41: 2028 | W41: 2029 | X41: 2030 | Y41: 2031 | Z41: 2032 | AA41: 2033 | AB41: 2034 | AC41: 2035 | AD41: 2036 | AE41: 2037 | AF41: 2038 | AG41: 2039 | AH41: 2040 | AI41: 2041 | AJ41: 2042 | AK41: 2043 | AL41: 2044 | AM41: 2045 | AN41: 2046 | AO41: 2047 | AP41: 2048 | AQ41: 2049 | AR41: 2050 | AS41: 2051 | AT41: 2052 | AU41: 2053 | AV41: 2054 | AW41: 2055 | AX41: 2056 | AY41: 2057 | AZ41: 2058 | BA41: 2059 | BB41: 2060 | BC41: 2061 | BD41: 2062
A42: 11.4 | B42: All Gas | C42: REF | D42: REF | E42: REF | F42: ASSETS
A43: 11.4 | B43: All Gas | C43: REF | D43: REF | E43: REF
A44: 11.4 | B44: All Gas | C44: REF | D44: REF | E44: REF | F44: Plant in Service | G44: 15374 | H44: 16436 | I44: 18685 | J44: 19839 | K44: 20398 | L44: 23980 | M44: 24407 | N44: 24800 | O44: 25342 | P44: 25938 | Q44: 26692 | R44: 27257 | S44: 28038 | T44: 28877 | U44: 29539 | V44: 30026 | W44: 31028 | X44: 31581 | Y44: 33575 | Z44: 35016 | AA44: 35698 | AB44: 37132 | AC44: 37949 | AD44: 38489 | AE44: 39811 | AF44: 41216 | AG44: 41819 | AH44: 42813 | AI44: 44358 | AJ44: 46695 | AK44: 47370 | AL44: 48166 | AM44: 50790 | AN44: 52041 | AO44: 52713 | AP44: 53909 | AQ44: 54609 | AR44: 57300 | AS44: 58533 | AT44: 59902 | AU44: 61666 | AV44: 63072 | AW44: 64431 | AX44: 66237 | AY44: 67595 | AZ44: 68957 | BA44: 70797 | BB44: 72342 | BC44: 73784 | BD44: 76630
A45: 11.4 | B45: All Gas | C45: REF | D45: REF | E45: REF | F45: Accumulated Depreciation | G45: 5173 | H45: 5536 | I45: 5922 | J45: 6377 | K45: 6853 | L45: 7357 | M45: 7897 | N45: 8434 | O45: 8968 | P45: 9515 | Q45: 10075 | R45: 10637 | S45: 11205 | T45: 11790 | U45: 12384 | V45: 12978 | W45: 13581 | X45: 14194 | Y45: 14833 | Z45: 15501 | AA45: 16104 | AB45: 16691 | AC45: 17311 | AD45: 17937 | AE45: 18569 | AF45: 19255 | AG45: 19951 | AH45: 20653 | AI45: 21392 | AJ45: 22144 | AK45: 22963 | AL45: 23792 | AM45: 24657 | AN45: 25568 | AO45: 26497 | AP45: 27444 | AQ45: 28415 | AR45: 29401 | AS45: 30474 | AT45: 31572 | AU45: 32679 | AV45: 33865 | AW45: 35087 | AX45: 36344 | AY45: 37647 | AZ45: 38970 | BA45: 40337 | BB45: 41751 | BC45: 43211 | BD45: 44729
A46: 11.4 | B46: All Gas | C46: REF | D46: REF | E46: REF
A47: 11.4 | B47: All Gas | C47: REF | D47: REF | E47: REF | F47: Net Plant in Service | G47: 10201 | H47: 10900 | I47: 12763 | J47: 13462 | K47: 13545 | L47: 16623 | M47: 16510 | N47: 16366 | O47: 16374 | P47: 16423 | Q47: 16617 | R47: 16620 | S47: 16833 | T47: 17087 | U47: 17156 | V47: 17048 | W47: 17447 | X47: 17388 | Y47: 18742 | Z47: 19515 | AA47: 19594 | AB47: 20441 | AC47: 20638 | AD47: 20552 | AE47: 21243 | AF47: 21960 | AG47: 21869 | AH47: 22160 | AI47: 22966 | AJ47: 24551 | AK47: 24407 | AL47: 24374 | AM47: 26133 | AN47: 26473 | AO47: 26216 | AP47: 26465 | AQ47: 26195 | AR47: 27899 | AS47: 28059 | AT47: 28330 | AU47: 28987 | AV47: 29207 | AW47: 29345 | AX47: 29892 | AY47: 29948 | AZ47: 29988 | BA47: 30461 | BB47: 30591 | BC47: 30573 | BD47: 31901
A48: 11.4 | B48: All Gas | C48: REF | D48: REF | E48: REF
A49: 11.4 | B49: All Gas | C49: REF | D49: REF | E49: REF | F49: Construction in Progress | G49: 2106 | H49: 2867 | I49: 2331 | J49: 2516 | K49: 3042 | L49: 167 | M49: 219 | N49: 243 | O49: 286 | P49: 406 | Q49: 293 | R49: 459 | S49: 548 | T49: 408 | U49: 509 | V49: 979 | W49: 1282 | X49: 2038 | Y49: 1167 | Z49: 545 | AA49: 752 | AB49: 376 | AC49: 633 | AD49: 1307 | AE49: 1070 | AF49: 877 | AG49: 1646 | AH49: 1899 | AI49: 1489 | AJ49: 553 | AK49: 1425 | AL49: 2043 | AM49: 566 | AN49: 662 | AO49: 1239 | AP49: 1212 | AQ49: 1651 | AR49: 134 | AS49: 297 | AT49: 439 | AU49: 19 | AV49: 178 | AW49: 407 | AX49: 25 | AY49: 196 | AZ49: 442 | BA49: 395 | BB49: 954 | BC49: 1256 | BD49: -89
A50: 11.4 | B50: All Gas | C50: REF | D50: REF | E50: REF | F50: Current and Other Assets | G50: 1869 | H50: 1735 | I50: 1386 | J50: 1570 | K50: 1767 | L50: 2006 | M50: 1784 | N50: 1843 | O50: 1829 | P50: 1450 | Q50: 1470 | R50: 1662 | S50: 1798 | T50: 1741 | U50: 1847 | V50: 1964 | W50: 2146 | X50: 1983 | Y50: 1590 | Z50: 2133 | AA50: 1792 | AB50: 1676 | AC50: 1469 | AD50: 1526 | AE50: 1382 | AF50: 1221 | AG50: 1236 | AH50: 1125 | AI50: 1076 | AJ50: 1001 | AK50: 928 | AL50: 989 | AM50: 1101 | AN50: 796 | AO50: 893 | AP50: 989 | AQ50: 431 | AR50: 143 | AS50: 137 | AT50: 128 | AU50: 79 | AV50: -328 | AW50: -660 | AX50: -785 | AY50: -1172 | AZ50: -1241 | BA50: -1451 | BB50: -1644 | BC50: -1905 | BD50: -1883
A51: 11.4 | B51: All Gas | C51: REF | D51: REF | E51: REF | F51: Goodwill and Intangible Assets | G51: 180 | H51: 165 | I51: 150 | J51: 134 | K51: 123 | L51: 113 | M51: 105 | N51: 98 | O51: 92 | P51: 88 | Q51: 85 | R51: 83 | S51: 82 | T51: 82 | U51: 81 | V51: 80 | W51: 79 | X51: 78 | Y51: 77 | Z51: 76 | AA51: 76 | AB51: 75 | AC51: 74 | AD51: 73 | AE51: 72 | AF51: 71 | AG51: 71 | AH51: 70 | AI51: 69 | AJ51: 68 | AK51: 67 | AL51: 66 | AM51: 66 | AN51: 65 | AO51: 64 | AP51: 63 | AQ51: 62 | AR51: 61 | AS51: 61 | AT51: 60 | AU51: 59 | AV51: 58 | AW51: 57 | AX51: 57 | AY51: 56 | AZ51: 55 | BA51: 54 | BB51: 53 | BC51: 53 | BD51: 52
A52: 11.4 | B52: All Gas | C52: REF | D52: REF | E52: REF | F52: Regulated Assets | G52: 231 | H52: 225 | I52: 0 | J52: 0 | K52: 0 | L52: 0 | M52: 0 | N52: 0 | O52: 0 | P52: 0 | Q52: 0 | R52: 0 | S52: 0 | T52: 0 | U52: 0 | V52: 0 | W52: 0 | X52: 0 | Y52: 0 | Z52: 0 | AA52: 0 | AB52: 0 | AC52: 0 | AD52: 0 | AE52: 0 | AF52: 0 | AG52: 0 | AH52: 0 | AI52: 0 | AJ52: 0 | AK52: 0 | AL52: 0 | AM52: 0 | AN52: 0 | AO52: 0 | AP52: 0 | AQ52: 0 | AR52: 0 | AS52: 0 | AT52: 0 | AU52: 0 | AV52: 0 | AW52: 0 | AX52: 0 | AY52: 0 | AZ52: 0 | BA52: 0 | BB52: 0 | BC52: 0 | BD52: 0
A53: 11.4 | B53: All Gas | C53: REF | D53: REF | E53: REF | F53: Total Assets | G53: 14587 | H53: 15891 | I53: 16630 | J53: 17682 | K53: 18477 | L53: 18910 | M53: 18618 | N53: 18550 | O53: 18580 | P53: 18366 | Q53: 18465 | R53: 18824 | S53: 19262 | T53: 19318 | U53: 19592 | V53: 20071 | W53: 20953 | X53: 21488 | Y53: 21577 | Z53: 22270 | AA53: 22214 | AB53: 22568 | AC53: 22814 | AD53: 23458 | AE53: 23767 | AF53: 24129 | AG53: 24820 | AH53: 25254 | AI53: 25599 | AJ53: 26173 | AK53: 26826 | AL53: 27472 | AM53: 27866 | AN53: 27996 | AO53: 28412 | AP53: 28729 | AQ53: 28339 | AR53: 28237 | AS53: 28554 | AT53: 28957 | AU53: 29144 | AV53: 29115 | AW53: 29149 | AX53: 29189 | AY53: 29027 | AZ53: 29244 | BA53: 29459 | BB53: 29955 | BC53: 29976 | BD53: 29981
A54: 11.4 | B54: All Gas | C54: REF | D54: REF | E54: REF
A55: 11.4 | B55: All Gas | C55: REF | D55: REF | E55: REF
A56: 11.4 | B56: All Gas | C56: REF | D56: REF | E56: REF | F56: LIABILITIES AND EQUITY
A57: 11.4 | B57: All Gas | C57: REF | D57: REF | E57: REF
A58: 11.4 | B58: All Gas | C58: REF | D58: REF | E58: REF | F58: Long Term Debt | G58: 9289 | H58: 11260 | I58: 12419 | J58: 13704 | K58: 14404 | L58: 14777 | M58: 15272 | N58: 15038 | O58: 15161 | P58: 15312 | Q58: 15914 | R58: 16116 | S58: 15870 | T58: 16272 | U58: 16274 | V58: 16214 | W58: 16565 | X58: 16068 | Y58: 16258 | Z58: 16031 | AA58: 13805 | AB58: 14793 | AC58: 14320 | AD58: 15321 | AE58: 14973 | AF58: 15775 | AG58: 16677 | AH58: 16629 | AI58: 16779 | AJ58: 17278 | AK58: 18227 | AL58: 18825 | AM58: 18824 | AN58: 19022 | AO58: 19220 | AP58: 18819 | AQ58: 18292 | AR58: 18090 | AS58: 18490 | AT58: 18639 | AU58: 16239 | AV58: 17038 | AW58: 15838 | AX58: 16637 | AY58: 15629 | AZ58: 16029 | BA58: 16503 | BB58: 16702 | BC58: 16302 | BD58: 16252
A59: 11.4 | B59: All Gas | C59: REF | D59: REF | E59: REF | F59: Current and Other Liabilities | G59: 2231 | H59: 1502 | I59: 1845 | J59: 1752 | K59: 1997 | L59: 2213 | M59: 1680 | N59: 2028 | O59: 2005 | P59: 1638 | Q59: 1089 | R59: 1142 | S59: 1652 | T59: 1125 | U59: 1114 | V59: 1279 | W59: 1370 | X59: 1866 | Y59: 1132 | Z59: 1349 | AA59: 3346 | AB59: 2535 | AC59: 3070 | AD59: 2521 | AE59: 2982 | AF59: 2345 | AG59: 1932 | AH59: 2207 | AI59: 2193 | AJ59: 2056 | AK59: 1544 | AL59: 1368 | AM59: 1539 | AN59: 1247 | AO59: 1240 | AP59: 1740 | AQ59: 1659 | AR59: 1545 | AS59: 1248 | AT59: 1286 | AU59: 3647 | AV59: 2590 | AW59: 3599 | AX59: 2617 | AY59: 3242 | AZ59: 2842 | BA59: 2366 | BB59: 2444 | BC59: 2644 | BD59: 2481
A60: 11.4 | B60: All Gas | C60: REF | D60: REF | E60: REF | F60: Contributions in Aid of Construction | G60: 325 | H60: 334 | I60: 339 | J60: 344 | K60: 348 | L60: 358 | M60: 364 | N60: 371 | O60: 378 | P60: 385 | Q60: 392 | R60: 400 | S60: 407 | T60: 415 | U60: 422 | V60: 430 | W60: 438 | X60: 446 | Y60: 455 | Z60: 463 | AA60: 472 | AB60: 482 | AC60: 492 | AD60: 502 | AE60: 512 | AF60: 522 | AG60: 533 | AH60: 543 | AI60: 554 | AJ60: 565 | AK60: 577 | AL60: 588 | AM60: 600 | AN60: 611 | AO60: 622 | AP60: 634 | AQ60: 645 | AR60: 656 | AS60: 666 | AT60: 677 | AU60: 700 | AV60: 722 | AW60: 745 | AX60: 768 | AY60: 791 | AZ60: 813 | BA60: 836 | BB60: 859 | BC60: 881 | BD60: 904
A61: 11.4 | B61: All Gas | C61: REF | D61: REF | E61: REF | F61: Retained Earnings | G61: 2443 | H61: 2508 | I61: 2186 | J61: 2101 | K61: 1995 | L61: 1860 | M61: 1620 | N61: 1449 | O61: 1396 | P61: 1420 | Q61: 1474 | R61: 1570 | S61: 1737 | T61: 1910 | U61: 2186 | V61: 2550 | W61: 2983 | X61: 3510 | Y61: 4136 | Z61: 4831 | AA61: 4995 | AB61: 5162 | AC61: 5337 | AD61: 5518 | AE61: 5703 | AF61: 5891 | AG61: 6083 | AH61: 6279 | AI61: 6477 | AJ61: 6677 | AK61: 6883 | AL61: 7093 | AM61: 7306 | AN61: 7519 | AO61: 7732 | AP61: 7940 | AQ61: 8147 | AR61: 8350 | AS61: 8554 | AT61: 8758 | AU61: 8962 | AV61: 9167 | AW61: 9371 | AX61: 9571 | AY61: 9769 | AZ61: 9964 | BA61: 10158 | BB61: 10354 | BC61: 10552 | BD61: 10748
A62: 11.4 | B62: All Gas | C62: REF | D62: REF | E62: REF | F62: Accumulated Other Comprehensive Income | G62: 299 | H62: 287 | I62: -159 | J62: -219 | K62: -267 | L62: -298 | M62: -317 | N62: -337 | O62: -360 | P62: -388 | Q62: -404 | R62: -404 | S62: -404 | T62: -404 | U62: -404 | V62: -404 | W62: -404 | X62: -404 | Y62: -404 | Z62: -404 | AA62: -404 | AB62: -404 | AC62: -404 | AD62: -404 | AE62: -404 | AF62: -404 | AG62: -404 | AH62: -404 | AI62: -404 | AJ62: -404 | AK62: -404 | AL62: -404 | AM62: -404 | AN62: -404 | AO62: -404 | AP62: -404 | AQ62: -404 | AR62: -404 | AS62: -404 | AT62: -404 | AU62: -404 | AV62: -404 | AW62: -404 | AX62: -404 | AY62: -404 | AZ62: -404 | BA62: -404 | BB62: -404 | BC62: -404 | BD62: -404
A63: 11.4 | B63: All Gas | C63: REF | D63: REF | E63: REF | F63: Total Liabilities and Equity | G63: 14587 | H63: 15891 | I63: 16630 | J63: 17682 | K63: 18477 | L63: 18910 | M63: 18618 | N63: 18550 | O63: 18580 | P63: 18366 | Q63: 18465 | R63: 18824 | S63: 19262 | T63: 19318 | U63: 19592 | V63: 20071 | W63: 20953 | X63: 21488 | Y63: 21577 | Z63: 22270 | AA63: 22214 | AB63: 22568 | AC63: 22814 | AD63: 23458 | AE63: 23767 | AF63: 24129 | AG63: 24820 | AH63: 25254 | AI63: 25599 | AJ63: 26173 | AK63: 26826 | AL63: 27472 | AM63: 27866 | AN63: 27996 | AO63: 28412 | AP63: 28729 | AQ63: 28339 | AR63: 28237 | AS63: 28554 | AT63: 28957 | AU63: 29144 | AV63: 29115 | AW63: 29149 | AX63: 29189 | AY63: 29027 | AZ63: 29244 | BA63: 29459 | BB63: 29955 | BC63: 29976 | BD63: 29981
A64: 11.4 | B64: All Gas | C64: REF | D64: REF | E64: REF
A65: 11.4 | B65: All Gas | C65: REF | D65: REF | E65: REF
A66: 11.4 | B66: All Gas | C66: REF | D66: REF | E66: REF
A67: 11.4 | B67: All Gas | C67: REF | D67: REF | E67: REF
A68: 11.4 | B68: All Gas | C68: REF | D68: REF | E68: REF
A69: 11.4 | B69: All Gas | C69: REF | D69: REF | E69: REF | F69: Development Plan | G69: All Gas | AF69: All Gas
A70: 11.4 | B70: All Gas | C70: REF | D70: REF | E70: REF | F70: Development Plan Scenario | G70: Economics:REF Rev:REF Cap:REF | AF70: Economics:REF Rev:REF Cap:REF
A71: 11.4 | B71: All Gas | C71: REF | D71: REF | E71: REF | F71: ELECTRIC OPERATIONS
A72: 11.4 | B72: All Gas | C72: REF | D72: REF | E72: REF | F72: PROJECTED CASH FLOW STATEMENT
A73: 11.4 | B73: All Gas | C73: REF | D73: REF | E73: REF | F73: In Millions of Dollars
A74: 11.4 | B74: All Gas | C74: REF | D74: REF | E74: REF | F74: For the year ended March 31 | G74: 2013 | H74: 2014 | I74: 2015 | J74: 2016 | K74: 2017 | L74: 2018 | M74: 2019 | N74: 2020 | O74: 2021 | P74: 2022 | Q74: 2023 | R74: 2024 | S74: 2025 | T74: 2026 | U74: 2027 | V74: 2028 | W74: 2029 | X74: 2030 | Y74: 2031 | Z74: 2032 | AA74: 2033 | AB74: 2034 | AC74: 2035 | AD74: 2036 | AE74: 2037 | AF74: 2038 | AG74: 2039 | AH74: 2040 | AI74: 2041 | AJ74: 2042 | AK74: 2043 | AL74: 2044 | AM74: 2045 | AN74: 2046 | AO74: 2047 | AP74: 2048 | AQ74: 2049 | AR74: 2050 | AS74: 2051 | AT74: 2052 | AU74: 2053 | AV74: 2054 | AW74: 2055 | AX74: 2056 | AY74: 2057 | AZ74: 2058 | BA74: 2059 | BB74: 2060 | BC74: 2061 | BD74: 2062
A75: 11.4 | B75: All Gas | C75: REF | D75: REF | E75: REF | F75: OPERATING ACTIVITIES
A76: 11.4 | B76: All Gas | C76: REF | D76: REF | E76: REF | F76: Cash Receipts from Customers | G76: 1692 | H76: 1768 | I76: 1821 | J76: 1928 | K76: 2014 | L76: 2120 | M76: 2192 | N76: 2270 | O76: 2409 | P76: 2516 | Q76: 2611 | R76: 2709 | S76: 2820 | T76: 2856 | U76: 2961 | V76: 3074 | W76: 3194 | X76: 3321 | Y76: 3491 | Z76: 3674 | AA76: 3113 | AB76: 3170 | AC76: 3349 | AD76: 3421 | AE76: 3476 | AF76: 3679 | AG76: 3765 | AH76: 3833 | AI76: 4061 | AJ76: 4191 | AK76: 4355 | AL76: 4432 | AM76: 4648 | AN76: 4816 | AO76: 4966 | AP76: 5060 | AQ76: 5088 | AR76: 5142 | AS76: 5277 | AT76: 5354 | AU76: 5448 | AV76: 5588 | AW76: 5657 | AX76: 5741 | AY76: 5820 | AZ76: 5869 | BA76: 5966 | BB76: 6058 | BC76: 6154 | BD76: 6302
A77: 11.4 | B77: All Gas | C77: REF | D77: REF | E77: REF | F77: Cash Paid to Suppliers and Employees | G77: -782 | H77: -822 | I77: -898 | J77: -926 | K77: -952 | L77: -981 | M77: -1000 | N77: -1011 | O77: -1033 | P77: -1060 | Q77: -1102 | R77: -1138 | S77: -1170 | T77: -1169 | U77: -1191 | V77: -1227 | W77: -1283 | X77: -1322 | Y77: -1336 | Z77: -1429 | AA77: -1480 | AB77: -1532 | AC77: -1597 | AD77: -1645 | AE77: -1679 | AF77: -1782 | AG77: -1845 | AH77: -1897 | AI77: -2013 | AJ77: -2111 | AK77: -2196 | AL77: -2248 | AM77: -2370 | AN77: -2481 | AO77: -2582 | AP77: -2674 | AQ77: -2674 | AR77: -2722 | AS77: -2771 | AT77: -2822 | AU77: -2874 | AV77: -2924 | AW77: -2975 | AX77: -3027 | AY77: -3079 | AZ77: -3133 | BA77: -3189 | BB77: -3247 | BC77: -3304 | BD77: -3360
A78: 11.4 | B78: All Gas | C78: REF | D78: REF | E78: REF | F78: Interest Paid | G78: -465 | H78: -473 | I78: -562 | J78: -626 | K78: -694 | L78: -804 | M78: -924 | N78: -905 | O78: -912 | P78: -900 | Q78: -886 | R78: -883 | S78: -883 | T78: -901 | U78: -881 | V78: -874 | W78: -864 | X78: -844 | Y78: -874 | Z78: -833 | AA78: -820 | AB78: -824 | AC78: -896 | AD78: -899 | AE78: -909 | AF78: -941 | AG78: -943 | AH78: -945 | AI78: -1007 | AJ78: -1020 | AK78: -1020 | AL78: -1022 | AM78: -1078 | AN78: -1089 | AO78: -1104 | AP78: -1092 | AQ78: -1094 | AR78: -1066 | AS78: -1043 | AT78: -1040 | AU78: -1071 | AV78: -1065 | AW78: -1043 | AX78: -1042 | AY78: -1025 | AZ78: -987 | BA78: -999 | BB78: -976 | BC78: -962 | BD78: -1002
A79: 11.4 | B79: All Gas | C79: REF | D79: REF | E79: REF | F79: Interest Received | G79: 28 | H79: 17 | I79: 24 | J79: 26 | K79: 31 | L79: 39 | M79: 41 | N79: 37 | O79: 35 | P79: 33 | Q79: 16 | R79: 14 | S79: 20 | T79: 22 | U79: 25 | V79: 33 | W79: 41 | X79: 41 | Y79: 44 | Z79: 17 | AA79: 25 | AB79: 24 | AC79: 25 | AD79: 20 | AE79: 29 | AF79: 25 | AG79: 23 | AH79: 28 | AI79: 26 | AJ79: 28 | AK79: 30 | AL79: 31 | AM79: 40 | AN79: 42 | AO79: 42 | AP79: 54 | AQ79: 49 | AR79: 43 | AS79: 39 | AT79: 48 | AU79: 56 | AV79: 49 | AW79: 45 | AX79: 43 | AY79: 42 | AZ79: 40 | BA79: 49 | BB79: 47 | BC79: 42 | BD79: 48
A80: 11.4 | B80: All Gas | C80: REF | D80: REF | E80: REF | F80: Cash from Operating Activities | G80: 474 | H80: 489 | I80: 385 | J80: 402 | K80: 399 | L80: 374 | M80: 309 | N80: 390 | O80: 499 | P80: 588 | Q80: 639 | R80: 702 | S80: 786 | T80: 807 | U80: 914 | V80: 1006 | W80: 1089 | X80: 1196 | Y80: 1325 | Z80: 1429 | AA80: 838 | AB80: 837 | AC80: 881 | AD80: 897 | AE80: 917 | AF80: 981 | AG80: 1000 | AH80: 1019 | AI80: 1067 | AJ80: 1088 | AK80: 1168 | AL80: 1193 | AM80: 1240 | AN80: 1287 | AO80: 1323 | AP80: 1348 | AQ80: 1370 | AR80: 1398 | AS80: 1501 | AT80: 1539 | AU80: 1559 | AV80: 1649 | AW80: 1683 | AX80: 1716 | AY80: 1758 | AZ80: 1790 | BA80: 1827 | BB80: 1882 | BC80: 1931 | BD80: 1988
A81: 11.4 | B81: All Gas | C81: REF | D81: REF | E81: REF
A82: 11.4 | B82: All Gas | C82: REF | D82: REF | E82: REF | F82: FINANCING ACTIVITIES
A83: 11.4 | B83: All Gas | C83: REF | D83: REF | E83: REF | F83: Proceeds from Long Term Debt | G83: 836 | H83: 2170 | I83: 1360 | J83: 1590 | K83: 1180 | L83: 1180 | M83: 790 | N83: 390 | O83: 790 | P83: 590 | Q83: 560 | R83: 190 | S83: 190 | T83: 390 | U83: -10 | V83: -10 | W83: 590 | X83: 160 | Y83: 190 | Z83: -10 | AA83: -40 | AB83: 2340 | AC83: 1320 | AD83: 2380 | AE83: 1320 | AF83: 1940 | AG83: 1580 | AH83: 950 | AI83: 1180 | AJ83: 1380 | AK83: 1130 | AL83: 770 | AM83: 380 | AN83: 180 | AO83: 170 | AP83: 180 | AQ83: -20 | AR83: -60 | AS83: 380 | AT83: 180 | AU83: -50 | AV83: 2130 | AW83: 1110 | AX83: 2180 | AY83: 910 | AZ83: 1940 | BA83: 1570 | BB83: 1350 | BC83: 980 | BD83: 1190
A84: 11.4 | B84: All Gas | C84: REF | D84: REF | E84: REF | F84: Sinking Fund Withdrawals | G84: 129 | H84: 393 | I84: 102 | J84: 26 | K84: 0 | L84: 7 | M84: 416 | N84: 156 | O84: 260 | P84: 676 | Q84: 156 | R84: 0 | S84: 0 | T84: 310 | U84: 0 | V84: 0 | W84: 60 | X84: 250 | Y84: 700 | Z84: 13 | AA84: 230 | AB84: 0 | AC84: 302 | AD84: 148 | AE84: 200 | AF84: 285 | AG84: 100 | AH84: 227 | AI84: 167 | AJ84: 168 | AK84: 171 | AL84: 50 | AM84: 0 | AN84: 400 | AO84: 0 | AP84: 0 | AQ84: 600 | AR84: 266 | AS84: 0 | AT84: 0 | AU84: 50 | AV84: 400 | AW84: 400 | AX84: 0 | AY84: 400 | AZ84: 7 | BA84: 200 | BB84: 125 | BC84: 200 | BD84: 0
A85: 11.4 | B85: All Gas | C85: REF | D85: REF | E85: REF | F85: Retirement of Long Term Debt | G85: -119 | H85: -808 | I85: -176 | J85: -312 | K85: -347 | L85: -530 | M85: -829 | N85: -306 | O85: -635 | P85: -679 | Q85: -432 | R85: 0 | S85: 0 | T85: -450 | U85: 0 | V85: 0 | W85: -60 | X85: -220 | Y85: -700 | Z85: -13 | AA85: -200 | AB85: -2179 | AC85: -1344 | AD85: -1865 | AE85: -1330 | AF85: -1700 | AG85: -1190 | AH85: -660 | AI85: -1040 | AJ85: -1040 | AK85: -840 | AL85: -240 | AM85: -190 | AN85: -390 | AO85: 10 | AP85: 10 | AQ85: -590 | AR85: -485 | AS85: -190 | AT85: 10 | AU85: -10 | AV85: -2340 | AW85: -1320 | AX85: -2380 | AY85: -1320 | AZ85: -1947 | BA85: -1580 | BB85: -1075 | BC85: -1180 | BD85: -1380
A86: 11.4 | B86: All Gas | C86: REF | D86: REF | E86: REF | F86: Other Financing Activities | G86: -42 | H86: -7 | I86: -20 | J86: -19 | K86: -17 | L86: -13 | M86: -25 | N86: -14 | O86: -57 | P86: -9 | Q86: 3 | R86: 4 | S86: 4 | T86: 3 | U86: 4 | V86: 5 | W86: 7 | X86: 8 | Y86: 9 | Z86: -10 | AA86: -10 | AB86: -10 | AC86: -10 | AD86: -10 | AE86: -8 | AF86: -8 | AG86: -8 | AH86: -9 | AI86: -9 | AJ86: -9 | AK86: -10 | AL86: -35 | AM86: -16 | AN86: -17 | AO86: -21 | AP86: -17 | AQ86: -17 | AR86: -17 | AS86: -17 | AT86: -18 | AU86: -18 | AV86: -18 | AW86: -19 | AX86: -19 | AY86: -20 | AZ86: -20 | BA86: -21 | BB86: -21 | BC86: -22 | BD86: -36
A87: 11.4 | B87: All Gas | C87: REF | D87: REF | E87: REF | F87: Cash from Financing Activities | G87: 804 | H87: 1748 | I87: 1266 | J87: 1285 | K87: 816 | L87: 643 | M87: 353 | N87: 226 | O87: 358 | P87: 578 | Q87: 287 | R87: 194 | S87: 194 | T87: 253 | U87: -6 | V87: -5 | W87: 597 | X87: 198 | Y87: 199 | Z87: -20 | AA87: -20 | AB87: 151 | AC87: 268 | AD87: 652 | AE87: 182 | AF87: 517 | AG87: 482 | AH87: 508 | AI87: 297 | AJ87: 498 | AK87: 452 | AL87: 545 | AM87: 174 | AN87: 173 | AO87: 159 | AP87: 173 | AQ87: -27 | AR87: -296 | AS87: 173 | AT87: 172 | AU87: -28 | AV87: 172 | AW87: 171 | AX87: -219 | AY87: -30 | AZ87: -20 | BA87: 169 | BB87: 379 | BC87: -22 | BD87: -226
A88: 11.4 | B88: All Gas | C88: REF | D88: REF | E88: REF
A89: 11.4 | B89: All Gas | C89: REF | D89: REF | E89: REF | F89: INVESTING ACTIVITIES
A90: 11.4 | B90: All Gas | C90: REF | D90: REF | E90: REF | F90: Property Plant and Equipment net of contributions | G90: -1379 | H90: -1914 | I90: -1752 | J90: -1340 | K90: -1078 | L90: -692 | M90: -463 | N90: -401 | O90: -569 | P90: -699 | Q90: -625 | R90: -712 | S90: -852 | T90: -681 | U90: -744 | V90: -937 | W90: -1285 | X90: -1290 | Y90: -1102 | Z90: -798 | AA90: -868 | AB90: -1037 | AC90: -1052 | AD90: -1191 | AE90: -1064 | AF90: -1188 | AG90: -1349 | AH90: -1223 | AI90: -1110 | AJ90: -1377 | AK90: -1521 | AL90: -1388 | AM90: -1121 | AN90: -1321 | AO90: -1222 | AP90: -1143 | AQ90: -1113 | AR90: -1148 | AS90: -1369 | AT90: -1485 | AU90: -1315 | AV90: -1534 | AW90: -1558 | AX90: -1393 | AY90: -1496 | AZ90: -1576 | BA90: -1760 | BB90: -2069 | BC90: -1709 | BD90: -1466
A91: 11.4 | B91: All Gas | C91: REF | D91: REF | E91: REF | F91: Sinking Fund Payment | G91: -107 | H91: -208 | I91: -124 | J91: -188 | K91: -157 | L91: -227 | M91: -189 | N91: -215 | O91: -248 | P91: -299 | Q91: -172 | R91: -166 | S91: -176 | T91: -185 | U91: -178 | V91: -185 | W91: -194 | X91: -203 | Y91: -202 | Z91: -176 | AA91: -182 | AB91: -178 | AC91: -188 | AD91: -184 | AE91: -189 | AF91: -190 | AG91: -188 | AH91: -196 | AI91: -197 | AJ91: -200 | AK91: -205 | AL91: -210 | AM91: -221 | AN91: -232 | AO91: -224 | AP91: -193 | AQ91: -203 | AR91: -181 | AS91: -174 | AT91: -182 | AU91: -191 | AV91: -196 | AW91: -185 | AX91: -173 | AY91: -179 | AZ91: -166 | BA91: -172 | BB91: -171 | BC91: -176 | BD91: -173
A92: 11.4 | B92: All Gas | C92: REF | D92: REF | E92: REF | F92: Other Investing Activities | G92: -17 | H92: -16 | I92: -21 | J92: -20 | K92: -32 | L92: -42 | M92: -28 | N92: -28 | O92: -33 | P92: -38 | Q92: -29 | R92: -32 | S92: -25 | T92: -25 | U92: -28 | V92: -26 | W92: -26 | X92: -26 | Y92: -26 | Z92: -26 | AA92: -27 | AB92: -27 | AC92: -27 | AD92: -27 | AE92: -27 | AF92: -28 | AG92: -28 | AH92: -28 | AI92: -28 | AJ92: -28 | AK92: -29 | AL92: -29 | AM92: -29 | AN92: -29 | AO92: -30 | AP92: -30 | AQ92: -30 | AR92: -30 | AS92: -31 | AT92: -30 | AU92: -15 | AV92: -15 | AW92: -14 | AX92: -14 | AY92: -13 | AZ92: -36 | BA92: -37 | BB92: -37 | BC92: -38 | BD92: -38
A93: 11.4 | B93: All Gas | C93: REF | D93: REF | E93: REF | F93: Cash from Investing Activities | G93: -1503 | H93: -2138 | I93: -1897 | J93: -1547 | K93: -1267 | L93: -960 | M93: -680 | N93: -645 | O93: -849 | P93: -1036 | Q93: -825 | R93: -911 | S93: -1053 | T93: -891 | U93: -950 | V93: -1148 | W93: -1505 | X93: -1520 | Y93: -1331 | Z93: -1000 | AA93: -1077 | AB93: -1242 | AC93: -1267 | AD93: -1402 | AE93: -1280 | AF93: -1406 | AG93: -1565 | AH93: -1448 | AI93: -1335 | AJ93: -1605 | AK93: -1754 | AL93: -1627 | AM93: -1371 | AN93: -1582 | AO93: -1476 | AP93: -1366 | AQ93: -1346 | AR93: -1360 | AS93: -1574 | AT93: -1697 | AU93: -1521 | AV93: -1744 | AW93: -1757 | AX93: -1579 | AY93: -1688 | AZ93: -1779 | BA93: -1969 | BB93: -2278 | BC93: -1923 | BD93: -1677
A94: 11.4 | B94: All Gas | C94: REF | D94: REF | E94: REF
A95: 11.4 | B95: All Gas | C95: REF | D95: REF | E95: REF | F95: Net Increase (Decrease) in Cash | G95: -225 | H95: 100 | I95: -246 | J95: 140 | K95: -52 | L95: 57 | M95: -18 | N95: -28 | O95: 7 | P95: 129 | Q95: 101 | R95: -15 | S95: -73 | T95: 169 | U95: -42 | V95: -147 | W95: 181 | X95: -126 | Y95: 193 | Z95: 409 | AA95: -259 | AB95: -253 | AC95: -117 | AD95: 147 | AE95: -182 | AF95: 92 | AG95: -83 | AH95: 79 | AI95: 29 | AJ95: -19 | AK95: -134 | AL95: 110 | AM95: 43 | AN95: -122 | AO95: 6 | AP95: 155 | AQ95: -3 | AR95: -258 | AS95: 100 | AT95: 14 | AU95: 11 | AV95: 76 | AW95: 98 | AX95: -83 | AY95: 40 | AZ95: -9 | BA95: 27 | BB95: -17 | BC95: -14 | BD95: 84
A96: 11.4 | B96: All Gas | C96: REF | D96: REF | E96: REF | F96: Cash at Beginning of Year | G96: 43 | H96: -182 | I96: -83 | J96: -329 | K96: -189 | L96: -241 | M96: -184 | N96: -203 | O96: -230 | P96: -223 | Q96: -94 | R96: 6 | S96: -8 | T96: -81 | U96: 88 | V96: 46 | W96: -101 | X96: 80 | Y96: -46 | Z96: 147 | AA96: 556 | AB96: 298 | AC96: 45 | AD96: -73 | AE96: 74 | AF96: -107 | AG96: -15 | AH96: -98 | AI96: -20 | AJ96: 9 | AK96: -10 | AL96: -144 | AM96: -33 | AN96: 9 | AO96: -112 | AP96: -106 | AQ96: 49 | AR96: 46 | AS96: -212 | AT96: -112 | AU96: -97 | AV96: -87 | AW96: -11 | AX96: 87 | AY96: 4 | AZ96: 44 | BA96: 35 | BB96: 61 | BC96: 44 | BD96: 30
A97: 11.4 | B97: All Gas | C97: REF | D97: REF | E97: REF | F97: Cash at End of Year | G97: -182 | H97: -83 | I97: -329 | J97: -189 | K97: -241 | L97: -184 | M97: -203 | N97: -230 | O97: -223 | P97: -94 | Q97: 6 | R97: -8 | S97: -81 | T97: 88 | U97: 46 | V97: -101 | W97: 80 | X97: -46 | Y97: 147 | Z97: 556 | AA97: 298 | AB97: 45 | AC97: -73 | AD97: 74 | AE97: -107 | AF97: -15 | AG97: -98 | AH97: -20 | AI97: 9 | AJ97: -10 | AK97: -144 | AL97: -33 | AM97: 9 | AN97: -112 | AO97: -106 | AP97: 49 | AQ97: 46 | AR97: -212 | AS97: -112 | AT97: -97 | AU97: -87 | AV97: -11 | AW97: 87 | AX97: 4 | AY97: 44 | AZ97: 35 | BA97: 61 | BB97: 44 | BC97: 30 | BD97: 115
A98: 11.4 | B98: All Gas | C98: REF | D98: REF | E98: REF
A99: 11.4 | B99: All Gas | C99: REF | D99: REF | E99: REF
A100: 11.4 | B100: All Gas | C100: REF | D100: REF | E100: REF
A101: 11.4 | B101: All Gas | C101: REF | D101: REF | E101: REF
A102: 11.4 | B102: K22 Gas | C102: REF | D102: REF | E102: REF | F102: Development Plan | G102: K22 Gas | AF102: K22 Gas
A103: 11.4 | B103: K22 Gas | C103: REF | D103: REF | E103: REF | F103: Development Plan Scenario | G103: Economics:REF Rev:REF Cap:REF | AF103: Economics:REF Rev:REF Cap:REF
A104: 11.4 | B104: K22 Gas | C104: REF | D104: REF | E104: REF | F104: ELECTRIC OPERATIONS
A105: 11.4 | B105: K22 Gas | C105: REF | D105: REF | E105: REF | F105: PROJECTED OPERATING STATEMENT
A106: 11.4 | B106: K22 Gas | C106: REF | D106: REF | E106: REF | F106: In Millions of Dollars
A107: 11.4 | B107: K22 Gas | C107: REF | D107: REF | E107: REF | F107: For the year ended March 31 | G107: 2013 | H107: 2014 | I107: 2015 | J107: 2016 | K107: 2017 | L107: 2018 | M107: 2019 | N107: 2020 | O107: 2021 | P107: 2022 | Q107: 2023 | R107: 2024 | S107: 2025 | T107: 2026 | U107: 2027 | V107: 2028 | W107: 2029 | X107: 2030 | Y107: 2031 | Z107: 2032 | AA107: 2033 | AB107: 2034 | AC107: 2035 | AD107: 2036 | AE107: 2037 | AF107: 2038 | AG107: 2039 | AH107: 2040 | AI107: 2041 | AJ107: 2042 | AK107: 2043 | AL107: 2044 | AM107: 2045 | AN107: 2046 | AO107: 2047 | AP107: 2048 | AQ107: 2049 | AR107: 2050 | AS107: 2051 | AT107: 2052 | AU107: 2053 | AV107: 2054 | AW107: 2055 | AX107: 2056 | AY107: 2057 | AZ107: 2058 | BA107: 2059 | BB107: 2060 | BC107: 2061 | BD107: 2062
A108: 11.4 | B108: K22 Gas | C108: REF | D108: REF | E108: REF | F108: REVENUES
A109: 11.4 | B109: K22 Gas | C109: REF | D109: REF | E109: REF | F109: General Consumers Revenue at approved rates | G109: 1331 | H109: 1361 | I109: 1374 | J109: 1390 | K109: 1404 | L109: 1424 | M109: 1447 | N109: 1462 | O109: 1485 | P109: 1506 | Q109: 1529 | R109: 1552 | S109: 1575 | T109: 1598 | U109: 1621 | V109: 1644 | W109: 1669 | X109: 1693 | Y109: 1717 | Z109: 1741 | AA109: 1765 | AB109: 1790 | AC109: 1814 | AD109: 1838 | AE109: 1862 | AF109: 1886 | AG109: 1910 | AH109: 1935 | AI109: 1959 | AJ109: 1983 | AK109: 2007 | AL109: 2031 | AM109: 2056 | AN109: 2080 | AO109: 2104 | AP109: 2128 | AQ109: 2128 | AR109: 2128 | AS109: 2128 | AT109: 2128 | AU109: 2128 | AV109: 2128 | AW109: 2128 | AX109: 2128 | AY109: 2128 | AZ109: 2128 | BA109: 2128 | BB109: 2128 | BC109: 2128 | BD109: 2128
A110: 11.4 | B110: K22 Gas | C110: REF | D110: REF | E110: REF | F110: Additional General Consumers Revenue | G110: 0 | H110: 48 | I110: 98 | J110: 151 | K110: 207 | L110: 267 | M110: 331 | N110: 397 | O110: 469 | P110: 546 | Q110: 626 | R110: 712 | S110: 803 | T110: 899 | U110: 1000 | V110: 1108 | W110: 1222 | X110: 1342 | Y110: 1469 | Z110: 1602 | AA110: 1054 | AB110: 1065 | AC110: 1256 | AD110: 1315 | AE110: 1362 | AF110: 1365 | AG110: 1494 | AH110: 1568 | AI110: 1621 | AJ110: 1773 | AK110: 1925 | AL110: 1993 | AM110: 2020 | AN110: 2206 | AO110: 2331 | AP110: 2386 | AQ110: 2369 | AR110: 2407 | AS110: 2521 | AT110: 2570 | AU110: 2578 | AV110: 2630 | AW110: 2653 | AX110: 2690 | AY110: 2723 | AZ110: 2750 | BA110: 2790 | BB110: 2874 | BC110: 2936 | BD110: 2984
A111: 11.4 | B111: K22 Gas | C111: REF | D111: REF | E111: REF | F111: Extraprovincial | G111: 357 | H111: 344 | I111: 335 | J111: 374 | K111: 391 | L111: 417 | M111: 401 | N111: 399 | O111: 438 | P111: 450 | Q111: 466 | R111: 614 | S111: 644 | T111: 586 | U111: 573 | V111: 531 | W111: 513 | X111: 514 | Y111: 509 | Z111: 503 | AA111: 499 | AB111: 517 | AC111: 559 | AD111: 544 | AE111: 534 | AF111: 557 | AG111: 599 | AH111: 591 | AI111: 601 | AJ111: 653 | AK111: 642 | AL111: 636 | AM111: 628 | AN111: 686 | AO111: 683 | AP111: 654 | AQ111: 699 | AR111: 712 | AS111: 725 | AT111: 738 | AU111: 751 | AV111: 764 | AW111: 778 | AX111: 792 | AY111: 806 | AZ111: 821 | BA111: 836 | BB111: 851 | BC111: 866 | BD111: 882
A112: 11.4 | B112: K22 Gas | C112: REF | D112: REF | E112: REF | F112: Other | G112: 14 | H112: 15 | I112: 15 | J112: 15 | K112: 15 | L112: 16 | M112: 16 | N112: 16 | O112: 17 | P112: 17 | Q112: 17 | R112: 18 | S112: 18 | T112: 18 | U112: 19 | V112: 19 | W112: 19 | X112: 20 | Y112: 20 | Z112: 21 | AA112: 21 | AB112: 21 | AC112: 22 | AD112: 22 | AE112: 23 | AF112: 23 | AG112: 24 | AH112: 24 | AI112: 24 | AJ112: 25 | AK112: 25 | AL112: 26 | AM112: 26 | AN112: 27 | AO112: 27 | AP112: 28 | AQ112: 29 | AR112: 29 | AS112: 30 | AT112: 30 | AU112: 31 | AV112: 31 | AW112: 32 | AX112: 33 | AY112: 33 | AZ112: 34 | BA112: 35 | BB112: 35 | BC112: 36 | BD112: 37
A113: 11.4 | B113: K22 Gas | C113: REF | D113: REF | E113: REF | F113: Total Revenue | G113: 1702 | H113: 1768 | I113: 1821 | J113: 1930 | K113: 2017 | L113: 2124 | M113: 2195 | N113: 2274 | O113: 2408 | P113: 2519 | Q113: 2638 | R113: 2896 | S113: 3041 | T113: 3102 | U113: 3213 | V113: 3302 | W113: 3423 | X113: 3569 | Y113: 3715 | Z113: 3867 | AA113: 3339 | AB113: 3393 | AC113: 3650 | AD113: 3719 | AE113: 3780 | AF113: 3831 | AG113: 4028 | AH113: 4118 | AI113: 4205 | AJ113: 4434 | AK113: 4600 | AL113: 4687 | AM113: 4729 | AN113: 4999 | AO113: 5145 | AP113: 5196 | AQ113: 5225 | AR113: 5276 | AS113: 5403 | AT113: 5466 | AU113: 5487 | AV113: 5554 | AW113: 5592 | AX113: 5643 | AY113: 5691 | AZ113: 5733 | BA113: 5788 | BB113: 5889 | BC113: 5966 | BD113: 6030
A114: 11.4 | B114: K22 Gas | C114: REF | D114: REF | E114: REF
A115: 11.4 | B115: K22 Gas | C115: REF | D115: REF | E115: REF | F115: EXPENSES
A116: 11.4 | B116: K22 Gas | C116: REF | D116: REF | E116: REF | F116: Operating and Administrative | G116: 455 | H116: 471 | I116: 546 | J116: 559 | K116: 570 | L116: 593 | M116: 605 | N116: 616 | O116: 628 | P116: 641 | Q116: 660 | R116: 685 | S116: 700 | T116: 713 | U116: 727 | V116: 743 | W116: 759 | X116: 778 | Y116: 795 | Z116: 814 | AA116: 839 | AB116: 858 | AC116: 893 | AD116: 915 | AE116: 937 | AF116: 958 | AG116: 995 | AH116: 1020 | AI116: 1044 | AJ116: 1085 | AK116: 1113 | AL116: 1141 | AM116: 1167 | AN116: 1213 | AO116: 1244 | AP116: 1275 | AQ116: 1305 | AR116: 1337 | AS116: 1370 | AT116: 1404 | AU116: 1426 | AV116: 1461 | AW116: 1483 | AX116: 1505 | AY116: 1528 | AZ116: 1551 | BA116: 1575 | BB116: 1599 | BC116: 1624 | BD116: 1649
A117: 11.4 | B117: K22 Gas | C117: REF | D117: REF | E117: REF | F117: Finance Expense | G117: 452 | H117: 442 | I117: 483 | J117: 516 | K117: 576 | L117: 673 | M117: 790 | N117: 780 | O117: 775 | P117: 760 | Q117: 780 | R117: 1031 | S117: 1135 | T117: 1129 | U117: 1102 | V117: 1089 | W117: 1060 | X117: 1048 | Y117: 1074 | Z117: 1025 | AA117: 1002 | AB117: 1020 | AC117: 1114 | AD117: 1114 | AE117: 1111 | AF117: 1100 | AG117: 1132 | AH117: 1131 | AI117: 1147 | AJ117: 1192 | AK117: 1194 | AL117: 1186 | AM117: 1173 | AN117: 1210 | AO117: 1241 | AP117: 1202 | AQ117: 1190 | AR117: 1173 | AS117: 1158 | AT117: 1140 | AU117: 1108 | AV117: 1050 | AW117: 1012 | AX117: 988 | AY117: 950 | AZ117: 923 | BA117: 891 | BB117: 890 | BC117: 871 | BD117: 836
A118: 11.4 | B118: K22 Gas | C118: REF | D118: REF | E118: REF | F118: Depreciation and Amortization | G118: 399 | H118: 430 | I118: 386 | J118: 412 | K118: 421 | L118: 443 | M118: 478 | N118: 474 | O118: 471 | P118: 480 | Q118: 492 | R118: 552 | S118: 581 | T118: 591 | U118: 598 | V118: 599 | W118: 600 | X118: 615 | Y118: 643 | Z118: 653 | AA118: 645 | AB118: 645 | AC118: 690 | AD118: 698 | AE118: 704 | AF118: 736 | AG118: 763 | AH118: 774 | AI118: 788 | AJ118: 823 | AK118: 894 | AL118: 903 | AM118: 911 | AN118: 979 | AO118: 1002 | AP118: 1015 | AQ118: 1038 | AR118: 1053 | AS118: 1138 | AT118: 1163 | AU118: 1181 | AV118: 1259 | AW118: 1294 | AX118: 1325 | AY118: 1367 | AZ118: 1391 | BA118: 1430 | BB118: 1481 | BC118: 1526 | BD118: 1569
A119: 11.4 | B119: K22 Gas | C119: REF | D119: REF | E119: REF | F119: Water Rentals and Assessments | G119: 117 | H119: 116 | I119: 112 | J119: 112 | K119: 112 | L119: 113 | M119: 112 | N119: 112 | O119: 113 | P119: 113 | Q119: 115 | R119: 124 | S119: 126 | T119: 128 | U119: 128 | V119: 128 | W119: 129 | X119: 130 | Y119: 130 | Z119: 130 | AA119: 130 | AB119: 133 | AC119: 132 | AD119: 131 | AE119: 131 | AF119: 134 | AG119: 133 | AH119: 133 | AI119: 135 | AJ119: 134 | AK119: 133 | AL119: 134 | AM119: 135 | AN119: 135 | AO119: 135 | AP119: 135 | AQ119: 140 | AR119: 143 | AS119: 145 | AT119: 148 | AU119: 150 | AV119: 153 | AW119: 156 | AX119: 159 | AY119: 162 | AZ119: 165 | BA119: 168 | BB119: 171 | BC119: 174 | BD119: 177
A120: 11.4 | B120: K22 Gas | C120: REF | D120: REF | E120: REF | F120: Fuel and Power Purchased | G120: 143 | H120: 166 | I120: 167 | J120: 178 | K120: 191 | L120: 197 | M120: 206 | N120: 209 | O120: 222 | P120: 237 | Q120: 237 | R120: 228 | S120: 242 | T120: 227 | U120: 235 | V120: 237 | W120: 247 | X120: 258 | Y120: 275 | Z120: 293 | AA120: 320 | AB120: 320 | AC120: 394 | AD120: 426 | AE120: 454 | AF120: 452 | AG120: 545 | AH120: 591 | AI120: 613 | AJ120: 713 | AK120: 771 | AL120: 820 | AM120: 832 | AN120: 944 | AO120: 1003 | AP120: 1053 | AQ120: 1036 | AR120: 1055 | AS120: 1074 | AT120: 1093 | AU120: 1113 | AV120: 1133 | AW120: 1153 | AX120: 1174 | AY120: 1195 | AZ120: 1217 | BA120: 1239 | BB120: 1261 | BC120: 1284 | BD120: 1307
A121: 11.4 | B121: K22 Gas | C121: REF | D121: REF | E121: REF | F121: Capital and Other Taxes | G121: 87 | H121: 95 | I121: 100 | J121: 106 | K121: 110 | L121: 113 | M121: 117 | N121: 122 | O121: 128 | P121: 134 | Q121: 139 | R121: 142 | S121: 143 | T121: 144 | U121: 146 | V121: 149 | W121: 152 | X121: 156 | Y121: 159 | Z121: 163 | AA121: 166 | AB121: 173 | AC121: 174 | AD121: 177 | AE121: 181 | AF121: 184 | AG121: 188 | AH121: 192 | AI121: 197 | AJ121: 199 | AK121: 203 | AL121: 207 | AM121: 211 | AN121: 213 | AO121: 215 | AP121: 217 | AQ121: 219 | AR121: 220 | AS121: 222 | AT121: 224 | AU121: 222 | AV121: 222 | AW121: 224 | AX121: 225 | AY121: 226 | AZ121: 227 | BA121: 230 | BB121: 232 | BC121: 234 | BD121: 238
A122: 11.4 | B122: K22 Gas | C122: REF | D122: REF | E122: REF | F122: Corporate Allocation | G122: 9 | H122: 9 | I122: 8 | J122: 8 | K122: 8 | L122: 8 | M122: 8 | N122: 8 | O122: 8 | P122: 8 | Q122: 8 | R122: 8 | S122: 8 | T122: 8 | U122: 8 | V122: 8 | W122: 8 | X122: 8 | Y122: 7 | Z122: 7 | AA122: 7 | AB122: 7 | AC122: 7 | AD122: 7 | AE122: 7 | AF122: 7 | AG122: 7 | AH122: 7 | AI122: 7 | AJ122: 7 | AK122: 7 | AL122: 7 | AM122: 6 | AN122: 6 | AO122: 6 | AP122: 6 | AQ122: 6 | AR122: 6 | AS122: 6 | AT122: 6 | AU122: 6 | AV122: 6 | AW122: 6 | AX122: 6 | AY122: 6 | AZ122: 6 | BA122: 6 | BB122: 6 | BC122: 6 | BD122: 6
A123: 11.4 | B123: K22 Gas | C123: REF | D123: REF | E123: REF | F123: Total Expenses | G123: 1663 | H123: 1729 | I123: 1803 | J123: 1891 | K123: 1989 | L123: 2140 | M123: 2316 | N123: 2321 | O123: 2345 | P123: 2374 | Q123: 2432 | R123: 2771 | S123: 2935 | T123: 2940 | U123: 2944 | V123: 2952 | W123: 2955 | X123: 2992 | Y123: 3084 | Z123: 3085 | AA123: 3110 | AB123: 3156 | AC123: 3403 | AD123: 3469 | AE123: 3525 | AF123: 3571 | AG123: 3763 | AH123: 3849 | AI123: 3930 | AJ123: 4153 | AK123: 4316 | AL123: 4397 | AM123: 4434 | AN123: 4700 | AO123: 4845 | AP123: 4903 | AQ123: 4933 | AR123: 4986 | AS123: 5113 | AT123: 5178 | AU123: 5206 | AV123: 5283 | AW123: 5327 | AX123: 5381 | AY123: 5434 | AZ123: 5480 | BA123: 5538 | BB123: 5639 | BC123: 5718 | BD123: 5781
A124: 11.4 | B124: K22 Gas | C124: REF | D124: REF | E124: REF
A125: 11.4 | B125: K22 Gas | C125: REF | D125: REF | E125: REF | F125: Non-Controlling Interest | G125: -14 | H125: -24 | I125: -22 | J125: -17 | K125: -14 | L125: -13 | M125: -9 | N125: -5 | O125: -1 | P125: 1 | Q125: 2 | R125: 1 | S125: 7 | T125: 5 | U125: 7 | V125: 7 | W125: 8 | X125: 11 | Y125: 13 | Z125: 14 | AA125: 16 | AB125: 18 | AC125: 21 | AD125: 23 | AE125: 25 | AF125: 27 | AG125: 29 | AH125: 31 | AI125: 34 | AJ125: 37 | AK125: 39 | AL125: 41 | AM125: 43 | AN125: 46 | AO125: 49 | AP125: 50 | AQ125: 50 | AR125: 52 | AS125: 53 | AT125: 54 | AU125: 55 | AV125: 56 | AW125: 57 | AX125: 59 | AY125: 61 | AZ125: 63 | BA125: 65 | BB125: 66 | BC125: 68 | BD125: 71
A126: 11.4 | B126: K22 Gas | C126: REF | D126: REF | E126: REF
A127: 11.4 | B127: K22 Gas | C127: REF | D127: REF | E127: REF | F127: Net Income | G127: 54 | H127: 63 | I127: 41 | J127: 55 | K127: 42 | L127: -4 | M127: -112 | N127: -42 | O127: 65 | P127: 144 | Q127: 204 | R127: 123 | S127: 99 | T127: 157 | U127: 262 | V127: 342 | W127: 460 | X127: 566 | Y127: 618 | Z127: 767 | AA127: 213 | AB127: 219 | AC127: 226 | AD127: 227 | AE127: 231 | AF127: 233 | AG127: 235 | AH127: 238 | AI127: 241 | AJ127: 244 | AK127: 245 | AL127: 249 | AM127: 252 | AN127: 252 | AO127: 251 | AP127: 243 | AQ127: 241 | AR127: 238 | AS127: 237 | AT127: 234 | AU127: 226 | AV127: 215 | AW127: 207 | AX127: 203 | AY127: 196 | AZ127: 190 | BA127: 186 | BB127: 184 | BC127: 180 | BD127: 178
A128: 11.4 | B128: K22 Gas | C128: REF | D128: REF | E128: REF
A129: 11.4 | B129: K22 Gas | C129: REF | D129: REF | E129: REF | F129: Additional General Consumers Revenue Percent Increase | G129: 0 | H129: 0.035 | I129: 0.0349 | J129: 0.0349 | K129: 0.0349 | L129: 0.0349 | M129: 0.0349 | N129: 0.0349 | O129: 0.0349 | P129: 0.0349 | Q129: 0.0349 | R129: 0.0349 | S129: 0.0349 | T129: 0.0349 | U129: 0.0349 | V129: 0.0349 | W129: 0.0349 | X129: 0.0349 | Y129: 0.0349 | Z129: 0.0349 | AA129: -0.1684 | AB129: -0.001 | AC129: 0.0611 | AD129: 0.0134 | AE129: 0.0093 | AF129: -0.0044 | AG129: 0.0339 | AH129: 0.0159 | AI129: 0.0093 | AJ129: 0.0366 | AK129: 0.0342 | AL129: 0.0112 | AM129: 0.0007 | AN129: 0.0394 | AO129: 0.0229 | AP129: 0.0063 | AQ129: -0.0038 | AR129: 0.0084 | AS129: 0.0251 | AT129: 0.0106 | AU129: 0.0016 | AV129: 0.0112 | AW129: 0.0049 | AX129: 0.0077 | AY129: 0.0068 | AZ129: 0.0055 | BA129: 0.0082 | BB129: 0.0172 | BC129: 0.0124 | BD129: 0.0093
A130: 11.4 | B130: K22 Gas | C130: REF | D130: REF | E130: REF | F130: Cumulative General Consumers Revenue Percent Increase | G130: 0 | H130: 0.035 | I130: 0.0712 | J130: 0.1086 | K130: 0.1473 | L130: 0.1874 | M130: 0.2289 | N130: 0.2718 | O130: 0.3162 | P130: 0.3622 | Q130: 0.4098 | R130: 0.459 | S130: 0.51 | T130: 0.5627 | U130: 0.6173 | V130: 0.6738 | W130: 0.7323 | X130: 0.7928 | Y130: 0.8554 | Z130: 0.9202 | AA130: 0.5969 | AB130: 0.5952 | AC130: 0.6926 | AD130: 0.7154 | AE130: 0.7313 | AF130: 0.7237 | AG130: 0.7822 | AH130: 0.8105 | AI130: 0.8274 | AJ130: 0.8943 | AK130: 0.9591 | AL130: 0.9812 | AM130: 0.9825 | AN130: 1.0607 | AO130: 1.1079 | AP130: 1.1212 | AQ130: 1.1131 | AR130: 1.1308 | AS130: 1.1844 | AT130: 1.2076 | AU130: 1.2112 | AV130: 1.2359 | AW130: 1.2468 | AX130: 1.2641 | AY130: 1.2795 | AZ130: 1.2921 | BA130: 1.311 | BB130: 1.3507 | BC130: 1.3797 | BD130: 1.4019
A131: 11.4 | B131: K22 Gas | C131: REF | D131: REF | E131: REF | F131: Debt Ratio | G131: 76 | H131: 78 | I131: 83 | J131: 84 | K131: 85 | L131: 86 | M131: 87 | N131: 88 | O131: 88 | P131: 88 | Q131: 88 | R131: 87 | S131: 87 | T131: 86 | U131: 85 | V131: 84 | W131: 82 | X131: 80 | Y131: 78 | Z131: 75 | AA131: 75 | AB131: 74 | AC131: 73 | AD131: 73 | AE131: 72 | AF131: 72 | AG131: 71 | AH131: 71 | AI131: 70 | AJ131: 70 | AK131: 69 | AL131: 69 | AM131: 68 | AN131: 68 | AO131: 67 | AP131: 66 | AQ131: 65 | AR131: 64 | AS131: 63 | AT131: 62 | AU131: 61 | AV131: 60 | AW131: 59 | AX131: 58 | AY131: 57 | AZ131: 56 | BA131: 56 | BB131: 54 | BC131: 54 | BD131: 53
A132: 11.4 | B132: K22 Gas | C132: REF | D132: REF | E132: REF | F132: Interest Coverage Ratio | G132: 1.09 | H132: 1.1 | I132: 1.06 | J132: 1.07 | K132: 1.05 | L132: 1 | M132: 0.88 | N132: 0.96 | O132: 1.07 | P132: 1.14 | Q132: 1.19 | R132: 1.11 | S132: 1.09 | T132: 1.14 | U132: 1.23 | V132: 1.3 | W132: 1.41 | X132: 1.5 | Y132: 1.56 | Z132: 1.72 | AA132: 1.2 | AB132: 1.2 | AC132: 1.2 | AD132: 1.2 | AE132: 1.2 | AF132: 1.2 | AG132: 1.2 | AH132: 1.2 | AI132: 1.2 | AJ132: 1.2 | AK132: 1.2 | AL132: 1.2 | AM132: 1.2 | AN132: 1.2 | AO132: 1.2 | AP132: 1.2 | AQ132: 1.2 | AR132: 1.2 | AS132: 1.2 | AT132: 1.2 | AU132: 1.2 | AV132: 1.2 | AW132: 1.2 | AX132: 1.2 | AY132: 1.2 | AZ132: 1.2 | BA132: 1.2 | BB132: 1.2 | BC132: 1.2 | BD132: 1.2
A133: 11.4 | B133: K22 Gas | C133: REF | D133: REF | E133: REF | F133: Capital Coverage Ratio | G133: 1.09 | H133: 0.9 | I133: 0.76 | J133: 0.9 | K133: 1.15 | L133: 1.27 | M133: 0.93 | N133: 1.35 | O133: 1.4 | P133: 1.47 | Q133: 1.44 | R133: 1.36 | S133: 1.39 | T133: 1.59 | U133: 2.06 | V133: 1.94 | W133: 2.01 | X133: 2.11 | Y133: 2.13 | Z133: 2.8 | AA133: 1.51 | AB133: 1.33 | AC133: 1.31 | AD133: 1.27 | AE133: 1.23 | AF133: 1.22 | AG133: 1.2 | AH133: 1.15 | AI133: 1.09 | AJ133: 1.13 | AK133: 1.22 | AL133: 1.29 | AM133: 1.24 | AN133: 1.15 | AO133: 1.39 | AP133: 1.4 | AQ133: 1.42 | AR133: 1.44 | AS133: 1.38 | AT133: 1.4 | AU133: 1.37 | AV133: 1.41 | AW133: 1.42 | AX133: 1.42 | AY133: 1.42 | AZ133: 1.41 | BA133: 1.41 | BB133: 1.42 | BC133: 1.43 | BD133: 1.43
A134: 11.4 | B134: K22 Gas | C134: REF | D134: REF | E134: REF
A135: 11.4 | B135: K22 Gas | C135: REF | D135: REF | E135: REF | F135: Development Plan | G135: K22 Gas | AF135: K22 Gas
A136: 11.4 | B136: K22 Gas | C136: REF | D136: REF | E136: REF | F136: Development Plan Scenario | G136: Economics:REF Rev:REF Cap:REF | AF136: Economics:REF Rev:REF Cap:REF
A137: 11.4 | B137: K22 Gas | C137: REF | D137: REF | E137: REF | F137: ELECTRIC OPERATIONS
A138: 11.4 | B138: K22 Gas | C138: REF | D138: REF | E138: REF | F138: PROJECTED BALANCE SHEET
A139: 11.4 | B139: K22 Gas | C139: REF | D139: REF | E139: REF | F139: In Millions of Dollars
A140: 11.4 | B140: K22 Gas | C140: REF | D140: REF | E140: REF | F140: For the year ended March 31 | G140: 2013 | H140: 2014 | I140: 2015 | J140: 2016 | K140: 2017 | L140: 2018 | M140: 2019 | N140: 2020 | O140: 2021 | P140: 2022 | Q140: 2023 | R140: 2024 | S140: 2025 | T140: 2026 | U140: 2027 | V140: 2028 | W140: 2029 | X140: 2030 | Y140: 2031 | Z140: 2032 | AA140: 2033 | AB140: 2034 | AC140: 2035 | AD140: 2036 | AE140: 2037 | AF140: 2038 | AG140: 2039 | AH140: 2040 | AI140: 2041 | AJ140: 2042 | AK140: 2043 | AL140: 2044 | AM140: 2045 | AN140: 2046 | AO140: 2047 | AP140: 2048 | AQ140: 2049 | AR140: 2050 | AS140: 2051 | AT140: 2052 | AU140: 2053 | AV140: 2054 | AW140: 2055 | AX140: 2056 | AY140: 2057 | AZ140: 2058 | BA140: 2059 | BB140: 2060 | BC140: 2061 | BD140: 2062
A141: 11.4 | B141: K22 Gas | C141: REF | D141: REF | E141: REF | F141: ASSETS
A142: 11.4 | B142: K22 Gas | C142: REF | D142: REF | E142: REF
A143: 11.4 | B143: K22 Gas | C143: REF | D143: REF | E143: REF | F143: Plant in Service | G143: 15374 | H143: 16436 | I143: 17485 | J143: 18639 | K143: 19198 | L143: 22780 | M143: 23207 | N143: 23600 | O143: 24142 | P143: 24676 | Q143: 27884 | R143: 32017 | S143: 32706 | T143: 33306 | U143: 33968 | V143: 34455 | W143: 35270 | X143: 36087 | Y143: 38069 | Z143: 38903 | AA143: 39871 | AB143: 41229 | AC143: 42512 | AD143: 43052 | AE143: 44375 | AF143: 44958 | AG143: 46403 | AH143: 47397 | AI143: 48161 | AJ143: 51401 | AK143: 52081 | AL143: 52769 | AM143: 54424 | AN143: 56668 | AO143: 57340 | AP143: 58362 | AQ143: 59066 | AR143: 61760 | AS143: 62993 | AT143: 64362 | AU143: 65741 | AV143: 67146 | AW143: 68506 | AX143: 69891 | AY143: 71228 | AZ143: 72763 | BA143: 74152 | BB143: 76066 | BC143: 77508 | BD143: 79987
A144: 11.4 | B144: K22 Gas | C144: REF | D144: REF | E144: REF | F144: Accumulated Depreciation | G144: 5173 | H144: 5536 | I144: 5870 | J144: 6258 | K144: 6668 | L144: 7105 | M144: 7578 | N144: 8048 | O144: 8516 | P144: 8996 | Q144: 9490 | R144: 10042 | S144: 10624 | T144: 11216 | U144: 11815 | V144: 12414 | W144: 13016 | X144: 13632 | Y144: 14277 | Z144: 14932 | AA144: 15579 | AB144: 16225 | AC144: 16916 | AD144: 17616 | AE144: 18322 | AF144: 19060 | AG144: 19826 | AH144: 20602 | AI144: 21393 | AJ144: 22218 | AK144: 23115 | AL144: 24021 | AM144: 24934 | AN144: 25916 | AO144: 26920 | AP144: 27938 | AQ144: 28980 | AR144: 30036 | AS144: 31179 | AT144: 32347 | AU144: 33520 | AV144: 34771 | AW144: 36057 | AX144: 37375 | AY144: 38736 | AZ144: 40120 | BA144: 41545 | BB144: 43020 | BC144: 44542 | BD144: 46107
A145: 11.4 | B145: K22 Gas | C145: REF | D145: REF | E145: REF
A146: 11.4 | B146: K22 Gas | C146: REF | D146: REF | E146: REF | F146: Net Plant in Service | G146: 10201 | H146: 10900 | I146: 11615 | J146: 12381 | K146: 12530 | L146: 15675 | M146: 15629 | N146: 15551 | O146: 15626 | P146: 15679 | Q146: 18394 | R146: 21975 | S146: 22082 | T146: 22090 | U146: 22153 | V146: 22041 | W146: 22255 | X146: 22455 | Y146: 23791 | Z146: 23971 | AA146: 24292 | AB146: 25004 | AC146: 25596 | AD146: 25436 | AE146: 26052 | AF146: 25898 | AG146: 26577 | AH146: 26795 | AI146: 26768 | AJ146: 29183 | AK146: 28966 | AL146: 28749 | AM146: 29490 | AN146: 30753 | AO146: 30420 | AP146: 30423 | AQ146: 30086 | AR146: 31724 | AS146: 31814 | AT146: 32015 | AU146: 32220 | AV146: 32375 | AW146: 32448 | AX146: 32516 | AY146: 32493 | AZ146: 32643 | BA146: 32607 | BB146: 33046 | BC146: 32966 | BD146: 33880
A147: 11.4 | B147: K22 Gas | C147: REF | D147: REF | E147: REF
A148: 11.4 | B148: K22 Gas | C148: REF | D148: REF | E148: REF | F148: Construction in Progress | G148: 2105 | H148: 2866 | I148: 3572 | J148: 3868 | K148: 4510 | L148: 1952 | M148: 2556 | N148: 3478 | O148: 4486 | P148: 5519 | Q148: 3613 | R148: 300 | S148: 330 | T148: 409 | U148: 414 | V148: 871 | W148: 1315 | X148: 1515 | Y148: 578 | Z148: 1024 | AA148: 1203 | AB148: 850 | AC148: 395 | AD148: 947 | AE148: 888 | AF148: 1442 | AG148: 1259 | AH148: 1703 | AI148: 2370 | AJ148: 272 | AK148: 1000 | AL148: 1828 | AM148: 1535 | AN148: 596 | AO148: 1077 | AP148: 1212 | AQ148: 1651 | AR148: 134 | AS148: 152 | AT148: 83 | AU148: 22 | AV148: 25 | AW148: 59 | AX148: 106 | AY148: 160 | AZ148: 202 | BA148: 454 | BB148: 34 | BC148: 222 | BD148: -89
A149: 11.4 | B149: K22 Gas | C149: REF | D149: REF | E149: REF | F149: Current and Other Assets | G149: 1869 | H149: 1735 | I149: 1387 | J149: 1570 | K149: 1768 | L149: 2012 | M149: 1795 | N149: 1860 | O149: 1854 | P149: 1486 | Q149: 1616 | R149: 1971 | S149: 2168 | T149: 1968 | U149: 2381 | V149: 2387 | W149: 2506 | X149: 2475 | Y149: 2204 | Z149: 2344 | AA149: 2124 | AB149: 3126 | AC149: 2826 | AD149: 2999 | AE149: 2888 | AF149: 2790 | AG149: 2947 | AH149: 2841 | AI149: 2808 | AJ149: 2902 | AK149: 2751 | AL149: 2943 | AM149: 2961 | AN149: 3310 | AO149: 3418 | AP149: 3535 | AQ149: 3479 | AR149: 3076 | AS149: 3011 | AT149: 3122 | AU149: 2983 | AV149: 1547 | AW149: 1308 | AX149: 1053 | AY149: 803 | AZ149: 612 | BA149: 383 | BB149: 20 | BC149: 121 | BD149: -99
A150: 11.4 | B150: K22 Gas | C150: REF | D150: REF | E150: REF | F150: Goodwill and Intangible Assets | G150: 180 | H150: 165 | I150: 150 | J150: 134 | K150: 123 | L150: 113 | M150: 105 | N150: 98 | O150: 92 | P150: 88 | Q150: 85 | R150: 83 | S150: 82 | T150: 82 | U150: 81 | V150: 80 | W150: 79 | X150: 78 | Y150: 77 | Z150: 76 | AA150: 76 | AB150: 75 | AC150: 74 | AD150: 73 | AE150: 72 | AF150: 71 | AG150: 71 | AH150: 70 | AI150: 69 | AJ150: 68 | AK150: 67 | AL150: 66 | AM150: 66 | AN150: 65 | AO150: 64 | AP150: 63 | AQ150: 62 | AR150: 61 | AS150: 61 | AT150: 60 | AU150: 59 | AV150: 58 | AW150: 57 | AX150: 57 | AY150: 56 | AZ150: 55 | BA150: 54 | BB150: 53 | BC150: 53 | BD150: 52
A151: 11.4 | B151: K22 Gas | C151: REF | D151: REF | E151: REF | F151: Regulated Assets | G151: 231 | H151: 225 | I151: 0 | J151: 0 | K151: 0 | L151: 0 | M151: 0 | N151: 0 | O151: 0 | P151: 0 | Q151: 0 | R151: 0 | S151: 0 | T151: 0 | U151: 0 | V151: 0 | W151: 0 | X151: 0 | Y151: 0 | Z151: 0 | AA151: 0 | AB151: 0 | AC151: 0 | AD151: 0 | AE151: 0 | AF151: 0 | AG151: 0 | AH151: 0 | AI151: 0 | AJ151: 0 | AK151: 0 | AL151: 0 | AM151: 0 | AN151: 0 | AO151: 0 | AP151: 0 | AQ151: 0 | AR151: 0 | AS151: 0 | AT151: 0 | AU151: 0 | AV151: 0 | AW151: 0 | AX151: 0 | AY151: 0 | AZ151: 0 | BA151: 0 | BB151: 0 | BC151: 0 | BD151: 0
A152: 11.4 | B152: K22 Gas | C152: REF | D152: REF | E152: REF | F152: Total Assets | G152: 14587 | H152: 15890 | I152: 16723 | J152: 17953 | K152: 18931 | L152: 19752 | M152: 20084 | N152: 20987 | O152: 22057 | P152: 22772 | Q152: 23708 | R152: 24329 | S152: 24662 | T152: 24548 | U152: 25029 | V152: 25379 | W152: 26155 | X152: 26523 | Y152: 26651 | Z152: 27416 | AA152: 27695 | AB152: 29055 | AC152: 28891 | AD152: 29455 | AE152: 29900 | AF152: 30201 | AG152: 30854 | AH152: 31408 | AI152: 32015 | AJ152: 32425 | AK152: 32784 | AL152: 33585 | AM152: 34051 | AN152: 34723 | AO152: 34979 | AP152: 35234 | AQ152: 35278 | AR152: 34995 | AS152: 35037 | AT152: 35280 | AU152: 35284 | AV152: 34006 | AW152: 33873 | AX152: 33732 | AY152: 33512 | AZ152: 33512 | BA152: 33499 | BB152: 33154 | BC152: 33361 | BD152: 33745
A153: 11.4 | B153: K22 Gas | C153: REF | D153: REF | E153: REF
A154: 11.4 | B154: K22 Gas | C154: REF | D154: REF | E154: REF
A155: 11.4 | B155: K22 Gas | C155: REF | D155: REF | E155: REF | F155: LIABILITIES AND EQUITY
A156: 11.4 | B156: K22 Gas | C156: REF | D156: REF | E156: REF
A157: 11.4 | B157: K22 Gas | C157: REF | D157: REF | E157: REF | F157: Long Term Debt | G157: 9289 | H157: 11260 | I157: 12402 | J157: 13675 | K157: 14363 | L157: 14935 | M157: 16031 | N157: 16597 | O157: 17720 | P157: 18470 | Q157: 19673 | R157: 20275 | S157: 20028 | T157: 20231 | U157: 20432 | V157: 20373 | W157: 20324 | X157: 19827 | Y157: 20016 | Z157: 19789 | AA157: 17792 | AB157: 19793 | AC157: 18920 | AD157: 19721 | AE157: 19373 | AF157: 19575 | AG157: 20277 | AH157: 20029 | AI157: 20779 | AJ157: 21078 | AK157: 22027 | AL157: 23025 | AM157: 23224 | AN157: 23622 | AO157: 23820 | AP157: 23619 | AQ157: 23092 | AR157: 22890 | AS157: 22890 | AT157: 22639 | AU157: 19239 | AV157: 20038 | AW157: 18438 | AX157: 18637 | AY157: 17829 | AZ157: 17429 | BA157: 17503 | BB157: 16502 | BC157: 17102 | BD157: 17452
A158: 11.4 | B158: K22 Gas | C158: REF | D158: REF | E158: REF | F158: Current and Other Liabilities | G158: 2231 | H158: 1503 | I158: 1834 | J158: 1780 | K158: 2058 | L158: 2333 | M158: 1694 | N158: 2085 | O158: 1983 | P158: 1824 | Q158: 1364 | R158: 1251 | S158: 1724 | T158: 1244 | U158: 1252 | V158: 1312 | W158: 1669 | X158: 1959 | Y158: 1271 | Z158: 1487 | AA158: 3542 | AB158: 2673 | AC158: 3146 | AD158: 2671 | AE158: 3223 | AF158: 3079 | AG158: 2785 | AH158: 3338 | AI158: 2942 | AJ158: 2798 | AK158: 1952 | AL158: 1495 | AM158: 1499 | AN158: 1509 | AO158: 1304 | AP158: 1506 | AQ158: 1825 | AR158: 1495 | AS158: 1290 | AT158: 1539 | AU158: 4695 | AV158: 2380 | AW158: 3617 | AX158: 3052 | AY158: 3420 | AZ158: 3608 | BA158: 3311 | BB158: 3761 | BC158: 3165 | BD158: 2998
A159: 11.4 | B159: K22 Gas | C159: REF | D159: REF | E159: REF | F159: Contributions in Aid of Construction | G159: 325 | H159: 334 | I159: 339 | J159: 344 | K159: 348 | L159: 358 | M159: 364 | N159: 371 | O159: 378 | P159: 385 | Q159: 392 | R159: 400 | S159: 407 | T159: 415 | U159: 422 | V159: 430 | W159: 438 | X159: 446 | Y159: 455 | Z159: 463 | AA159: 472 | AB159: 482 | AC159: 492 | AD159: 502 | AE159: 512 | AF159: 522 | AG159: 533 | AH159: 543 | AI159: 554 | AJ159: 565 | AK159: 577 | AL159: 588 | AM159: 600 | AN159: 611 | AO159: 622 | AP159: 634 | AQ159: 645 | AR159: 656 | AS159: 666 | AT159: 677 | AU159: 700 | AV159: 722 | AW159: 745 | AX159: 768 | AY159: 791 | AZ159: 813 | BA159: 836 | BB159: 859 | BC159: 881 | BD159: 904
A160: 11.4 | B160: K22 Gas | C160: REF | D160: REF | E160: REF | F160: Retained Earnings | G160: 2442 | H160: 2505 | I160: 2289 | J160: 2345 | K160: 2387 | L160: 2383 | M160: 2271 | N160: 2230 | O160: 2295 | P160: 2439 | Q160: 2642 | R160: 2766 | S160: 2865 | T160: 3022 | U160: 3284 | V160: 3626 | W160: 4086 | X160: 4652 | Y160: 5271 | Z160: 6038 | AA160: 6251 | AB160: 6469 | AC160: 6696 | AD160: 6923 | AE160: 7154 | AF160: 7387 | AG160: 7622 | AH160: 7860 | AI160: 8101 | AJ160: 8345 | AK160: 8591 | AL160: 8840 | AM160: 9091 | AN160: 9343 | AO160: 9594 | AP160: 9838 | AQ160: 10079 | AR160: 10316 | AS160: 10553 | AT160: 10787 | AU160: 11013 | AV160: 11228 | AW160: 11435 | AX160: 11638 | AY160: 11834 | AZ160: 12024 | BA160: 12211 | BB160: 12394 | BC160: 12574 | BD160: 12752
A161: 11.4 | B161: K22 Gas | C161: REF | D161: REF | E161: REF | F161: Accumulated Other Comprehensive Income | G161: 299 | H161: 287 | I161: -142 | J161: -190 | K161: -225 | L161: -257 | M161: -276 | N161: -296 | O161: -319 | P161: -347 | Q161: -363 | R161: -363 | S161: -362 | T161: -362 | U161: -362 | V161: -362 | W161: -362 | X161: -362 | Y161: -362 | Z161: -362 | AA161: -362 | AB161: -362 | AC161: -362 | AD161: -362 | AE161: -362 | AF161: -362 | AG161: -362 | AH161: -362 | AI161: -362 | AJ161: -362 | AK161: -362 | AL161: -362 | AM161: -362 | AN161: -362 | AO161: -362 | AP161: -362 | AQ161: -362 | AR161: -362 | AS161: -362 | AT161: -362 | AU161: -362 | AV161: -362 | AW161: -362 | AX161: -362 | AY161: -362 | AZ161: -362 | BA161: -362 | BB161: -362 | BC161: -362 | BD161: -362
A162: 11.4 | B162: K22 Gas | C162: REF | D162: REF | E162: REF | F162: Total Liabilities and Equity | G162: 14587 | H162: 15890 | I162: 16723 | J162: 17953 | K162: 18931 | L162: 19752 | M162: 20084 | N162: 20987 | O162: 22057 | P162: 22772 | Q162: 23708 | R162: 24329 | S162: 24662 | T162: 24548 | U162: 25029 | V162: 25379 | W162: 26155 | X162: 26523 | Y162: 26651 | Z162: 27416 | AA162: 27695 | AB162: 29055 | AC162: 28891 | AD162: 29455 | AE162: 29900 | AF162: 30201 | AG162: 30854 | AH162: 31408 | AI162: 32015 | AJ162: 32425 | AK162: 32784 | AL162: 33585 | AM162: 34051 | AN162: 34723 | AO162: 34979 | AP162: 35234 | AQ162: 35278 | AR162: 34995 | AS162: 35037 | AT162: 35280 | AU162: 35284 | AV162: 34006 | AW162: 33873 | AX162: 33732 | AY162: 33512 | AZ162: 33512 | BA162: 33499 | BB162: 33154 | BC162: 33361 | BD162: 33745
A163: 11.4 | B163: K22 Gas | C163: REF | D163: REF | E163: REF
A164: 11.4 | B164: K22 Gas | C164: REF | D164: REF | E164: REF
A165: 11.4 | B165: K22 Gas | C165: REF | D165: REF | E165: REF
A166: 11.4 | B166: K22 Gas | C166: REF | D166: REF | E166: REF
A167: 11.4 | B167: K22 Gas | C167: REF | D167: REF | E167: REF
A168: 11.4 | B168: K22 Gas | C168: REF | D168: REF | E168: REF | F168: Development Plan | G168: K22 Gas | AF168: K22 Gas
A169: 11.4 | B169: K22 Gas | C169: REF | D169: REF | E169: REF | F169: Development Plan Scenario | G169: Economics:REF Rev:REF Cap:REF | AF169: Economics:REF Rev:REF Cap:REF
A170: 11.4 | B170: K22 Gas | C170: REF | D170: REF | E170: REF | F170: ELECTRIC OPERATIONS
A171: 11.4 | B171: K22 Gas | C171: REF | D171: REF | E171: REF | F171: PROJECTED CASH FLOW STATEMENT
A172: 11.4 | B172: K22 Gas | C172: REF | D172: REF | E172: REF | F172: In Millions of Dollars
A173: 11.4 | B173: K22 Gas | C173: REF | D173: REF | E173: REF | F173: For the year ended March 31 | G173: 2013 | H173: 2014 | I173: 2015 | J173: 2016 | K173: 2017 | L173: 2018 | M173: 2019 | N173: 2020 | O173: 2021 | P173: 2022 | Q173: 2023 | R173: 2024 | S173: 2025 | T173: 2026 | U173: 2027 | V173: 2028 | W173: 2029 | X173: 2030 | Y173: 2031 | Z173: 2032 | AA173: 2033 | AB173: 2034 | AC173: 2035 | AD173: 2036 | AE173: 2037 | AF173: 2038 | AG173: 2039 | AH173: 2040 | AI173: 2041 | AJ173: 2042 | AK173: 2043 | AL173: 2044 | AM173: 2045 | AN173: 2046 | AO173: 2047 | AP173: 2048 | AQ173: 2049 | AR173: 2050 | AS173: 2051 | AT173: 2052 | AU173: 2053 | AV173: 2054 | AW173: 2055 | AX173: 2056 | AY173: 2057 | AZ173: 2058 | BA173: 2059 | BB173: 2060 | BC173: 2061 | BD173: 2062
A174: 11.4 | B174: K22 Gas | C174: REF | D174: REF | E174: REF | F174: OPERATING ACTIVITIES
A175: 11.4 | B175: K22 Gas | C175: REF | D175: REF | E175: REF | F175: Cash Receipts from Customers | G175: 1692 | H175: 1768 | I175: 1821 | J175: 1930 | K175: 2017 | L175: 2124 | M175: 2195 | N175: 2274 | O175: 2408 | P175: 2519 | Q175: 2638 | R175: 2896 | S175: 3041 | T175: 3102 | U175: 3213 | V175: 3302 | W175: 3423 | X175: 3569 | Y175: 3715 | Z175: 3867 | AA175: 3339 | AB175: 3393 | AC175: 3650 | AD175: 3719 | AE175: 3780 | AF175: 3831 | AG175: 4028 | AH175: 4118 | AI175: 4205 | AJ175: 4434 | AK175: 4600 | AL175: 4687 | AM175: 4729 | AN175: 4999 | AO175: 5145 | AP175: 5196 | AQ175: 5225 | AR175: 5276 | AS175: 5403 | AT175: 5466 | AU175: 5487 | AV175: 5554 | AW175: 5592 | AX175: 5643 | AY175: 5691 | AZ175: 5733 | BA175: 5788 | BB175: 5889 | BC175: 5966 | BD175: 6030
A176: 11.4 | B176: K22 Gas | C176: REF | D176: REF | E176: REF | F176: Cash Paid to Suppliers and Employees | G176: -782 | H176: -822 | I176: -899 | J176: -927 | K176: -954 | L176: -985 | M176: -1007 | N176: -1023 | O176: -1054 | P176: -1086 | Q176: -1110 | R176: -1136 | S176: -1164 | T176: -1163 | U176: -1183 | V176: -1202 | W176: -1228 | X176: -1260 | Y176: -1294 | Z176: -1331 | AA176: -1383 | AB176: -1404 | AC176: -1507 | AD176: -1560 | AE176: -1608 | AF176: -1627 | AG176: -1755 | AH176: -1824 | AI176: -1869 | AJ176: -2007 | AK176: -2088 | AL176: -2162 | AM176: -2197 | AN176: -2350 | AO176: -2433 | AP176: -2507 | AQ176: -2517 | AR176: -2562 | AS176: -2607 | AT176: -2654 | AU176: -2697 | AV176: -2742 | AW176: -2789 | AX176: -2835 | AY176: -2884 | AZ176: -2933 | BA176: -2984 | BB176: -3035 | BC176: -3088 | BD176: -3143
A177: 11.4 | B177: K22 Gas | C177: REF | D177: REF | E177: REF | F177: Interest Paid | G177: -466 | H177: -474 | I177: -509 | J177: -553 | K177: -616 | L177: -722 | M177: -849 | N177: -819 | O177: -822 | P177: -816 | Q177: -805 | R177: -1048 | S177: -1163 | T177: -1169 | U177: -1136 | V177: -1144 | W177: -1123 | X177: -1111 | Y177: -1148 | Z177: -1074 | AA177: -1058 | AB177: -1071 | AC177: -1182 | AD177: -1184 | AE177: -1193 | AF177: -1180 | AG177: -1215 | AH177: -1224 | AI177: -1244 | AJ177: -1295 | AK177: -1304 | AL177: -1296 | AM177: -1299 | AN177: -1348 | AO177: -1395 | AP177: -1372 | AQ177: -1366 | AR177: -1348 | AS177: -1315 | AT177: -1300 | AU177: -1285 | AV177: -1224 | AW177: -1169 | AX177: -1140 | AY177: -1102 | AZ177: -1074 | BA177: -1047 | BB177: -1041 | BC177: -1013 | BD177: -982
A178: 11.4 | B178: K22 Gas | C178: REF | D178: REF | E178: REF | F178: Interest Received | G178: 28 | H178: 17 | I178: 24 | J178: 26 | K178: 31 | L178: 39 | M178: 41 | N178: 37 | O178: 35 | P178: 32 | Q178: 16 | R178: 15 | S178: 23 | T178: 27 | U178: 30 | V178: 40 | W178: 51 | X178: 53 | Y178: 58 | Z178: 34 | AA178: 45 | AB178: 46 | AC178: 50 | AD178: 54 | AE178: 66 | AF178: 67 | AG178: 69 | AH178: 78 | AI178: 81 | AJ178: 88 | AK178: 94 | AL178: 101 | AM178: 110 | AN178: 126 | AO178: 134 | AP178: 151 | AQ178: 151 | AR178: 151 | AS178: 134 | AT178: 143 | AU178: 147 | AV178: 140 | AW178: 139 | AX178: 138 | AY178: 137 | AZ178: 139 | BA178: 141 | BB178: 138 | BC178: 137 | BD178: 135
A179: 11.4 | B179: K22 Gas | C179: REF | D179: REF | E179: REF | F179: Cash from Operating Activities | G179: 473 | H179: 488 | I179: 439 | J179: 476 | K179: 477 | L179: 455 | M179: 380 | N179: 469 | O179: 567 | P179: 649 | Q179: 739 | R179: 727 | S179: 736 | T179: 797 | U179: 923 | V179: 996 | W179: 1123 | X179: 1251 | Y179: 1331 | Z179: 1496 | AA179: 943 | AB179: 964 | AC179: 1011 | AD179: 1029 | AE179: 1045 | AF179: 1090 | AG179: 1126 | AH179: 1148 | AI179: 1173 | AJ179: 1220 | AK179: 1301 | AL179: 1331 | AM179: 1342 | AN179: 1427 | AO179: 1451 | AP179: 1468 | AQ179: 1493 | AR179: 1517 | AS179: 1615 | AT179: 1655 | AU179: 1652 | AV179: 1729 | AW179: 1773 | AX179: 1806 | AY179: 1843 | AZ179: 1865 | BA179: 1899 | BB179: 1951 | BC179: 2003 | BD179: 2040
A180: 11.4 | B180: K22 Gas | C180: REF | D180: REF | E180: REF
A181: 11.4 | B181: K22 Gas | C181: REF | D181: REF | E181: REF | F181: FINANCING ACTIVITIES
A182: 11.4 | B182: K22 Gas | C182: REF | D182: REF | E182: REF | F182: Proceeds from Long Term Debt | G182: 836 | H182: 2170 | I182: 1360 | J182: 1590 | K182: 1180 | L182: 1380 | M182: 1390 | N182: 1190 | O182: 1790 | P182: 1190 | Q182: 1160 | R182: 590 | S182: 190 | T182: 190 | U182: 190 | V182: -10 | W182: 190 | X182: 160 | Y182: 190 | Z182: -10 | AA182: 160 | AB182: 3340 | AC182: 920 | AD182: 2180 | AE182: 1520 | AF182: 1940 | AG182: 2180 | AH182: 1750 | AI182: 2380 | AJ182: 1780 | AK182: 1530 | AL182: 1170 | AM182: 380 | AN182: 580 | AO182: 170 | AP182: -20 | AQ182: -20 | AR182: -60 | AS182: -20 | AT182: -20 | AU182: -50 | AV182: 1730 | AW182: 510 | AX182: 1780 | AY182: 1110 | AZ182: 1740 | BA182: 1970 | BB182: 1350 | BC182: 2380 | BD182: 1990
A183: 11.4 | B183: K22 Gas | C183: REF | D183: REF | E183: REF | F183: Sinking Fund Withdrawals | G183: 129 | H183: 393 | I183: 102 | J183: 26 | K183: 0 | L183: 7 | M183: 416 | N183: 157 | O183: 260 | P183: 676 | Q183: 156 | R183: 0 | S183: 0 | T183: 420 | U183: 0 | V183: 0 | W183: 60 | X183: 250 | Y183: 700 | Z183: 11 | AA183: 230 | AB183: 0 | AC183: 196 | AD183: 164 | AE183: 200 | AF183: 272 | AG183: 100 | AH183: 215 | AI183: 162 | AJ183: 166 | AK183: 166 | AL183: 50 | AM183: 100 | AN183: 0 | AO183: 200 | AP183: 0 | AQ183: 200 | AR183: 525 | AS183: 200 | AT183: 0 | AU183: 250 | AV183: 200 | AW183: 200 | AX183: 200 | AY183: 200 | AZ183: 124 | BA183: 170 | BB183: 310 | BC183: 0 | BD183: 215
A184: 11.4 | B184: K22 Gas | C184: REF | D184: REF | E184: REF | F184: Retirement of Long Term Debt | G184: -119 | H184: -808 | I184: -176 | J184: -312 | K184: -347 | L184: -530 | M184: -829 | N184: -306 | O184: -635 | P184: -679 | Q184: -432 | R184: 0 | S184: 0 | T184: -450 | U184: 0 | V184: 0 | W184: -60 | X184: -220 | Y184: -700 | Z184: -13 | AA184: -200 | AB184: -2150 | AC184: -1331 | AD184: -1865 | AE184: -1330 | AF184: -1900 | AG184: -1790 | AH184: -1460 | AI184: -2040 | AJ184: -1640 | AK184: -1440 | AL184: -640 | AM184: -190 | AN184: -190 | AO184: -190 | AP184: 10 | AQ184: -190 | AR184: -485 | AS184: -190 | AT184: 10 | AU184: -210 | AV184: -3340 | AW184: -920 | AX184: -2180 | AY184: -1520 | AZ184: -1947 | BA184: -2180 | BB184: -1875 | BC184: -2380 | BD184: -1780
A185: 11.4 | B185: K22 Gas | C185: REF | D185: REF | E185: REF | F185: Other Financing Activities | G185: -42 | H185: -7 | I185: -20 | J185: -19 | K185: -17 | L185: -9 | M185: -24 | N185: -13 | O185: -56 | P185: -8 | Q185: 4 | R185: 27 | S185: 3 | T185: 0 | U185: 1 | V185: 2 | W185: 3 | X185: 4 | Y185: 5 | Z185: -14 | AA185: -14 | AB185: -15 | AC185: -15 | AD185: -15 | AE185: -13 | AF185: -14 | AG185: -14 | AH185: -16 | AI185: -16 | AJ185: -17 | AK185: -17 | AL185: -45 | AM185: -25 | AN185: -26 | AO185: -31 | AP185: -27 | AQ185: -28 | AR185: -28 | AS185: -29 | AT185: -29 | AU185: -30 | AV185: -30 | AW185: -31 | AX185: -32 | AY185: -32 | AZ185: -33 | BA185: -34 | BB185: -35 | BC185: -36 | BD185: -50
A186: 11.4 | B186: K22 Gas | C186: REF | D186: REF | E186: REF | F186: Cash from Financing Activities | G186: 804 | H186: 1748 | I186: 1266 | J186: 1285 | K186: 816 | L186: 847 | M186: 953 | N186: 1028 | O186: 1359 | P186: 1179 | Q186: 887 | R186: 617 | S186: 193 | T186: 160 | U186: 191 | V186: -8 | W186: 193 | X186: 194 | Y186: 195 | Z186: -26 | AA186: 176 | AB186: 1175 | AC186: -230 | AD186: 463 | AE186: 377 | AF186: 298 | AG186: 476 | AH186: 489 | AI186: 486 | AJ186: 289 | AK186: 239 | AL186: 535 | AM186: 265 | AN186: 364 | AO186: 149 | AP186: -37 | AQ186: -38 | AR186: -48 | AS186: -39 | AT186: -39 | AU186: -40 | AV186: -1440 | AW186: -241 | AX186: -232 | AY186: -242 | AZ186: -116 | BA186: -75 | BB186: -250 | BC186: -36 | BD186: 375
A187: 11.4 | B187: K22 Gas | C187: REF | D187: REF | E187: REF
A188: 11.4 | B188: K22 Gas | C188: REF | D188: REF | E188: REF | F188: INVESTING ACTIVITIES
A189: 11.4 | B189: K22 Gas | C189: REF | D189: REF | E189: REF | F189: Property Plant and Equipment net of contributions | G189: -1378 | H189: -1913 | I189: -1793 | J189: -1452 | K189: -1194 | L189: -1008 | M189: -1017 | N189: -1303 | O189: -1538 | P189: -1557 | Q189: -1373 | R189: -912 | S189: -700 | T189: -661 | U189: -648 | V189: -925 | W189: -1239 | X189: -996 | Y189: -1024 | Z189: -1260 | AA189: -1126 | AB189: -984 | AC189: -806 | AD189: -1070 | AE189: -1241 | AF189: -1114 | AG189: -1238 | AH189: -1414 | AI189: -1407 | AJ189: -1117 | AK189: -1382 | AL189: -1490 | AM189: -1336 | AN189: -1278 | AO189: -1126 | AP189: -1130 | AQ189: -1116 | AR189: -1152 | AS189: -1224 | AT189: -1274 | AU189: -1288 | AV189: -1379 | AW189: -1362 | AX189: -1401 | AY189: -1359 | AZ189: -1544 | BA189: -1607 | BB189: -1461 | BC189: -1594 | BD189: -2134
A190: 11.4 | B190: K22 Gas | C190: REF | D190: REF | E190: REF | F190: Sinking Fund Payment | G190: -107 | H190: -208 | I190: -124 | J190: -188 | K190: -157 | L190: -227 | M190: -189 | N190: -215 | O190: -248 | P190: -299 | Q190: -198 | R190: -207 | S190: -265 | T190: -232 | U190: -223 | V190: -233 | W190: -242 | X190: -253 | Y190: -251 | Z190: -227 | AA190: -236 | AB190: -237 | AC190: -257 | AD190: -256 | AE190: -262 | AF190: -268 | AG190: -268 | AH190: -278 | AI190: -284 | AJ190: -293 | AK190: -299 | AL190: -306 | AM190: -321 | AN190: -333 | AO190: -349 | AP190: -193 | AQ190: -201 | AR190: -199 | AS190: -181 | AT190: -178 | AU190: -185 | AV190: -188 | AW190: -174 | AX190: -170 | AY190: -166 | AZ190: -161 | BA190: -162 | BB190: -160 | BC190: -149 | BD190: -155
A191: 11.4 | B191: K22 Gas | C191: REF | D191: REF | E191: REF | F191: Other Investing Activities | G191: -17 | H191: -16 | I191: -21 | J191: -20 | K191: -32 | L191: -42 | M191: -28 | N191: -28 | O191: -33 | P191: -38 | Q191: -29 | R191: -32 | S191: -25 | T191: -25 | U191: -28 | V191: -26 | W191: -26 | X191: -26 | Y191: -26 | Z191: -26 | AA191: -27 | AB191: -27 | AC191: -27 | AD191: -27 | AE191: -27 | AF191: -28 | AG191: -28 | AH191: -28 | AI191: -28 | AJ191: -28 | AK191: -29 | AL191: -29 | AM191: -29 | AN191: -29 | AO191: -30 | AP191: -30 | AQ191: -30 | AR191: -30 | AS191: -31 | AT191: -30 | AU191: -15 | AV191: -15 | AW191: -14 | AX191: -14 | AY191: -13 | AZ191: -36 | BA191: -37 | BB191: -37 | BC191: -38 | BD191: -38
A192: 11.4 | B192: K22 Gas | C192: REF | D192: REF | E192: REF | F192: Cash from Investing Activities | G192: -1502 | H192: -2138 | I192: -1938 | J192: -1659 | K192: -1383 | L192: -1277 | M192: -1234 | N192: -1546 | O192: -1819 | P192: -1894 | Q192: -1600 | R192: -1151 | S192: -990 | T192: -918 | U192: -899 | V192: -1184 | W192: -1507 | X192: -1275 | Y192: -1301 | Z192: -1514 | AA192: -1388 | AB192: -1248 | AC192: -1090 | AD192: -1353 | AE192: -1531 | AF192: -1409 | AG192: -1534 | AH192: -1720 | AI192: -1720 | AJ192: -1438 | AK192: -1710 | AL192: -1826 | AM192: -1686 | AN192: -1640 | AO192: -1505 | AP192: -1353 | AQ192: -1347 | AR192: -1381 | AS192: -1436 | AT192: -1483 | AU192: -1488 | AV192: -1581 | AW192: -1550 | AX192: -1585 | AY192: -1539 | AZ192: -1741 | BA192: -1806 | BB192: -1658 | BC192: -1781 | BD192: -2326
A193: 11.4 | B193: K22 Gas | C193: REF | D193: REF | E193: REF
A194: 11.4 | B194: K22 Gas | C194: REF | D194: REF | E194: REF | F194: Net Increase (Decrease) in Cash | G194: -225 | H194: 99 | I194: -233 | J194: 102 | K194: -90 | L194: 25 | M194: 99 | N194: -49 | O194: 107 | P194: -66 | Q194: 27 | R194: 193 | S194: -60 | T194: 39 | U194: 215 | V194: -196 | W194: -191 | X194: 170 | Y194: 225 | Z194: -44 | AA194: -269 | AB194: 892 | AC194: -309 | AD194: 139 | AE194: -109 | AF194: -22 | AG194: 67 | AH194: -82 | AI194: -61 | AJ194: 71 | AK194: -170 | AL194: 40 | AM194: -79 | AN194: 150 | AO194: 94 | AP194: 78 | AQ194: 108 | AR194: 88 | AS194: 141 | AT194: 133 | AU194: 124 | AV194: -1293 | AW194: -19 | AX194: -10 | AY194: 62 | AZ194: 7 | BA194: 18 | BB194: 42 | BC194: 186 | BD194: 88
A195: 11.4 | B195: K22 Gas | C195: REF | D195: REF | E195: REF | F195: Cash at Beginning of Year | G195: 43 | H195: -183 | I195: -84 | J195: -317 | K195: -216 | L195: -305 | M195: -280 | N195: -181 | O195: -230 | P195: -123 | Q195: -190 | R195: -163 | S195: 30 | T195: -30 | U195: 9 | V195: 223 | W195: 27 | X195: -164 | Y195: 6 | Z195: 232 | AA195: 188 | AB195: -81 | AC195: 810 | AD195: 501 | AE195: 641 | AF195: 532 | AG195: 510 | AH195: 577 | AI195: 495 | AJ195: 434 | AK195: 505 | AL195: 335 | AM195: 375 | AN195: 295 | AO195: 445 | AP195: 540 | AQ195: 617 | AR195: 725 | AS195: 813 | AT195: 954 | AU195: 1087 | AV195: 1211 | AW195: -81 | AX195: -100 | AY195: -110 | AZ195: -49 | BA195: -41 | BB195: -23 | BC195: 19 | BD195: 205
A196: 11.4 | B196: K22 Gas | C196: REF | D196: REF | E196: REF | F196: Cash at End of Year | G196: -183 | H196: -84 | I196: -317 | J196: -216 | K196: -305 | L196: -280 | M196: -181 | N196: -230 | O196: -123 | P196: -190 | Q196: -163 | R196: 30 | S196: -30 | T196: 9 | U196: 223 | V196: 27 | W196: -164 | X196: 6 | Y196: 232 | Z196: 188 | AA196: -81 | AB196: 810 | AC196: 501 | AD196: 641 | AE196: 532 | AF196: 510 | AG196: 577 | AH196: 495 | AI196: 434 | AJ196: 505 | AK196: 335 | AL196: 375 | AM196: 295 | AN196: 445 | AO196: 540 | AP196: 617 | AQ196: 725 | AR196: 813 | AS196: 954 | AT196: 1087 | AU196: 1211 | AV196: -81 | AW196: -100 | AX196: -110 | AY196: -49 | AZ196: -41 | BA196: -23 | BB196: 19 | BC196: 205 | BD196: 293
A197: 11.4 | B197: K22 Gas | C197: REF | D197: REF | E197: REF
A198: 11.4 | B198: K22 Gas | C198: REF | D198: REF | E198: REF
A199: 11.4 | B199: K22 Gas | C199: REF | D199: REF | E199: REF
A200: 11.4 | B200: K22 Gas | C200: REF | D200: REF | E200: REF
... 642 more rows

Sheet Plan A
A1: PLAN "A" (use yellow dropdown menu to select plan)
A2: Development Plan | C2: K19 Sales C25 750MW | G2: Nominal Discount Rate | J2: 0.0705 | L2: Target Year for 75/25 d/e: | O2: 2032 | P2: Target Int Coverage ratio: | R2: 1.2 | T2: Analyze Sunk Costs | V2: No
A3: Development Plan Scenario | C3: Economics:REF Rev:REF Cap:REF | G3: Total Rate Increase (MH pro forma) | J3: =NPV($J$2,C10:AZ10) -> 10605.46829 | N3: Column | O3: =HLOOKUP(O2,$C$221:$AZ$222,2,FALSE) -> V | P3: Rev % incr: | Q3: 0.03940261984 | BD3: Yes
A4: ELECTRIC OPERATIONS | D4: Default Load Growth? | F4: Yes | G4: Total Rate Increase (adjusted) | J4: =NPV($J$2,C11:AZ11) -> 10593.81725 | N4: Row | O4: =ROW(A63) -> 63 | BD4: No
A5: PROJECTED OPERATING STATEMENT | D5: Load Growth Change (%) | F5: -0.1 | G5: Equiv. Even-Ann Rate Increase (MH) | J5: =(AZ59+1)^(1/49)-1 -> 0.01485840641 | N5: Ref: | O5: =INDIRECT(O3&O4) -> 74.99984075 | AL5: CAGR 2012-2048
A6: In Millions of Dollars | D6: Apply Load Gr Post 2047 | F6: No | G6: Equiv. Even-Ann Rate Increase (adjusted) | J6: =(AZ60+1)^(1/49)-1 -> 0.01485445108 | AL6: =RATE(35,,-C9,AL9) -> 0.01349748045
A7: For the year ended March 31 | C7: 2013 | D7: 2014 | E7: 2015 | F7: 2016 | G7: 2017 | H7: 2018 | I7: 2019 | J7: 2020 | K7: 2021 | L7: 2022 | M7: 2023 | N7: 2024 | O7: 2025 | P7: 2026 | Q7: 2027 | R7: 2028 | S7: 2029 | T7: 2030 | U7: 2031 | V7: 2032 | W7: 2033 | X7: 2034 | Y7: 2035 | Z7: 2036 | AA7: 2037 | AB7: 2038 | AC7: 2039 | AD7: 2040 | AE7: 2041 | AF7: 2042 | AG7: 2043 | AH7: 2044 | AI7: 2045 | AJ7: 2046 | AK7: 2047 | AL7: 2048 | AM7: 2049 | AN7: 2050 | AO7: 2051 | AP7: 2052 | AQ7: 2053 | AR7: 2054 | AS7: 2055 | AT7: 2056 | AU7: 2057 | AV7: 2058 | AW7: 2059 | AX7: 2060 | AY7: 2061 | AZ7: 2062
A8: REVENUES
A9: General Consumers Revenue at approved rates | C9: =SUMIFS(DATA!G$3:G$794,DATA!$F$3:$F$794,$A9,DATA!$B$3:$B$794,$C$2) -> 1331 | D9: =IF($F$4="Yes",SUMIFS(DATA!H$3:H$794,DATA!$F$3:$F$794,$A9,DATA!$B$3:$B$794,$C$2),C9*((1+(D158*(1+$F$5))))) -> 1361 | E9: =IF($F$4="Yes",SUMIFS(DATA!I$3:I$794,DATA!$F$3:$F$794,$A9,DATA!$B$3:$B$794,$C$2),D9*((1+(E158*(1+$F$5))))) -> 1374 | F9: =IF($F$4="Yes",SUMIFS(DATA!J$3:J$794,DATA!$F$3:$F$794,$A9,DATA!$B$3:$B$794,$C$2),E9*((1+(F158*(1+$F$5))))) -> 1390 | G9: =IF($F$4="Yes",SUMIFS(DATA!K$3:K$794,DATA!$F$3:$F$794,$A9,DATA!$B$3:$B$794,$C$2),F9*((1+(G158*(1+$F$5))))) -> 1404 | H9: =IF($F$4="Yes",SUMIFS(DATA!L$3:L$794,DATA!$F$3:$F$794,$A9,DATA!$B$3:$B$794,$C$2),G9*((1+(H158*(1+$F$5))))) -> 1424 | I9: =IF($F$4="Yes",SUMIFS(DATA!M$3:M$794,DATA!$F$3:$F$794,$A9,DATA!$B$3:$B$794,$C$2),H9*((1+(I158*(1+$F$5))))) -> 1447 | J9: =IF($F$4="Yes",SUMIFS(DATA!N$3:N$794,DATA!$F$3:$F$794,$A9,DATA!$B$3:$B$794,$C$2),I9*((1+(J158*(1+$F$5))))) -> 1462 | K9: =IF($F$4="Yes",SUMIFS(DATA!O$3:O$794,DATA!$F$3:$F$794,$A9,DATA!$B$3:$B$794,$C$2),J9*((1+(K158*(1+$F$5))))) -> 1485 | L9: =IF($F$4="Yes",SUMIFS(DATA!P$3:P$794,DATA!$F$3:$F$794,$A9,DATA!$B$3:$B$794,$C$2),K9*((1+(L158*(1+$F$5))))) -> 1506 | M9: =IF($F$4="Yes",SUMIFS(DATA!Q$3:Q$794,DATA!$F$3:$F$794,$A9,DATA!$B$3:$B$794,$C$2),L9*((1+(M158*(1+$F$5))))) -> 1529 | N9: =IF($F$4="Yes",SUMIFS(DATA!R$3:R$794,DATA!$F$3:$F$794,$A9,DATA!$B$3:$B$794,$C$2),M9*((1+(N158*(1+$F$5))))) -> 1552 | O9: =IF($F$4="Yes",SUMIFS(DATA!S$3:S$794,DATA!$F$3:$F$794,$A9,DATA!$B$3:$B$794,$C$2),N9*((1+(O158*(1+$F$5))))) -> 1575 | P9: =IF($F$4="Yes",SUMIFS(DATA!T$3:T$794,DATA!$F$3:$F$794,$A9,DATA!$B$3:$B$794,$C$2),O9*((1+(P158*(1+$F$5))))) -> 1598 | Q9: =IF($F$4="Yes",SUMIFS(DATA!U$3:U$794,DATA!$F$3:$F$794,$A9,DATA!$B$3:$B$794,$C$2),P9*((1+(Q158*(1+$F$5))))) -> 1621 | R9: =IF($F$4="Yes",SUMIFS(DATA!V$3:V$794,DATA!$F$3:$F$794,$A9,DATA!$B$3:$B$794,$C$2),Q9*((1+(R158*(1+$F$5))))) -> 1644 | S9: =IF($F$4="Yes",SUMIFS(DATA!W$3:W$794,DATA!$F$3:$F$794,$A9,DATA!$B$3:$B$794,$C$2),R9*((1+(S158*(1+$F$5))))) -> 1669 | T9: =IF($F$4="Yes",SUMIFS(DATA!X$3:X$794,DATA!$F$3:$F$794,$A9,DATA!$B$3:$B$794,$C$2),S9*((1+(T158*(1+$F$5))))) -> 1693 | U9: =IF($F$4="Yes",SUMIFS(DATA!Y$3:Y$794,DATA!$F$3:$F$794,$A9,DATA!$B$3:$B$794,$C$2),T9*((1+(U158*(1+$F$5))))) -> 1717 | V9: =IF($F$4="Yes",SUMIFS(DATA!Z$3:Z$794,DATA!$F$3:$F$794,$A9,DATA!$B$3:$B$794,$C$2),U9*((1+(V158*(1+$F$5))))) -> 1741 | W9: =IF($F$4="Yes",SUMIFS(DATA!AA$3:AA$794,DATA!$F$3:$F$794,$A9,DATA!$B$3:$B$794,$C$2),V9*((1+(W158*(1+$F$5))))) -> 1765 | X9: =IF($F$4="Yes",SUMIFS(DATA!AB$3:AB$794,DATA!$F$3:$F$794,$A9,DATA!$B$3:$B$794,$C$2),W9*((1+(X158*(1+$F$5))))) -> 1790 | Y9: =IF($F$4="Yes",SUMIFS(DATA!AC$3:AC$794,DATA!$F$3:$F$794,$A9,DATA!$B$3:$B$794,$C$2),X9*((1+(Y158*(1+$F$5))))) -> 1814 | Z9: =IF($F$4="Yes",SUMIFS(DATA!AD$3:AD$794,DATA!$F$3:$F$794,$A9,DATA!$B$3:$B$794,$C$2),Y9*((1+(Z158*(1+$F$5))))) -> 1838 | AA9: =IF($F$4="Yes",SUMIFS(DATA!AE$3:AE$794,DATA!$F$3:$F$794,$A9,DATA!$B$3:$B$794,$C$2),Z9*((1+(AA158*(1+$F$5))))) -> 1862 | AB9: =IF($F$4="Yes",SUMIFS(DATA!AF$3:AF$794,DATA!$F$3:$F$794,$A9,DATA!$B$3:$B$794,$C$2),AA9*((1+(AB158*(1+$F$5))))) -> 1886 | AC9: =IF($F$4="Yes",SUMIFS(DATA!AG$3:AG$794,DATA!$F$3:$F$794,$A9,DATA!$B$3:$B$794,$C$2),AB9*((1+(AC158*(1+$F$5))))) -> 1910 | AD9: =IF($F$4="Yes",SUMIFS(DATA!AH$3:AH$794,DATA!$F$3:$F$794,$A9,DATA!$B$3:$B$794,$C$2),AC9*((1+(AD158*(1+$F$5))))) -> 1935 | AE9: =IF($F$4="Yes",SUMIFS(DATA!AI$3:AI$794,DATA!$F$3:$F$794,$A9,DATA!$B$3:$B$794,$C$2),AD9*((1+(AE158*(1+$F$5))))) -> 1959 | AF9: =IF($F$4="Yes",SUMIFS(DATA!AJ$3:AJ$794,DATA!$F$3:$F$794,$A9,DATA!$B$3:$B$794,$C$2),AE9*((1+(AF158*(1+$F$5))))) -> 1983 | AG9: =IF($F$4="Yes",SUMIFS(DATA!AK$3:AK$794,DATA!$F$3:$F$794,$A9,DATA!$B$3:$B$794,$C$2),AF9*((1+(AG158*(1+$F$5))))) -> 2007 | AH9: =IF($F$4="Yes",SUMIFS(DATA!AL$3:AL$794,DATA!$F$3:$F$794,$A9,DATA!$B$3:$B$794,$C$2),AG9*((1+(AH158*(1+$F$5))))) -> 2031 | AI9: =IF($F$4="Yes",SUMIFS(DATA!AM$3:AM$794,DATA!$F$3:$F$794,$A9,DATA!$B$3:$B$794,$C$2),AH9*((1+(AI158*(1+$F$5))))) -> 2056 | AJ9: =IF($F$4="Yes",SUMIFS(DATA!AN$3:AN$794,DATA!$F$3:$F$794,$A9,DATA!$B$3:$B$794,$C$2),AI9*((1+(AJ158*(1+$F$5))))) -> 2080 | AK9: =IF($F$4="Yes",SUMIFS(DATA!AO$3:AO$794,DATA!$F$3:$F$794,$A9,DATA!$B$3:$B$794,$C$2),AJ9*((1+(AK158*(1+$F$5))))) -> 2104 | AL9: =IF($F$4="Yes",SUMIFS(DATA!AP$3:AP$794,DATA!$F$3:$F$794,$A9,DATA!$B$3:$B$794,$C$2),AK9*((1+(AL158*(1+$F$5))))) -> 2128 | AM9: =IF($F$4="Yes",SUMIFS(DATA!AQ$3:AQ$794,DATA!$F$3:$F$794,$A9,DATA!$B$3:$B$794,$C$2),IF($F$6="No",$AL$9,AL9*(1+$AL$6))) -> 2128 | AN9: =IF($F$4="Yes",SUMIFS(DATA!AR$3:AR$794,DATA!$F$3:$F$794,$A9,DATA!$B$3:$B$794,$C$2),IF($F$6="No",$AL$9,AM9*(1+$AL$6))) -> 2128 | AO9: =IF($F$4="Yes",SUMIFS(DATA!AS$3:AS$794,DATA!$F$3:$F$794,$A9,DATA!$B$3:$B$794,$C$2),IF($F$6="No",$AL$9,AN9*(1+$AL$6))) -> 2128 | AP9: =IF($F$4="Yes",SUMIFS(DATA!AT$3:AT$794,DATA!$F$3:$F$794,$A9,DATA!$B$3:$B$794,$C$2),IF($F$6="No",$AL$9,AO9*(1+$AL$6))) -> 2128 | AQ9: =IF($F$4="Yes",SUMIFS(DATA!AU$3:AU$794,DATA!$F$3:$F$794,$A9,DATA!$B$3:$B$794,$C$2),IF($F$6="No",$AL$9,AP9*(1+$AL$6))) -> 2128 | AR9: =IF($F$4="Yes",SUMIFS(DATA!AV$3:AV$794,DATA!$F$3:$F$794,$A9,DATA!$B$3:$B$794,$C$2),IF($F$6="No",$AL$9,AQ9*(1+$AL$6))) -> 2128 | AS9: =IF($F$4="Yes",SUMIFS(DATA!AW$3:AW$794,DATA!$F$3:$F$794,$A9,DATA!$B$3:$B$794,$C$2),IF($F$6="No",$AL$9,AR9*(1+$AL$6))) -> 2128 | AT9: =IF($F$4="Yes",SUMIFS(DATA!AX$3:AX$794,DATA!$F$3:$F$794,$A9,DATA!$B$3:$B$794,$C$2),IF($F$6="No",$AL$9,AS9*(1+$AL$6))) -> 2128 | AU9: =IF($F$4="Yes",SUMIFS(DATA!AY$3:AY$794,DATA!$F$3:$F$794,$A9,DATA!$B$3:$B$794,$C$2),IF($F$6="No",$AL$9,AT9*(1+$AL$6))) -> 2128 | AV9: =IF($F$4="Yes",SUMIFS(DATA!AZ$3:AZ$794,DATA!$F$3:$F$794,$A9,DATA!$B$3:$B$794,$C$2),IF($F$6="No",$AL$9,AU9*(1+$AL$6))) -> 2128 | AW9: =IF($F$4="Yes",SUMIFS(DATA!BA$3:BA$794,DATA!$F$3:$F$794,$A9,DATA!$B$3:$B$794,$C$2),IF($F$6="No",$AL$9,AV9*(1+$AL$6))) -> 2128 | AX9: =IF($F$4="Yes",SUMIFS(DATA!BB$3:BB$794,DATA!$F$3:$F$794,$A9,DATA!$B$3:$B$794,$C$2),IF($F$6="No",$AL$9,AW9*(1+$AL$6))) -> 2128 | AY9: =IF($F$4="Yes",SUMIFS(DATA!BC$3:BC$794,DATA!$F$3:$F$794,$A9,DATA!$B$3:$B$794,$C$2),IF($F$6="No",$AL$9,AX9*(1+$AL$6))) -> 2128 | AZ9: =IF($F$4="Yes",SUMIFS(DATA!BD$3:BD$794,DATA!$F$3:$F$794,$A9,DATA!$B$3:$B$794,$C$2),IF($F$6="No",$AL$9,AY9*(1+$AL$6))) -> 2128
A10: Additional General Consumers Revenue | B10: [Original] | C10: =SUMIFS(DATA!G$3:G$794,DATA!$F$3:$F$794,$A10,DATA!$B$3:$B$794,$C$2) -> 0 | D10: =SUMIFS(DATA!H$3:H$794,DATA!$F$3:$F$794,$A10,DATA!$B$3:$B$794,$C$2) -> 48 | E10: =SUMIFS(DATA!I$3:I$794,DATA!$F$3:$F$794,$A10,DATA!$B$3:$B$794,$C$2) -> 104 | F10: =SUMIFS(DATA!J$3:J$794,DATA!$F$3:$F$794,$A10,DATA!$B$3:$B$794,$C$2) -> 164 | G10: =SUMIFS(DATA!K$3:K$794,DATA!$F$3:$F$794,$A10,DATA!$B$3:$B$794,$C$2) -> 228 | H10: =SUMIFS(DATA!L$3:L$794,DATA!$F$3:$F$794,$A10,DATA!$B$3:$B$794,$C$2) -> 297 | I10: =SUMIFS(DATA!M$3:M$794,DATA!$F$3:$F$794,$A10,DATA!$B$3:$B$794,$C$2) -> 370 | J10: =SUMIFS(DATA!N$3:N$794,DATA!$F$3:$F$794,$A10,DATA!$B$3:$B$794,$C$2) -> 447 | K10: =SUMIFS(DATA!O$3:O$794,DATA!$F$3:$F$794,$A10,DATA!$B$3:$B$794,$C$2) -> 530 | L10: =SUMIFS(DATA!P$3:P$794,DATA!$F$3:$F$794,$A10,DATA!$B$3:$B$794,$C$2) -> 619 | M10: =SUMIFS(DATA!Q$3:Q$794,DATA!$F$3:$F$794,$A10,DATA!$B$3:$B$794,$C$2) -> 713 | N10: =SUMIFS(DATA!R$3:R$794,DATA!$F$3:$F$794,$A10,DATA!$B$3:$B$794,$C$2) -> 814 | O10: =SUMIFS(DATA!S$3:S$794,DATA!$F$3:$F$794,$A10,DATA!$B$3:$B$794,$C$2) -> 921 | P10: =SUMIFS(DATA!T$3:T$794,DATA!$F$3:$F$794,$A10,DATA!$B$3:$B$794,$C$2) -> 1034 | Q10: =SUMIFS(DATA!U$3:U$794,DATA!$F$3:$F$794,$A10,DATA!$B$3:$B$794,$C$2) -> 1154 | R10: =SUMIFS(DATA!V$3:V$794,DATA!$F$3:$F$794,$A10,DATA!$B$3:$B$794,$C$2) -> 1282 | S10: =SUMIFS(DATA!W$3:W$794,DATA!$F$3:$F$794,$A10,DATA!$B$3:$B$794,$C$2) -> 1418 | T10: =SUMIFS(DATA!X$3:X$794,DATA!$F$3:$F$794,$A10,DATA!$B$3:$B$794,$C$2) -> 1562 | U10: =SUMIFS(DATA!Y$3:Y$794,DATA!$F$3:$F$794,$A10,DATA!$B$3:$B$794,$C$2) -> 1715 | V10: =SUMIFS(DATA!Z$3:Z$794,DATA!$F$3:$F$794,$A10,DATA!$B$3:$B$794,$C$2) -> 1876 | W10: =SUMIFS(DATA!AA$3:AA$794,DATA!$F$3:$F$794,$A10,DATA!$B$3:$B$794,$C$2) -> 1057 | X10: =SUMIFS(DATA!AB$3:AB$794,DATA!$F$3:$F$794,$A10,DATA!$B$3:$B$794,$C$2) -> 1076 | Y10: =SUMIFS(DATA!AC$3:AC$794,DATA!$F$3:$F$794,$A10,DATA!$B$3:$B$794,$C$2) -> 1123 | Z10: =SUMIFS(DATA!AD$3:AD$794,DATA!$F$3:$F$794,$A10,DATA!$B$3:$B$794,$C$2) -> 1157 | AA10: =SUMIFS(DATA!AE$3:AE$794,DATA!$F$3:$F$794,$A10,DATA!$B$3:$B$794,$C$2) -> 1211 | AB10: =SUMIFS(DATA!AF$3:AF$794,DATA!$F$3:$F$794,$A10,DATA!$B$3:$B$794,$C$2) -> 1260 | AC10: =SUMIFS(DATA!AG$3:AG$794,DATA!$F$3:$F$794,$A10,DATA!$B$3:$B$794,$C$2) -> 1275 | AD10: =SUMIFS(DATA!AH$3:AH$794,DATA!$F$3:$F$794,$A10,DATA!$B$3:$B$794,$C$2) -> 1310 | AE10: =SUMIFS(DATA!AI$3:AI$794,DATA!$F$3:$F$794,$A10,DATA!$B$3:$B$794,$C$2) -> 1345 | AF10: =SUMIFS(DATA!AJ$3:AJ$794,DATA!$F$3:$F$794,$A10,DATA!$B$3:$B$794,$C$2) -> 1430 | AG10: =SUMIFS(DATA!AK$3:AK$794,DATA!$F$3:$F$794,$A10,DATA!$B$3:$B$794,$C$2) -> 1526 | AH10: =SUMIFS(DATA!AL$3:AL$794,DATA!$F$3:$F$794,$A10,DATA!$B$3:$B$794,$C$2) -> 1553 | AI10: =SUMIFS(DATA!AM$3:AM$794,DATA!$F$3:$F$794,$A10,DATA!$B$3:$B$794,$C$2) -> 1609 | AJ10: =SUMIFS(DATA!AN$3:AN$794,DATA!$F$3:$F$794,$A10,DATA!$B$3:$B$794,$C$2) -> 1712 | AK10: =SUMIFS(DATA!AO$3:AO$794,DATA!$F$3:$F$794,$A10,DATA!$B$3:$B$794,$C$2) -> 1844 | AL10: =SUMIFS(DATA!AP$3:AP$794,DATA!$F$3:$F$794,$A10,DATA!$B$3:$B$794,$C$2) -> 1868 | AM10: =SUMIFS(DATA!AQ$3:AQ$794,DATA!$F$3:$F$794,$A10,DATA!$B$3:$B$794,$C$2) -> 1852 | AN10: =SUMIFS(DATA!AR$3:AR$794,DATA!$F$3:$F$794,$A10,DATA!$B$3:$B$794,$C$2) -> 1871 | AO10: =SUMIFS(DATA!AS$3:AS$794,DATA!$F$3:$F$794,$A10,DATA!$B$3:$B$794,$C$2) -> 1968 | AP10: =SUMIFS(DATA!AT$3:AT$794,DATA!$F$3:$F$794,$A10,DATA!$B$3:$B$794,$C$2) -> 2001 | AQ10: =SUMIFS(DATA!AU$3:AU$794,DATA!$F$3:$F$794,$A10,DATA!$B$3:$B$794,$C$2) -> 2027 | AR10: =SUMIFS(DATA!AV$3:AV$794,DATA!$F$3:$F$794,$A10,DATA!$B$3:$B$794,$C$2) -> 2108 | AS10: =SUMIFS(DATA!AW$3:AW$794,DATA!$F$3:$F$794,$A10,DATA!$B$3:$B$794,$C$2) -> 2131 | AT10: =SUMIFS(DATA!AX$3:AX$794,DATA!$F$3:$F$794,$A10,DATA!$B$3:$B$794,$C$2) -> 2128 | AU10: =SUMIFS(DATA!AY$3:AY$794,DATA!$F$3:$F$794,$A10,DATA!$B$3:$B$794,$C$2) -> 2165 | AV10: =SUMIFS(DATA!AZ$3:AZ$794,DATA!$F$3:$F$794,$A10,DATA!$B$3:$B$794,$C$2) -> 2144 | AW10: =SUMIFS(DATA!BA$3:BA$794,DATA!$F$3:$F$794,$A10,DATA!$B$3:$B$794,$C$2) -> 2170 | AX10: =SUMIFS(DATA!BB$3:BB$794,DATA!$F$3:$F$794,$A10,DATA!$B$3:$B$794,$C$2) -> 2207 | AY10: =SUMIFS(DATA!BC$3:BC$794,DATA!$F$3:$F$794,$A10,DATA!$B$3:$B$794,$C$2) -> 2228 | AZ10: =SUMIFS(DATA!BD$3:BD$794,DATA!$F$3:$F$794,$A10,DATA!$B$3:$B$794,$C$2) -> 2256
A11: Additional General Consumers Revenue | B11: [Formula] | C11: =C9*C60 -> 0 | D11: 47.635 | E11: =E9*E60 -> 104.1240716 | F11: 164.2567578 | G11: 227.7697543 | H11: 296.2262385 | I11: 369.8869962 | J11: 446.0535768 | K11: 529.4359039 | L11: 617.4193898 | M11: 711.794859 | N11: 812.1233806 | O11: 918.691853 | P11: 1031.800541 | Q11: 1151.763685 | R11: 1278.910133 | S11: 1415.27997 | T11: 1558.907788 | U11: 1710.957006 | V11: 1871.831022 | W11: 1056.2 | X11: 1075.6 | Y11: 1121.6 | Z11: 1156.6 | AA11: 1210.6 | AB11: 1260.6 | AC11: 1275.4 | AD11: 1310 | AE11: 1345.353729 | AF11: 1429.6 | AG11: 1526 | AH11: 1554.2 | AI11: =AI9*AI60 -> 1609.047493 | AJ11: 1712.2 | AK11: 1845.6 | AL11: 1868.769908 | AM11: 1851.716732 | AN11: 1871.072305 | AO11: 1967.245185 | AP11: 2001.635488 | AQ11: 2026.428496 | AR11: 2108.605323 | AS11: 2130.799065 | AT11: 2126.444293 | AU11: 2166.995063 | AV11: 2144.467015 | AW11: 2169.2616 | AX11: 2206.853391 | AY11: 2228.448676 | AZ11: 2254.842912
A12: Current Year's General Consumers Revenue Change | C12: 0 | D12: =D11-C11 -> 47.635 | E12: =E11-D11 -> 56.48907164 | F12: =F11-E11 -> 60.13268613 | G12: 63.51299653 | H12: 68.45648417 | I12: 73.66075769 | J12: 76.16658068 | K12: 83.38232708 | L12: 87.98348583 | M12: =M11-L11 -> 94.37546928 | N12: 100.3285216 | O12: 106.5684723 | P12: 113.1086882 | Q12: 119.9631437 | R12: 127.1464484 | S12: 136.369837 | T12: 143.6278174 | U12: 152.0492181 | V12: 160.874016 | W12: -815.6310219 | X12: 19.4 | Y12: 46 | Z12: 35 | AA12: 54 | AB12: 50 | AC12: 14.8 | AD12: 34.6 | AE12: 35.35372937 | AF12: 84.24627063 | AG12: 96.4 | AH12: 28.2 | AI12: 54.84749265 | AJ12: 103.1525074 | AK12: 133.4 | AL12: 23.16990802 | AM12: -17.05317572 | AN12: 19.35557263 | AO12: 96.17288029 | AP12: 34.39030231 | AQ12: 24.79300864 | AR12: 82.17682703 | AS12: 22.19374161 | AT12: -4.354772001 | AU12: 40.55077045 | AV12: -22.52804841 | AW12: 24.79458557 | AX12: 37.59179102 | AY12: 21.5952842 | AZ12: 26.39423625
A13: Extraprovincial | C13: =SUMIFS(DATA!G$3:G$794,DATA!$F$3:$F$794,$A13,DATA!$B$3:$B$794,$C$2) -> 357 | D13: =SUMIFS(DATA!H$3:H$794,DATA!$F$3:$F$794,$A13,DATA!$B$3:$B$794,$C$2) -> 344 | E13: =SUMIFS(DATA!I$3:I$794,DATA!$F$3:$F$794,$A13,DATA!$B$3:$B$794,$C$2) -> 333 | F13: =SUMIFS(DATA!J$3:J$794,DATA!$F$3:$F$794,$A13,DATA!$B$3:$B$794,$C$2) -> 370 | G13: =SUMIFS(DATA!K$3:K$794,DATA!$F$3:$F$794,$A13,DATA!$B$3:$B$794,$C$2) -> 388 | H13: =SUMIFS(DATA!L$3:L$794,DATA!$F$3:$F$794,$A13,DATA!$B$3:$B$794,$C$2) -> 412 | I13: =SUMIFS(DATA!M$3:M$794,DATA!$F$3:$F$794,$A13,DATA!$B$3:$B$794,$C$2) -> 402 | J13: =SUMIFS(DATA!N$3:N$794,DATA!$F$3:$F$794,$A13,DATA!$B$3:$B$794,$C$2) -> 439 | K13: =SUMIFS(DATA!O$3:O$794,DATA!$F$3:$F$794,$A13,DATA!$B$3:$B$794,$C$2) -> 713 | L13: =SUMIFS(DATA!P$3:P$794,DATA!$F$3:$F$794,$A13,DATA!$B$3:$B$794,$C$2) -> 817 | M13: =SUMIFS(DATA!Q$3:Q$794,DATA!$F$3:$F$794,$A13,DATA!$B$3:$B$794,$C$2) -> 829 | N13: =SUMIFS(DATA!R$3:R$794,DATA!$F$3:$F$794,$A13,DATA!$B$3:$B$794,$C$2) -> 808 | O13: =SUMIFS(DATA!S$3:S$794,DATA!$F$3:$F$794,$A13,DATA!$B$3:$B$794,$C$2) -> 795 | P13: =SUMIFS(DATA!T$3:T$794,DATA!$F$3:$F$794,$A13,DATA!$B$3:$B$794,$C$2) -> 834 | Q13: =SUMIFS(DATA!U$3:U$794,DATA!$F$3:$F$794,$A13,DATA!$B$3:$B$794,$C$2) -> 1099 | R13: =SUMIFS(DATA!V$3:V$794,DATA!$F$3:$F$794,$A13,DATA!$B$3:$B$794,$C$2) -> 1165 | S13: =SUMIFS(DATA!W$3:W$794,DATA!$F$3:$F$794,$A13,DATA!$B$3:$B$794,$C$2) -> 1174 | T13: =SUMIFS(DATA!X$3:X$794,DATA!$F$3:$F$794,$A13,DATA!$B$3:$B$794,$C$2) -> 1168 | U13: =SUMIFS(DATA!Y$3:Y$794,DATA!$F$3:$F$794,$A13,DATA!$B$3:$B$794,$C$2) -> 1176 | V13: =SUMIFS(DATA!Z$3:Z$794,DATA!$F$3:$F$794,$A13,DATA!$B$3:$B$794,$C$2) -> 1181 | W13: =SUMIFS(DATA!AA$3:AA$794,DATA!$F$3:$F$794,$A13,DATA!$B$3:$B$794,$C$2) -> 1176 | X13: =SUMIFS(DATA!AB$3:AB$794,DATA!$F$3:$F$794,$A13,DATA!$B$3:$B$794,$C$2) -> 1163 | Y13: =SUMIFS(DATA!AC$3:AC$794,DATA!$F$3:$F$794,$A13,DATA!$B$3:$B$794,$C$2) -> 1152 | Z13: =SUMIFS(DATA!AD$3:AD$794,DATA!$F$3:$F$794,$A13,DATA!$B$3:$B$794,$C$2) -> 1114 | AA13: =SUMIFS(DATA!AE$3:AE$794,DATA!$F$3:$F$794,$A13,DATA!$B$3:$B$794,$C$2) -> 1032 | AB13: =SUMIFS(DATA!AF$3:AF$794,DATA!$F$3:$F$794,$A13,DATA!$B$3:$B$794,$C$2) -> 1002 | AC13: =SUMIFS(DATA!AG$3:AG$794,DATA!$F$3:$F$794,$A13,DATA!$B$3:$B$794,$C$2) -> 981 | AD13: =SUMIFS(DATA!AH$3:AH$794,DATA!$F$3:$F$794,$A13,DATA!$B$3:$B$794,$C$2) -> 962 | AE13: =SUMIFS(DATA!AI$3:AI$794,DATA!$F$3:$F$794,$A13,DATA!$B$3:$B$794,$C$2) -> 974 | AF13: =SUMIFS(DATA!AJ$3:AJ$794,DATA!$F$3:$F$794,$A13,DATA!$B$3:$B$794,$C$2) -> 961 | AG13: =SUMIFS(DATA!AK$3:AK$794,DATA!$F$3:$F$794,$A13,DATA!$B$3:$B$794,$C$2) -> 954 | AH13: =SUMIFS(DATA!AL$3:AL$794,DATA!$F$3:$F$794,$A13,DATA!$B$3:$B$794,$C$2) -> 954 | AI13: =SUMIFS(DATA!AM$3:AM$794,DATA!$F$3:$F$794,$A13,DATA!$B$3:$B$794,$C$2) -> 964 | AJ13: =SUMIFS(DATA!AN$3:AN$794,DATA!$F$3:$F$794,$A13,DATA!$B$3:$B$794,$C$2) -> 939 | AK13: =SUMIFS(DATA!AO$3:AO$794,DATA!$F$3:$F$794,$A13,DATA!$B$3:$B$794,$C$2) -> 935 | AL13: =SUMIFS(DATA!AP$3:AP$794,DATA!$F$3:$F$794,$A13,DATA!$B$3:$B$794,$C$2) -> 928 | AM13: =SUMIFS(DATA!AQ$3:AQ$794,DATA!$F$3:$F$794,$A13,DATA!$B$3:$B$794,$C$2) -> 968 | AN13: =SUMIFS(DATA!AR$3:AR$794,DATA!$F$3:$F$794,$A13,DATA!$B$3:$B$794,$C$2) -> 985 | AO13: =SUMIFS(DATA!AS$3:AS$794,DATA!$F$3:$F$794,$A13,DATA!$B$3:$B$794,$C$2) -> 1003 | AP13: =SUMIFS(DATA!AT$3:AT$794,DATA!$F$3:$F$794,$A13,DATA!$B$3:$B$794,$C$2) -> 1021 | AQ13: =SUMIFS(DATA!AU$3:AU$794,DATA!$F$3:$F$794,$A13,DATA!$B$3:$B$794,$C$2) -> 1040 | AR13: =SUMIFS(DATA!AV$3:AV$794,DATA!$F$3:$F$794,$A13,DATA!$B$3:$B$794,$C$2) -> 1058 | AS13: =SUMIFS(DATA!AW$3:AW$794,DATA!$F$3:$F$794,$A13,DATA!$B$3:$B$794,$C$2) -> 1077 | AT13: =SUMIFS(DATA!AX$3:AX$794,DATA!$F$3:$F$794,$A13,DATA!$B$3:$B$794,$C$2) -> 1097 | AU13: =SUMIFS(DATA!AY$3:AY$794,DATA!$F$3:$F$794,$A13,DATA!$B$3:$B$794,$C$2) -> 1117 | AV13: =SUMIFS(DATA!AZ$3:AZ$794,DATA!$F$3:$F$794,$A13,DATA!$B$3:$B$794,$C$2) -> 1137 | AW13: =SUMIFS(DATA!BA$3:BA$794,DATA!$F$3:$F$794,$A13,DATA!$B$3:$B$794,$C$2) -> 1157 | AX13: =SUMIFS(DATA!BB$3:BB$794,DATA!$F$3:$F$794,$A13,DATA!$B$3:$B$794,$C$2) -> 1178 | AY13: =SUMIFS(DATA!BC$3:BC$794,DATA!$F$3:$F$794,$A13,DATA!$B$3:$B$794,$C$2) -> 1199 | AZ13: =SUMIFS(DATA!BD$3:BD$794,DATA!$F$3:$F$794,$A13,DATA!$B$3:$B$794,$C$2) -> 1221
A14: Other | C14: =SUMIFS(DATA!G$3:G$794,DATA!$F$3:$F$794,$A14,DATA!$B$3:$B$794,$C$2) -> 14 | D14: =SUMIFS(DATA!H$3:H$794,DATA!$F$3:$F$794,$A14,DATA!$B$3:$B$794,$C$2) -> 15 | E14: =SUMIFS(DATA!I$3:I$794,DATA!$F$3:$F$794,$A14,DATA!$B$3:$B$794,$C$2) -> 15 | F14: =SUMIFS(DATA!J$3:J$794,DATA!$F$3:$F$794,$A14,DATA!$B$3:$B$794,$C$2) -> 15 | G14: =SUMIFS(DATA!K$3:K$794,DATA!$F$3:$F$794,$A14,DATA!$B$3:$B$794,$C$2) -> 15 | H14: =SUMIFS(DATA!L$3:L$794,DATA!$F$3:$F$794,$A14,DATA!$B$3:$B$794,$C$2) -> 16 | I14: =SUMIFS(DATA!M$3:M$794,DATA!$F$3:$F$794,$A14,DATA!$B$3:$B$794,$C$2) -> 16 | J14: =SUMIFS(DATA!N$3:N$794,DATA!$F$3:$F$794,$A14,DATA!$B$3:$B$794,$C$2) -> 16 | K14: =SUMIFS(DATA!O$3:O$794,DATA!$F$3:$F$794,$A14,DATA!$B$3:$B$794,$C$2) -> 17 | L14: =SUMIFS(DATA!P$3:P$794,DATA!$F$3:$F$794,$A14,DATA!$B$3:$B$794,$C$2) -> 17 | M14: =SUMIFS(DATA!Q$3:Q$794,DATA!$F$3:$F$794,$A14,DATA!$B$3:$B$794,$C$2) -> 17 | N14: =SUMIFS(DATA!R$3:R$794,DATA!$F$3:$F$794,$A14,DATA!$B$3:$B$794,$C$2) -> 18 | O14: =SUMIFS(DATA!S$3:S$794,DATA!$F$3:$F$794,$A14,DATA!$B$3:$B$794,$C$2) -> 18 | P14: =SUMIFS(DATA!T$3:T$794,DATA!$F$3:$F$794,$A14,DATA!$B$3:$B$794,$C$2) -> 18 | Q14: =SUMIFS(DATA!U$3:U$794,DATA!$F$3:$F$794,$A14,DATA!$B$3:$B$794,$C$2) -> 19 | R14: =SUMIFS(DATA!V$3:V$794,DATA!$F$3:$F$794,$A14,DATA!$B$3:$B$794,$C$2) -> 19 | S14: =SUMIFS(DATA!W$3:W$794,DATA!$F$3:$F$794,$A14,DATA!$B$3:$B$794,$C$2) -> 19 | T14: =SUMIFS(DATA!X$3:X$794,DATA!$F$3:$F$794,$A14,DATA!$B$3:$B$794,$C$2) -> 20 | U14: =SUMIFS(DATA!Y$3:Y$794,DATA!$F$3:$F$794,$A14,DATA!$B$3:$B$794,$C$2) -> 20 | V14: =SUMIFS(DATA!Z$3:Z$794,DATA!$F$3:$F$794,$A14,DATA!$B$3:$B$794,$C$2) -> 21 | W14: =SUMIFS(DATA!AA$3:AA$794,DATA!$F$3:$F$794,$A14,DATA!$B$3:$B$794,$C$2) -> 21 | X14: =SUMIFS(DATA!AB$3:AB$794,DATA!$F$3:$F$794,$A14,DATA!$B$3:$B$794,$C$2) -> 21 | Y14: =SUMIFS(DATA!AC$3:AC$794,DATA!$F$3:$F$794,$A14,DATA!$B$3:$B$794,$C$2) -> 22 | Z14: =SUMIFS(DATA!AD$3:AD$794,DATA!$F$3:$F$794,$A14,DATA!$B$3:$B$794,$C$2) -> 22 | AA14: =SUMIFS(DATA!AE$3:AE$794,DATA!$F$3:$F$794,$A14,DATA!$B$3:$B$794,$C$2) -> 23 | AB14: =SUMIFS(DATA!AF$3:AF$794,DATA!$F$3:$F$794,$A14,DATA!$B$3:$B$794,$C$2) -> 23 | AC14: =SUMIFS(DATA!AG$3:AG$794,DATA!$F$3:$F$794,$A14,DATA!$B$3:$B$794,$C$2) -> 24 | AD14: =SUMIFS(DATA!AH$3:AH$794,DATA!$F$3:$F$794,$A14,DATA!$B$3:$B$794,$C$2) -> 24 | AE14: =SUMIFS(DATA!AI$3:AI$794,DATA!$F$3:$F$794,$A14,DATA!$B$3:$B$794,$C$2) -> 24 | AF14: =SUMIFS(DATA!AJ$3:AJ$794,DATA!$F$3:$F$794,$A14,DATA!$B$3:$B$794,$C$2) -> 25 | AG14: =SUMIFS(DATA!AK$3:AK$794,DATA!$F$3:$F$794,$A14,DATA!$B$3:$B$794,$C$2) -> 25 | AH14: =SUMIFS(DATA!AL$3:AL$794,DATA!$F$3:$F$794,$A14,DATA!$B$3:$B$794,$C$2) -> 26 | AI14: =SUMIFS(DATA!AM$3:AM$794,DATA!$F$3:$F$794,$A14,DATA!$B$3:$B$794,$C$2) -> 26 | AJ14: =SUMIFS(DATA!AN$3:AN$794,DATA!$F$3:$F$794,$A14,DATA!$B$3:$B$794,$C$2) -> 27 | AK14: =SUMIFS(DATA!AO$3:AO$794,DATA!$F$3:$F$794,$A14,DATA!$B$3:$B$794,$C$2) -> 27 | AL14: =SUMIFS(DATA!AP$3:AP$794,DATA!$F$3:$F$794,$A14,DATA!$B$3:$B$794,$C$2) -> 28 | AM14: =SUMIFS(DATA!AQ$3:AQ$794,DATA!$F$3:$F$794,$A14,DATA!$B$3:$B$794,$C$2) -> 29 | AN14: =SUMIFS(DATA!AR$3:AR$794,DATA!$F$3:$F$794,$A14,DATA!$B$3:$B$794,$C$2) -> 29 | AO14: =SUMIFS(DATA!AS$3:AS$794,DATA!$F$3:$F$794,$A14,DATA!$B$3:$B$794,$C$2) -> 30 | AP14: =SUMIFS(DATA!AT$3:AT$794,DATA!$F$3:$F$794,$A14,DATA!$B$3:$B$794,$C$2) -> 30 | AQ14: =SUMIFS(DATA!AU$3:AU$794,DATA!$F$3:$F$794,$A14,DATA!$B$3:$B$794,$C$2) -> 31 | AR14: =SUMIFS(DATA!AV$3:AV$794,DATA!$F$3:$F$794,$A14,DATA!$B$3:$B$794,$C$2) -> 31 | AS14: =SUMIFS(DATA!AW$3:AW$794,DATA!$F$3:$F$794,$A14,DATA!$B$3:$B$794,$C$2) -> 32 | AT14: =SUMIFS(DATA!AX$3:AX$794,DATA!$F$3:$F$794,$A14,DATA!$B$3:$B$794,$C$2) -> 33 | AU14: =SUMIFS(DATA!AY$3:AY$794,DATA!$F$3:$F$794,$A14,DATA!$B$3:$B$794,$C$2) -> 33 | AV14: =SUMIFS(DATA!AZ$3:AZ$794,DATA!$F$3:$F$794,$A14,DATA!$B$3:$B$794,$C$2) -> 34 | AW14: =SUMIFS(DATA!BA$3:BA$794,DATA!$F$3:$F$794,$A14,DATA!$B$3:$B$794,$C$2) -> 35 | AX14: =SUMIFS(DATA!BB$3:BB$794,DATA!$F$3:$F$794,$A14,DATA!$B$3:$B$794,$C$2) -> 35 | AY14: =SUMIFS(DATA!BC$3:BC$794,DATA!$F$3:$F$794,$A14,DATA!$B$3:$B$794,$C$2) -> 36 | AZ14: =SUMIFS(DATA!BD$3:BD$794,DATA!$F$3:$F$794,$A14,DATA!$B$3:$B$794,$C$2) -> 37
A15: Total Revenue | B15: [Formula] | C15: =SUM(C9,C11,C13:C14) -> 1702 | D15: =SUM(D9,D11,D13:D14) -> 1767.635 | E15: 1826.124072 | F15: 1939.256758 | G15: 2034.769754 | H15: 2148.226238 | I15: 2234.886996 | J15: 2363.053577 | K15: 2744.435904 | L15: 2957.41939 | M15: 3086.794859 | N15: 3190.123381 | O15: 3306.691853 | P15: 3481.800541 | Q15: 3890.763685 | R15: 4106.910133 | S15: 4277.27997 | T15: 4439.907788 | U15: 4623.957006 | V15: 4814.831022 | W15: 4018.2 | X15: 4049.6 | Y15: 4109.6 | Z15: 4130.6 | AA15: 4127.6 | AB15: 4171.6 | AC15: 4190.4 | AD15: 4231 | AE15: 4302.353729 | AF15: 4398.6 | AG15: 4512 | AH15: 4565.2 | AI15: 4655.047493 | AJ15: 4758.2 | AK15: 4911.6 | AL15: 4952.769908 | AM15: 4976.716732 | AN15: 5013.072305 | AO15: 5128.245185 | AP15: 5180.635488 | AQ15: 5225.428496 | AR15: 5325.605323 | AS15: 5367.799065 | AT15: 5384.444293 | AU15: 5444.995063 | AV15: 5443.467015 | AW15: 5489.2616 | AX15: 5547.853391 | AY15: 5591.448676 | AZ15: 5640.842912
A16: Total Revenue | B16: [original] | C16: =SUMIFS(DATA!G$3:G$794,DATA!$F$3:$F$794,$A16,DATA!$B$3:$B$794,$C$2) -> 1702 | D16: =SUMIFS(DATA!H$3:H$794,DATA!$F$3:$F$794,$A16,DATA!$B$3:$B$794,$C$2) -> 1768 | E16: =SUMIFS(DATA!I$3:I$794,DATA!$F$3:$F$794,$A16,DATA!$B$3:$B$794,$C$2) -> 1826 | F16: =SUMIFS(DATA!J$3:J$794,DATA!$F$3:$F$794,$A16,DATA!$B$3:$B$794,$C$2) -> 1939 | G16: =SUMIFS(DATA!K$3:K$794,DATA!$F$3:$F$794,$A16,DATA!$B$3:$B$794,$C$2) -> 2035 | H16: =SUMIFS(DATA!L$3:L$794,DATA!$F$3:$F$794,$A16,DATA!$B$3:$B$794,$C$2) -> 2148 | I16: =SUMIFS(DATA!M$3:M$794,DATA!$F$3:$F$794,$A16,DATA!$B$3:$B$794,$C$2) -> 2236 | J16: =SUMIFS(DATA!N$3:N$794,DATA!$F$3:$F$794,$A16,DATA!$B$3:$B$794,$C$2) -> 2364 | K16: =SUMIFS(DATA!O$3:O$794,DATA!$F$3:$F$794,$A16,DATA!$B$3:$B$794,$C$2) -> 2745 | L16: =SUMIFS(DATA!P$3:P$794,DATA!$F$3:$F$794,$A16,DATA!$B$3:$B$794,$C$2) -> 2959 | M16: =SUMIFS(DATA!Q$3:Q$794,DATA!$F$3:$F$794,$A16,DATA!$B$3:$B$794,$C$2) -> 3088 | N16: =SUMIFS(DATA!R$3:R$794,DATA!$F$3:$F$794,$A16,DATA!$B$3:$B$794,$C$2) -> 3191 | O16: =SUMIFS(DATA!S$3:S$794,DATA!$F$3:$F$794,$A16,DATA!$B$3:$B$794,$C$2) -> 3309 | P16: =SUMIFS(DATA!T$3:T$794,DATA!$F$3:$F$794,$A16,DATA!$B$3:$B$794,$C$2) -> 3484 | Q16: =SUMIFS(DATA!U$3:U$794,DATA!$F$3:$F$794,$A16,DATA!$B$3:$B$794,$C$2) -> 3892 | R16: =SUMIFS(DATA!V$3:V$794,DATA!$F$3:$F$794,$A16,DATA!$B$3:$B$794,$C$2) -> 4110 | S16: =SUMIFS(DATA!W$3:W$794,DATA!$F$3:$F$794,$A16,DATA!$B$3:$B$794,$C$2) -> 4280 | T16: =SUMIFS(DATA!X$3:X$794,DATA!$F$3:$F$794,$A16,DATA!$B$3:$B$794,$C$2) -> 4443 | U16: =SUMIFS(DATA!Y$3:Y$794,DATA!$F$3:$F$794,$A16,DATA!$B$3:$B$794,$C$2) -> 4628 | V16: =SUMIFS(DATA!Z$3:Z$794,DATA!$F$3:$F$794,$A16,DATA!$B$3:$B$794,$C$2) -> 4818 | W16: =SUMIFS(DATA!AA$3:AA$794,DATA!$F$3:$F$794,$A16,DATA!$B$3:$B$794,$C$2) -> 4020 | X16: =SUMIFS(DATA!AB$3:AB$794,DATA!$F$3:$F$794,$A16,DATA!$B$3:$B$794,$C$2) -> 4050 | Y16: =SUMIFS(DATA!AC$3:AC$794,DATA!$F$3:$F$794,$A16,DATA!$B$3:$B$794,$C$2) -> 4110 | Z16: =SUMIFS(DATA!AD$3:AD$794,DATA!$F$3:$F$794,$A16,DATA!$B$3:$B$794,$C$2) -> 4131 | AA16: =SUMIFS(DATA!AE$3:AE$794,DATA!$F$3:$F$794,$A16,DATA!$B$3:$B$794,$C$2) -> 4128 | AB16: =SUMIFS(DATA!AF$3:AF$794,DATA!$F$3:$F$794,$A16,DATA!$B$3:$B$794,$C$2) -> 4171 | AC16: =SUMIFS(DATA!AG$3:AG$794,DATA!$F$3:$F$794,$A16,DATA!$B$3:$B$794,$C$2) -> 4190 | AD16: =SUMIFS(DATA!AH$3:AH$794,DATA!$F$3:$F$794,$A16,DATA!$B$3:$B$794,$C$2) -> 4231 | AE16: =SUMIFS(DATA!AI$3:AI$794,DATA!$F$3:$F$794,$A16,DATA!$B$3:$B$794,$C$2) -> 4302 | AF16: =SUMIFS(DATA!AJ$3:AJ$794,DATA!$F$3:$F$794,$A16,DATA!$B$3:$B$794,$C$2) -> 4399 | AG16: =SUMIFS(DATA!AK$3:AK$794,DATA!$F$3:$F$794,$A16,DATA!$B$3:$B$794,$C$2) -> 4513 | AH16: =SUMIFS(DATA!AL$3:AL$794,DATA!$F$3:$F$794,$A16,DATA!$B$3:$B$794,$C$2) -> 4564 | AI16: =SUMIFS(DATA!AM$3:AM$794,DATA!$F$3:$F$794,$A16,DATA!$B$3:$B$794,$C$2) -> 4655 | AJ16: =SUMIFS(DATA!AN$3:AN$794,DATA!$F$3:$F$794,$A16,DATA!$B$3:$B$794,$C$2) -> 4758 | AK16: =SUMIFS(DATA!AO$3:AO$794,DATA!$F$3:$F$794,$A16,DATA!$B$3:$B$794,$C$2) -> 4911 | AL16: =SUMIFS(DATA!AP$3:AP$794,DATA!$F$3:$F$794,$A16,DATA!$B$3:$B$794,$C$2) -> 4952 | AM16: =SUMIFS(DATA!AQ$3:AQ$794,DATA!$F$3:$F$794,$A16,DATA!$B$3:$B$794,$C$2) -> 4977 | AN16: =SUMIFS(DATA!AR$3:AR$794,DATA!$F$3:$F$794,$A16,DATA!$B$3:$B$794,$C$2) -> 5013 | AO16: =SUMIFS(DATA!AS$3:AS$794,DATA!$F$3:$F$794,$A16,DATA!$B$3:$B$794,$C$2) -> 5129 | AP16: =SUMIFS(DATA!AT$3:AT$794,DATA!$F$3:$F$794,$A16,DATA!$B$3:$B$794,$C$2) -> 5181 | AQ16: =SUMIFS(DATA!AU$3:AU$794,DATA!$F$3:$F$794,$A16,DATA!$B$3:$B$794,$C$2) -> 5225 | AR16: =SUMIFS(DATA!AV$3:AV$794,DATA!$F$3:$F$794,$A16,DATA!$B$3:$B$794,$C$2) -> 5326 | AS16: =SUMIFS(DATA!AW$3:AW$794,DATA!$F$3:$F$794,$A16,DATA!$B$3:$B$794,$C$2) -> 5369 | AT16: =SUMIFS(DATA!AX$3:AX$794,DATA!$F$3:$F$794,$A16,DATA!$B$3:$B$794,$C$2) -> 5385 | AU16: =SUMIFS(DATA!AY$3:AY$794,DATA!$F$3:$F$794,$A16,DATA!$B$3:$B$794,$C$2) -> 5443 | AV16: =SUMIFS(DATA!AZ$3:AZ$794,DATA!$F$3:$F$794,$A16,DATA!$B$3:$B$794,$C$2) -> 5443 | AW16: =SUMIFS(DATA!BA$3:BA$794,DATA!$F$3:$F$794,$A16,DATA!$B$3:$B$794,$C$2) -> 5490 | AX16: =SUMIFS(DATA!BB$3:BB$794,DATA!$F$3:$F$794,$A16,DATA!$B$3:$B$794,$C$2) -> 5549 | AY16: =SUMIFS(DATA!BC$3:BC$794,DATA!$F$3:$F$794,$A16,DATA!$B$3:$B$794,$C$2) -> 5591 | AZ16: =SUMIFS(DATA!BD$3:BD$794,DATA!$F$3:$F$794,$A16,DATA!$B$3:$B$794,$C$2) -> 5641
B17: [Difference] | C17: =C15-C16 -> 0 | D17: =D15-D16 -> -0.365 | E17: =E15-E16 -> 0.1240716424 | F17: =F15-F16 -> 0.2567577769 | G17: =G15-G16 -> -0.2302456928 | H17: =H15-H16 -> 0.2262384732 | I17: =I15-I16 -> -1.113003832 | J17: =J15-J16 -> -0.9464231506 | K17: =K15-K16 -> -0.5640960683 | L17: =L15-L16 -> -1.58061024 | M17: =M15-M16 -> -1.20514096 | N17: =N15-N16 -> -0.8766193943 | O17: =O15-O16 -> -2.308147048 | P17: =P15-P16 -> -2.199458829 | Q17: =Q15-Q16 -> -1.236315121 | R17: =R15-R16 -> -3.089866698 | S17: =S15-S16 -> -2.720029675 | T17: =T15-T16 -> -3.092212273 | U17: =U15-U16 -> -4.042994148 | V17: =V15-V16 -> -3.168978125 | W17: =W15-W16 -> -1.8 | X17: =X15-X16 -> -0.4 | Y17: =Y15-Y16 -> -0.4 | Z17: =Z15-Z16 -> -0.4 | AA17: =AA15-AA16 -> -0.4 | AB17: =AB15-AB16 -> 0.6 | AC17: =AC15-AC16 -> 0.4 | AD17: =AD15-AD16 -> 0 | AE17: =AE15-AE16 -> 0.3537293734 | AF17: =AF15-AF16 -> -0.4 | AG17: =AG15-AG16 -> -1 | AH17: =AH15-AH16 -> 1.2 | AI17: =AI15-AI16 -> 0.04749264703 | AJ17: =AJ15-AJ16 -> 0.2 | AK17: =AK15-AK16 -> 0.6 | AL17: =AL15-AL16 -> 0.7699080205 | AM17: =AM15-AM16 -> -0.2832676964 | AN17: =AN15-AN16 -> 0.07230493364 | AO17: =AO15-AO16 -> -0.7548147767 | AP17: =AP15-AP16 -> -0.3645124694 | AQ17: =AQ15-AQ16 -> 0.4284961707 | AR17: =AR15-AR16 -> -0.3946768042 | AS17: =AS15-AS16 -> -1.200935199 | AT17: =AT15-AT16 -> -0.5557072004 | AU17: =AU15-AU16 -> 1.99506325 | AV17: =AV15-AV16 -> 0.46701484 | AW17: =AW15-AW16 -> -0.7383995916 | AX17: =AX15-AX16 -> -1.146608569 | AY17: =AY15-AY16 -> 0.4486756362 | AZ17: =AZ15-AZ16 -> -0.1570881136
A19: EXPENSES
A20: Operating and Administrative | C20: =SUMIFS(DATA!G$3:G$794,DATA!$F$3:$F$794,$A20,DATA!$B$3:$B$794,$C$2) -> 455 | D20: =SUMIFS(DATA!H$3:H$794,DATA!$F$3:$F$794,$A20,DATA!$B$3:$B$794,$C$2) -> 471 | E20: =SUMIFS(DATA!I$3:I$794,DATA!$F$3:$F$794,$A20,DATA!$B$3:$B$794,$C$2) -> 546 | F20: =SUMIFS(DATA!J$3:J$794,DATA!$F$3:$F$794,$A20,DATA!$B$3:$B$794,$C$2) -> 559 | G20: =SUMIFS(DATA!K$3:K$794,DATA!$F$3:$F$794,$A20,DATA!$B$3:$B$794,$C$2) -> 570 | H20: =SUMIFS(DATA!L$3:L$794,DATA!$F$3:$F$794,$A20,DATA!$B$3:$B$794,$C$2) -> 593 | I20: =SUMIFS(DATA!M$3:M$794,DATA!$F$3:$F$794,$A20,DATA!$B$3:$B$794,$C$2) -> 605 | J20: =SUMIFS(DATA!N$3:N$794,DATA!$F$3:$F$794,$A20,DATA!$B$3:$B$794,$C$2) -> 621 | K20: =SUMIFS(DATA!O$3:O$794,DATA!$F$3:$F$794,$A20,DATA!$B$3:$B$794,$C$2) -> 678 | L20: =SUMIFS(DATA!P$3:P$794,DATA!$F$3:$F$794,$A20,DATA!$B$3:$B$794,$C$2) -> 690 | M20: =SUMIFS(DATA!Q$3:Q$794,DATA!$F$3:$F$794,$A20,DATA!$B$3:$B$794,$C$2) -> 703 | N20: =SUMIFS(DATA!R$3:R$794,DATA!$F$3:$F$794,$A20,DATA!$B$3:$B$794,$C$2) -> 716 | O20: =SUMIFS(DATA!S$3:S$794,DATA!$F$3:$F$794,$A20,DATA!$B$3:$B$794,$C$2) -> 730 | P20: =SUMIFS(DATA!T$3:T$794,DATA!$F$3:$F$794,$A20,DATA!$B$3:$B$794,$C$2) -> 760 | Q20: =SUMIFS(DATA!U$3:U$794,DATA!$F$3:$F$794,$A20,DATA!$B$3:$B$794,$C$2) -> 773 | R20: =SUMIFS(DATA!V$3:V$794,DATA!$F$3:$F$794,$A20,DATA!$B$3:$B$794,$C$2) -> 788 | S20: =SUMIFS(DATA!W$3:W$794,DATA!$F$3:$F$794,$A20,DATA!$B$3:$B$794,$C$2) -> 804 | T20: =SUMIFS(DATA!X$3:X$794,DATA!$F$3:$F$794,$A20,DATA!$B$3:$B$794,$C$2) -> 817 | U20: =SUMIFS(DATA!Y$3:Y$794,DATA!$F$3:$F$794,$A20,DATA!$B$3:$B$794,$C$2) -> 832 | V20: =SUMIFS(DATA!Z$3:Z$794,DATA!$F$3:$F$794,$A20,DATA!$B$3:$B$794,$C$2) -> 849 | W20: =SUMIFS(DATA!AA$3:AA$794,DATA!$F$3:$F$794,$A20,DATA!$B$3:$B$794,$C$2) -> 866 | X20: =SUMIFS(DATA!AB$3:AB$794,DATA!$F$3:$F$794,$A20,DATA!$B$3:$B$794,$C$2) -> 887 | Y20: =SUMIFS(DATA!AC$3:AC$794,DATA!$F$3:$F$794,$A20,DATA!$B$3:$B$794,$C$2) -> 906 | Z20: =SUMIFS(DATA!AD$3:AD$794,DATA!$F$3:$F$794,$A20,DATA!$B$3:$B$794,$C$2) -> 924 | AA20: =SUMIFS(DATA!AE$3:AE$794,DATA!$F$3:$F$794,$A20,DATA!$B$3:$B$794,$C$2) -> 945 | AB20: =SUMIFS(DATA!AF$3:AF$794,DATA!$F$3:$F$794,$A20,DATA!$B$3:$B$794,$C$2) -> 966 | AC20: =SUMIFS(DATA!AG$3:AG$794,DATA!$F$3:$F$794,$A20,DATA!$B$3:$B$794,$C$2) -> 987 | AD20: =SUMIFS(DATA!AH$3:AH$794,DATA!$F$3:$F$794,$A20,DATA!$B$3:$B$794,$C$2) -> 1010 | AE20: =SUMIFS(DATA!AI$3:AI$794,DATA!$F$3:$F$794,$A20,DATA!$B$3:$B$794,$C$2) -> 1032 | AF20: =SUMIFS(DATA!AJ$3:AJ$794,DATA!$F$3:$F$794,$A20,DATA!$B$3:$B$794,$C$2) -> 1062 | AG20: =SUMIFS(DATA!AK$3:AK$794,DATA!$F$3:$F$794,$A20,DATA!$B$3:$B$794,$C$2) -> 1087 | AH20: =SUMIFS(DATA!AL$3:AL$794,DATA!$F$3:$F$794,$A20,DATA!$B$3:$B$794,$C$2) -> 1113 | AI20: =SUMIFS(DATA!AM$3:AM$794,DATA!$F$3:$F$794,$A20,DATA!$B$3:$B$794,$C$2) -> 1146 | AJ20: =SUMIFS(DATA!AN$3:AN$794,DATA!$F$3:$F$794,$A20,DATA!$B$3:$B$794,$C$2) -> 1174 | AK20: =SUMIFS(DATA!AO$3:AO$794,DATA!$F$3:$F$794,$A20,DATA!$B$3:$B$794,$C$2) -> 1210 | AL20: =SUMIFS(DATA!AP$3:AP$794,DATA!$F$3:$F$794,$A20,DATA!$B$3:$B$794,$C$2) -> 1240 | AM20: =SUMIFS(DATA!AQ$3:AQ$794,DATA!$F$3:$F$794,$A20,DATA!$B$3:$B$794,$C$2) -> 1269 | AN20: =SUMIFS(DATA!AR$3:AR$794,DATA!$F$3:$F$794,$A20,DATA!$B$3:$B$794,$C$2) -> 1300 | AO20: =SUMIFS(DATA!AS$3:AS$794,DATA!$F$3:$F$794,$A20,DATA!$B$3:$B$794,$C$2) -> 1331 | AP20: =SUMIFS(DATA!AT$3:AT$794,DATA!$F$3:$F$794,$A20,DATA!$B$3:$B$794,$C$2) -> 1364 | AQ20: =SUMIFS(DATA!AU$3:AU$794,DATA!$F$3:$F$794,$A20,DATA!$B$3:$B$794,$C$2) -> 1385 | AR20: =SUMIFS(DATA!AV$3:AV$794,DATA!$F$3:$F$794,$A20,DATA!$B$3:$B$794,$C$2) -> 1418 | AS20: =SUMIFS(DATA!AW$3:AW$794,DATA!$F$3:$F$794,$A20,DATA!$B$3:$B$794,$C$2) -> 1439 | AT20: =SUMIFS(DATA!AX$3:AX$794,DATA!$F$3:$F$794,$A20,DATA!$B$3:$B$794,$C$2) -> 1460 | AU20: =SUMIFS(DATA!AY$3:AY$794,DATA!$F$3:$F$794,$A20,DATA!$B$3:$B$794,$C$2) -> 1482 | AV20: =SUMIFS(DATA!AZ$3:AZ$794,DATA!$F$3:$F$794,$A20,DATA!$B$3:$B$794,$C$2) -> 1504 | AW20: =SUMIFS(DATA!BA$3:BA$794,DATA!$F$3:$F$794,$A20,DATA!$B$3:$B$794,$C$2) -> 1526 | AX20: =SUMIFS(DATA!BB$3:BB$794,DATA!$F$3:$F$794,$A20,DATA!$B$3:$B$794,$C$2) -> 1549 | AY20: =SUMIFS(DATA!BC$3:BC$794,DATA!$F$3:$F$794,$A20,DATA!$B$3:$B$794,$C$2) -> 1564 | AZ20: =SUMIFS(DATA!BD$3:BD$794,DATA!$F$3:$F$794,$A20,DATA!$B$3:$B$794,$C$2) -> 1588
A21: Gross Interest | B21: 1 PUB-081a | C21: =SUMIFS(DATA!G$3:G$1000,DATA!$F$3:$F$1000,$A21,DATA!$B$3:$B$1000,$C$2) -> 533 | D21: =SUMIFS(DATA!H$3:H$1000,DATA!$F$3:$F$1000,$A21,DATA!$B$3:$B$1000,$C$2) -> 523 | E21: =SUMIFS(DATA!I$3:I$1000,DATA!$F$3:$F$1000,$A21,DATA!$B$3:$B$1000,$C$2) -> 592 | F21: =SUMIFS(DATA!J$3:J$1000,DATA!$F$3:$F$1000,$A21,DATA!$B$3:$B$1000,$C$2) -> 668 | G21: =SUMIFS(DATA!K$3:K$1000,DATA!$F$3:$F$1000,$A21,DATA!$B$3:$B$1000,$C$2) -> 778 | H21: =SUMIFS(DATA!L$3:L$1000,DATA!$F$3:$F$1000,$A21,DATA!$B$3:$B$1000,$C$2) -> 868 | I21: =SUMIFS(DATA!M$3:M$1000,DATA!$F$3:$F$1000,$A21,DATA!$B$3:$B$1000,$C$2) -> 944 | J21: =SUMIFS(DATA!N$3:N$1000,DATA!$F$3:$F$1000,$A21,DATA!$B$3:$B$1000,$C$2) -> 1001 | K21: =SUMIFS(DATA!O$3:O$1000,DATA!$F$3:$F$1000,$A21,DATA!$B$3:$B$1000,$C$2) -> 1064 | L21: =SUMIFS(DATA!P$3:P$1000,DATA!$F$3:$F$1000,$A21,DATA!$B$3:$B$1000,$C$2) -> 1126 | M21: =SUMIFS(DATA!Q$3:Q$1000,DATA!$F$3:$F$1000,$A21,DATA!$B$3:$B$1000,$C$2) -> 1187 | N21: =SUMIFS(DATA!R$3:R$1000,DATA!$F$3:$F$1000,$A21,DATA!$B$3:$B$1000,$C$2) -> 1277 | O21: =SUMIFS(DATA!S$3:S$1000,DATA!$F$3:$F$1000,$A21,DATA!$B$3:$B$1000,$C$2) -> 1345 | P21: =SUMIFS(DATA!T$3:T$1000,DATA!$F$3:$F$1000,$A21,DATA!$B$3:$B$1000,$C$2) -> 1390 | Q21: =SUMIFS(DATA!U$3:U$1000,DATA!$F$3:$F$1000,$A21,DATA!$B$3:$B$1000,$C$2) -> 1406 | R21: =SUMIFS(DATA!V$3:V$1000,DATA!$F$3:$F$1000,$A21,DATA!$B$3:$B$1000,$C$2) -> 1414 | S21: =SUMIFS(DATA!W$3:W$1000,DATA!$F$3:$F$1000,$A21,DATA!$B$3:$B$1000,$C$2) -> 1418 | T21: =SUMIFS(DATA!X$3:X$1000,DATA!$F$3:$F$1000,$A21,DATA!$B$3:$B$1000,$C$2) -> 1406 | U21: =SUMIFS(DATA!Y$3:Y$1000,DATA!$F$3:$F$1000,$A21,DATA!$B$3:$B$1000,$C$2) -> 1383 | V21: =SUMIFS(DATA!Z$3:Z$1000,DATA!$F$3:$F$1000,$A21,DATA!$B$3:$B$1000,$C$2) -> 1299
A22: Annual Change in Gross Interest | B22: [Formula] | D22: =D21-C21 -> -10 | E22: =E21-D21 -> 69 | F22: =F21-E21 -> 76 | G22: 110 | H22: 90 | I22: 76 | J22: 57 | K22: 63 | L22: 62 | M22: 61 | N22: 90 | O22: 68 | P22: 45 | Q22: 16 | R22: 8 | S22: 4 | T22: -12 | U22: -23 | V22: -84
A23: Provincial Guarantee Fee | B23: 1 PUB-081a | C23: =SUMIFS(DATA!G$3:G$1000,DATA!$F$3:$F$1000,$A23,DATA!$B$3:$B$1000,$C$2) -> 93 | D23: =SUMIFS(DATA!H$3:H$1000,DATA!$F$3:$F$1000,$A23,DATA!$B$3:$B$1000,$C$2) -> 102 | E23: =SUMIFS(DATA!I$3:I$1000,DATA!$F$3:$F$1000,$A23,DATA!$B$3:$B$1000,$C$2) -> 114 | F23: =SUMIFS(DATA!J$3:J$1000,DATA!$F$3:$F$1000,$A23,DATA!$B$3:$B$1000,$C$2) -> 131 | G23: =SUMIFS(DATA!K$3:K$1000,DATA!$F$3:$F$1000,$A23,DATA!$B$3:$B$1000,$C$2) -> 149 | H23: =SUMIFS(DATA!L$3:L$1000,DATA!$F$3:$F$1000,$A23,DATA!$B$3:$B$1000,$C$2) -> 168 | I23: =SUMIFS(DATA!M$3:M$1000,DATA!$F$3:$F$1000,$A23,DATA!$B$3:$B$1000,$C$2) -> 186 | J23: =SUMIFS(DATA!N$3:N$1000,DATA!$F$3:$F$1000,$A23,DATA!$B$3:$B$1000,$C$2) -> 199 | K23: =SUMIFS(DATA!O$3:O$1000,DATA!$F$3:$F$1000,$A23,DATA!$B$3:$B$1000,$C$2) -> 211 | L23: =SUMIFS(DATA!P$3:P$1000,DATA!$F$3:$F$1000,$A23,DATA!$B$3:$B$1000,$C$2) -> 224 | M23: =SUMIFS(DATA!Q$3:Q$1000,DATA!$F$3:$F$1000,$A23,DATA!$B$3:$B$1000,$C$2) -> 236 | N23: =SUMIFS(DATA!R$3:R$1000,DATA!$F$3:$F$1000,$A23,DATA!$B$3:$B$1000,$C$2) -> 250 | O23: =SUMIFS(DATA!S$3:S$1000,DATA!$F$3:$F$1000,$A23,DATA!$B$3:$B$1000,$C$2) -> 266 | P23: =SUMIFS(DATA!T$3:T$1000,DATA!$F$3:$F$1000,$A23,DATA!$B$3:$B$1000,$C$2) -> 276 | Q23: =SUMIFS(DATA!U$3:U$1000,DATA!$F$3:$F$1000,$A23,DATA!$B$3:$B$1000,$C$2) -> 281 | R23: =SUMIFS(DATA!V$3:V$1000,DATA!$F$3:$F$1000,$A23,DATA!$B$3:$B$1000,$C$2) -> 283 | S23: =SUMIFS(DATA!W$3:W$1000,DATA!$F$3:$F$1000,$A23,DATA!$B$3:$B$1000,$C$2) -> 284 | T23: =SUMIFS(DATA!X$3:X$1000,DATA!$F$3:$F$1000,$A23,DATA!$B$3:$B$1000,$C$2) -> 285 | U23: =SUMIFS(DATA!Y$3:Y$1000,DATA!$F$3:$F$1000,$A23,DATA!$B$3:$B$1000,$C$2) -> 283 | V23: =SUMIFS(DATA!Z$3:Z$1000,DATA!$F$3:$F$1000,$A23,DATA!$B$3:$B$1000,$C$2) -> 276
A24: Total Interest on Debt | C24: =SUM(C21,C23) -> 626 | D24: =SUM(D21,D23) -> 625 | E24: 706 | F24: 799 | G24: 927 | H24: 1036 | I24: 1130 | J24: 1200 | K24: 1275 | L24: 1350 | M24: 1423 | N24: 1527 | O24: 1611 | P24: 1666 | Q24: 1687 | R24: 1697 | S24: 1702 | T24: 1691 | U24: 1666 | V24: 1575
A25: Re-created Annual Change in Gross Interest | E25: =E90*(E138*E139+(1-E138)*E142) -> 74.3244 | F25: 92.4616 | G25: 100.912 | H25: 96.678 | I25: 106.848 | J25: 60.858 | K25: 83.349 | L25: 85.05 | M25: 126.189 | N25: 88.326 | O25: 47.439 | P25: 50.589 | Q25: 12.663 | R25: 8.883 | S25: -3.087 | T25: -43.911 | U25: -0.693 | V25: -14.301 | W25: =W90*(W138*W139+(1-W138)*W142) -> -138.411 | X25: -100.674 | Y25: -42.903 | Z25: -25.137 | AA25: -59.724 | AB25: 25.326 | AC25: 19.026 | AD25: -15.624 | AE25: 9.45 | AF25: -6.363 | AG25: 47.187 | AH25: 37.674 | AI25: 25.137 | AJ25: 37.674 | AK25: 25.074 | AL25: -0.063 | AM25: -20.601 | AN25: -0.126 | AO25: 0 | AP25: -3.213 | AQ25: -12.6 | AR25: -100.863 | AS25: -126 | AT25: -50.463 | AU25: -88.704 | AV25: 12.6 | AW25: -20.538 | AX25: -63.063 | AY25: 0 | AZ25: -28.35
A26: Re-created Gross Interest | B26: =SUM(C26:V26)/SUM(C21:V21)-1 -> 0.08307725465 | C26: =C$21 -> 533 | D26: =D$21 -> 523 | E26: =D26+E25 -> 597.3244 | F26: =E26+F25 -> 689.786 | G26: 790.698 | H26: 887.376 | I26: 994.224 | J26: 1055.082 | K26: 1138.431 | L26: 1223.481 | M26: 1349.67 | N26: 1437.996 | O26: 1485.435 | P26: 1536.024 | Q26: 1548.687 | R26: 1557.57 | S26: 1554.483 | T26: 1510.572 | U26: 1509.879 | V26: 1495.578 | W26: 1357.167 | X26: 1256.493 | Y26: 1213.59 | Z26: 1188.453 | AA26: 1128.729 | AB26: 1154.055 | AC26: 1173.081 | AD26: 1157.457 | AE26: 1166.907 | AF26: 1160.544 | AG26: 1207.731 | AH26: 1245.405 | AI26: 1270.542 | AJ26: 1308.216 | AK26: 1333.29 | AL26: 1333.227 | AM26: 1312.626 | AN26: 1312.5 | AO26: 1312.5 | AP26: 1309.287 | AQ26: 1296.687 | AR26: 1195.824 | AS26: 1069.824 | AT26: 1019.361 | AU26: 930.657 | AV26: 943.257 | AW26: 922.719 | AX26: 859.656 | AY26: 859.656 | AZ26: 831.306
A27: Re-created Provincial Guarantee Fee | B27: [Formula] | C27: 93 | D27: =(C$89)*0.01 -> 92.89 | E27: =(D$89)*0.01 -> 112.6 | F27: 128.02 | G27: 144.74 | H27: 161.7 | I27: 177.42 | J27: 194.38 | K27: 204.04 | L27: 217.27 | M27: 230.77 | N27: 250.8 | O27: 264.82 | P27: 272.35 | Q27: 280.38 | R27: 282.39 | S27: 283.8 | T27: 283.31 | U27: 276.34 | V27: 276.23 | W27: 273.96 | X27: 251.99 | Y27: 236.01 | Z27: 229.2 | AA27: 225.21 | AB27: 215.73 | AC27: 219.75 | AD27: 222.77 | AE27: 220.29 | AF27: 221.79 | AG27: 220.78 | AH27: 228.27 | AI27: 234.25 | AJ27: 238.24 | AK27: 244.22 | AL27: 248.2 | AM27: 248.19 | AN27: 244.92 | AO27: 244.9 | AP27: 244.9 | AQ27: 244.39 | AR27: 242.39 | AS27: 226.38 | AT27: 206.38 | AU27: 198.37 | AV27: 184.29 | AW27: 186.29 | AX27: 183.03 | AY27: 173.02 | AZ27: 173.02
A28: Re-created Total Interest on Debt | B28: =SUM(C28:V28)/SUM(C24:V24)-1 -> 0.06661315637 | C28: =SUM(C26,C27) -> 626 | D28: =SUM(D26,D27) -> 615.89 | E28: 709.9244 | F28: 817.806 | G28: 935.438 | H28: 1049.076 | I28: 1171.644 | J28: 1249.462 | K28: 1342.471 | L28: 1440.751 | M28: 1580.44 | N28: 1688.796 | O28: 1750.255 | P28: 1808.374 | Q28: 1829.067 | R28: 1839.96 | S28: 1838.283 | T28: 1793.882 | U28: 1786.219 | V28: 1771.808 | W28: 1631.127 | X28: 1508.483 | Y28: 1449.6 | Z28: 1417.653 | AA28: 1353.939 | AB28: 1369.785 | AC28: 1392.831 | AD28: 1380.227 | AE28: 1387.197 | AF28: 1382.334 | AG28: 1428.511 | AH28: 1473.675 | AI28: 1504.792 | AJ28: 1546.456 | AK28: 1577.51 | AL28: 1581.427 | AM28: 1560.816 | AN28: 1557.42 | AO28: 1557.4 | AP28: 1554.187 | AQ28: 1541.077 | AR28: 1438.214 | AS28: 1296.204 | AT28: 1225.741 | AU28: 1129.027 | AV28: 1127.547 | AW28: 1109.009 | AX28: 1042.686 | AY28: 1032.676 | AZ28: 1004.326
A30: Interest Income + Interest Allocated to Construction | C30: =SUMIFS(DATA!G$3:G$1000,DATA!$F$3:$F$1000,$A30,DATA!$B$3:$B$1000,$C$2) -> -175 | D30: =SUMIFS(DATA!H$3:H$1000,DATA!$F$3:$F$1000,$A30,DATA!$B$3:$B$1000,$C$2) -> -183 | E30: =SUMIFS(DATA!I$3:I$1000,DATA!$F$3:$F$1000,$A30,DATA!$B$3:$B$1000,$C$2) -> -214 | F30: =SUMIFS(DATA!J$3:J$1000,DATA!$F$3:$F$1000,$A30,DATA!$B$3:$B$1000,$C$2) -> -280 | G30: =SUMIFS(DATA!K$3:K$1000,DATA!$F$3:$F$1000,$A30,DATA!$B$3:$B$1000,$C$2) -> -349 | H30: =SUMIFS(DATA!L$3:L$1000,DATA!$F$3:$F$1000,$A30,DATA!$B$3:$B$1000,$C$2) -> -377 | I30: =SUMIFS(DATA!M$3:M$1000,DATA!$F$3:$F$1000,$A30,DATA!$B$3:$B$1000,$C$2) -> -356 | J30: =SUMIFS(DATA!N$3:N$1000,DATA!$F$3:$F$1000,$A30,DATA!$B$3:$B$1000,$C$2) -> -417 | K30: =SUMIFS(DATA!O$3:O$1000,DATA!$F$3:$F$1000,$A30,DATA!$B$3:$B$1000,$C$2) -> -285 | L30: =SUMIFS(DATA!P$3:P$1000,DATA!$F$3:$F$1000,$A30,DATA!$B$3:$B$1000,$C$2) -> -267 | M30: =SUMIFS(DATA!Q$3:Q$1000,DATA!$F$3:$F$1000,$A30,DATA!$B$3:$B$1000,$C$2) -> -348 | N30: =SUMIFS(DATA!R$3:R$1000,DATA!$F$3:$F$1000,$A30,DATA!$B$3:$B$1000,$C$2) -> -445 | O30: =SUMIFS(DATA!S$3:S$1000,DATA!$F$3:$F$1000,$A30,DATA!$B$3:$B$1000,$C$2) -> -533 | P30: =SUMIFS(DATA!T$3:T$1000,DATA!$F$3:$F$1000,$A30,DATA!$B$3:$B$1000,$C$2) -> -484 | Q30: =SUMIFS(DATA!U$3:U$1000,DATA!$F$3:$F$1000,$A30,DATA!$B$3:$B$1000,$C$2) -> -284 | R30: =SUMIFS(DATA!V$3:V$1000,DATA!$F$3:$F$1000,$A30,DATA!$B$3:$B$1000,$C$2) -> -113 | S30: =SUMIFS(DATA!W$3:W$1000,DATA!$F$3:$F$1000,$A30,DATA!$B$3:$B$1000,$C$2) -> -148 | T30: =SUMIFS(DATA!X$3:X$1000,DATA!$F$3:$F$1000,$A30,DATA!$B$3:$B$1000,$C$2) -> -176 | U30: =SUMIFS(DATA!Y$3:Y$1000,DATA!$F$3:$F$1000,$A30,DATA!$B$3:$B$1000,$C$2) -> -143 | V30: =SUMIFS(DATA!Z$3:Z$1000,DATA!$F$3:$F$1000,$A30,DATA!$B$3:$B$1000,$C$2) -> -116
A31: Total Finance Expense | B31: 1-PUB-081a | C31: =SUM(C24,C30) -> 451 | D31: 442 | E31: 492 | F31: 519 | G31: 578 | H31: 659 | I31: 774 | J31: 783 | K31: =SUM(K24,K30) -> 990 | L31: 1083 | M31: 1075 | N31: 1082 | O31: 1078 | P31: 1182 | Q31: 1403 | R31: 1584 | S31: 1554 | T31: 1515 | U31: 1523 | V31: 1459
A32: Finance Expense | C32: =SUMIFS(DATA!G$3:G$794,DATA!$F$3:$F$794,$A32,DATA!$B$3:$B$794,$C$2) -> 452 | D32: =SUMIFS(DATA!H$3:H$794,DATA!$F$3:$F$794,$A32,DATA!$B$3:$B$794,$C$2) -> 442 | E32: =SUMIFS(DATA!I$3:I$794,DATA!$F$3:$F$794,$A32,DATA!$B$3:$B$794,$C$2) -> 491 | F32: =SUMIFS(DATA!J$3:J$794,DATA!$F$3:$F$794,$A32,DATA!$B$3:$B$794,$C$2) -> 519 | G32: =SUMIFS(DATA!K$3:K$794,DATA!$F$3:$F$794,$A32,DATA!$B$3:$B$794,$C$2) -> 577 | H32: =SUMIFS(DATA!L$3:L$794,DATA!$F$3:$F$794,$A32,DATA!$B$3:$B$794,$C$2) -> 658 | I32: =SUMIFS(DATA!M$3:M$794,DATA!$F$3:$F$794,$A32,DATA!$B$3:$B$794,$C$2) -> 774 | J32: =SUMIFS(DATA!N$3:N$794,DATA!$F$3:$F$794,$A32,DATA!$B$3:$B$794,$C$2) -> 783 | K32: =SUMIFS(DATA!O$3:O$794,DATA!$F$3:$F$794,$A32,DATA!$B$3:$B$794,$C$2) -> 989 | L32: =SUMIFS(DATA!P$3:P$794,DATA!$F$3:$F$794,$A32,DATA!$B$3:$B$794,$C$2) -> 1083 | M32: =SUMIFS(DATA!Q$3:Q$794,DATA!$F$3:$F$794,$A32,DATA!$B$3:$B$794,$C$2) -> 1075 | N32: =SUMIFS(DATA!R$3:R$794,DATA!$F$3:$F$794,$A32,DATA!$B$3:$B$794,$C$2) -> 1083 | O32: =SUMIFS(DATA!S$3:S$794,DATA!$F$3:$F$794,$A32,DATA!$B$3:$B$794,$C$2) -> 1077 | P32: =SUMIFS(DATA!T$3:T$794,DATA!$F$3:$F$794,$A32,DATA!$B$3:$B$794,$C$2) -> 1182 | Q32: =SUMIFS(DATA!U$3:U$794,DATA!$F$3:$F$794,$A32,DATA!$B$3:$B$794,$C$2) -> 1403 | R32: =SUMIFS(DATA!V$3:V$794,DATA!$F$3:$F$794,$A32,DATA!$B$3:$B$794,$C$2) -> 1584 | S32: =SUMIFS(DATA!W$3:W$794,DATA!$F$3:$F$794,$A32,DATA!$B$3:$B$794,$C$2) -> 1553 | T32: =SUMIFS(DATA!X$3:X$794,DATA!$F$3:$F$794,$A32,DATA!$B$3:$B$794,$C$2) -> 1515 | U32: =SUMIFS(DATA!Y$3:Y$794,DATA!$F$3:$F$794,$A32,DATA!$B$3:$B$794,$C$2) -> 1523 | V32: =SUMIFS(DATA!Z$3:Z$794,DATA!$F$3:$F$794,$A32,DATA!$B$3:$B$794,$C$2) -> 1459 | W32: =SUMIFS(DATA!AA$3:AA$794,DATA!$F$3:$F$794,$A32,DATA!$B$3:$B$794,$C$2) -> 1413 | X32: =SUMIFS(DATA!AB$3:AB$794,DATA!$F$3:$F$794,$A32,DATA!$B$3:$B$794,$C$2) -> 1407 | Y32: =SUMIFS(DATA!AC$3:AC$794,DATA!$F$3:$F$794,$A32,DATA!$B$3:$B$794,$C$2) -> 1412 | Z32: =SUMIFS(DATA!AD$3:AD$794,DATA!$F$3:$F$794,$A32,DATA!$B$3:$B$794,$C$2) -> 1408 | AA32: =SUMIFS(DATA!AE$3:AE$794,DATA!$F$3:$F$794,$A32,DATA!$B$3:$B$794,$C$2) -> 1394 | AB32: =SUMIFS(DATA!AF$3:AF$794,DATA!$F$3:$F$794,$A32,DATA!$B$3:$B$794,$C$2) -> 1375 | AC32: =SUMIFS(DATA!AG$3:AG$794,DATA!$F$3:$F$794,$A32,DATA!$B$3:$B$794,$C$2) -> 1355 | AD32: =SUMIFS(DATA!AH$3:AH$794,DATA!$F$3:$F$794,$A32,DATA!$B$3:$B$794,$C$2) -> 1339 | AE32: =SUMIFS(DATA!AI$3:AI$794,DATA!$F$3:$F$794,$A32,DATA!$B$3:$B$794,$C$2) -> 1347 | AF32: =SUMIFS(DATA!AJ$3:AJ$794,DATA!$F$3:$F$794,$A32,DATA!$B$3:$B$794,$C$2) -> 1355 | AG32: =SUMIFS(DATA!AK$3:AK$794,DATA!$F$3:$F$794,$A32,DATA!$B$3:$B$794,$C$2) -> 1347 | AH32: =SUMIFS(DATA!AL$3:AL$794,DATA!$F$3:$F$794,$A32,DATA!$B$3:$B$794,$C$2) -> 1333 | AI32: =SUMIFS(DATA!AM$3:AM$794,DATA!$F$3:$F$794,$A32,DATA!$B$3:$B$794,$C$2) -> 1333 | AJ32: =SUMIFS(DATA!AN$3:AN$794,DATA!$F$3:$F$794,$A32,DATA!$B$3:$B$794,$C$2) -> 1321 | AK32: =SUMIFS(DATA!AO$3:AO$794,DATA!$F$3:$F$794,$A32,DATA!$B$3:$B$794,$C$2) -> 1360 | AL32: =SUMIFS(DATA!AP$3:AP$794,DATA!$F$3:$F$794,$A32,DATA!$B$3:$B$794,$C$2) -> 1326 | AM32: =SUMIFS(DATA!AQ$3:AQ$794,DATA!$F$3:$F$794,$A32,DATA!$B$3:$B$794,$C$2) -> 1311 | AN32: =SUMIFS(DATA!AR$3:AR$794,DATA!$F$3:$F$794,$A32,DATA!$B$3:$B$794,$C$2) -> 1291 | AO32: =SUMIFS(DATA!AS$3:AS$794,DATA!$F$3:$F$794,$A32,DATA!$B$3:$B$794,$C$2) -> 1274 | AP32: =SUMIFS(DATA!AT$3:AT$794,DATA!$F$3:$F$794,$A32,DATA!$B$3:$B$794,$C$2) -> 1254 | AQ32: =SUMIFS(DATA!AU$3:AU$794,DATA!$F$3:$F$794,$A32,DATA!$B$3:$B$794,$C$2) -> 1246 | AR32: =SUMIFS(DATA!AV$3:AV$794,DATA!$F$3:$F$794,$A32,DATA!$B$3:$B$794,$C$2) -> 1222 | AS32: =SUMIFS(DATA!AW$3:AW$794,DATA!$F$3:$F$794,$A32,DATA!$B$3:$B$794,$C$2) -> 1195 | AT32: =SUMIFS(DATA!AX$3:AX$794,DATA!$F$3:$F$794,$A32,DATA!$B$3:$B$794,$C$2) -> 1148 | AU32: =SUMIFS(DATA!AY$3:AY$794,DATA!$F$3:$F$794,$A32,DATA!$B$3:$B$794,$C$2) -> 1129 | AV32: =SUMIFS(DATA!AZ$3:AZ$794,DATA!$F$3:$F$794,$A32,DATA!$B$3:$B$794,$C$2) -> 1077 | AW32: =SUMIFS(DATA!BA$3:BA$794,DATA!$F$3:$F$794,$A32,DATA!$B$3:$B$794,$C$2) -> 1049 | AX32: =SUMIFS(DATA!BB$3:BB$794,DATA!$F$3:$F$794,$A32,DATA!$B$3:$B$794,$C$2) -> 1025 | AY32: =SUMIFS(DATA!BC$3:BC$794,DATA!$F$3:$F$794,$A32,DATA!$B$3:$B$794,$C$2) -> 995 | AZ32: =SUMIFS(DATA!BD$3:BD$794,DATA!$F$3:$F$794,$A32,DATA!$B$3:$B$794,$C$2) -> 963
A33: Depreciation and Amortization | C33: =SUMIFS(DATA!G$3:G$794,DATA!$F$3:$F$794,$A33,DATA!$B$3:$B$794,$C$2) -> 399 | D33: =SUMIFS(DATA!H$3:H$794,DATA!$F$3:$F$794,$A33,DATA!$B$3:$B$794,$C$2) -> 430 | E33: =SUMIFS(DATA!I$3:I$794,DATA!$F$3:$F$794,$A33,DATA!$B$3:$B$794,$C$2) -> 372 | F33: =SUMIFS(DATA!J$3:J$794,DATA!$F$3:$F$794,$A33,DATA!$B$3:$B$794,$C$2) -> 391 | G33: =SUMIFS(DATA!K$3:K$794,DATA!$F$3:$F$794,$A33,DATA!$B$3:$B$794,$C$2) -> 400 | H33: =SUMIFS(DATA!L$3:L$794,DATA!$F$3:$F$794,$A33,DATA!$B$3:$B$794,$C$2) -> 422 | I33: =SUMIFS(DATA!M$3:M$794,DATA!$F$3:$F$794,$A33,DATA!$B$3:$B$794,$C$2) -> 458 | J33: =SUMIFS(DATA!N$3:N$794,DATA!$F$3:$F$794,$A33,DATA!$B$3:$B$794,$C$2) -> 461 | K33: =SUMIFS(DATA!O$3:O$794,DATA!$F$3:$F$794,$A33,DATA!$B$3:$B$794,$C$2) -> 518 | L33: =SUMIFS(DATA!P$3:P$794,DATA!$F$3:$F$794,$A33,DATA!$B$3:$B$794,$C$2) -> 553 | M33: =SUMIFS(DATA!Q$3:Q$794,DATA!$F$3:$F$794,$A33,DATA!$B$3:$B$794,$C$2) -> 559 | N33: =SUMIFS(DATA!R$3:R$794,DATA!$F$3:$F$794,$A33,DATA!$B$3:$B$794,$C$2) -> 558 | O33: =SUMIFS(DATA!S$3:S$794,DATA!$F$3:$F$794,$A33,DATA!$B$3:$B$794,$C$2) -> 561 | P33: =SUMIFS(DATA!T$3:T$794,DATA!$F$3:$F$794,$A33,DATA!$B$3:$B$794,$C$2) -> 600 | Q33: =SUMIFS(DATA!U$3:U$794,DATA!$F$3:$F$794,$A33,DATA!$B$3:$B$794,$C$2) -> 668 | R33: =SUMIFS(DATA!V$3:V$794,DATA!$F$3:$F$794,$A33,DATA!$B$3:$B$794,$C$2) -> 721 | S33: =SUMIFS(DATA!W$3:W$794,DATA!$F$3:$F$794,$A33,DATA!$B$3:$B$794,$C$2) -> 724 | T33: =SUMIFS(DATA!X$3:X$794,DATA!$F$3:$F$794,$A33,DATA!$B$3:$B$794,$C$2) -> 732 | U33: =SUMIFS(DATA!Y$3:Y$794,DATA!$F$3:$F$794,$A33,DATA!$B$3:$B$794,$C$2) -> 758 | V33: =SUMIFS(DATA!Z$3:Z$794,DATA!$F$3:$F$794,$A33,DATA!$B$3:$B$794,$C$2) -> 766 | W33: =SUMIFS(DATA!AA$3:AA$794,DATA!$F$3:$F$794,$A33,DATA!$B$3:$B$794,$C$2) -> 764 | X33: =SUMIFS(DATA!AB$3:AB$794,DATA!$F$3:$F$794,$A33,DATA!$B$3:$B$794,$C$2) -> 768 | Y33: =SUMIFS(DATA!AC$3:AC$794,DATA!$F$3:$F$794,$A33,DATA!$B$3:$B$794,$C$2) -> 792 | Z33: =SUMIFS(DATA!AD$3:AD$794,DATA!$F$3:$F$794,$A33,DATA!$B$3:$B$794,$C$2) -> 796 | AA33: =SUMIFS(DATA!AE$3:AE$794,DATA!$F$3:$F$794,$A33,DATA!$B$3:$B$794,$C$2) -> 802 | AB33: =SUMIFS(DATA!AF$3:AF$794,DATA!$F$3:$F$794,$A33,DATA!$B$3:$B$794,$C$2) -> 834 | AC33: =SUMIFS(DATA!AG$3:AG$794,DATA!$F$3:$F$794,$A33,DATA!$B$3:$B$794,$C$2) -> 838 | AD33: =SUMIFS(DATA!AH$3:AH$794,DATA!$F$3:$F$794,$A33,DATA!$B$3:$B$794,$C$2) -> 844 | AE33: =SUMIFS(DATA!AI$3:AI$794,DATA!$F$3:$F$794,$A33,DATA!$B$3:$B$794,$C$2) -> 857 | AF33: =SUMIFS(DATA!AJ$3:AJ$794,DATA!$F$3:$F$794,$A33,DATA!$B$3:$B$794,$C$2) -> 875 | AG33: =SUMIFS(DATA!AK$3:AK$794,DATA!$F$3:$F$794,$A33,DATA!$B$3:$B$794,$C$2) -> 943 | AH33: =SUMIFS(DATA!AL$3:AL$794,DATA!$F$3:$F$794,$A33,DATA!$B$3:$B$794,$C$2) -> 952 | AI33: =SUMIFS(DATA!AM$3:AM$794,DATA!$F$3:$F$794,$A33,DATA!$B$3:$B$794,$C$2) -> 971 | AJ33: =SUMIFS(DATA!AN$3:AN$794,DATA!$F$3:$F$794,$A33,DATA!$B$3:$B$794,$C$2) -> 1015 | AK33: =SUMIFS(DATA!AO$3:AO$794,DATA!$F$3:$F$794,$A33,DATA!$B$3:$B$794,$C$2) -> 1045 | AL33: =SUMIFS(DATA!AP$3:AP$794,DATA!$F$3:$F$794,$A33,DATA!$B$3:$B$794,$C$2) -> 1061 | AM33: =SUMIFS(DATA!AQ$3:AQ$794,DATA!$F$3:$F$794,$A33,DATA!$B$3:$B$794,$C$2) -> 1084 | AN33: =SUMIFS(DATA!AR$3:AR$794,DATA!$F$3:$F$794,$A33,DATA!$B$3:$B$794,$C$2) -> 1099 | AO33: =SUMIFS(DATA!AS$3:AS$794,DATA!$F$3:$F$794,$A33,DATA!$B$3:$B$794,$C$2) -> 1184 | AP33: =SUMIFS(DATA!AT$3:AT$794,DATA!$F$3:$F$794,$A33,DATA!$B$3:$B$794,$C$2) -> 1210 | AQ33: =SUMIFS(DATA!AU$3:AU$794,DATA!$F$3:$F$794,$A33,DATA!$B$3:$B$794,$C$2) -> 1228 | AR33: =SUMIFS(DATA!AV$3:AV$794,DATA!$F$3:$F$794,$A33,DATA!$B$3:$B$794,$C$2) -> 1305 | AS33: =SUMIFS(DATA!AW$3:AW$794,DATA!$F$3:$F$794,$A33,DATA!$B$3:$B$794,$C$2) -> 1343 | AT33: =SUMIFS(DATA!AX$3:AX$794,DATA!$F$3:$F$794,$A33,DATA!$B$3:$B$794,$C$2) -> 1377 | AU33: =SUMIFS(DATA!AY$3:AY$794,DATA!$F$3:$F$794,$A33,DATA!$B$3:$B$794,$C$2) -> 1420 | AV33: =SUMIFS(DATA!AZ$3:AZ$794,DATA!$F$3:$F$794,$A33,DATA!$B$3:$B$794,$C$2) -> 1441 | AW33: =SUMIFS(DATA!BA$3:BA$794,DATA!$F$3:$F$794,$A33,DATA!$B$3:$B$794,$C$2) -> 1479 | AX33: =SUMIFS(DATA!BB$3:BB$794,DATA!$F$3:$F$794,$A33,DATA!$B$3:$B$794,$C$2) -> 1525 | AY33: =SUMIFS(DATA!BC$3:BC$794,DATA!$F$3:$F$794,$A33,DATA!$B$3:$B$794,$C$2) -> 1569 | AZ33: =SUMIFS(DATA!BD$3:BD$794,DATA!$F$3:$F$794,$A33,DATA!$B$3:$B$794,$C$2) -> 1611
A34: Water Rentals and Assessments | C34: =SUMIFS(DATA!G$3:G$794,DATA!$F$3:$F$794,$A34,DATA!$B$3:$B$794,$C$2) -> 117 | D34: =SUMIFS(DATA!H$3:H$794,DATA!$F$3:$F$794,$A34,DATA!$B$3:$B$794,$C$2) -> 116 | E34: =SUMIFS(DATA!I$3:I$794,DATA!$F$3:$F$794,$A34,DATA!$B$3:$B$794,$C$2) -> 112 | F34: =SUMIFS(DATA!J$3:J$794,DATA!$F$3:$F$794,$A34,DATA!$B$3:$B$794,$C$2) -> 112 | G34: =SUMIFS(DATA!K$3:K$794,DATA!$F$3:$F$794,$A34,DATA!$B$3:$B$794,$C$2) -> 112 | H34: =SUMIFS(DATA!L$3:L$794,DATA!$F$3:$F$794,$A34,DATA!$B$3:$B$794,$C$2) -> 112 | I34: =SUMIFS(DATA!M$3:M$794,DATA!$F$3:$F$794,$A34,DATA!$B$3:$B$794,$C$2) -> 112 | J34: =SUMIFS(DATA!N$3:N$794,DATA!$F$3:$F$794,$A34,DATA!$B$3:$B$794,$C$2) -> 114 | K34: =SUMIFS(DATA!O$3:O$794,DATA!$F$3:$F$794,$A34,DATA!$B$3:$B$794,$C$2) -> 124 | L34: =SUMIFS(DATA!P$3:P$794,DATA!$F$3:$F$794,$A34,DATA!$B$3:$B$794,$C$2) -> 127 | M34: =SUMIFS(DATA!Q$3:Q$794,DATA!$F$3:$F$794,$A34,DATA!$B$3:$B$794,$C$2) -> 128 | N34: =SUMIFS(DATA!R$3:R$794,DATA!$F$3:$F$794,$A34,DATA!$B$3:$B$794,$C$2) -> 128 | O34: =SUMIFS(DATA!S$3:S$794,DATA!$F$3:$F$794,$A34,DATA!$B$3:$B$794,$C$2) -> 127 | P34: =SUMIFS(DATA!T$3:T$794,DATA!$F$3:$F$794,$A34,DATA!$B$3:$B$794,$C$2) -> 135 | Q34: =SUMIFS(DATA!U$3:U$794,DATA!$F$3:$F$794,$A34,DATA!$B$3:$B$794,$C$2) -> 148 | R34: =SUMIFS(DATA!V$3:V$794,DATA!$F$3:$F$794,$A34,DATA!$B$3:$B$794,$C$2) -> 150 | S34: =SUMIFS(DATA!W$3:W$794,DATA!$F$3:$F$794,$A34,DATA!$B$3:$B$794,$C$2) -> 151 | T34: =SUMIFS(DATA!X$3:X$794,DATA!$F$3:$F$794,$A34,DATA!$B$3:$B$794,$C$2) -> 151 | U34: =SUMIFS(DATA!Y$3:Y$794,DATA!$F$3:$F$794,$A34,DATA!$B$3:$B$794,$C$2) -> 152 | V34: =SUMIFS(DATA!Z$3:Z$794,DATA!$F$3:$F$794,$A34,DATA!$B$3:$B$794,$C$2) -> 153 | W34: =SUMIFS(DATA!AA$3:AA$794,DATA!$F$3:$F$794,$A34,DATA!$B$3:$B$794,$C$2) -> 153 | X34: =SUMIFS(DATA!AB$3:AB$794,DATA!$F$3:$F$794,$A34,DATA!$B$3:$B$794,$C$2) -> 154 | Y34: =SUMIFS(DATA!AC$3:AC$794,DATA!$F$3:$F$794,$A34,DATA!$B$3:$B$794,$C$2) -> 154 | Z34: =SUMIFS(DATA!AD$3:AD$794,DATA!$F$3:$F$794,$A34,DATA!$B$3:$B$794,$C$2) -> 154 | AA34: =SUMIFS(DATA!AE$3:AE$794,DATA!$F$3:$F$794,$A34,DATA!$B$3:$B$794,$C$2) -> 154 | AB34: =SUMIFS(DATA!AF$3:AF$794,DATA!$F$3:$F$794,$A34,DATA!$B$3:$B$794,$C$2) -> 155 | AC34: =SUMIFS(DATA!AG$3:AG$794,DATA!$F$3:$F$794,$A34,DATA!$B$3:$B$794,$C$2) -> 155 | AD34: =SUMIFS(DATA!AH$3:AH$794,DATA!$F$3:$F$794,$A34,DATA!$B$3:$B$794,$C$2) -> 155 | AE34: =SUMIFS(DATA!AI$3:AI$794,DATA!$F$3:$F$794,$A34,DATA!$B$3:$B$794,$C$2) -> 156 | AF34: =SUMIFS(DATA!AJ$3:AJ$794,DATA!$F$3:$F$794,$A34,DATA!$B$3:$B$794,$C$2) -> 156 | AG34: =SUMIFS(DATA!AK$3:AK$794,DATA!$F$3:$F$794,$A34,DATA!$B$3:$B$794,$C$2) -> 156 | AH34: =SUMIFS(DATA!AL$3:AL$794,DATA!$F$3:$F$794,$A34,DATA!$B$3:$B$794,$C$2) -> 156 | AI34: =SUMIFS(DATA!AM$3:AM$794,DATA!$F$3:$F$794,$A34,DATA!$B$3:$B$794,$C$2) -> 157 | AJ34: =SUMIFS(DATA!AN$3:AN$794,DATA!$F$3:$F$794,$A34,DATA!$B$3:$B$794,$C$2) -> 157 | AK34: =SUMIFS(DATA!AO$3:AO$794,DATA!$F$3:$F$794,$A34,DATA!$B$3:$B$794,$C$2) -> 157 | AL34: =SUMIFS(DATA!AP$3:AP$794,DATA!$F$3:$F$794,$A34,DATA!$B$3:$B$794,$C$2) -> 157 | AM34: =SUMIFS(DATA!AQ$3:AQ$794,DATA!$F$3:$F$794,$A34,DATA!$B$3:$B$794,$C$2) -> 163 | AN34: =SUMIFS(DATA!AR$3:AR$794,DATA!$F$3:$F$794,$A34,DATA!$B$3:$B$794,$C$2) -> 166 | AO34: =SUMIFS(DATA!AS$3:AS$794,DATA!$F$3:$F$794,$A34,DATA!$B$3:$B$794,$C$2) -> 169 | AP34: =SUMIFS(DATA!AT$3:AT$794,DATA!$F$3:$F$794,$A34,DATA!$B$3:$B$794,$C$2) -> 172 | AQ34: =SUMIFS(DATA!AU$3:AU$794,DATA!$F$3:$F$794,$A34,DATA!$B$3:$B$794,$C$2) -> 175 | AR34: =SUMIFS(DATA!AV$3:AV$794,DATA!$F$3:$F$794,$A34,DATA!$B$3:$B$794,$C$2) -> 178 | AS34: =SUMIFS(DATA!AW$3:AW$794,DATA!$F$3:$F$794,$A34,DATA!$B$3:$B$794,$C$2) -> 181 | AT34: =SUMIFS(DATA!AX$3:AX$794,DATA!$F$3:$F$794,$A34,DATA!$B$3:$B$794,$C$2) -> 184 | AU34: =SUMIFS(DATA!AY$3:AY$794,DATA!$F$3:$F$794,$A34,DATA!$B$3:$B$794,$C$2) -> 188 | AV34: =SUMIFS(DATA!AZ$3:AZ$794,DATA!$F$3:$F$794,$A34,DATA!$B$3:$B$794,$C$2) -> 191 | AW34: =SUMIFS(DATA!BA$3:BA$794,DATA!$F$3:$F$794,$A34,DATA!$B$3:$B$794,$C$2) -> 194 | AX34: =SUMIFS(DATA!BB$3:BB$794,DATA!$F$3:$F$794,$A34,DATA!$B$3:$B$794,$C$2) -> 198 | AY34: =SUMIFS(DATA!BC$3:BC$794,DATA!$F$3:$F$794,$A34,DATA!$B$3:$B$794,$C$2) -> 202 | AZ34: =SUMIFS(DATA!BD$3:BD$794,DATA!$F$3:$F$794,$A34,DATA!$B$3:$B$794,$C$2) -> 205
A35: Fuel and Power Purchased | C35: =SUMIFS(DATA!G$3:G$794,DATA!$F$3:$F$794,$A35,DATA!$B$3:$B$794,$C$2) -> 143 | D35: =SUMIFS(DATA!H$3:H$794,DATA!$F$3:$F$794,$A35,DATA!$B$3:$B$794,$C$2) -> 166 | E35: =SUMIFS(DATA!I$3:I$794,DATA!$F$3:$F$794,$A35,DATA!$B$3:$B$794,$C$2) -> 167 | F35: =SUMIFS(DATA!J$3:J$794,DATA!$F$3:$F$794,$A35,DATA!$B$3:$B$794,$C$2) -> 178 | G35: =SUMIFS(DATA!K$3:K$794,DATA!$F$3:$F$794,$A35,DATA!$B$3:$B$794,$C$2) -> 191 | H35: =SUMIFS(DATA!L$3:L$794,DATA!$F$3:$F$794,$A35,DATA!$B$3:$B$794,$C$2) -> 200 | I35: =SUMIFS(DATA!M$3:M$794,DATA!$F$3:$F$794,$A35,DATA!$B$3:$B$794,$C$2) -> 205 | J35: =SUMIFS(DATA!N$3:N$794,DATA!$F$3:$F$794,$A35,DATA!$B$3:$B$794,$C$2) -> 207 | K35: =SUMIFS(DATA!O$3:O$794,DATA!$F$3:$F$794,$A35,DATA!$B$3:$B$794,$C$2) -> 222 | L35: =SUMIFS(DATA!P$3:P$794,DATA!$F$3:$F$794,$A35,DATA!$B$3:$B$794,$C$2) -> 239 | M35: =SUMIFS(DATA!Q$3:Q$794,DATA!$F$3:$F$794,$A35,DATA!$B$3:$B$794,$C$2) -> 247 | N35: =SUMIFS(DATA!R$3:R$794,DATA!$F$3:$F$794,$A35,DATA!$B$3:$B$794,$C$2) -> 256 | O35: =SUMIFS(DATA!S$3:S$794,DATA!$F$3:$F$794,$A35,DATA!$B$3:$B$794,$C$2) -> 270 | P35: =SUMIFS(DATA!T$3:T$794,DATA!$F$3:$F$794,$A35,DATA!$B$3:$B$794,$C$2) -> 233 | Q35: =SUMIFS(DATA!U$3:U$794,DATA!$F$3:$F$794,$A35,DATA!$B$3:$B$794,$C$2) -> 238 | R35: =SUMIFS(DATA!V$3:V$794,DATA!$F$3:$F$794,$A35,DATA!$B$3:$B$794,$C$2) -> 256 | S35: =SUMIFS(DATA!W$3:W$794,DATA!$F$3:$F$794,$A35,DATA!$B$3:$B$794,$C$2) -> 266 | T35: =SUMIFS(DATA!X$3:X$794,DATA!$F$3:$F$794,$A35,DATA!$B$3:$B$794,$C$2) -> 275 | U35: =SUMIFS(DATA!Y$3:Y$794,DATA!$F$3:$F$794,$A35,DATA!$B$3:$B$794,$C$2) -> 282 | V35: =SUMIFS(DATA!Z$3:Z$794,DATA!$F$3:$F$794,$A35,DATA!$B$3:$B$794,$C$2) -> 292 | W35: =SUMIFS(DATA!AA$3:AA$794,DATA!$F$3:$F$794,$A35,DATA!$B$3:$B$794,$C$2) -> 302 | X35: =SUMIFS(DATA!AB$3:AB$794,DATA!$F$3:$F$794,$A35,DATA!$B$3:$B$794,$C$2) -> 312 | Y35: =SUMIFS(DATA!AC$3:AC$794,DATA!$F$3:$F$794,$A35,DATA!$B$3:$B$794,$C$2) -> 324 | Z35: =SUMIFS(DATA!AD$3:AD$794,DATA!$F$3:$F$794,$A35,DATA!$B$3:$B$794,$C$2) -> 325 | AA35: =SUMIFS(DATA!AE$3:AE$794,DATA!$F$3:$F$794,$A35,DATA!$B$3:$B$794,$C$2) -> 309 | AB35: =SUMIFS(DATA!AF$3:AF$794,DATA!$F$3:$F$794,$A35,DATA!$B$3:$B$794,$C$2) -> 317 | AC35: =SUMIFS(DATA!AG$3:AG$794,DATA!$F$3:$F$794,$A35,DATA!$B$3:$B$794,$C$2) -> 330 | AD35: =SUMIFS(DATA!AH$3:AH$794,DATA!$F$3:$F$794,$A35,DATA!$B$3:$B$794,$C$2) -> 355 | AE35: =SUMIFS(DATA!AI$3:AI$794,DATA!$F$3:$F$794,$A35,DATA!$B$3:$B$794,$C$2) -> 376 | AF35: =SUMIFS(DATA!AJ$3:AJ$794,DATA!$F$3:$F$794,$A35,DATA!$B$3:$B$794,$C$2) -> 412 | AG35: =SUMIFS(DATA!AK$3:AK$794,DATA!$F$3:$F$794,$A35,DATA!$B$3:$B$794,$C$2) -> 436 | AH35: =SUMIFS(DATA!AL$3:AL$794,DATA!$F$3:$F$794,$A35,DATA!$B$3:$B$794,$C$2) -> 462 | AI35: =SUMIFS(DATA!AM$3:AM$794,DATA!$F$3:$F$794,$A35,DATA!$B$3:$B$794,$C$2) -> 496 | AJ35: =SUMIFS(DATA!AN$3:AN$794,DATA!$F$3:$F$794,$A35,DATA!$B$3:$B$794,$C$2) -> 533 | AK35: =SUMIFS(DATA!AO$3:AO$794,DATA!$F$3:$F$794,$A35,DATA!$B$3:$B$794,$C$2) -> 577 | AL35: =SUMIFS(DATA!AP$3:AP$794,DATA!$F$3:$F$794,$A35,DATA!$B$3:$B$794,$C$2) -> 609 | AM35: =SUMIFS(DATA!AQ$3:AQ$794,DATA!$F$3:$F$794,$A35,DATA!$B$3:$B$794,$C$2) -> 593 | AN35: =SUMIFS(DATA!AR$3:AR$794,DATA!$F$3:$F$794,$A35,DATA!$B$3:$B$794,$C$2) -> 604 | AO35: =SUMIFS(DATA!AS$3:AS$794,DATA!$F$3:$F$794,$A35,DATA!$B$3:$B$794,$C$2) -> 615 | AP35: =SUMIFS(DATA!AT$3:AT$794,DATA!$F$3:$F$794,$A35,DATA!$B$3:$B$794,$C$2) -> 626 | AQ35: =SUMIFS(DATA!AU$3:AU$794,DATA!$F$3:$F$794,$A35,DATA!$B$3:$B$794,$C$2) -> 637 | AR35: =SUMIFS(DATA!AV$3:AV$794,DATA!$F$3:$F$794,$A35,DATA!$B$3:$B$794,$C$2) -> 649 | AS35: =SUMIFS(DATA!AW$3:AW$794,DATA!$F$3:$F$794,$A35,DATA!$B$3:$B$794,$C$2) -> 661 | AT35: =SUMIFS(DATA!AX$3:AX$794,DATA!$F$3:$F$794,$A35,DATA!$B$3:$B$794,$C$2) -> 673 | AU35: =SUMIFS(DATA!AY$3:AY$794,DATA!$F$3:$F$794,$A35,DATA!$B$3:$B$794,$C$2) -> 685 | AV35: =SUMIFS(DATA!AZ$3:AZ$794,DATA!$F$3:$F$794,$A35,DATA!$B$3:$B$794,$C$2) -> 697 | AW35: =SUMIFS(DATA!BA$3:BA$794,DATA!$F$3:$F$794,$A35,DATA!$B$3:$B$794,$C$2) -> 710 | AX35: =SUMIFS(DATA!BB$3:BB$794,DATA!$F$3:$F$794,$A35,DATA!$B$3:$B$794,$C$2) -> 722 | AY35: =SUMIFS(DATA!BC$3:BC$794,DATA!$F$3:$F$794,$A35,DATA!$B$3:$B$794,$C$2) -> 735 | AZ35: =SUMIFS(DATA!BD$3:BD$794,DATA!$F$3:$F$794,$A35,DATA!$B$3:$B$794,$C$2) -> 749
A36: Capital Taxes | C36: =SUM(C50,C94)*0.005 -> 60.53585 | D36: =SUM(D50,D94)*0.005 -> 68.025175 | E36: 75.30079536 | F36: 83.82757915 | G36: 92.61692792 | H36: 100.7840591 | I36: 107.5569941 | J36: 113.444262 | K36: 120.3559415 | L36: 128.6040384 | M36: 136.4550127 | N36: 143.2051296 | O36: 149.1660889 | P36: 153.9865916 | Q36: 156.07841 | R36: 156.5399607 | S36: 157.9758606 | T36: 158.9678995 | U36: 159.5231845 | V36: 159.3963396 | W36: 159.1558396 | X36: 159.0628396 | Y36: 158.7638396 | Z36: 158.6468396 | AA36: 158.6418396 | AB36: 158.6503396 | AC36: 158.8518396 | AD36: 160.0538396 | AE36: 161.9171083 | AF36: 162.6061083 | AG36: 163.4126083 | AH36: 164.4326083 | AI36: 165.3383457 | AJ36: 167.6363457 | AK36: 167.4938457 | AL36: 167.0541953 | AM36: 166.4082789 | AN36: 165.8276405 | AO36: 165.1263664 | AP36: 164.6785438 | AQ36: 164.1736863 | AR36: 163.8902129 | AS36: 163.1822083 | AT36: 162.2379297 | AU36: 160.789905 | AV36: 159.2707401 | AW36: 157.9335481 | AX36: 156.4218151 | AY36: 155.0490584 | AZ36: 153.587273
A37: Other Taxes | C37: 26.464825 | D37: 26.972575 | E37: 25.44078439 | F37: 25.35970271 | G37: 26.36950857 | H37: 26.6820727 | I37: 26.87192917 | J37: 27.7166299 | K37: 28.49348308 | L37: 29.43317086 | M37: 29.83537947 | N37: 31.12297383 | O37: 31.99911318 | P37: 32.91244772 | Q37: 34.0430629 | R37: 35.02067133 | S37: 36.68548645 | T37: 37.58496184 | U37: 39.75636064 | V37: 41.06877553 | W37: 42.1077466 | X37: 43.14121683 | Y37: 44.82818505 | Z37: 46.10165238 | AA37: 47.17961917 | AB37: 48.59408402 | AC37: 50.04829778 | AD37: 51.34876081 | AE37: 52.72172168 | AF37: 54.0604311 | AG37: 56.16888873 | AH37: 57.98759563 | AI37: 59.18847098 | AJ37: 60.81217398 | AK37: 62.48074624 | AL37: 64.58344654 | AM37: 65.91554933 | AN37: 67.20424903 | AO37: 69.2531974 | AP37: 70.98114505 | AQ37: 73.24859174 | AR37: 75.58178704 | AS37: 76.65698169 | AT37: 79.35117554 | AU37: 81.15338457 | AV37: 83.31557722 | AW37: 85.52126895 | AX37: 87.67320977 | AY37: 90.26514966 | AZ37: 92.62408808
A38: Capital and Other Taxes | B38: [Formula] | C38: =SUM(C36:C37) -> 87.000675 | D38: =SUM(D36:D37) -> 94.99775 | E38: 100.7415797 | F38: 109.1872819 | G38: 118.9864365 | H38: 127.4661318 | I38: 134.4289233 | J38: 141.1608919 | K38: 148.8494246 | L38: 158.0372093 | M38: 166.2903922 | N38: 174.3281035 | O38: 181.1652021 | P38: 186.8990393 | Q38: 190.1214729 | R38: 191.560632 | S38: 194.661347 | T38: 196.5528613 | U38: 199.2795452 | V38: 200.4651152 | W38: 201.2635862 | X38: 202.2040565 | Y38: 203.5920247 | Z38: 204.748492 | AA38: 205.8214588 | AB38: 207.2444236 | AC38: 208.9001374 | AD38: 211.4026004 | AE38: 214.63883 | AF38: 216.6665394 | AG38: 219.581497 | AH38: 222.4202039 | AI38: 224.5268167 | AJ38: 228.4485197 | AK38: 229.974592 | AL38: 231.6376418 | AM38: 232.3238283 | AN38: 233.0318895 | AO38: 234.3795638 | AP38: 235.6596889 | AQ38: 237.4222781 | AR38: 239.472 | AS38: 239.8391899 | AT38: 241.5891053 | AU38: 241.9432896 | AV38: 242.5863173 | AW38: 243.4548171 | AX38: 244.0950248 | AY38: 245.3142081 | AZ38: 246.2113611
A39: Capital and Other Taxes | C39: =SUMIFS(DATA!G$3:G$794,DATA!$F$3:$F$794,$A39,DATA!$B$3:$B$794,$C$2) -> 87 | D39: =SUMIFS(DATA!H$3:H$794,DATA!$F$3:$F$794,$A39,DATA!$B$3:$B$794,$C$2) -> 95 | E39: =SUMIFS(DATA!I$3:I$794,DATA!$F$3:$F$794,$A39,DATA!$B$3:$B$794,$C$2) -> 101 | F39: =SUMIFS(DATA!J$3:J$794,DATA!$F$3:$F$794,$A39,DATA!$B$3:$B$794,$C$2) -> 109 | G39: =SUMIFS(DATA!K$3:K$794,DATA!$F$3:$F$794,$A39,DATA!$B$3:$B$794,$C$2) -> 119 | H39: =SUMIFS(DATA!L$3:L$794,DATA!$F$3:$F$794,$A39,DATA!$B$3:$B$794,$C$2) -> 127 | I39: =SUMIFS(DATA!M$3:M$794,DATA!$F$3:$F$794,$A39,DATA!$B$3:$B$794,$C$2) -> 134 | J39: =SUMIFS(DATA!N$3:N$794,DATA!$F$3:$F$794,$A39,DATA!$B$3:$B$794,$C$2) -> 141 | K39: =SUMIFS(DATA!O$3:O$794,DATA!$F$3:$F$794,$A39,DATA!$B$3:$B$794,$C$2) -> 149 | L39: =SUMIFS(DATA!P$3:P$794,DATA!$F$3:$F$794,$A39,DATA!$B$3:$B$794,$C$2) -> 158 | M39: =SUMIFS(DATA!Q$3:Q$794,DATA!$F$3:$F$794,$A39,DATA!$B$3:$B$794,$C$2) -> 166 | N39: =SUMIFS(DATA!R$3:R$794,DATA!$F$3:$F$794,$A39,DATA!$B$3:$B$794,$C$2) -> 174 | O39: =SUMIFS(DATA!S$3:S$794,DATA!$F$3:$F$794,$A39,DATA!$B$3:$B$794,$C$2) -> 181 | P39: =SUMIFS(DATA!T$3:T$794,DATA!$F$3:$F$794,$A39,DATA!$B$3:$B$794,$C$2) -> 187 | Q39: =SUMIFS(DATA!U$3:U$794,DATA!$F$3:$F$794,$A39,DATA!$B$3:$B$794,$C$2) -> 190 | R39: =SUMIFS(DATA!V$3:V$794,DATA!$F$3:$F$794,$A39,DATA!$B$3:$B$794,$C$2) -> 192 | S39: =SUMIFS(DATA!W$3:W$794,DATA!$F$3:$F$794,$A39,DATA!$B$3:$B$794,$C$2) -> 195 | T39: =SUMIFS(DATA!X$3:X$794,DATA!$F$3:$F$794,$A39,DATA!$B$3:$B$794,$C$2) -> 197 | U39: =SUMIFS(DATA!Y$3:Y$794,DATA!$F$3:$F$794,$A39,DATA!$B$3:$B$794,$C$2) -> 201 | V39: =SUMIFS(DATA!Z$3:Z$794,DATA!$F$3:$F$794,$A39,DATA!$B$3:$B$794,$C$2) -> 202 | W39: =SUMIFS(DATA!AA$3:AA$794,DATA!$F$3:$F$794,$A39,DATA!$B$3:$B$794,$C$2) -> 203 | X39: =SUMIFS(DATA!AB$3:AB$794,DATA!$F$3:$F$794,$A39,DATA!$B$3:$B$794,$C$2) -> 204 | Y39: =SUMIFS(DATA!AC$3:AC$794,DATA!$F$3:$F$794,$A39,DATA!$B$3:$B$794,$C$2) -> 206 | Z39: =SUMIFS(DATA!AD$3:AD$794,DATA!$F$3:$F$794,$A39,DATA!$B$3:$B$794,$C$2) -> 207 | AA39: =SUMIFS(DATA!AE$3:AE$794,DATA!$F$3:$F$794,$A39,DATA!$B$3:$B$794,$C$2) -> 208 | AB39: =SUMIFS(DATA!AF$3:AF$794,DATA!$F$3:$F$794,$A39,DATA!$B$3:$B$794,$C$2) -> 210 | AC39: =SUMIFS(DATA!AG$3:AG$794,DATA!$F$3:$F$794,$A39,DATA!$B$3:$B$794,$C$2) -> 212 | AD39: =SUMIFS(DATA!AH$3:AH$794,DATA!$F$3:$F$794,$A39,DATA!$B$3:$B$794,$C$2) -> 214 | AE39: =SUMIFS(DATA!AI$3:AI$794,DATA!$F$3:$F$794,$A39,DATA!$B$3:$B$794,$C$2) -> 218 | AF39: =SUMIFS(DATA!AJ$3:AJ$794,DATA!$F$3:$F$794,$A39,DATA!$B$3:$B$794,$C$2) -> 220 | AG39: =SUMIFS(DATA!AK$3:AK$794,DATA!$F$3:$F$794,$A39,DATA!$B$3:$B$794,$C$2) -> 223 | AH39: =SUMIFS(DATA!AL$3:AL$794,DATA!$F$3:$F$794,$A39,DATA!$B$3:$B$794,$C$2) -> 226 | AI39: =SUMIFS(DATA!AM$3:AM$794,DATA!$F$3:$F$794,$A39,DATA!$B$3:$B$794,$C$2) -> 228 | AJ39: =SUMIFS(DATA!AN$3:AN$794,DATA!$F$3:$F$794,$A39,DATA!$B$3:$B$794,$C$2) -> 232 | AK39: =SUMIFS(DATA!AO$3:AO$794,DATA!$F$3:$F$794,$A39,DATA!$B$3:$B$794,$C$2) -> 234 | AL39: =SUMIFS(DATA!AP$3:AP$794,DATA!$F$3:$F$794,$A39,DATA!$B$3:$B$794,$C$2) -> 236 | AM39: =SUMIFS(DATA!AQ$3:AQ$794,DATA!$F$3:$F$794,$A39,DATA!$B$3:$B$794,$C$2) -> 237 | AN39: =SUMIFS(DATA!AR$3:AR$794,DATA!$F$3:$F$794,$A39,DATA!$B$3:$B$794,$C$2) -> 237 | AO39: =SUMIFS(DATA!AS$3:AS$794,DATA!$F$3:$F$794,$A39,DATA!$B$3:$B$794,$C$2) -> 239 | AP39: =SUMIFS(DATA!AT$3:AT$794,DATA!$F$3:$F$794,$A39,DATA!$B$3:$B$794,$C$2) -> 240 | AQ39: =SUMIFS(DATA!AU$3:AU$794,DATA!$F$3:$F$794,$A39,DATA!$B$3:$B$794,$C$2) -> 242 | AR39: =SUMIFS(DATA!AV$3:AV$794,DATA!$F$3:$F$794,$A39,DATA!$B$3:$B$794,$C$2) -> 244 | AS39: =SUMIFS(DATA!AW$3:AW$794,DATA!$F$3:$F$794,$A39,DATA!$B$3:$B$794,$C$2) -> 244 | AT39: =SUMIFS(DATA!AX$3:AX$794,DATA!$F$3:$F$794,$A39,DATA!$B$3:$B$794,$C$2) -> 246 | AU39: =SUMIFS(DATA!AY$3:AY$794,DATA!$F$3:$F$794,$A39,DATA!$B$3:$B$794,$C$2) -> 246 | AV39: =SUMIFS(DATA!AZ$3:AZ$794,DATA!$F$3:$F$794,$A39,DATA!$B$3:$B$794,$C$2) -> 247 | AW39: =SUMIFS(DATA!BA$3:BA$794,DATA!$F$3:$F$794,$A39,DATA!$B$3:$B$794,$C$2) -> 248 | AX39: =SUMIFS(DATA!BB$3:BB$794,DATA!$F$3:$F$794,$A39,DATA!$B$3:$B$794,$C$2) -> 249 | AY39: =SUMIFS(DATA!BC$3:BC$794,DATA!$F$3:$F$794,$A39,DATA!$B$3:$B$794,$C$2) -> 250 | AZ39: =SUMIFS(DATA!BD$3:BD$794,DATA!$F$3:$F$794,$A39,DATA!$B$3:$B$794,$C$2) -> 251
A40: Corporate Allocation | C40: =SUMIFS(DATA!G$3:G$794,DATA!$F$3:$F$794,$A40,DATA!$B$3:$B$794,$C$2) -> 9 | D40: =SUMIFS(DATA!H$3:H$794,DATA!$F$3:$F$794,$A40,DATA!$B$3:$B$794,$C$2) -> 9 | E40: =SUMIFS(DATA!I$3:I$794,DATA!$F$3:$F$794,$A40,DATA!$B$3:$B$794,$C$2) -> 8 | F40: =SUMIFS(DATA!J$3:J$794,DATA!$F$3:$F$794,$A40,DATA!$B$3:$B$794,$C$2) -> 8 | G40: =SUMIFS(DATA!K$3:K$794,DATA!$F$3:$F$794,$A40,DATA!$B$3:$B$794,$C$2) -> 8 | H40: =SUMIFS(DATA!L$3:L$794,DATA!$F$3:$F$794,$A40,DATA!$B$3:$B$794,$C$2) -> 8 | I40: =SUMIFS(DATA!M$3:M$794,DATA!$F$3:$F$794,$A40,DATA!$B$3:$B$794,$C$2) -> 8 | J40: =SUMIFS(DATA!N$3:N$794,DATA!$F$3:$F$794,$A40,DATA!$B$3:$B$794,$C$2) -> 8 | K40: =SUMIFS(DATA!O$3:O$794,DATA!$F$3:$F$794,$A40,DATA!$B$3:$B$794,$C$2) -> 8 | L40: =SUMIFS(DATA!P$3:P$794,DATA!$F$3:$F$794,$A40,DATA!$B$3:$B$794,$C$2) -> 8 | M40: =SUMIFS(DATA!Q$3:Q$794,DATA!$F$3:$F$794,$A40,DATA!$B$3:$B$794,$C$2) -> 8 | N40: =SUMIFS(DATA!R$3:R$794,DATA!$F$3:$F$794,$A40,DATA!$B$3:$B$794,$C$2) -> 8 | O40: =SUMIFS(DATA!S$3:S$794,DATA!$F$3:$F$794,$A40,DATA!$B$3:$B$794,$C$2) -> 8 | P40: =SUMIFS(DATA!T$3:T$794,DATA!$F$3:$F$794,$A40,DATA!$B$3:$B$794,$C$2) -> 8 | Q40: =SUMIFS(DATA!U$3:U$794,DATA!$F$3:$F$794,$A40,DATA!$B$3:$B$794,$C$2) -> 8 | R40: =SUMIFS(DATA!V$3:V$794,DATA!$F$3:$F$794,$A40,DATA!$B$3:$B$794,$C$2) -> 8 | S40: =SUMIFS(DATA!W$3:W$794,DATA!$F$3:$F$794,$A40,DATA!$B$3:$B$794,$C$2) -> 8 | T40: =SUMIFS(DATA!X$3:X$794,DATA!$F$3:$F$794,$A40,DATA!$B$3:$B$794,$C$2) -> 8 | U40: =SUMIFS(DATA!Y$3:Y$794,DATA!$F$3:$F$794,$A40,DATA!$B$3:$B$794,$C$2) -> 7 | V40: =SUMIFS(DATA!Z$3:Z$794,DATA!$F$3:$F$794,$A40,DATA!$B$3:$B$794,$C$2) -> 7 | W40: =SUMIFS(DATA!AA$3:AA$794,DATA!$F$3:$F$794,$A40,DATA!$B$3:$B$794,$C$2) -> 7 | X40: =SUMIFS(DATA!AB$3:AB$794,DATA!$F$3:$F$794,$A40,DATA!$B$3:$B$794,$C$2) -> 7 | Y40: =SUMIFS(DATA!AC$3:AC$794,DATA!$F$3:$F$794,$A40,DATA!$B$3:$B$794,$C$2) -> 7 | Z40: =SUMIFS(DATA!AD$3:AD$794,DATA!$F$3:$F$794,$A40,DATA!$B$3:$B$794,$C$2) -> 7 | AA40: =SUMIFS(DATA!AE$3:AE$794,DATA!$F$3:$F$794,$A40,DATA!$B$3:$B$794,$C$2) -> 7 | AB40: =SUMIFS(DATA!AF$3:AF$794,DATA!$F$3:$F$794,$A40,DATA!$B$3:$B$794,$C$2) -> 7 | AC40: =SUMIFS(DATA!AG$3:AG$794,DATA!$F$3:$F$794,$A40,DATA!$B$3:$B$794,$C$2) -> 7 | AD40: =SUMIFS(DATA!AH$3:AH$794,DATA!$F$3:$F$794,$A40,DATA!$B$3:$B$794,$C$2) -> 7 | AE40: =SUMIFS(DATA!AI$3:AI$794,DATA!$F$3:$F$794,$A40,DATA!$B$3:$B$794,$C$2) -> 7 | AF40: =SUMIFS(DATA!AJ$3:AJ$794,DATA!$F$3:$F$794,$A40,DATA!$B$3:$B$794,$C$2) -> 7 | AG40: =SUMIFS(DATA!AK$3:AK$794,DATA!$F$3:$F$794,$A40,DATA!$B$3:$B$794,$C$2) -> 7 | AH40: =SUMIFS(DATA!AL$3:AL$794,DATA!$F$3:$F$794,$A40,DATA!$B$3:$B$794,$C$2) -> 7 | AI40: =SUMIFS(DATA!AM$3:AM$794,DATA!$F$3:$F$794,$A40,DATA!$B$3:$B$794,$C$2) -> 6 | AJ40: =SUMIFS(DATA!AN$3:AN$794,DATA!$F$3:$F$794,$A40,DATA!$B$3:$B$794,$C$2) -> 6 | AK40: =SUMIFS(DATA!AO$3:AO$794,DATA!$F$3:$F$794,$A40,DATA!$B$3:$B$794,$C$2) -> 6 | AL40: =SUMIFS(DATA!AP$3:AP$794,DATA!$F$3:$F$794,$A40,DATA!$B$3:$B$794,$C$2) -> 6 | AM40: =SUMIFS(DATA!AQ$3:AQ$794,DATA!$F$3:$F$794,$A40,DATA!$B$3:$B$794,$C$2) -> 6 | AN40: =SUMIFS(DATA!AR$3:AR$794,DATA!$F$3:$F$794,$A40,DATA!$B$3:$B$794,$C$2) -> 6 | AO40: =SUMIFS(DATA!AS$3:AS$794,DATA!$F$3:$F$794,$A40,DATA!$B$3:$B$794,$C$2) -> 6 | AP40: =SUMIFS(DATA!AT$3:AT$794,DATA!$F$3:$F$794,$A40,DATA!$B$3:$B$794,$C$2) -> 6 | AQ40: =SUMIFS(DATA!AU$3:AU$794,DATA!$F$3:$F$794,$A40,DATA!$B$3:$B$794,$C$2) -> 6 | AR40: =SUMIFS(DATA!AV$3:AV$794,DATA!$F$3:$F$794,$A40,DATA!$B$3:$B$794,$C$2) -> 6 | AS40: =SUMIFS(DATA!AW$3:AW$794,DATA!$F$3:$F$794,$A40,DATA!$B$3:$B$794,$C$2) -> 6 | AT40: =SUMIFS(DATA!AX$3:AX$794,DATA!$F$3:$F$794,$A40,DATA!$B$3:$B$794,$C$2) -> 6 | AU40: =SUMIFS(DATA!AY$3:AY$794,DATA!$F$3:$F$794,$A40,DATA!$B$3:$B$794,$C$2) -> 6 | AV40: =SUMIFS(DATA!AZ$3:AZ$794,DATA!$F$3:$F$794,$A40,DATA!$B$3:$B$794,$C$2) -> 6 | AW40: =SUMIFS(DATA!BA$3:BA$794,DATA!$F$3:$F$794,$A40,DATA!$B$3:$B$794,$C$2) -> 6 | AX40: =SUMIFS(DATA!BB$3:BB$794,DATA!$F$3:$F$794,$A40,DATA!$B$3:$B$794,$C$2) -> 6 | AY40: =SUMIFS(DATA!BC$3:BC$794,DATA!$F$3:$F$794,$A40,DATA!$B$3:$B$794,$C$2) -> 6 | AZ40: =SUMIFS(DATA!BD$3:BD$794,DATA!$F$3:$F$794,$A40,DATA!$B$3:$B$794,$C$2) -> 6
A41: Total Expenses | B41: [Formula] | C41: =SUM(C20,C32:C35,C39:C40) -> 1662 | D41: =SUM(D20,D32:D35,D39:D40) -> 1729 | E41: 1797 | F41: 1876 | G41: 1977 | H41: 2120 | I41: 2296 | J41: 2335 | K41: 2688 | L41: 2858 | M41: 2886 | N41: 2923 | O41: 2954 | P41: 3105 | Q41: 3428 | R41: 3699 | S41: 3701 | T41: 3695 | U41: 3755 | V41: 3728 | W41: 3708 | X41: 3739 | Y41: 3801 | Z41: 3821 | AA41: 3819 | AB41: 3864 | AC41: 3884 | AD41: 3924 | AE41: 3993 | AF41: 4087 | AG41: 4199 | AH41: 4249 | AI41: 4337 | AJ41: 4438 | AK41: 4589 | AL41: 4635 | AM41: 4663 | AN41: 4703 | AO41: 4818 | AP41: 4872 | AQ41: 4919 | AR41: 5022 | AS41: 5069 | AT41: 5094 | AU41: 5156 | AV41: 5163 | AW41: 5212 | AX41: 5274 | AY41: 5321 | AZ41: 5373
A42: Total Expenses | B42: [original] | C42: =SUMIFS(DATA!G$3:G$794,DATA!$F$3:$F$794,$A42,DATA!$B$3:$B$794,$C$2) -> 1663 | D42: =SUMIFS(DATA!H$3:H$794,DATA!$F$3:$F$794,$A42,DATA!$B$3:$B$794,$C$2) -> 1729 | E42: =SUMIFS(DATA!I$3:I$794,DATA!$F$3:$F$794,$A42,DATA!$B$3:$B$794,$C$2) -> 1798 | F42: =SUMIFS(DATA!J$3:J$794,DATA!$F$3:$F$794,$A42,DATA!$B$3:$B$794,$C$2) -> 1877 | G42: =SUMIFS(DATA!K$3:K$794,DATA!$F$3:$F$794,$A42,DATA!$B$3:$B$794,$C$2) -> 1978 | H42: =SUMIFS(DATA!L$3:L$794,DATA!$F$3:$F$794,$A42,DATA!$B$3:$B$794,$C$2) -> 2121 | I42: =SUMIFS(DATA!M$3:M$794,DATA!$F$3:$F$794,$A42,DATA!$B$3:$B$794,$C$2) -> 2297 | J42: =SUMIFS(DATA!N$3:N$794,DATA!$F$3:$F$794,$A42,DATA!$B$3:$B$794,$C$2) -> 2335 | K42: =SUMIFS(DATA!O$3:O$794,DATA!$F$3:$F$794,$A42,DATA!$B$3:$B$794,$C$2) -> 2688 | L42: =SUMIFS(DATA!P$3:P$794,DATA!$F$3:$F$794,$A42,DATA!$B$3:$B$794,$C$2) -> 2859 | M42: =SUMIFS(DATA!Q$3:Q$794,DATA!$F$3:$F$794,$A42,DATA!$B$3:$B$794,$C$2) -> 2887 | N42: =SUMIFS(DATA!R$3:R$794,DATA!$F$3:$F$794,$A42,DATA!$B$3:$B$794,$C$2) -> 2924 | O42: =SUMIFS(DATA!S$3:S$794,DATA!$F$3:$F$794,$A42,DATA!$B$3:$B$794,$C$2) -> 2955 | P42: =SUMIFS(DATA!T$3:T$794,DATA!$F$3:$F$794,$A42,DATA!$B$3:$B$794,$C$2) -> 3105 | Q42: =SUMIFS(DATA!U$3:U$794,DATA!$F$3:$F$794,$A42,DATA!$B$3:$B$794,$C$2) -> 3428 | R42: =SUMIFS(DATA!V$3:V$794,DATA!$F$3:$F$794,$A42,DATA!$B$3:$B$794,$C$2) -> 3700 | S42: =SUMIFS(DATA!W$3:W$794,DATA!$F$3:$F$794,$A42,DATA!$B$3:$B$794,$C$2) -> 3701 | T42: =SUMIFS(DATA!X$3:X$794,DATA!$F$3:$F$794,$A42,DATA!$B$3:$B$794,$C$2) -> 3695 | U42: =SUMIFS(DATA!Y$3:Y$794,DATA!$F$3:$F$794,$A42,DATA!$B$3:$B$794,$C$2) -> 3756 | V42: =SUMIFS(DATA!Z$3:Z$794,DATA!$F$3:$F$794,$A42,DATA!$B$3:$B$794,$C$2) -> 3728 | W42: =SUMIFS(DATA!AA$3:AA$794,DATA!$F$3:$F$794,$A42,DATA!$B$3:$B$794,$C$2) -> 3709 | X42: =SUMIFS(DATA!AB$3:AB$794,DATA!$F$3:$F$794,$A42,DATA!$B$3:$B$794,$C$2) -> 3739 | Y42: =SUMIFS(DATA!AC$3:AC$794,DATA!$F$3:$F$794,$A42,DATA!$B$3:$B$794,$C$2) -> 3801 | Z42: =SUMIFS(DATA!AD$3:AD$794,DATA!$F$3:$F$794,$A42,DATA!$B$3:$B$794,$C$2) -> 3821 | AA42: =SUMIFS(DATA!AE$3:AE$794,DATA!$F$3:$F$794,$A42,DATA!$B$3:$B$794,$C$2) -> 3820 | AB42: =SUMIFS(DATA!AF$3:AF$794,DATA!$F$3:$F$794,$A42,DATA!$B$3:$B$794,$C$2) -> 3863 | AC42: =SUMIFS(DATA!AG$3:AG$794,DATA!$F$3:$F$794,$A42,DATA!$B$3:$B$794,$C$2) -> 3884 | AD42: =SUMIFS(DATA!AH$3:AH$794,DATA!$F$3:$F$794,$A42,DATA!$B$3:$B$794,$C$2) -> 3924 | AE42: =SUMIFS(DATA!AI$3:AI$794,DATA!$F$3:$F$794,$A42,DATA!$B$3:$B$794,$C$2) -> 3993 | AF42: =SUMIFS(DATA!AJ$3:AJ$794,DATA!$F$3:$F$794,$A42,DATA!$B$3:$B$794,$C$2) -> 4088 | AG42: =SUMIFS(DATA!AK$3:AK$794,DATA!$F$3:$F$794,$A42,DATA!$B$3:$B$794,$C$2) -> 4200 | AH42: =SUMIFS(DATA!AL$3:AL$794,DATA!$F$3:$F$794,$A42,DATA!$B$3:$B$794,$C$2) -> 4248 | AI42: =SUMIFS(DATA!AM$3:AM$794,DATA!$F$3:$F$794,$A42,DATA!$B$3:$B$794,$C$2) -> 4337 | AJ42: =SUMIFS(DATA!AN$3:AN$794,DATA!$F$3:$F$794,$A42,DATA!$B$3:$B$794,$C$2) -> 4438 | AK42: =SUMIFS(DATA!AO$3:AO$794,DATA!$F$3:$F$794,$A42,DATA!$B$3:$B$794,$C$2) -> 4588 | AL42: =SUMIFS(DATA!AP$3:AP$794,DATA!$F$3:$F$794,$A42,DATA!$B$3:$B$794,$C$2) -> 4635 | AM42: =SUMIFS(DATA!AQ$3:AQ$794,DATA!$F$3:$F$794,$A42,DATA!$B$3:$B$794,$C$2) -> 4663 | AN42: =SUMIFS(DATA!AR$3:AR$794,DATA!$F$3:$F$794,$A42,DATA!$B$3:$B$794,$C$2) -> 4702 | AO42: =SUMIFS(DATA!AS$3:AS$794,DATA!$F$3:$F$794,$A42,DATA!$B$3:$B$794,$C$2) -> 4817 | AP42: =SUMIFS(DATA!AT$3:AT$794,DATA!$F$3:$F$794,$A42,DATA!$B$3:$B$794,$C$2) -> 4871 | AQ42: =SUMIFS(DATA!AU$3:AU$794,DATA!$F$3:$F$794,$A42,DATA!$B$3:$B$794,$C$2) -> 4918 | AR42: =SUMIFS(DATA!AV$3:AV$794,DATA!$F$3:$F$794,$A42,DATA!$B$3:$B$794,$C$2) -> 5021 | AS42: =SUMIFS(DATA!AW$3:AW$794,DATA!$F$3:$F$794,$A42,DATA!$B$3:$B$794,$C$2) -> 5068 | AT42: =SUMIFS(DATA!AX$3:AX$794,DATA!$F$3:$F$794,$A42,DATA!$B$3:$B$794,$C$2) -> 5094 | AU42: =SUMIFS(DATA!AY$3:AY$794,DATA!$F$3:$F$794,$A42,DATA!$B$3:$B$794,$C$2) -> 5154 | AV42: =SUMIFS(DATA!AZ$3:AZ$794,DATA!$F$3:$F$794,$A42,DATA!$B$3:$B$794,$C$2) -> 5162 | AW42: =SUMIFS(DATA!BA$3:BA$794,DATA!$F$3:$F$794,$A42,DATA!$B$3:$B$794,$C$2) -> 5212 | AX42: =SUMIFS(DATA!BB$3:BB$794,DATA!$F$3:$F$794,$A42,DATA!$B$3:$B$794,$C$2) -> 5273 | AY42: =SUMIFS(DATA!BC$3:BC$794,DATA!$F$3:$F$794,$A42,DATA!$B$3:$B$794,$C$2) -> 5319 | AZ42: =SUMIFS(DATA!BD$3:BD$794,DATA!$F$3:$F$794,$A42,DATA!$B$3:$B$794,$C$2) -> 5373
A44: Non-Controlling Interest | C44: =SUMIFS(DATA!G$3:G$794,DATA!$F$3:$F$794,$A44,DATA!$B$3:$B$794,$C$2) -> -14 | D44: =SUMIFS(DATA!H$3:H$794,DATA!$F$3:$F$794,$A44,DATA!$B$3:$B$794,$C$2) -> -24 | E44: =SUMIFS(DATA!I$3:I$794,DATA!$F$3:$F$794,$A44,DATA!$B$3:$B$794,$C$2) -> -23 | F44: =SUMIFS(DATA!J$3:J$794,DATA!$F$3:$F$794,$A44,DATA!$B$3:$B$794,$C$2) -> -17 | G44: =SUMIFS(DATA!K$3:K$794,DATA!$F$3:$F$794,$A44,DATA!$B$3:$B$794,$C$2) -> -14 | H44: =SUMIFS(DATA!L$3:L$794,DATA!$F$3:$F$794,$A44,DATA!$B$3:$B$794,$C$2) -> -13 | I44: =SUMIFS(DATA!M$3:M$794,DATA!$F$3:$F$794,$A44,DATA!$B$3:$B$794,$C$2) -> -9 | J44: =SUMIFS(DATA!N$3:N$794,DATA!$F$3:$F$794,$A44,DATA!$B$3:$B$794,$C$2) -> -9 | K44: =SUMIFS(DATA!O$3:O$794,DATA!$F$3:$F$794,$A44,DATA!$B$3:$B$794,$C$2) -> -7 | L44: =SUMIFS(DATA!P$3:P$794,DATA!$F$3:$F$794,$A44,DATA!$B$3:$B$794,$C$2) -> 1 | M44: =SUMIFS(DATA!Q$3:Q$794,DATA!$F$3:$F$794,$A44,DATA!$B$3:$B$794,$C$2) -> 3 | N44: =SUMIFS(DATA!R$3:R$794,DATA!$F$3:$F$794,$A44,DATA!$B$3:$B$794,$C$2) -> 7 | O44: =SUMIFS(DATA!S$3:S$794,DATA!$F$3:$F$794,$A44,DATA!$B$3:$B$794,$C$2) -> 9 | P44: =SUMIFS(DATA!T$3:T$794,DATA!$F$3:$F$794,$A44,DATA!$B$3:$B$794,$C$2) -> 5 | Q44: =SUMIFS(DATA!U$3:U$794,DATA!$F$3:$F$794,$A44,DATA!$B$3:$B$794,$C$2) -> 7 | R44: =SUMIFS(DATA!V$3:V$794,DATA!$F$3:$F$794,$A44,DATA!$B$3:$B$794,$C$2) -> 9 | S44: =SUMIFS(DATA!W$3:W$794,DATA!$F$3:$F$794,$A44,DATA!$B$3:$B$794,$C$2) -> 11 | T44: =SUMIFS(DATA!X$3:X$794,DATA!$F$3:$F$794,$A44,DATA!$B$3:$B$794,$C$2) -> 14 | U44: =SUMIFS(DATA!Y$3:Y$794,DATA!$F$3:$F$794,$A44,DATA!$B$3:$B$794,$C$2) -> 16 | V44: =SUMIFS(DATA!Z$3:Z$794,DATA!$F$3:$F$794,$A44,DATA!$B$3:$B$794,$C$2) -> 18 | W44: =SUMIFS(DATA!AA$3:AA$794,DATA!$F$3:$F$794,$A44,DATA!$B$3:$B$794,$C$2) -> 20 | X44: =SUMIFS(DATA!AB$3:AB$794,DATA!$F$3:$F$794,$A44,DATA!$B$3:$B$794,$C$2) -> 22 | Y44: =SUMIFS(DATA!AC$3:AC$794,DATA!$F$3:$F$794,$A44,DATA!$B$3:$B$794,$C$2) -> 24 | Z44: =SUMIFS(DATA!AD$3:AD$794,DATA!$F$3:$F$794,$A44,DATA!$B$3:$B$794,$C$2) -> 25 | AA44: =SUMIFS(DATA!AE$3:AE$794,DATA!$F$3:$F$794,$A44,DATA!$B$3:$B$794,$C$2) -> 26 | AB44: =SUMIFS(DATA!AF$3:AF$794,DATA!$F$3:$F$794,$A44,DATA!$B$3:$B$794,$C$2) -> 28 | AC44: =SUMIFS(DATA!AG$3:AG$794,DATA!$F$3:$F$794,$A44,DATA!$B$3:$B$794,$C$2) -> 30 | AD44: =SUMIFS(DATA!AH$3:AH$794,DATA!$F$3:$F$794,$A44,DATA!$B$3:$B$794,$C$2) -> 32 | AE44: =SUMIFS(DATA!AI$3:AI$794,DATA!$F$3:$F$794,$A44,DATA!$B$3:$B$794,$C$2) -> 34 | AF44: =SUMIFS(DATA!AJ$3:AJ$794,DATA!$F$3:$F$794,$A44,DATA!$B$3:$B$794,$C$2) -> 36 | AG44: =SUMIFS(DATA!AK$3:AK$794,DATA!$F$3:$F$794,$A44,DATA!$B$3:$B$794,$C$2) -> 38 | AH44: =SUMIFS(DATA!AL$3:AL$794,DATA!$F$3:$F$794,$A44,DATA!$B$3:$B$794,$C$2) -> 41 | AI44: =SUMIFS(DATA!AM$3:AM$794,DATA!$F$3:$F$794,$A44,DATA!$B$3:$B$794,$C$2) -> 43 | AJ44: =SUMIFS(DATA!AN$3:AN$794,DATA!$F$3:$F$794,$A44,DATA!$B$3:$B$794,$C$2) -> 45 | AK44: =SUMIFS(DATA!AO$3:AO$794,DATA!$F$3:$F$794,$A44,DATA!$B$3:$B$794,$C$2) -> 47 | AL44: =SUMIFS(DATA!AP$3:AP$794,DATA!$F$3:$F$794,$A44,DATA!$B$3:$B$794,$C$2) -> 49 | AM44: =SUMIFS(DATA!AQ$3:AQ$794,DATA!$F$3:$F$794,$A44,DATA!$B$3:$B$794,$C$2) -> 49 | AN44: =SUMIFS(DATA!AR$3:AR$794,DATA!$F$3:$F$794,$A44,DATA!$B$3:$B$794,$C$2) -> 50 | AO44: =SUMIFS(DATA!AS$3:AS$794,DATA!$F$3:$F$794,$A44,DATA!$B$3:$B$794,$C$2) -> 51 | AP44: =SUMIFS(DATA!AT$3:AT$794,DATA!$F$3:$F$794,$A44,DATA!$B$3:$B$794,$C$2) -> 53 | AQ44: =SUMIFS(DATA!AU$3:AU$794,DATA!$F$3:$F$794,$A44,DATA!$B$3:$B$794,$C$2) -> 53 | AR44: =SUMIFS(DATA!AV$3:AV$794,DATA!$F$3:$F$794,$A44,DATA!$B$3:$B$794,$C$2) -> 54 | AS44: =SUMIFS(DATA!AW$3:AW$794,DATA!$F$3:$F$794,$A44,DATA!$B$3:$B$794,$C$2) -> 55 | AT44: =SUMIFS(DATA!AX$3:AX$794,DATA!$F$3:$F$794,$A44,DATA!$B$3:$B$794,$C$2) -> 57 | AU44: =SUMIFS(DATA!AY$3:AY$794,DATA!$F$3:$F$794,$A44,DATA!$B$3:$B$794,$C$2) -> 59 | AV44: =SUMIFS(DATA!AZ$3:AZ$794,DATA!$F$3:$F$794,$A44,DATA!$B$3:$B$794,$C$2) -> 61 | AW44: =SUMIFS(DATA!BA$3:BA$794,DATA!$F$3:$F$794,$A44,DATA!$B$3:$B$794,$C$2) -> 63 | AX44: =SUMIFS(DATA!BB$3:BB$794,DATA!$F$3:$F$794,$A44,DATA!$B$3:$B$794,$C$2) -> 64 | AY44: =SUMIFS(DATA!BC$3:BC$794,DATA!$F$3:$F$794,$A44,DATA!$B$3:$B$794,$C$2) -> 66 | AZ44: =SUMIFS(DATA!BD$3:BD$794,DATA!$F$3:$F$794,$A44,DATA!$B$3:$B$794,$C$2) -> 69
A45: Sunk Cost | B45: [Formula] | D45: =IF($V$2="No",0,IF($C$2=$B$146,D146,IF($C$2=$B$147,D147,IF($C$2=$B$148,D148,IF($C$2=$B$149,D149,IF($C$2=$B$150,D150,0)))))) -> 0 | E45: =IF($V$2="No",0,IF($C$2=$B$146,E146,IF($C$2=$B$147,E147,IF($C$2=$B$148,E148,IF($C$2=$B$149,E149,IF($C$2=$B$150,E150,0)))))) -> 0 | F45: 0 | G45: 0 | H45: 0 | I45: 0 | J45: 0 | K45: 0 | L45: 0 | M45: 0 | N45: 0 | O45: 0 | P45: 0 | Q45: 0 | R45: 0 | S45: 0 | T45: 0 | U45: 0 | V45: 0 | W45: 0 | X45: 0 | Y45: 0 | Z45: 0 | AA45: 0 | AB45: 0 | AC45: 0 | AD45: 0 | AE45: 0 | AF45: 0 | AG45: 0 | AH45: 0 | AI45: 0 | AJ45: 0 | AK45: 0 | AL45: 0 | AM45: 0 | AN45: 0 | AO45: 0 | AP45: 0 | AQ45: 0 | AR45: 0 | AS45: 0 | AT45: 0 | AU45: 0 | AV45: 0 | AW45: 0 | AX45: 0 | AY45: 0 | AZ45: 0
A46: Net Income | B46: [Formula] | C46: =C15-C41-C44+C45 -> 54 | D46: =D15-D41-D44+D45 -> 62.635 | E46: 52.12407164 | F46: 80.25675778 | G46: 71.76975431 | H46: 41.22623847 | I46: -52.11300383 | J46: 37.05357685 | K46: 63.43590393 | L46: 98.41938976 | M46: =M15-M41-M44+M45 -> 197.794859 | N46: =N15-N41-N44+N45 -> 260.1233806 | O46: =O15-O41-O44+O45 -> 343.691853 | P46: =P15-P41-P44+P45 -> 371.8005412 | Q46: =Q15-Q41-Q44+Q45 -> 455.7636849 | R46: =R15-R41-R44+R45 -> 398.9101333 | S46: =S15-S41-S44+S45 -> 565.2799703 | T46: =T15-T41-T44+T45 -> 730.9077877 | U46: 852.9570059 | V46: =V15-V41-V44+V45 -> 1068.831022 | W46: =W15-W41-W44+W45 -> 290.2 | X46: =X15-X41-X44+X45 -> 288.6 | Y46: =Y15-Y41-Y44+Y45 -> 284.6 | Z46: =Z15-Z41-Z44+Z45 -> 284.6 | AA46: =AA15-AA41-AA44+AA45 -> 282.6 | AB46: =AB15-AB41-AB44+AB45 -> 279.6 | AC46: =AC15-AC41-AC44+AC45 -> 276.4 | AD46: 275 | AE46: =AE15-AE41-AE44+AE45 -> 275.3537294 | AF46: =AF15-AF41-AF44+AF45 -> 275.6 | AG46: =AG15-AG41-AG44+AG45 -> 275 | AH46: =AH15-AH41-AH44+AH45 -> 275.2 | AI46: =AI15-AI41-AI44+AI45 -> 275.0474926 | AJ46: =AJ15-AJ41-AJ44+AJ45 -> 275.2 | AK46: =AK15-AK41-AK44+AK45 -> 275.6 | AL46: =AL15-AL41-AL44+AL45 -> 268.769908 | AM46: 264.7167323 | AN46: =AN15-AN41-AN44+AN45 -> 260.0723049 | AO46: =AO15-AO41-AO44+AO45 -> 259.2451852 | AP46: =AP15-AP41-AP44+AP45 -> 255.6354875 | AQ46: =AQ15-AQ41-AQ44+AQ45 -> 253.4284962 | AR46: =AR15-AR41-AR44+AR45 -> 249.6053232 | AS46: =AS15-AS41-AS44+AS45 -> 243.7990648 | AT46: =AT15-AT41-AT44+AT45 -> 233.4442928 | AU46: =AU15-AU41-AU44+AU45 -> 229.9950632 | AV46: 219.4670148 | AW46: =AW15-AW41-AW44+AW45 -> 214.2616004 | AX46: =AX15-AX41-AX44+AX45 -> 209.8533914 | AY46: =AY15-AY41-AY44+AY45 -> 204.4486756 | AZ46: =AZ15-AZ41-AZ44+AZ45 -> 198.8429119
A47: Net Income | B47: [Original] | C47: =SUMIFS(DATA!G$3:G$794,DATA!$F$3:$F$794,$A47,DATA!$B$3:$B$794,$C$2) -> 54 | D47: =SUMIFS(DATA!H$3:H$794,DATA!$F$3:$F$794,$A47,DATA!$B$3:$B$794,$C$2) -> 63 | E47: =SUMIFS(DATA!I$3:I$794,DATA!$F$3:$F$794,$A47,DATA!$B$3:$B$794,$C$2) -> 51 | F47: =SUMIFS(DATA!J$3:J$794,DATA!$F$3:$F$794,$A47,DATA!$B$3:$B$794,$C$2) -> 79 | G47: =SUMIFS(DATA!K$3:K$794,DATA!$F$3:$F$794,$A47,DATA!$B$3:$B$794,$C$2) -> 72 | H47: =SUMIFS(DATA!L$3:L$794,DATA!$F$3:$F$794,$A47,DATA!$B$3:$B$794,$C$2) -> 40 | I47: =SUMIFS(DATA!M$3:M$794,DATA!$F$3:$F$794,$A47,DATA!$B$3:$B$794,$C$2) -> -53 | J47: =SUMIFS(DATA!N$3:N$794,DATA!$F$3:$F$794,$A47,DATA!$B$3:$B$794,$C$2) -> 38 | K47: =SUMIFS(DATA!O$3:O$794,DATA!$F$3:$F$794,$A47,DATA!$B$3:$B$794,$C$2) -> 63 | L47: =SUMIFS(DATA!P$3:P$794,DATA!$F$3:$F$794,$A47,DATA!$B$3:$B$794,$C$2) -> 100 | M47: =SUMIFS(DATA!Q$3:Q$794,DATA!$F$3:$F$794,$A47,DATA!$B$3:$B$794,$C$2) -> 199 | N47: =SUMIFS(DATA!R$3:R$794,DATA!$F$3:$F$794,$A47,DATA!$B$3:$B$794,$C$2) -> 260 | O47: =SUMIFS(DATA!S$3:S$794,DATA!$F$3:$F$794,$A47,DATA!$B$3:$B$794,$C$2) -> 345 | P47: =SUMIFS(DATA!T$3:T$794,DATA!$F$3:$F$794,$A47,DATA!$B$3:$B$794,$C$2) -> 373 | Q47: =SUMIFS(DATA!U$3:U$794,DATA!$F$3:$F$794,$A47,DATA!$B$3:$B$794,$C$2) -> 457 | R47: =SUMIFS(DATA!V$3:V$794,DATA!$F$3:$F$794,$A47,DATA!$B$3:$B$794,$C$2) -> 401 | S47: =SUMIFS(DATA!W$3:W$794,DATA!$F$3:$F$794,$A47,DATA!$B$3:$B$794,$C$2) -> 567 | T47: =SUMIFS(DATA!X$3:X$794,DATA!$F$3:$F$794,$A47,DATA!$B$3:$B$794,$C$2) -> 735 | U47: =SUMIFS(DATA!Y$3:Y$794,DATA!$F$3:$F$794,$A47,DATA!$B$3:$B$794,$C$2) -> 857 | V47: =SUMIFS(DATA!Z$3:Z$794,DATA!$F$3:$F$794,$A47,DATA!$B$3:$B$794,$C$2) -> 1072 | W47: =SUMIFS(DATA!AA$3:AA$794,DATA!$F$3:$F$794,$A47,DATA!$B$3:$B$794,$C$2) -> 290 | X47: =SUMIFS(DATA!AB$3:AB$794,DATA!$F$3:$F$794,$A47,DATA!$B$3:$B$794,$C$2) -> 289 | Y47: =SUMIFS(DATA!AC$3:AC$794,DATA!$F$3:$F$794,$A47,DATA!$B$3:$B$794,$C$2) -> 285 | Z47: =SUMIFS(DATA!AD$3:AD$794,DATA!$F$3:$F$794,$A47,DATA!$B$3:$B$794,$C$2) -> 285 | AA47: =SUMIFS(DATA!AE$3:AE$794,DATA!$F$3:$F$794,$A47,DATA!$B$3:$B$794,$C$2) -> 283 | AB47: =SUMIFS(DATA!AF$3:AF$794,DATA!$F$3:$F$794,$A47,DATA!$B$3:$B$794,$C$2) -> 280 | AC47: =SUMIFS(DATA!AG$3:AG$794,DATA!$F$3:$F$794,$A47,DATA!$B$3:$B$794,$C$2) -> 277 | AD47: =SUMIFS(DATA!AH$3:AH$794,DATA!$F$3:$F$794,$A47,DATA!$B$3:$B$794,$C$2) -> 275 | AE47: =SUMIFS(DATA!AI$3:AI$794,DATA!$F$3:$F$794,$A47,DATA!$B$3:$B$794,$C$2) -> 275 | AF47: =SUMIFS(DATA!AJ$3:AJ$794,DATA!$F$3:$F$794,$A47,DATA!$B$3:$B$794,$C$2) -> 276 | AG47: =SUMIFS(DATA!AK$3:AK$794,DATA!$F$3:$F$794,$A47,DATA!$B$3:$B$794,$C$2) -> 275 | AH47: =SUMIFS(DATA!AL$3:AL$794,DATA!$F$3:$F$794,$A47,DATA!$B$3:$B$794,$C$2) -> 275 | AI47: =SUMIFS(DATA!AM$3:AM$794,DATA!$F$3:$F$794,$A47,DATA!$B$3:$B$794,$C$2) -> 275 | AJ47: =SUMIFS(DATA!AN$3:AN$794,DATA!$F$3:$F$794,$A47,DATA!$B$3:$B$794,$C$2) -> 275 | AK47: =SUMIFS(DATA!AO$3:AO$794,DATA!$F$3:$F$794,$A47,DATA!$B$3:$B$794,$C$2) -> 276 | AL47: =SUMIFS(DATA!AP$3:AP$794,DATA!$F$3:$F$794,$A47,DATA!$B$3:$B$794,$C$2) -> 268 | AM47: =SUMIFS(DATA!AQ$3:AQ$794,DATA!$F$3:$F$794,$A47,DATA!$B$3:$B$794,$C$2) -> 265 | AN47: =SUMIFS(DATA!AR$3:AR$794,DATA!$F$3:$F$794,$A47,DATA!$B$3:$B$794,$C$2) -> 261 | AO47: =SUMIFS(DATA!AS$3:AS$794,DATA!$F$3:$F$794,$A47,DATA!$B$3:$B$794,$C$2) -> 260 | AP47: =SUMIFS(DATA!AT$3:AT$794,DATA!$F$3:$F$794,$A47,DATA!$B$3:$B$794,$C$2) -> 257 | AQ47: =SUMIFS(DATA!AU$3:AU$794,DATA!$F$3:$F$794,$A47,DATA!$B$3:$B$794,$C$2) -> 255 | AR47: =SUMIFS(DATA!AV$3:AV$794,DATA!$F$3:$F$794,$A47,DATA!$B$3:$B$794,$C$2) -> 251 | AS47: =SUMIFS(DATA!AW$3:AW$794,DATA!$F$3:$F$794,$A47,DATA!$B$3:$B$794,$C$2) -> 245 | AT47: =SUMIFS(DATA!AX$3:AX$794,DATA!$F$3:$F$794,$A47,DATA!$B$3:$B$794,$C$2) -> 235 | AU47: =SUMIFS(DATA!AY$3:AY$794,DATA!$F$3:$F$794,$A47,DATA!$B$3:$B$794,$C$2) -> 230 | AV47: =SUMIFS(DATA!AZ$3:AZ$794,DATA!$F$3:$F$794,$A47,DATA!$B$3:$B$794,$C$2) -> 220 | AW47: =SUMIFS(DATA!BA$3:BA$794,DATA!$F$3:$F$794,$A47,DATA!$B$3:$B$794,$C$2) -> 215 | AX47: =SUMIFS(DATA!BB$3:BB$794,DATA!$F$3:$F$794,$A47,DATA!$B$3:$B$794,$C$2) -> 211 | AY47: =SUMIFS(DATA!BC$3:BC$794,DATA!$F$3:$F$794,$A47,DATA!$B$3:$B$794,$C$2) -> 205 | AZ47: =SUMIFS(DATA!BD$3:BD$794,DATA!$F$3:$F$794,$A47,DATA!$B$3:$B$794,$C$2) -> 200
B48: [Difference] | C48: =C46-C47 -> 0 | D48: =D46-D47 -> -0.365 | E48: 1.124071642 | F48: 1.256757777 | G48: -0.2302456928 | H48: 1.226238473 | I48: 0.886996168 | J48: -0.9464231506 | K48: 0.4359039317 | L48: -1.58061024 | M48: -1.20514096 | N48: 0.1233806057 | O48: -1.308147048 | P48: -1.199458829 | Q48: -1.236315121 | R48: -2.089866698 | S48: -1.720029675 | T48: -4.092212273 | U48: -4.042994148 | V48: -3.168978125 | W48: 0.2 | X48: -0.4 | Y48: -0.4 | Z48: -0.4 | AA48: -0.4 | AB48: -0.4 | AC48: -0.6 | AD48: 0 | AE48: 0.3537293734 | AF48: -0.4 | AG48: -2.728484105e-12 | AH48: 0.2 | AI48: 0.04749264703 | AJ48: 0.2 | AK48: -0.4 | AL48: 0.7699080205 | AM48: -0.2832676964 | AN48: -0.9276950664 | AO48: -0.7548147767 | AP48: -1.364512469 | AQ48: -1.571503829 | AR48: -1.394676804 | AS48: -1.200935199 | AT48: -1.5557072 | AU48: -0.00493675038 | AV48: -0.53298516 | AW48: -0.7383995916 | AX48: -1.146608569 | AY48: -0.5513243638 | AZ48: -1.157088114
A50: Net Debt (from SP-080) | B50: [Original] | C50: =SUMIFS(DATA!G$3:G$802,DATA!$F$3:$F$802,$A50,DATA!$B$3:$B$802,$C$2) -> 9665.17 | D50: =SUMIFS(DATA!H$3:H$802,DATA!$F$3:$F$802,$A50,DATA!$B$3:$B$802,$C$2) -> 11100.4 | E50: =SUMIFS(DATA!I$3:I$802,DATA!$F$3:$F$802,$A50,DATA!$B$3:$B$802,$C$2) -> 12760.4 | F50: =SUMIFS(DATA!J$3:J$802,DATA!$F$3:$F$802,$A50,DATA!$B$3:$B$802,$C$2) -> 14385.5 | G50: =SUMIFS(DATA!K$3:K$802,DATA!$F$3:$F$802,$A50,DATA!$B$3:$B$802,$C$2) -> 16071.6 | H50: =SUMIFS(DATA!L$3:L$802,DATA!$F$3:$F$802,$A50,DATA!$B$3:$B$802,$C$2) -> 17663.8 | I50: =SUMIFS(DATA!M$3:M$802,DATA!$F$3:$F$802,$A50,DATA!$B$3:$B$802,$C$2) -> 19070.5 | J50: =SUMIFS(DATA!N$3:N$802,DATA!$F$3:$F$802,$A50,DATA!$B$3:$B$802,$C$2) -> 20210.9 | K50: =SUMIFS(DATA!O$3:O$802,DATA!$F$3:$F$802,$A50,DATA!$B$3:$B$802,$C$2) -> 21529.8 | L50: =SUMIFS(DATA!P$3:P$802,DATA!$F$3:$F$802,$A50,DATA!$B$3:$B$802,$C$2) -> 23081 | M50: =SUMIFS(DATA!Q$3:Q$802,DATA!$F$3:$F$802,$A50,DATA!$B$3:$B$802,$C$2) -> 24453.4 | N50: =SUMIFS(DATA!R$3:R$802,DATA!$F$3:$F$802,$A50,DATA!$B$3:$B$802,$C$2) -> 25543.3 | O50: =SUMIFS(DATA!S$3:S$802,DATA!$F$3:$F$802,$A50,DATA!$B$3:$B$802,$C$2) -> 26391.8 | P50: =SUMIFS(DATA!T$3:T$802,DATA!$F$3:$F$802,$A50,DATA!$B$3:$B$802,$C$2) -> 26984.1 | Q50: =SUMIFS(DATA!U$3:U$802,DATA!$F$3:$F$802,$A50,DATA!$B$3:$B$802,$C$2) -> 26946.7 | R50: =SUMIFS(DATA!V$3:V$802,DATA!$F$3:$F$802,$A50,DATA!$B$3:$B$802,$C$2) -> 26640.1 | S50: =SUMIFS(DATA!W$3:W$802,DATA!$F$3:$F$802,$A50,DATA!$B$3:$B$802,$C$2) -> 26362 | T50: =SUMIFS(DATA!X$3:X$802,DATA!$F$3:$F$802,$A50,DATA!$B$3:$B$802,$C$2) -> 25829.5 | U50: =SUMIFS(DATA!Y$3:Y$802,DATA!$F$3:$F$802,$A50,DATA!$B$3:$B$802,$C$2) -> 25087.6 | V50: =SUMIFS(DATA!Z$3:Z$802,DATA!$F$3:$F$802,$A50,DATA!$B$3:$B$802,$C$2) -> 23993.4 | W50: =SUMIFS(DATA!AA$3:AA$802,DATA!$F$3:$F$802,$A50,DATA!$B$3:$B$802,$C$2) -> 23655.1 | X50: =SUMIFS(DATA!AB$3:AB$802,DATA!$F$3:$F$802,$A50,DATA!$B$3:$B$802,$C$2) -> 23347.9 | Y50: =SUMIFS(DATA!AC$3:AC$802,DATA!$F$3:$F$802,$A50,DATA!$B$3:$B$802,$C$2) -> 23003.5 | Z50: =SUMIFS(DATA!AD$3:AD$802,DATA!$F$3:$F$802,$A50,DATA!$B$3:$B$802,$C$2) -> 22695.5 | AA50: =SUMIFS(DATA!AE$3:AE$802,DATA!$F$3:$F$802,$A50,DATA!$B$3:$B$802,$C$2) -> 22411.9 | AB50: =SUMIFS(DATA!AF$3:AF$802,DATA!$F$3:$F$802,$A50,DATA!$B$3:$B$802,$C$2) -> 22134 | AC50: =SUMIFS(DATA!AG$3:AG$802,DATA!$F$3:$F$802,$A50,DATA!$B$3:$B$802,$C$2) -> 21897.9 | AD50: =SUMIFS(DATA!AH$3:AH$802,DATA!$F$3:$F$802,$A50,DATA!$B$3:$B$802,$C$2) -> 21863.3 | AE50: =SUMIFS(DATA!AI$3:AI$802,DATA!$F$3:$F$802,$A50,DATA!$B$3:$B$802,$C$2) -> 21960.6 | AF50: =SUMIFS(DATA!AJ$3:AJ$802,DATA!$F$3:$F$802,$A50,DATA!$B$3:$B$802,$C$2) -> 21822.8 | AG50: =SUMIFS(DATA!AK$3:AK$802,DATA!$F$3:$F$802,$A50,DATA!$B$3:$B$802,$C$2) -> 21709.1 | AH50: =SUMIFS(DATA!AL$3:AL$802,DATA!$F$3:$F$802,$A50,DATA!$B$3:$B$802,$C$2) -> 21637.9 | AI50: =SUMIFS(DATA!AM$3:AM$802,DATA!$F$3:$F$802,$A50,DATA!$B$3:$B$802,$C$2) -> 21544 | AJ50: =SUMIFS(DATA!AN$3:AN$802,DATA!$F$3:$F$802,$A50,DATA!$B$3:$B$802,$C$2) -> 21728.4 | AK50: =SUMIFS(DATA!AO$3:AO$802,DATA!$F$3:$F$802,$A50,DATA!$B$3:$B$802,$C$2) -> 21424.3 | AL50: =SUMIFS(DATA!AP$3:AP$802,DATA!$F$3:$F$802,$A50,DATA!$B$3:$B$802,$C$2) -> 21067.6 | AM50: =SUMIFS(DATA!AQ$3:AQ$802,DATA!$F$3:$F$802,$A50,DATA!$B$3:$B$802,$C$2) -> 20673.7 | AN50: =SUMIFS(DATA!AR$3:AR$802,DATA!$F$3:$F$802,$A50,DATA!$B$3:$B$802,$C$2) -> 20297.5 | AO50: =SUMIFS(DATA!AS$3:AS$802,DATA!$F$3:$F$802,$A50,DATA!$B$3:$B$802,$C$2) -> 19898 | AP50: =SUMIFS(DATA!AT$3:AT$802,DATA!$F$3:$F$802,$A50,DATA!$B$3:$B$802,$C$2) -> 19552.8 | AQ50: =SUMIFS(DATA!AU$3:AU$802,DATA!$F$3:$F$802,$A50,DATA!$B$3:$B$802,$C$2) -> 19198.4 | AR50: =SUMIFS(DATA!AV$3:AV$802,DATA!$F$3:$F$802,$A50,DATA!$B$3:$B$802,$C$2) -> 18892.1 | AS50: =SUMIFS(DATA!AW$3:AW$802,DATA!$F$3:$F$802,$A50,DATA!$B$3:$B$802,$C$2) -> 18506.7 | AT50: =SUMIFS(DATA!AX$3:AX$802,DATA!$F$3:$F$802,$A50,DATA!$B$3:$B$802,$C$2) -> 18084.4 | AU50: =SUMIFS(DATA!AY$3:AY$802,DATA!$F$3:$F$802,$A50,DATA!$B$3:$B$802,$C$2) -> 17564.8 | AV50: =SUMIFS(DATA!AZ$3:AZ$802,DATA!$F$3:$F$802,$A50,DATA!$B$3:$B$802,$C$2) -> 17041.5 | AW50: =SUMIFS(DATA!BA$3:BA$802,DATA!$F$3:$F$802,$A50,DATA!$B$3:$B$802,$C$2) -> 16559.8 | AX50: =SUMIFS(DATA!BB$3:BB$802,DATA!$F$3:$F$802,$A50,DATA!$B$3:$B$802,$C$2) -> 16047.6 | AY50: =SUMIFS(DATA!BC$3:BC$802,DATA!$F$3:$F$802,$A50,DATA!$B$3:$B$802,$C$2) -> 15568.6 | AZ50: =SUMIFS(DATA!BD$3:BD$802,DATA!$F$3:$F$802,$A50,DATA!$B$3:$B$802,$C$2) -> 15077.4
A51: Long term debt + current and other liabilities - current and other assets | C51: =C89+C91-C80 -> 9651 | D51: 11028 | E51: 13070 | F51: 14690 | G51: 16386 | H51: 18094 | I51: 19497 | J51: 20576 | K51: 21787 | L51: 23369 | M51: 24789 | N51: 25922 | O51: 26821 | P51: 27455 | Q51: 27468 | R51: 27208 | S51: 26982 | T51: 26502 | U51: 25815 | V51: 24767 | W51: 24480 | X51: 24220 | Y51: 23941 | Z51: 23699 | AA51: 23489 | AB51: 23299 | AC51: 23150 | AD51: 23223 | AE51: 23430 | AF51: 23416 | AG51: 23437 | AH51: 23487 | AI51: =AI89+AI91-AI80 -> 23533 | AJ51: 23866 | AK51: 23720 | AL51: 23530 | AM51: 23305 | AN51: 23111 | AO51: 22908 | AP51: 22767 | AQ51: 22641 | AR51: 22571 | AS51: 22417 | AT51: 22228 | AU51: 21959 | AV51: 21659 | AW51: 21398 | AX51: 21108 | AY51: 20855 | AZ51: 20569
B52: [Difference] | C52: =C51-C50 -> -14.17 | D52: =D51-D50 -> -72.4 | E52: 309.6 | F52: 304.5 | G52: 314.4 | H52: 430.2 | I52: 426.5 | J52: 365.1 | K52: 257.2 | L52: 288 | M52: 335.6 | N52: 378.7 | O52: 429.2 | P52: 470.9 | Q52: 521.3 | R52: 567.9 | S52: 620 | T52: 672.5 | U52: 727.4 | V52: 773.6 | W52: 824.9 | X52: 872.1 | Y52: 937.5 | Z52: 1003.5 | AA52: 1077.1 | AB52: 1165 | AC52: 1252.1 | AD52: 1359.7 | AE52: 1469.4 | AF52: 1593.2 | AG52: 1727.9 | AH52: 1849.1 | AI52: 1989 | AJ52: 2137.6 | AK52: 2295.7 | AL52: 2462.4 | AM52: 2631.3 | AN52: 2813.5 | AO52: 3010 | AP52: 3214.2 | AQ52: 3442.6 | AR52: 3678.9 | AS52: 3910.3 | AT52: 4143.6 | AU52: 4394.2 | AV52: 4617.5 | AW52: 4838.2 | AX52: 5060.4 | AY52: 5286.4 | AZ52: 5491.6
A54: Current Year Revenue Increase | B54: [Formula] | C54: =C12/C9 -> 0 | D54: =(D12)/(+C11+D9) -> 0.035 | E54: 0.03973528483 | F54: 0.04024611294 | G54: 0.04049910591 | H54: 0.04144432599 | I54: 0.04225542048 | J54: 0.04157820916 | K54: 0.04317970671 | L54: 0.04322586904 | M54: 0.04396879274 | N54: 0.04431873372 | O54: 0.04464305164 | P54: 0.04494339984 | Q54: 0.04522132058 | R54: 0.04547825308 | S54: 0.04625983522 | T54: 0.04620813401 | U54: 0.04641437671 | V54: 0.04660371371 | W54: -0.2242697054 | X54: 0.006816105685 | Y54: 0.01591915836 | Z54: 0.01182592242 | AA54: 0.01788908766 | AB54: 0.01614674159 | AC54: 0.004667886205 | AD54: 0.01077747321 | AE54: 0.01081484533 | AF54: 0.02531169385 | AG54: 0.02805098062 | AH54: 0.007928029238 | AI54: 0.01519236958 | AJ54: =(AJ12)/(+AI11+AJ9) -> 0.02796182688 | AK54: 0.03495623919 | AL54: 0.00583096135 | AM54: -0.004266739419 | AN54: 0.004863555356 | AO54: 0.02404879756 | AP54: 0.00839761742 | AQ54: 0.006003679675 | AR54: 0.01978053711 | AS54: 0.005238567181 | AT54: -0.001022535211 | AU54: 0.009531390626 | AV54: -0.005245186101 | AW54: 0.005803341602 | AX54: 0.008747847936 | AY54: 0.004981779602 | AZ54: 0.006058658833
A56: Additional General Consumers Revenue Percent Increase | B56: [Original] | C56: =SUMIFS(DATA!G$3:G$794,DATA!$F$3:$F$794,$A56,DATA!$B$3:$B$794,$C$2) -> 0 | D56: =SUMIFS(DATA!H$3:H$794,DATA!$F$3:$F$794,$A56,DATA!$B$3:$B$794,$C$2) -> 0.035 | E56: =SUMIFS(DATA!I$3:I$794,DATA!$F$3:$F$794,$A56,DATA!$B$3:$B$794,$C$2) -> 0.0395 | F56: =SUMIFS(DATA!J$3:J$794,DATA!$F$3:$F$794,$A56,DATA!$B$3:$B$794,$C$2) -> 0.0395 | G56: =SUMIFS(DATA!K$3:K$794,DATA!$F$3:$F$794,$A56,DATA!$B$3:$B$794,$C$2) -> 0.0395 | H56: =SUMIFS(DATA!L$3:L$794,DATA!$F$3:$F$794,$A56,DATA!$B$3:$B$794,$C$2) -> 0.0395 | I56: =SUMIFS(DATA!M$3:M$794,DATA!$F$3:$F$794,$A56,DATA!$B$3:$B$794,$C$2) -> 0.0395 | J56: =SUMIFS(DATA!N$3:N$794,DATA!$F$3:$F$794,$A56,DATA!$B$3:$B$794,$C$2) -> 0.0395 | K56: =SUMIFS(DATA!O$3:O$794,DATA!$F$3:$F$794,$A56,DATA!$B$3:$B$794,$C$2) -> 0.0395 | L56: =SUMIFS(DATA!P$3:P$794,DATA!$F$3:$F$794,$A56,DATA!$B$3:$B$794,$C$2) -> 0.0395 | M56: =SUMIFS(DATA!Q$3:Q$794,DATA!$F$3:$F$794,$A56,DATA!$B$3:$B$794,$C$2) -> 0.0395 | N56: =SUMIFS(DATA!R$3:R$794,DATA!$F$3:$F$794,$A56,DATA!$B$3:$B$794,$C$2) -> 0.0395 | O56: =SUMIFS(DATA!S$3:S$794,DATA!$F$3:$F$794,$A56,DATA!$B$3:$B$794,$C$2) -> 0.0395 | P56: =SUMIFS(DATA!T$3:T$794,DATA!$F$3:$F$794,$A56,DATA!$B$3:$B$794,$C$2) -> 0.0395 | Q56: =SUMIFS(DATA!U$3:U$794,DATA!$F$3:$F$794,$A56,DATA!$B$3:$B$794,$C$2) -> 0.0395 | R56: =SUMIFS(DATA!V$3:V$794,DATA!$F$3:$F$794,$A56,DATA!$B$3:$B$794,$C$2) -> 0.0395 | S56: =SUMIFS(DATA!W$3:W$794,DATA!$F$3:$F$794,$A56,DATA!$B$3:$B$794,$C$2) -> 0.0395 | T56: =SUMIFS(DATA!X$3:X$794,DATA!$F$3:$F$794,$A56,DATA!$B$3:$B$794,$C$2) -> 0.0395 | U56: =SUMIFS(DATA!Y$3:Y$794,DATA!$F$3:$F$794,$A56,DATA!$B$3:$B$794,$C$2) -> 0.0395 | V56: =SUMIFS(DATA!Z$3:Z$794,DATA!$F$3:$F$794,$A56,DATA!$B$3:$B$794,$C$2) -> 0.0395 | W56: =SUMIFS(DATA!AA$3:AA$794,DATA!$F$3:$F$794,$A56,DATA!$B$3:$B$794,$C$2) -> -0.2304 | X56: =SUMIFS(DATA!AB$3:AB$794,DATA!$F$3:$F$794,$A56,DATA!$B$3:$B$794,$C$2) -> 0.0014 | Y56: =SUMIFS(DATA!AC$3:AC$794,DATA!$F$3:$F$794,$A56,DATA!$B$3:$B$794,$C$2) -> 0.0112 | Z56: =SUMIFS(DATA!AD$3:AD$794,DATA!$F$3:$F$794,$A56,DATA!$B$3:$B$794,$C$2) -> 0.0063 | AA56: =SUMIFS(DATA!AE$3:AE$794,DATA!$F$3:$F$794,$A56,DATA!$B$3:$B$794,$C$2) -> 0.013 | AB56: =SUMIFS(DATA!AF$3:AF$794,DATA!$F$3:$F$794,$A56,DATA!$B$3:$B$794,$C$2) -> 0.0104 | AC56: =SUMIFS(DATA!AG$3:AG$794,DATA!$F$3:$F$794,$A56,DATA!$B$3:$B$794,$C$2) -> -0.0002 | AD56: =SUMIFS(DATA!AH$3:AH$794,DATA!$F$3:$F$794,$A56,DATA!$B$3:$B$794,$C$2) -> 0.0058 | AE56: =SUMIFS(DATA!AI$3:AI$794,DATA!$F$3:$F$794,$A56,DATA!$B$3:$B$794,$C$2) -> 0.0056 | AF56: =SUMIFS(DATA!AJ$3:AJ$794,DATA!$F$3:$F$794,$A56,DATA!$B$3:$B$794,$C$2) -> 0.0206 | AG56: =SUMIFS(DATA!AK$3:AK$794,DATA!$F$3:$F$794,$A56,DATA!$B$3:$B$794,$C$2) -> 0.0227 | AH56: =SUMIFS(DATA!AL$3:AL$794,DATA!$F$3:$F$794,$A56,DATA!$B$3:$B$794,$C$2) -> 0.0023 | AI56: =SUMIFS(DATA!AM$3:AM$794,DATA!$F$3:$F$794,$A56,DATA!$B$3:$B$794,$C$2) -> 0.0103 | AJ56: =SUMIFS(DATA!AN$3:AN$794,DATA!$F$3:$F$794,$A56,DATA!$B$3:$B$794,$C$2) -> 0.0229 | AK56: =SUMIFS(DATA!AO$3:AO$794,DATA!$F$3:$F$794,$A56,DATA!$B$3:$B$794,$C$2) -> 0.0292 | AL56: =SUMIFS(DATA!AP$3:AP$794,DATA!$F$3:$F$794,$A56,DATA!$B$3:$B$794,$C$2) -> 0.0005 | AM56: =SUMIFS(DATA!AQ$3:AQ$794,DATA!$F$3:$F$794,$A56,DATA!$B$3:$B$794,$C$2) -> -0.0039 | AN56: =SUMIFS(DATA!AR$3:AR$794,DATA!$F$3:$F$794,$A56,DATA!$B$3:$B$794,$C$2) -> 0.0046 | AO56: =SUMIFS(DATA!AS$3:AS$794,DATA!$F$3:$F$794,$A56,DATA!$B$3:$B$794,$C$2) -> 0.0243 | AP56: =SUMIFS(DATA!AT$3:AT$794,DATA!$F$3:$F$794,$A56,DATA!$B$3:$B$794,$C$2) -> 0.0082 | AQ56: =SUMIFS(DATA!AU$3:AU$794,DATA!$F$3:$F$794,$A56,DATA!$B$3:$B$794,$C$2) -> 0.0063 | AR56: =SUMIFS(DATA!AV$3:AV$794,DATA!$F$3:$F$794,$A56,DATA!$B$3:$B$794,$C$2) -> 0.0195 | AS56: =SUMIFS(DATA!AW$3:AW$794,DATA!$F$3:$F$794,$A56,DATA!$B$3:$B$794,$C$2) -> 0.0055 | AT56: =SUMIFS(DATA!AX$3:AX$794,DATA!$F$3:$F$794,$A56,DATA!$B$3:$B$794,$C$2) -> -0.0008 | AU56: =SUMIFS(DATA!AY$3:AY$794,DATA!$F$3:$F$794,$A56,DATA!$B$3:$B$794,$C$2) -> 0.0088 | AV56: =SUMIFS(DATA!AZ$3:AZ$794,DATA!$F$3:$F$794,$A56,DATA!$B$3:$B$794,$C$2) -> -0.0049 | AW56: =SUMIFS(DATA!BA$3:BA$794,DATA!$F$3:$F$794,$A56,DATA!$B$3:$B$794,$C$2) -> 0.0059 | AX56: =SUMIFS(DATA!BB$3:BB$794,DATA!$F$3:$F$794,$A56,DATA!$B$3:$B$794,$C$2) -> 0.0087 | AY56: =SUMIFS(DATA!BC$3:BC$794,DATA!$F$3:$F$794,$A56,DATA!$B$3:$B$794,$C$2) -> 0.0048 | AZ56: =SUMIFS(DATA!BD$3:BD$794,DATA!$F$3:$F$794,$A56,DATA!$B$3:$B$794,$C$2) -> 0.0064
A57: Additional General Consumers Revenue Percent Increase | B57: [Formula] | C57: =C56 -> 0 | D57: =D56 -> 0.035 | E57: =IF(E7<=$O$2,$Q$3,E58) -> 0.03940261984 | F57: 0.03940261984 | G57: 0.03940261984 | H57: 0.03940261984 | I57: 0.03940261984 | J57: 0.03940261984 | K57: 0.03940261984 | L57: 0.03940261984 | M57: 0.03940261984 | N57: 0.03940261984 | O57: 0.03940261984 | P57: 0.03940261984 | Q57: 0.03940261984 | R57: 0.03940261984 | S57: 0.03940261984 | T57: 0.03940261984 | U57: 0.03940261984 | V57: 0.03940261984 | W57: -0.2297347823 | X57: 0.001551699146 | Y57: 0.01087407514 | Z57: 0.006778000163 | AA57: 0.01282179029 | AB57: 0.01105201801 | AC57: -0.0003896169155 | AD57: 0.005548733409 | AE57: 0.005815593525 | AF57: 0.02025933263 | AG57: 0.02290097534 | AH57: 0.002783546231 | AI57: 0.009841076214 | AJ57: 0.02275450828 | AK57: =IF(AK7<=$O$2,$Q$3,AK58) -> 0.02962595024 | AL57: 0.0005300677725 | AM57: -0.004266739419 | AN57: 0.004863555356 | AO57: 0.02404879756 | AP57: 0.00839761742 | AQ57: 0.006003679675 | AR57: 0.01978053711 | AS57: 0.005238567181 | AT57: -0.001022535211 | AU57: 0.009531390626 | AV57: -0.005245186101 | AW57: 0.005803341602 | AX57: 0.008747847936 | AY57: 0.004981779602 | AZ57: 0.006058658833
A58: DO NOT ADJUST THIS ROW | E58: 0.0343 | F58: -0.496502614 | G58: 0.05764366368 | H58: 0.05838670286 | I58: 0.09011459882 | J58: -0.003165497934 | K58: -0.3273824807 | L58: 0.01859887184 | M58: -0.01164053411 | N58: 0.01230869152 | O58: 0.002891518219 | P58: -0.2334689948 | Q58: -0.007033246981 | R58: 0.003812252076 | S58: -0.006279668322 | T58: -0.003456795904 | U58: -0.1927352323 | V58: -0.004856185908 | W58: -0.2297347823 | X58: 0.001551699146 | Y58: 0.01087407514 | Z58: 0.006778000163 | AA58: 0.01282179029 | AB58: 0.01105201801 | AC58: -0.0003896169155 | AD58: 0.005548733409 | AE58: 0.005815593525 | AF58: 0.02025933263 | AG58: 0.02290097534 | AH58: 0.002783546231 | AI58: 0.009841076214 | AJ58: 0.02275450828 | AK58: 0.02962595024 | AL58: 0.0005300677725 | AM58: -0.004266739419 | AN58: 0.004863555356 | AO58: 0.02404879756 | AP58: 0.00839761742 | AQ58: 0.006003679675 | AR58: 0.01978053711 | AS58: 0.005238567181 | AT58: -0.001022535211 | AU58: 0.009531390626 | AV58: -0.005245186101 | AW58: 0.005803341602 | AX58: 0.008747847936 | AY58: 0.004981779602 | AZ58: 0.006058658833
A59: Cumulative General Consumers Revenue Percent Increase | B59: [Original] | C59: =SUMIFS(DATA!G$3:G$794,DATA!$F$3:$F$794,$A59,DATA!$B$3:$B$794,$C$2) -> 0 | D59: =SUMIFS(DATA!H$3:H$794,DATA!$F$3:$F$794,$A59,DATA!$B$3:$B$794,$C$2) -> 0.035 | E59: =SUMIFS(DATA!I$3:I$794,DATA!$F$3:$F$794,$A59,DATA!$B$3:$B$794,$C$2) -> 0.0759 | F59: =SUMIFS(DATA!J$3:J$794,DATA!$F$3:$F$794,$A59,DATA!$B$3:$B$794,$C$2) -> 0.1183 | G59: =SUMIFS(DATA!K$3:K$794,DATA!$F$3:$F$794,$A59,DATA!$B$3:$B$794,$C$2) -> 0.1625 | H59: =SUMIFS(DATA!L$3:L$794,DATA!$F$3:$F$794,$A59,DATA!$B$3:$B$794,$C$2) -> 0.2083 | I59: =SUMIFS(DATA!M$3:M$794,DATA!$F$3:$F$794,$A59,DATA!$B$3:$B$794,$C$2) -> 0.256 | J59: =SUMIFS(DATA!N$3:N$794,DATA!$F$3:$F$794,$A59,DATA!$B$3:$B$794,$C$2) -> 0.3056 | K59: =SUMIFS(DATA!O$3:O$794,DATA!$F$3:$F$794,$A59,DATA!$B$3:$B$794,$C$2) -> 0.3572 | L59: =SUMIFS(DATA!P$3:P$794,DATA!$F$3:$F$794,$A59,DATA!$B$3:$B$794,$C$2) -> 0.4107 | M59: =SUMIFS(DATA!Q$3:Q$794,DATA!$F$3:$F$794,$A59,DATA!$B$3:$B$794,$C$2) -> 0.4664 | N59: =SUMIFS(DATA!R$3:R$794,DATA!$F$3:$F$794,$A59,DATA!$B$3:$B$794,$C$2) -> 0.5243 | O59: =SUMIFS(DATA!S$3:S$794,DATA!$F$3:$F$794,$A59,DATA!$B$3:$B$794,$C$2) -> 0.5845 | P59: =SUMIFS(DATA!T$3:T$794,DATA!$F$3:$F$794,$A59,DATA!$B$3:$B$794,$C$2) -> 0.647 | Q59: =SUMIFS(DATA!U$3:U$794,DATA!$F$3:$F$794,$A59,DATA!$B$3:$B$794,$C$2) -> 0.712 | R59: =SUMIFS(DATA!V$3:V$794,DATA!$F$3:$F$794,$A59,DATA!$B$3:$B$794,$C$2) -> 0.7796 | S59: =SUMIFS(DATA!W$3:W$794,DATA!$F$3:$F$794,$A59,DATA!$B$3:$B$794,$C$2) -> 0.8498 | T59: =SUMIFS(DATA!X$3:X$794,DATA!$F$3:$F$794,$A59,DATA!$B$3:$B$794,$C$2) -> 0.9228 | U59: =SUMIFS(DATA!Y$3:Y$794,DATA!$F$3:$F$794,$A59,DATA!$B$3:$B$794,$C$2) -> 0.9987 | V59: =SUMIFS(DATA!Z$3:Z$794,DATA!$F$3:$F$794,$A59,DATA!$B$3:$B$794,$C$2) -> 1.0776 | W59: =SUMIFS(DATA!AA$3:AA$794,DATA!$F$3:$F$794,$A59,DATA!$B$3:$B$794,$C$2) -> 0.5989 | X59: =SUMIFS(DATA!AB$3:AB$794,DATA!$F$3:$F$794,$A59,DATA!$B$3:$B$794,$C$2) -> 0.6012 | Y59: =SUMIFS(DATA!AC$3:AC$794,DATA!$F$3:$F$794,$A59,DATA!$B$3:$B$794,$C$2) -> 0.619 | Z59: =SUMIFS(DATA!AD$3:AD$794,DATA!$F$3:$F$794,$A59,DATA!$B$3:$B$794,$C$2) -> 0.6293 | AA59: =SUMIFS(DATA!AE$3:AE$794,DATA!$F$3:$F$794,$A59,DATA!$B$3:$B$794,$C$2) -> 0.6505 | AB59: =SUMIFS(DATA!AF$3:AF$794,DATA!$F$3:$F$794,$A59,DATA!$B$3:$B$794,$C$2) -> 0.6678 | AC59: =SUMIFS(DATA!AG$3:AG$794,DATA!$F$3:$F$794,$A59,DATA!$B$3:$B$794,$C$2) -> 0.6674 | AD59: =SUMIFS(DATA!AH$3:AH$794,DATA!$F$3:$F$794,$A59,DATA!$B$3:$B$794,$C$2) -> 0.677 | AE59: =SUMIFS(DATA!AI$3:AI$794,DATA!$F$3:$F$794,$A59,DATA!$B$3:$B$794,$C$2) -> 0.6864 | AF59: =SUMIFS(DATA!AJ$3:AJ$794,DATA!$F$3:$F$794,$A59,DATA!$B$3:$B$794,$C$2) -> 0.7212 | AG59: =SUMIFS(DATA!AK$3:AK$794,DATA!$F$3:$F$794,$A59,DATA!$B$3:$B$794,$C$2) -> 0.7603 | AH59: =SUMIFS(DATA!AL$3:AL$794,DATA!$F$3:$F$794,$A59,DATA!$B$3:$B$794,$C$2) -> 0.7643 | AI59: =SUMIFS(DATA!AM$3:AM$794,DATA!$F$3:$F$794,$A59,DATA!$B$3:$B$794,$C$2) -> 0.7825 | AJ59: =SUMIFS(DATA!AN$3:AN$794,DATA!$F$3:$F$794,$A59,DATA!$B$3:$B$794,$C$2) -> 0.8233 | AK59: =SUMIFS(DATA!AO$3:AO$794,DATA!$F$3:$F$794,$A59,DATA!$B$3:$B$794,$C$2) -> 0.8766 | AL59: =SUMIFS(DATA!AP$3:AP$794,DATA!$F$3:$F$794,$A59,DATA!$B$3:$B$794,$C$2) -> 0.8776 | AM59: =SUMIFS(DATA!AQ$3:AQ$794,DATA!$F$3:$F$794,$A59,DATA!$B$3:$B$794,$C$2) -> 0.8704 | AN59: =SUMIFS(DATA!AR$3:AR$794,DATA!$F$3:$F$794,$A59,DATA!$B$3:$B$794,$C$2) -> 0.8789 | AO59: =SUMIFS(DATA!AS$3:AS$794,DATA!$F$3:$F$794,$A59,DATA!$B$3:$B$794,$C$2) -> 0.9245 | AP59: =SUMIFS(DATA!AT$3:AT$794,DATA!$F$3:$F$794,$A59,DATA!$B$3:$B$794,$C$2) -> 0.9402 | AQ59: =SUMIFS(DATA!AU$3:AU$794,DATA!$F$3:$F$794,$A59,DATA!$B$3:$B$794,$C$2) -> 0.9524 | AR59: =SUMIFS(DATA!AV$3:AV$794,DATA!$F$3:$F$794,$A59,DATA!$B$3:$B$794,$C$2) -> 0.9904 | AS59: =SUMIFS(DATA!AW$3:AW$794,DATA!$F$3:$F$794,$A59,DATA!$B$3:$B$794,$C$2) -> 1.0014 | AT59: =SUMIFS(DATA!AX$3:AX$794,DATA!$F$3:$F$794,$A59,DATA!$B$3:$B$794,$C$2) -> 0.9998 | AU59: =SUMIFS(DATA!AY$3:AY$794,DATA!$F$3:$F$794,$A59,DATA!$B$3:$B$794,$C$2) -> 1.0175 | AV59: =SUMIFS(DATA!AZ$3:AZ$794,DATA!$F$3:$F$794,$A59,DATA!$B$3:$B$794,$C$2) -> 1.0076 | AW59: =SUMIFS(DATA!BA$3:BA$794,DATA!$F$3:$F$794,$A59,DATA!$B$3:$B$794,$C$2) -> 1.0195 | AX59: =SUMIFS(DATA!BB$3:BB$794,DATA!$F$3:$F$794,$A59,DATA!$B$3:$B$794,$C$2) -> 1.0371 | AY59: =SUMIFS(DATA!BC$3:BC$794,DATA!$F$3:$F$794,$A59,DATA!$B$3:$B$794,$C$2) -> 1.0469 | AZ59: =SUMIFS(DATA!BD$3:BD$794,DATA!$F$3:$F$794,$A59,DATA!$B$3:$B$794,$C$2) -> 1.06
A60: Cumulative General Consumers Revenue Percent Increase | B60: [Formula] | C60: 0 | D60: =(1+C60)*(1+D57)-1 -> 0.035 | E60: =(1+D60)*(1+E57)-1 -> 0.07578171153 | F60: =(1+E60)*(1+F57)-1 -> 0.1181703293 | G60: 0.1622291697 | H60: 0.2080240439 | I60: 0.255623356 | J60: 0.3050982058 | K60: 0.3565224942 | L60: =(1+K60)*(1+L57)-1 -> 0.4099730344 | M60: =(1+L60)*(1+M57)-1 -> 0.4655296658 | N60: =(1+M60)*(1+N57)-1 -> 0.5232753741 | O60: =(1+N60)*(1+O57)-1 -> 0.5832964146 | P60: =(1+O60)*(1+P57)-1 -> 0.6456824413 | Q60: =(1+P60)*(1+Q57)-1 -> 0.7105266409 | R60: =(1+Q60)*(1+R57)-1 -> 0.7779258718 | S60: =(1+R60)*(1+S57)-1 -> 0.8479808091 | T60: =(1+S60)*(1+T57)-1 -> 0.9207960943 | U60: =(1+T60)*(1+U57)-1 -> 0.9964804926 | V60: =(1+U60)*(1+V57)-1 -> 1.075147054 | W60: =(1+V60)*(1+W57)-1 -> 0.5984135977 | X60: =(1+W60)*(1+X57)-1 -> 0.6008938547 | Y60: =(1+X60)*(1+Y57)-1 -> 0.6183020948 | Z60: =(1+Y60)*(1+Z57)-1 -> 0.6292709467 | AA60: =(1+Z60)*(1+AA57)-1 -> 0.6501611171 | AB60: =(1+AA60)*(1+AB57)-1 -> 0.6683987275 | AC60: =(1+AB60)*(1+AC57)-1 -> 0.6677486911 | AD60: 0.677002584 | AE60: =(1+AD60)*(1+AE57)-1 -> 0.6867553493 | AF60: =(1+AE60)*(1+AF57)-1 -> 0.720927887 | AG60: =(1+AF60)*(1+AG57)-1 -> 0.7603388142 | AH60: =(1+AG60)*(1+AH57)-1 -> 0.7652387986 | AI60: =(1+AH60)*(1+AI57)-1 -> 0.7826106482 | AJ60: =(1+AI60)*(1+AJ57)-1 -> 0.8231730769 | AK60: =(1+AJ60)*(1+AK57)-1 -> 0.8771863118 | AL60: =(1+AK60)*(1+AL57)-1 -> 0.8781813478 | AM60: =(1+AL60)*(1+AM57)-1 -> 0.8701676374 | AN60: =(1+AM60)*(1+AN57)-1 -> 0.8792633012 | AO60: =(1+AN60)*(1+AO57)-1 -> 0.9244573239 | AP60: =(1+AO60)*(1+AP57)-1 -> 0.9406181802 | AQ60: =(1+AP60)*(1+AQ57)-1 -> 0.9522690302 | AR60: =(1+AQ60)*(1+AR57)-1 -> 0.9908859601 | AS60: =(1+AR60)*(1+AS57)-1 -> 1.00131535 | AT60: =(1+AS60)*(1+AT57)-1 -> 0.9992689346 | AU60: =(1+AT60)*(1+AU57)-1 -> 1.018324748 | AV60: =(1+AU60)*(1+AV57)-1 -> 1.007738259 | AW60: =(1+AV60)*(1+AW57)-1 -> 1.01938985 | AX60: =(1+AW60)*(1+AX57)-1 -> 1.037055165 | AY60: =(1+AX60)*(1+AY57)-1 -> 1.047203325 | AZ60: 1.059606632
A62: Debt Ratio | B62: [Original] | C62: =SUMIFS(DATA!G$3:G$794,DATA!$F$3:$F$794,$A62,DATA!$B$3:$B$794,$C$2) -> 76 | D62: =SUMIFS(DATA!H$3:H$794,DATA!$F$3:$F$794,$A62,DATA!$B$3:$B$794,$C$2) -> 78 | E62: =SUMIFS(DATA!I$3:I$794,DATA!$F$3:$F$794,$A62,DATA!$B$3:$B$794,$C$2) -> 84 | F62: =SUMIFS(DATA!J$3:J$794,DATA!$F$3:$F$794,$A62,DATA!$B$3:$B$794,$C$2) -> 85 | G62: =SUMIFS(DATA!K$3:K$794,DATA!$F$3:$F$794,$A62,DATA!$B$3:$B$794,$C$2) -> 86 | H62: =SUMIFS(DATA!L$3:L$794,DATA!$F$3:$F$794,$A62,DATA!$B$3:$B$794,$C$2) -> 87 | I62: =SUMIFS(DATA!M$3:M$794,DATA!$F$3:$F$794,$A62,DATA!$B$3:$B$794,$C$2) -> 88 | J62: =SUMIFS(DATA!N$3:N$794,DATA!$F$3:$F$794,$A62,DATA!$B$3:$B$794,$C$2) -> 89 | K62: =SUMIFS(DATA!O$3:O$794,DATA!$F$3:$F$794,$A62,DATA!$B$3:$B$794,$C$2) -> 89 | L62: =SUMIFS(DATA!P$3:P$794,DATA!$F$3:$F$794,$A62,DATA!$B$3:$B$794,$C$2) -> 90 | M62: =SUMIFS(DATA!Q$3:Q$794,DATA!$F$3:$F$794,$A62,DATA!$B$3:$B$794,$C$2) -> 90 | N62: =SUMIFS(DATA!R$3:R$794,DATA!$F$3:$F$794,$A62,DATA!$B$3:$B$794,$C$2) -> 89 | O62: =SUMIFS(DATA!S$3:S$794,DATA!$F$3:$F$794,$A62,DATA!$B$3:$B$794,$C$2) -> 88 | P62: =SUMIFS(DATA!T$3:T$794,DATA!$F$3:$F$794,$A62,DATA!$B$3:$B$794,$C$2) -> 87 | Q62: =SUMIFS(DATA!U$3:U$794,DATA!$F$3:$F$794,$A62,DATA!$B$3:$B$794,$C$2) -> 86 | R62: =SUMIFS(DATA!V$3:V$794,DATA!$F$3:$F$794,$A62,DATA!$B$3:$B$794,$C$2) -> 85 | S62: =SUMIFS(DATA!W$3:W$794,DATA!$F$3:$F$794,$A62,DATA!$B$3:$B$794,$C$2) -> 83 | T62: =SUMIFS(DATA!X$3:X$794,DATA!$F$3:$F$794,$A62,DATA!$B$3:$B$794,$C$2) -> 81 | U62: =SUMIFS(DATA!Y$3:Y$794,DATA!$F$3:$F$794,$A62,DATA!$B$3:$B$794,$C$2) -> 78 | V62: =SUMIFS(DATA!Z$3:Z$794,DATA!$F$3:$F$794,$A62,DATA!$B$3:$B$794,$C$2) -> 75 | W62: =SUMIFS(DATA!AA$3:AA$794,DATA!$F$3:$F$794,$A62,DATA!$B$3:$B$794,$C$2) -> 74 | X62: =SUMIFS(DATA!AB$3:AB$794,DATA!$F$3:$F$794,$A62,DATA!$B$3:$B$794,$C$2) -> 73 | Y62: =SUMIFS(DATA!AC$3:AC$794,DATA!$F$3:$F$794,$A62,DATA!$B$3:$B$794,$C$2) -> 72 | Z62: =SUMIFS(DATA!AD$3:AD$794,DATA!$F$3:$F$794,$A62,DATA!$B$3:$B$794,$C$2) -> 71 | AA62: =SUMIFS(DATA!AE$3:AE$794,DATA!$F$3:$F$794,$A62,DATA!$B$3:$B$794,$C$2) -> 70 | AB62: =SUMIFS(DATA!AF$3:AF$794,DATA!$F$3:$F$794,$A62,DATA!$B$3:$B$794,$C$2) -> 69 | AC62: =SUMIFS(DATA!AG$3:AG$794,DATA!$F$3:$F$794,$A62,DATA!$B$3:$B$794,$C$2) -> 69 | AD62: =SUMIFS(DATA!AH$3:AH$794,DATA!$F$3:$F$794,$A62,DATA!$B$3:$B$794,$C$2) -> 68 | AE62: =SUMIFS(DATA!AI$3:AI$794,DATA!$F$3:$F$794,$A62,DATA!$B$3:$B$794,$C$2) -> 67 | AF62: =SUMIFS(DATA!AJ$3:AJ$794,DATA!$F$3:$F$794,$A62,DATA!$B$3:$B$794,$C$2) -> 67 | AG62: =SUMIFS(DATA!AK$3:AK$794,DATA!$F$3:$F$794,$A62,DATA!$B$3:$B$794,$C$2) -> 66 | AH62: =SUMIFS(DATA!AL$3:AL$794,DATA!$F$3:$F$794,$A62,DATA!$B$3:$B$794,$C$2) -> 65 | AI62: =SUMIFS(DATA!AM$3:AM$794,DATA!$F$3:$F$794,$A62,DATA!$B$3:$B$794,$C$2) -> 65 | AJ62: =SUMIFS(DATA!AN$3:AN$794,DATA!$F$3:$F$794,$A62,DATA!$B$3:$B$794,$C$2) -> 64 | AK62: =SUMIFS(DATA!AO$3:AO$794,DATA!$F$3:$F$794,$A62,DATA!$B$3:$B$794,$C$2) -> 63 | AL62: =SUMIFS(DATA!AP$3:AP$794,DATA!$F$3:$F$794,$A62,DATA!$B$3:$B$794,$C$2) -> 63 | AM62: =SUMIFS(DATA!AQ$3:AQ$794,DATA!$F$3:$F$794,$A62,DATA!$B$3:$B$794,$C$2) -> 62 | AN62: =SUMIFS(DATA!AR$3:AR$794,DATA!$F$3:$F$794,$A62,DATA!$B$3:$B$794,$C$2) -> 61 | AO62: =SUMIFS(DATA!AS$3:AS$794,DATA!$F$3:$F$794,$A62,DATA!$B$3:$B$794,$C$2) -> 60 | AP62: =SUMIFS(DATA!AT$3:AT$794,DATA!$F$3:$F$794,$A62,DATA!$B$3:$B$794,$C$2) -> 59 | AQ62: =SUMIFS(DATA!AU$3:AU$794,DATA!$F$3:$F$794,$A62,DATA!$B$3:$B$794,$C$2) -> 58 | AR62: =SUMIFS(DATA!AV$3:AV$794,DATA!$F$3:$F$794,$A62,DATA!$B$3:$B$794,$C$2) -> 57 | AS62: =SUMIFS(DATA!AW$3:AW$794,DATA!$F$3:$F$794,$A62,DATA!$B$3:$B$794,$C$2) -> 56 | AT62: =SUMIFS(DATA!AX$3:AX$794,DATA!$F$3:$F$794,$A62,DATA!$B$3:$B$794,$C$2) -> 55 | AU62: =SUMIFS(DATA!AY$3:AY$794,DATA!$F$3:$F$794,$A62,DATA!$B$3:$B$794,$C$2) -> 54 | AV62: =SUMIFS(DATA!AZ$3:AZ$794,DATA!$F$3:$F$794,$A62,DATA!$B$3:$B$794,$C$2) -> 53 | AW62: =SUMIFS(DATA!BA$3:BA$794,DATA!$F$3:$F$794,$A62,DATA!$B$3:$B$794,$C$2) -> 52 | AX62: =SUMIFS(DATA!BB$3:BB$794,DATA!$F$3:$F$794,$A62,DATA!$B$3:$B$794,$C$2) -> 50 | AY62: =SUMIFS(DATA!BC$3:BC$794,DATA!$F$3:$F$794,$A62,DATA!$B$3:$B$794,$C$2) -> 49 | AZ62: =SUMIFS(DATA!BD$3:BD$794,DATA!$F$3:$F$794,$A62,DATA!$B$3:$B$794,$C$2) -> 48
A63: Debt Ratio | B63: [Formula] | C63: =C50/SUM(C$50+C$44+C$92+C$94+C$96)*100 -> 76.0009499 | D63: =D50/SUM(D$50+D$44+D$92+D$94+D$96)*100 -> 78.1606298 | E63: =E50/SUM(E$50+E$44+E$92+E$94+E$96)*100 -> 83.76176158 | F63: =F50/SUM(F$50+F$44+F$92+F$94+F$96)*100 -> 85.10359706 | G63: 86.28868341 | H63: 87.28117523 | I63: 88.35726088 | J63: 88.8475081 | K63: 89.27530227 | L63: 89.62517904 | M63: 89.52041924 | N63: 89.0692409 | O63: 88.32532679 | P63: 87.47348792 | Q63: 86.15863275 | R63: =R50/SUM(R$50+R$44+R$92+R$94+R$96)*100 -> 84.90058854 | S63: 83.22606711 | T63: 81.00937846 | U63: 78.38249321 | V63: 74.99984075 | W63: 74.02821458 | X63: 73.08193241 | Y63: 72.11180988 | Z63: 71.17395218 | AA63: 70.26253718 | AB63: 69.36151448 | AC63: 68.50722045 | AD63: 67.86310796 | AE63: 67.3588 | AF63: 66.62794955 | AG63: 65.92795215 | AH63: 65.27954946 | AI63: =AI50/SUM(AI$50+AI$44+AI$92+AI$94+AI$96)*100 -> 64.61584123 | AJ63: 64.25807964 | AK63: 63.38781127 | AL63: 62.46908981 | AM63: 61.51668327 | AN63: 60.58498016 | AO63: 59.62256035 | AP63: 58.72292105 | AQ63: 57.79388858 | AR63: 56.92956383 | AS63: 55.96653105 | AT63: 54.96179058 | AU63: 53.81540556 | AV63: 52.66362386 | AW63: 51.5613218 | AX63: 50.40334515 | AY63: 49.28673171 | AZ63: 48.13761108
A65: Interest Coverage Ratio | B65: [Original] | C65: =SUMIFS(DATA!G$3:G$794,DATA!$F$3:$F$794,$A65,DATA!$B$3:$B$794,$C$2) -> 1.09 | D65: =SUMIFS(DATA!H$3:H$794,DATA!$F$3:$F$794,$A65,DATA!$B$3:$B$794,$C$2) -> 1.1 | E65: =SUMIFS(DATA!I$3:I$794,DATA!$F$3:$F$794,$A65,DATA!$B$3:$B$794,$C$2) -> 1.07 | F65: =SUMIFS(DATA!J$3:J$794,DATA!$F$3:$F$794,$A65,DATA!$B$3:$B$794,$C$2) -> 1.1 | G65: =SUMIFS(DATA!K$3:K$794,DATA!$F$3:$F$794,$A65,DATA!$B$3:$B$794,$C$2) -> 1.08 | H65: =SUMIFS(DATA!L$3:L$794,DATA!$F$3:$F$794,$A65,DATA!$B$3:$B$794,$C$2) -> 1.04 | I65: =SUMIFS(DATA!M$3:M$794,DATA!$F$3:$F$794,$A65,DATA!$B$3:$B$794,$C$2) -> 0.95 | J65: =SUMIFS(DATA!N$3:N$794,DATA!$F$3:$F$794,$A65,DATA!$B$3:$B$794,$C$2) -> 1.03 | K65: =SUMIFS(DATA!O$3:O$794,DATA!$F$3:$F$794,$A65,DATA!$B$3:$B$794,$C$2) -> 1.05 | L65: =SUMIFS(DATA!P$3:P$794,DATA!$F$3:$F$794,$A65,DATA!$B$3:$B$794,$C$2) -> 1.08 | M65: =SUMIFS(DATA!Q$3:Q$794,DATA!$F$3:$F$794,$A65,DATA!$B$3:$B$794,$C$2) -> 1.14 | N65: =SUMIFS(DATA!R$3:R$794,DATA!$F$3:$F$794,$A65,DATA!$B$3:$B$794,$C$2) -> 1.17 | O65: =SUMIFS(DATA!S$3:S$794,DATA!$F$3:$F$794,$A65,DATA!$B$3:$B$794,$C$2) -> 1.22 | P65: =SUMIFS(DATA!T$3:T$794,DATA!$F$3:$F$794,$A65,DATA!$B$3:$B$794,$C$2) -> 1.23 | Q65: =SUMIFS(DATA!U$3:U$794,DATA!$F$3:$F$794,$A65,DATA!$B$3:$B$794,$C$2) -> 1.28 | R65: =SUMIFS(DATA!V$3:V$794,DATA!$F$3:$F$794,$A65,DATA!$B$3:$B$794,$C$2) -> 1.25 | S65: =SUMIFS(DATA!W$3:W$794,DATA!$F$3:$F$794,$A65,DATA!$B$3:$B$794,$C$2) -> 1.35 | T65: =SUMIFS(DATA!X$3:X$794,DATA!$F$3:$F$794,$A65,DATA!$B$3:$B$794,$C$2) -> 1.46 | U65: =SUMIFS(DATA!Y$3:Y$794,DATA!$F$3:$F$794,$A65,DATA!$B$3:$B$794,$C$2) -> 1.55 | V65: =SUMIFS(DATA!Z$3:Z$794,DATA!$F$3:$F$794,$A65,DATA!$B$3:$B$794,$C$2) -> 1.72 | W65: =SUMIFS(DATA!AA$3:AA$794,DATA!$F$3:$F$794,$A65,DATA!$B$3:$B$794,$C$2) -> 1.2 | X65: =SUMIFS(DATA!AB$3:AB$794,DATA!$F$3:$F$794,$A65,DATA!$B$3:$B$794,$C$2) -> 1.2 | Y65: =SUMIFS(DATA!AC$3:AC$794,DATA!$F$3:$F$794,$A65,DATA!$B$3:$B$794,$C$2) -> 1.2 | Z65: =SUMIFS(DATA!AD$3:AD$794,DATA!$F$3:$F$794,$A65,DATA!$B$3:$B$794,$C$2) -> 1.2 | AA65: =SUMIFS(DATA!AE$3:AE$794,DATA!$F$3:$F$794,$A65,DATA!$B$3:$B$794,$C$2) -> 1.2 | AB65: =SUMIFS(DATA!AF$3:AF$794,DATA!$F$3:$F$794,$A65,DATA!$B$3:$B$794,$C$2) -> 1.2 | AC65: =SUMIFS(DATA!AG$3:AG$794,DATA!$F$3:$F$794,$A65,DATA!$B$3:$B$794,$C$2) -> 1.2 | AD65: =SUMIFS(DATA!AH$3:AH$794,DATA!$F$3:$F$794,$A65,DATA!$B$3:$B$794,$C$2) -> 1.2 | AE65: =SUMIFS(DATA!AI$3:AI$794,DATA!$F$3:$F$794,$A65,DATA!$B$3:$B$794,$C$2) -> 1.2 | AF65: =SUMIFS(DATA!AJ$3:AJ$794,DATA!$F$3:$F$794,$A65,DATA!$B$3:$B$794,$C$2) -> 1.2 | AG65: =SUMIFS(DATA!AK$3:AK$794,DATA!$F$3:$F$794,$A65,DATA!$B$3:$B$794,$C$2) -> 1.2 | AH65: =SUMIFS(DATA!AL$3:AL$794,DATA!$F$3:$F$794,$A65,DATA!$B$3:$B$794,$C$2) -> 1.2 | AI65: =SUMIFS(DATA!AM$3:AM$794,DATA!$F$3:$F$794,$A65,DATA!$B$3:$B$794,$C$2) -> 1.2 | AJ65: =SUMIFS(DATA!AN$3:AN$794,DATA!$F$3:$F$794,$A65,DATA!$B$3:$B$794,$C$2) -> 1.2 | AK65: =SUMIFS(DATA!AO$3:AO$794,DATA!$F$3:$F$794,$A65,DATA!$B$3:$B$794,$C$2) -> 1.2 | AL65: =SUMIFS(DATA!AP$3:AP$794,DATA!$F$3:$F$794,$A65,DATA!$B$3:$B$794,$C$2) -> 1.2 | AM65: =SUMIFS(DATA!AQ$3:AQ$794,DATA!$F$3:$F$794,$A65,DATA!$B$3:$B$794,$C$2) -> 1.2 | AN65: =SUMIFS(DATA!AR$3:AR$794,DATA!$F$3:$F$794,$A65,DATA!$B$3:$B$794,$C$2) -> 1.2 | AO65: =SUMIFS(DATA!AS$3:AS$794,DATA!$F$3:$F$794,$A65,DATA!$B$3:$B$794,$C$2) -> 1.2 | AP65: =SUMIFS(DATA!AT$3:AT$794,DATA!$F$3:$F$794,$A65,DATA!$B$3:$B$794,$C$2) -> 1.2 | AQ65: =SUMIFS(DATA!AU$3:AU$794,DATA!$F$3:$F$794,$A65,DATA!$B$3:$B$794,$C$2) -> 1.2 | AR65: =SUMIFS(DATA!AV$3:AV$794,DATA!$F$3:$F$794,$A65,DATA!$B$3:$B$794,$C$2) -> 1.2 | AS65: =SUMIFS(DATA!AW$3:AW$794,DATA!$F$3:$F$794,$A65,DATA!$B$3:$B$794,$C$2) -> 1.2 | AT65: =SUMIFS(DATA!AX$3:AX$794,DATA!$F$3:$F$794,$A65,DATA!$B$3:$B$794,$C$2) -> 1.2 | AU65: =SUMIFS(DATA!AY$3:AY$794,DATA!$F$3:$F$794,$A65,DATA!$B$3:$B$794,$C$2) -> 1.2 | AV65: =SUMIFS(DATA!AZ$3:AZ$794,DATA!$F$3:$F$794,$A65,DATA!$B$3:$B$794,$C$2) -> 1.2 | AW65: =SUMIFS(DATA!BA$3:BA$794,DATA!$F$3:$F$794,$A65,DATA!$B$3:$B$794,$C$2) -> 1.2 | AX65: =SUMIFS(DATA!BB$3:BB$794,DATA!$F$3:$F$794,$A65,DATA!$B$3:$B$794,$C$2) -> 1.2 | AY65: =SUMIFS(DATA!BC$3:BC$794,DATA!$F$3:$F$794,$A65,DATA!$B$3:$B$794,$C$2) -> 1.2 | AZ65: =SUMIFS(DATA!BD$3:BD$794,DATA!$F$3:$F$794,$A65,DATA!$B$3:$B$794,$C$2) -> 1.2
A66: Interest Coverage Ratio (approx) | B66: [Formula approx] | C66: =SUM(C46,C32,C132)/SUM(C32,C132) -> 1.090909091 | D66: 1.103872305 | E66: 1.077220847 | F66: 1.104910794 | G66: 1.080640173 | H66: 1.041726962 | I66: 0.9517472187 | J66: 1.032164563 | K66: 1.05161587 | L66: 1.075301752 | M66: 1.141992002 | N66: 1.174112035 | O66: 1.21947117 | P66: 1.229932307 | Q66: 1.279609623 | R66: 1.245634319 | S66: 1.350669957 | T66: 1.458536881 | U66: 1.547820813 | V66: 1.71975153 | W66: 1.2 | X66: 1.2 | Y66: 1.2 | Z66: 1.2 | AA66: 1.2 | AB66: 1.2 | AC66: 1.2 | AD66: 1.2 | AE66: 1.200257258 | AF66: 1.2 | AG66: 1.2 | AH66: 1.2 | AI66: =SUM(AI46,AI32,AI132)/SUM(AI32,AI132) -> 1.20003454 | AJ66: 1.2 | AK66: 1.2 | AL66: 1.200424987 | AM66: 1.199635545 | AN66: 1.199136528 | AO66: 1.199113045 | AP66: =SUM(AP46,AP32,AP132)/SUM(AP32,AP132) -> 1.199093059 | AQ66: 1.19907973 | AR66: 1.199047307 | AS66: 1.199019645 | AT66: 1.199014742 | AU66: 1.199475337 | AV66: 1.199153371 | AW66: 1.199127881 | AX66: 1.199101889 | AY66: 1.199073686 | AZ66: 1.199041954
A67: Capital Coverage Ratio | B67: [Original] | C67: =SUMIFS(DATA!G$3:G$794,DATA!$F$3:$F$794,$A67,DATA!$B$3:$B$794,$C$2) -> 1.09 | D67: =SUMIFS(DATA!H$3:H$794,DATA!$F$3:$F$794,$A67,DATA!$B$3:$B$794,$C$2) -> 0.9 | E67: =SUMIFS(DATA!I$3:I$794,DATA!$F$3:$F$794,$A67,DATA!$B$3:$B$794,$C$2) -> 0.77 | F67: =SUMIFS(DATA!J$3:J$794,DATA!$F$3:$F$794,$A67,DATA!$B$3:$B$794,$C$2) -> 0.9 | G67: =SUMIFS(DATA!K$3:K$794,DATA!$F$3:$F$794,$A67,DATA!$B$3:$B$794,$C$2) -> 1.21 | H67: =SUMIFS(DATA!L$3:L$794,DATA!$F$3:$F$794,$A67,DATA!$B$3:$B$794,$C$2) -> 1.36 | I67: =SUMIFS(DATA!M$3:M$794,DATA!$F$3:$F$794,$A67,DATA!$B$3:$B$794,$C$2) -> 1.08 | J67: =SUMIFS(DATA!N$3:N$794,DATA!$F$3:$F$794,$A67,DATA!$B$3:$B$794,$C$2) -> 1.55 | K67: =SUMIFS(DATA!O$3:O$794,DATA!$F$3:$F$794,$A67,DATA!$B$3:$B$794,$C$2) -> 1.52 | L67: =SUMIFS(DATA!P$3:P$794,DATA!$F$3:$F$794,$A67,DATA!$B$3:$B$794,$C$2) -> 1.57 | M67: =SUMIFS(DATA!Q$3:Q$794,DATA!$F$3:$F$794,$A67,DATA!$B$3:$B$794,$C$2) -> 1.58 | N67: =SUMIFS(DATA!R$3:R$794,DATA!$F$3:$F$794,$A67,DATA!$B$3:$B$794,$C$2) -> 1.66 | O67: =SUMIFS(DATA!S$3:S$794,DATA!$F$3:$F$794,$A67,DATA!$B$3:$B$794,$C$2) -> 1.84 | P67: =SUMIFS(DATA!T$3:T$794,DATA!$F$3:$F$794,$A67,DATA!$B$3:$B$794,$C$2) -> 2.07 | Q67: =SUMIFS(DATA!U$3:U$794,DATA!$F$3:$F$794,$A67,DATA!$B$3:$B$794,$C$2) -> 2.67 | R67: =SUMIFS(DATA!V$3:V$794,DATA!$F$3:$F$794,$A67,DATA!$B$3:$B$794,$C$2) -> 2.33 | S67: =SUMIFS(DATA!W$3:W$794,DATA!$F$3:$F$794,$A67,DATA!$B$3:$B$794,$C$2) -> 2.45 | T67: =SUMIFS(DATA!X$3:X$794,DATA!$F$3:$F$794,$A67,DATA!$B$3:$B$794,$C$2) -> 2.61 | U67: =SUMIFS(DATA!Y$3:Y$794,DATA!$F$3:$F$794,$A67,DATA!$B$3:$B$794,$C$2) -> 2.72 | V67: =SUMIFS(DATA!Z$3:Z$794,DATA!$F$3:$F$794,$A67,DATA!$B$3:$B$794,$C$2) -> 3.61 | W67: =SUMIFS(DATA!AA$3:AA$794,DATA!$F$3:$F$794,$A67,DATA!$B$3:$B$794,$C$2) -> 1.84 | X67: =SUMIFS(DATA!AB$3:AB$794,DATA!$F$3:$F$794,$A67,DATA!$B$3:$B$794,$C$2) -> 1.59 | Y67: =SUMIFS(DATA!AC$3:AC$794,DATA!$F$3:$F$794,$A67,DATA!$B$3:$B$794,$C$2) -> 1.54 | Z67: =SUMIFS(DATA!AD$3:AD$794,DATA!$F$3:$F$794,$A67,DATA!$B$3:$B$794,$C$2) -> 1.48 | AA67: =SUMIFS(DATA!AE$3:AE$794,DATA!$F$3:$F$794,$A67,DATA!$B$3:$B$794,$C$2) -> 1.42 | AB67: =SUMIFS(DATA!AF$3:AF$794,DATA!$F$3:$F$794,$A67,DATA!$B$3:$B$794,$C$2) -> 1.4 | AC67: =SUMIFS(DATA!AG$3:AG$794,DATA!$F$3:$F$794,$A67,DATA!$B$3:$B$794,$C$2) -> 1.33 | AD67: =SUMIFS(DATA!AH$3:AH$794,DATA!$F$3:$F$794,$A67,DATA!$B$3:$B$794,$C$2) -> 1.28 | AE67: =SUMIFS(DATA!AI$3:AI$794,DATA!$F$3:$F$794,$A67,DATA!$B$3:$B$794,$C$2) -> 1.2 | AF67: =SUMIFS(DATA!AJ$3:AJ$794,DATA!$F$3:$F$794,$A67,DATA!$B$3:$B$794,$C$2) -> 1.22 | AG67: =SUMIFS(DATA!AK$3:AK$794,DATA!$F$3:$F$794,$A67,DATA!$B$3:$B$794,$C$2) -> 1.31 | AH67: =SUMIFS(DATA!AL$3:AL$794,DATA!$F$3:$F$794,$A67,DATA!$B$3:$B$794,$C$2) -> 1.37 | AI67: =SUMIFS(DATA!AM$3:AM$794,DATA!$F$3:$F$794,$A67,DATA!$B$3:$B$794,$C$2) -> 1.33 | AJ67: =SUMIFS(DATA!AN$3:AN$794,DATA!$F$3:$F$794,$A67,DATA!$B$3:$B$794,$C$2) -> 1.21 | AK67: =SUMIFS(DATA!AO$3:AO$794,DATA!$F$3:$F$794,$A67,DATA!$B$3:$B$794,$C$2) -> 1.48 | AL67: =SUMIFS(DATA!AP$3:AP$794,DATA!$F$3:$F$794,$A67,DATA!$B$3:$B$794,$C$2) -> 1.48 | AM67: =SUMIFS(DATA!AQ$3:AQ$794,DATA!$F$3:$F$794,$A67,DATA!$B$3:$B$794,$C$2) -> 1.5 | AN67: =SUMIFS(DATA!AR$3:AR$794,DATA!$F$3:$F$794,$A67,DATA!$B$3:$B$794,$C$2) -> 1.52 | AO67: =SUMIFS(DATA!AS$3:AS$794,DATA!$F$3:$F$794,$A67,DATA!$B$3:$B$794,$C$2) -> 1.46 | AP67: =SUMIFS(DATA!AT$3:AT$794,DATA!$F$3:$F$794,$A67,DATA!$B$3:$B$794,$C$2) -> 1.47 | AQ67: =SUMIFS(DATA!AU$3:AU$794,DATA!$F$3:$F$794,$A67,DATA!$B$3:$B$794,$C$2) -> 1.46 | AR67: =SUMIFS(DATA!AV$3:AV$794,DATA!$F$3:$F$794,$A67,DATA!$B$3:$B$794,$C$2) -> 1.5 | AS67: =SUMIFS(DATA!AW$3:AW$794,DATA!$F$3:$F$794,$A67,DATA!$B$3:$B$794,$C$2) -> 1.49 | AT67: =SUMIFS(DATA!AX$3:AX$794,DATA!$F$3:$F$794,$A67,DATA!$B$3:$B$794,$C$2) -> 1.49 | AU67: =SUMIFS(DATA!AY$3:AY$794,DATA!$F$3:$F$794,$A67,DATA!$B$3:$B$794,$C$2) -> 1.5 | AV67: =SUMIFS(DATA!AZ$3:AZ$794,DATA!$F$3:$F$794,$A67,DATA!$B$3:$B$794,$C$2) -> 1.48 | AW67: =SUMIFS(DATA!BA$3:BA$794,DATA!$F$3:$F$794,$A67,DATA!$B$3:$B$794,$C$2) -> 1.48 | AX67: =SUMIFS(DATA!BB$3:BB$794,DATA!$F$3:$F$794,$A67,DATA!$B$3:$B$794,$C$2) -> 1.48 | AY67: =SUMIFS(DATA!BC$3:BC$794,DATA!$F$3:$F$794,$A67,DATA!$B$3:$B$794,$C$2) -> 1.49 | AZ67: =SUMIFS(DATA!BD$3:BD$794,DATA!$F$3:$F$794,$A67,DATA!$B$3:$B$794,$C$2) -> 1.48
A68: Capital Coverage Ratio | B68: [Formula] | C68: =C107/C129 -> 1.090069284 | D68: =D107/D129 -> 0.9005524862 | E68: 0.7665505226 | F68: 0.8981132075 | G68: 1.20531401 | H68: 1.360335196 | I68: 1.075980392 | J68: 1.545977011 | K68: 1.517326733 | L68: 1.568181818 | M68: 1.582846004 | N68: 1.661048689 | O68: 1.84180791 | P68: 2.066 | Q68: 2.673378076 | R68: 2.333984375 | S68: 2.453405018 | T68: 2.613175676 | U68: 2.717948718 | V68: 3.609345794 | W68: 1.840255591 | X68: 1.592797784 | Y68: 1.54015544 | Z68: 1.477132262 | AA68: 1.417647059 | AB68: 1.396416573 | AC68: 1.330490405 | AD68: 1.281407035 | AE68: 1.203358209 | AF68: 1.224281742 | AG68: 1.312089972 | AH68: 1.374031008 | AI68: 1.332099907 | AJ68: 1.208400646 | AK68: 1.477011494 | AL68: 1.480457579 | AM68: 1.497625831 | AN68: 1.517502365 | AO68: 1.458511548 | AP68: 1.467060811 | AQ68: 1.460066556 | AR68: 1.50122449 | AS68: 1.494391026 | AT68: 1.485849057 | AU68: 1.50308642 | AV68: 1.481818182 | AW68: 1.476225854 | AX68: 1.482129832 | AY68: 1.485325698 | AZ68: 1.479634831
A70: PROJECTED BALANCE SHEET
A72: ASSETS
A74: Plant in Service | C74: =SUMIFS(DATA!G$3:G$794,DATA!$F$3:$F$794,$A74,DATA!$B$3:$B$794,$C$2) -> 15374 | D74: =SUMIFS(DATA!H$3:H$794,DATA!$F$3:$F$794,$A74,DATA!$B$3:$B$794,$C$2) -> 16436 | E74: =SUMIFS(DATA!I$3:I$794,DATA!$F$3:$F$794,$A74,DATA!$B$3:$B$794,$C$2) -> 17108 | F74: =SUMIFS(DATA!J$3:J$794,DATA!$F$3:$F$794,$A74,DATA!$B$3:$B$794,$C$2) -> 18261 | G74: =SUMIFS(DATA!K$3:K$794,DATA!$F$3:$F$794,$A74,DATA!$B$3:$B$794,$C$2) -> 18821 | H74: =SUMIFS(DATA!L$3:L$794,DATA!$F$3:$F$794,$A74,DATA!$B$3:$B$794,$C$2) -> 22520 | I74: =SUMIFS(DATA!M$3:M$794,DATA!$F$3:$F$794,$A74,DATA!$B$3:$B$794,$C$2) -> 22947 | J74: =SUMIFS(DATA!N$3:N$794,DATA!$F$3:$F$794,$A74,DATA!$B$3:$B$794,$C$2) -> 25701 | K74: =SUMIFS(DATA!O$3:O$794,DATA!$F$3:$F$794,$A74,DATA!$B$3:$B$794,$C$2) -> 29723 | L74: =SUMIFS(DATA!P$3:P$794,DATA!$F$3:$F$794,$A74,DATA!$B$3:$B$794,$C$2) -> 30257 | M74: =SUMIFS(DATA!Q$3:Q$794,DATA!$F$3:$F$794,$A74,DATA!$B$3:$B$794,$C$2) -> 30788 | N74: =SUMIFS(DATA!R$3:R$794,DATA!$F$3:$F$794,$A74,DATA!$B$3:$B$794,$C$2) -> 31353 | O74: =SUMIFS(DATA!S$3:S$794,DATA!$F$3:$F$794,$A74,DATA!$B$3:$B$794,$C$2) -> 32042 | P74: =SUMIFS(DATA!T$3:T$794,DATA!$F$3:$F$794,$A74,DATA!$B$3:$B$794,$C$2) -> 37329 | Q74: =SUMIFS(DATA!U$3:U$794,DATA!$F$3:$F$794,$A74,DATA!$B$3:$B$794,$C$2) -> 42227 | R74: =SUMIFS(DATA!V$3:V$794,DATA!$F$3:$F$794,$A74,DATA!$B$3:$B$794,$C$2) -> 43649 | S74: =SUMIFS(DATA!W$3:W$794,DATA!$F$3:$F$794,$A74,DATA!$B$3:$B$794,$C$2) -> 44393 | T74: =SUMIFS(DATA!X$3:X$794,DATA!$F$3:$F$794,$A74,DATA!$B$3:$B$794,$C$2) -> 44951 | U74: =SUMIFS(DATA!Y$3:Y$794,DATA!$F$3:$F$794,$A74,DATA!$B$3:$B$794,$C$2) -> 46932 | V74: =SUMIFS(DATA!Z$3:Z$794,DATA!$F$3:$F$794,$A74,DATA!$B$3:$B$794,$C$2) -> 47662 | W74: =SUMIFS(DATA!AA$3:AA$794,DATA!$F$3:$F$794,$A74,DATA!$B$3:$B$794,$C$2) -> 48343 | X74: =SUMIFS(DATA!AB$3:AB$794,DATA!$F$3:$F$794,$A74,DATA!$B$3:$B$794,$C$2) -> 49688 | Y74: =SUMIFS(DATA!AC$3:AC$794,DATA!$F$3:$F$794,$A74,DATA!$B$3:$B$794,$C$2) -> 50210 | Z74: =SUMIFS(DATA!AD$3:AD$794,DATA!$F$3:$F$794,$A74,DATA!$B$3:$B$794,$C$2) -> 50754 | AA74: =SUMIFS(DATA!AE$3:AE$794,DATA!$F$3:$F$794,$A74,DATA!$B$3:$B$794,$C$2) -> 52076 | AB74: =SUMIFS(DATA!AF$3:AF$794,DATA!$F$3:$F$794,$A74,DATA!$B$3:$B$794,$C$2) -> 52660 | AC74: =SUMIFS(DATA!AG$3:AG$794,DATA!$F$3:$F$794,$A74,DATA!$B$3:$B$794,$C$2) -> 53263 | AD74: =SUMIFS(DATA!AH$3:AH$794,DATA!$F$3:$F$794,$A74,DATA!$B$3:$B$794,$C$2) -> 54262 | AE74: =SUMIFS(DATA!AI$3:AI$794,DATA!$F$3:$F$794,$A74,DATA!$B$3:$B$794,$C$2) -> 55013 | AF74: =SUMIFS(DATA!AJ$3:AJ$794,DATA!$F$3:$F$794,$A74,DATA!$B$3:$B$794,$C$2) -> 57700 | AG74: =SUMIFS(DATA!AK$3:AK$794,DATA!$F$3:$F$794,$A74,DATA!$B$3:$B$794,$C$2) -> 58375 | AH74: =SUMIFS(DATA!AL$3:AL$794,DATA!$F$3:$F$794,$A74,DATA!$B$3:$B$794,$C$2) -> 59079 | AI74: =SUMIFS(DATA!AM$3:AM$794,DATA!$F$3:$F$794,$A74,DATA!$B$3:$B$794,$C$2) -> 61113 | AJ74: =SUMIFS(DATA!AN$3:AN$794,DATA!$F$3:$F$794,$A74,DATA!$B$3:$B$794,$C$2) -> 62510 | AK74: =SUMIFS(DATA!AO$3:AO$794,DATA!$F$3:$F$794,$A74,DATA!$B$3:$B$794,$C$2) -> 63579 | AL74: =SUMIFS(DATA!AP$3:AP$794,DATA!$F$3:$F$794,$A74,DATA!$B$3:$B$794,$C$2) -> 64597 | AM74: =SUMIFS(DATA!AQ$3:AQ$794,DATA!$F$3:$F$794,$A74,DATA!$B$3:$B$794,$C$2) -> 65298 | AN74: =SUMIFS(DATA!AR$3:AR$794,DATA!$F$3:$F$794,$A74,DATA!$B$3:$B$794,$C$2) -> 67994 | AO74: =SUMIFS(DATA!AS$3:AS$794,DATA!$F$3:$F$794,$A74,DATA!$B$3:$B$794,$C$2) -> 69231 | AP74: =SUMIFS(DATA!AT$3:AT$794,DATA!$F$3:$F$794,$A74,DATA!$B$3:$B$794,$C$2) -> 70603 | AQ74: =SUMIFS(DATA!AU$3:AU$794,DATA!$F$3:$F$794,$A74,DATA!$B$3:$B$794,$C$2) -> 71980 | AR74: =SUMIFS(DATA!AV$3:AV$794,DATA!$F$3:$F$794,$A74,DATA!$B$3:$B$794,$C$2) -> 73389 | AS74: =SUMIFS(DATA!AW$3:AW$794,DATA!$F$3:$F$794,$A74,DATA!$B$3:$B$794,$C$2) -> 74915 | AT74: =SUMIFS(DATA!AX$3:AX$794,DATA!$F$3:$F$794,$A74,DATA!$B$3:$B$794,$C$2) -> 76463 | AU74: =SUMIFS(DATA!AY$3:AY$794,DATA!$F$3:$F$794,$A74,DATA!$B$3:$B$794,$C$2) -> 77836 | AV74: =SUMIFS(DATA!AZ$3:AZ$794,DATA!$F$3:$F$794,$A74,DATA!$B$3:$B$794,$C$2) -> 79198 | AW74: =SUMIFS(DATA!BA$3:BA$794,DATA!$F$3:$F$794,$A74,DATA!$B$3:$B$794,$C$2) -> 80623 | AX74: =SUMIFS(DATA!BB$3:BB$794,DATA!$F$3:$F$794,$A74,DATA!$B$3:$B$794,$C$2) -> 82045 | AY74: =SUMIFS(DATA!BC$3:BC$794,DATA!$F$3:$F$794,$A74,DATA!$B$3:$B$794,$C$2) -> 83525 | AZ74: =SUMIFS(DATA!BD$3:BD$794,DATA!$F$3:$F$794,$A74,DATA!$B$3:$B$794,$C$2) -> 85359
A75: Accumulated Depreciation | C75: =SUMIFS(DATA!G$3:G$794,DATA!$F$3:$F$794,$A75,DATA!$B$3:$B$794,$C$2) -> 5173 | D75: =SUMIFS(DATA!H$3:H$794,DATA!$F$3:$F$794,$A75,DATA!$B$3:$B$794,$C$2) -> 5536 | E75: =SUMIFS(DATA!I$3:I$794,DATA!$F$3:$F$794,$A75,DATA!$B$3:$B$794,$C$2) -> 5856 | F75: =SUMIFS(DATA!J$3:J$794,DATA!$F$3:$F$794,$A75,DATA!$B$3:$B$794,$C$2) -> 6223 | G75: =SUMIFS(DATA!K$3:K$794,DATA!$F$3:$F$794,$A75,DATA!$B$3:$B$794,$C$2) -> 6612 | H75: =SUMIFS(DATA!L$3:L$794,DATA!$F$3:$F$794,$A75,DATA!$B$3:$B$794,$C$2) -> 7028 | I75: =SUMIFS(DATA!M$3:M$794,DATA!$F$3:$F$794,$A75,DATA!$B$3:$B$794,$C$2) -> 7482 | J75: =SUMIFS(DATA!N$3:N$794,DATA!$F$3:$F$794,$A75,DATA!$B$3:$B$794,$C$2) -> 7938 | K75: =SUMIFS(DATA!O$3:O$794,DATA!$F$3:$F$794,$A75,DATA!$B$3:$B$794,$C$2) -> 8450 | L75: =SUMIFS(DATA!P$3:P$794,DATA!$F$3:$F$794,$A75,DATA!$B$3:$B$794,$C$2) -> 8997 | M75: =SUMIFS(DATA!Q$3:Q$794,DATA!$F$3:$F$794,$A75,DATA!$B$3:$B$794,$C$2) -> 9552 | N75: =SUMIFS(DATA!R$3:R$794,DATA!$F$3:$F$794,$A75,DATA!$B$3:$B$794,$C$2) -> 10107 | O75: =SUMIFS(DATA!S$3:S$794,DATA!$F$3:$F$794,$A75,DATA!$B$3:$B$794,$C$2) -> 10666 | P75: =SUMIFS(DATA!T$3:T$794,DATA!$F$3:$F$794,$A75,DATA!$B$3:$B$794,$C$2) -> 11264 | Q75: =SUMIFS(DATA!U$3:U$794,DATA!$F$3:$F$794,$A75,DATA!$B$3:$B$794,$C$2) -> 11930 | R75: =SUMIFS(DATA!V$3:V$794,DATA!$F$3:$F$794,$A75,DATA!$B$3:$B$794,$C$2) -> 12650 | S75: =SUMIFS(DATA!W$3:W$794,DATA!$F$3:$F$794,$A75,DATA!$B$3:$B$794,$C$2) -> 13373 | T75: =SUMIFS(DATA!X$3:X$794,DATA!$F$3:$F$794,$A75,DATA!$B$3:$B$794,$C$2) -> 14103 | U75: =SUMIFS(DATA!Y$3:Y$794,DATA!$F$3:$F$794,$A75,DATA!$B$3:$B$794,$C$2) -> 14861 | V75: =SUMIFS(DATA!Z$3:Z$794,DATA!$F$3:$F$794,$A75,DATA!$B$3:$B$794,$C$2) -> 15626 | W75: =SUMIFS(DATA!AA$3:AA$794,DATA!$F$3:$F$794,$A75,DATA!$B$3:$B$794,$C$2) -> 16390 | X75: =SUMIFS(DATA!AB$3:AB$794,DATA!$F$3:$F$794,$A75,DATA!$B$3:$B$794,$C$2) -> 17157 | Y75: =SUMIFS(DATA!AC$3:AC$794,DATA!$F$3:$F$794,$A75,DATA!$B$3:$B$794,$C$2) -> 17948 | Z75: =SUMIFS(DATA!AD$3:AD$794,DATA!$F$3:$F$794,$A75,DATA!$B$3:$B$794,$C$2) -> 18743 | AA75: =SUMIFS(DATA!AE$3:AE$794,DATA!$F$3:$F$794,$A75,DATA!$B$3:$B$794,$C$2) -> 19545 | AB75: =SUMIFS(DATA!AF$3:AF$794,DATA!$F$3:$F$794,$A75,DATA!$B$3:$B$794,$C$2) -> 20378 | AC75: =SUMIFS(DATA!AG$3:AG$794,DATA!$F$3:$F$794,$A75,DATA!$B$3:$B$794,$C$2) -> 21215 | AD75: =SUMIFS(DATA!AH$3:AH$794,DATA!$F$3:$F$794,$A75,DATA!$B$3:$B$794,$C$2) -> 22059 | AE75: =SUMIFS(DATA!AI$3:AI$794,DATA!$F$3:$F$794,$A75,DATA!$B$3:$B$794,$C$2) -> 22917 | AF75: =SUMIFS(DATA!AJ$3:AJ$794,DATA!$F$3:$F$794,$A75,DATA!$B$3:$B$794,$C$2) -> 23792 | AG75: =SUMIFS(DATA!AK$3:AK$794,DATA!$F$3:$F$794,$A75,DATA!$B$3:$B$794,$C$2) -> 24735 | AH75: =SUMIFS(DATA!AL$3:AL$794,DATA!$F$3:$F$794,$A75,DATA!$B$3:$B$794,$C$2) -> 25688 | AI75: =SUMIFS(DATA!AM$3:AM$794,DATA!$F$3:$F$794,$A75,DATA!$B$3:$B$794,$C$2) -> 26658 | AJ75: =SUMIFS(DATA!AN$3:AN$794,DATA!$F$3:$F$794,$A75,DATA!$B$3:$B$794,$C$2) -> 27674 | AK75: =SUMIFS(DATA!AO$3:AO$794,DATA!$F$3:$F$794,$A75,DATA!$B$3:$B$794,$C$2) -> 28719 | AL75: =SUMIFS(DATA!AP$3:AP$794,DATA!$F$3:$F$794,$A75,DATA!$B$3:$B$794,$C$2) -> 29781 | AM75: =SUMIFS(DATA!AQ$3:AQ$794,DATA!$F$3:$F$794,$A75,DATA!$B$3:$B$794,$C$2) -> 30866 | AN75: =SUMIFS(DATA!AR$3:AR$794,DATA!$F$3:$F$794,$A75,DATA!$B$3:$B$794,$C$2) -> 31966 | AO75: =SUMIFS(DATA!AS$3:AS$794,DATA!$F$3:$F$794,$A75,DATA!$B$3:$B$794,$C$2) -> 33152 | AP75: =SUMIFS(DATA!AT$3:AT$794,DATA!$F$3:$F$794,$A75,DATA!$B$3:$B$794,$C$2) -> 34364 | AQ75: =SUMIFS(DATA!AU$3:AU$794,DATA!$F$3:$F$794,$A75,DATA!$B$3:$B$794,$C$2) -> 35580 | AR75: =SUMIFS(DATA!AV$3:AV$794,DATA!$F$3:$F$794,$A75,DATA!$B$3:$B$794,$C$2) -> 36874 | AS75: =SUMIFS(DATA!AW$3:AW$794,DATA!$F$3:$F$794,$A75,DATA!$B$3:$B$794,$C$2) -> 38207 | AT75: =SUMIFS(DATA!AX$3:AX$794,DATA!$F$3:$F$794,$A75,DATA!$B$3:$B$794,$C$2) -> 39575 | AU75: =SUMIFS(DATA!AY$3:AY$794,DATA!$F$3:$F$794,$A75,DATA!$B$3:$B$794,$C$2) -> 40985 | AV75: =SUMIFS(DATA!AZ$3:AZ$794,DATA!$F$3:$F$794,$A75,DATA!$B$3:$B$794,$C$2) -> 42417 | AW75: =SUMIFS(DATA!BA$3:BA$794,DATA!$F$3:$F$794,$A75,DATA!$B$3:$B$794,$C$2) -> 43888 | AX75: =SUMIFS(DATA!BB$3:BB$794,DATA!$F$3:$F$794,$A75,DATA!$B$3:$B$794,$C$2) -> 45405 | AY75: =SUMIFS(DATA!BC$3:BC$794,DATA!$F$3:$F$794,$A75,DATA!$B$3:$B$794,$C$2) -> 46966 | AZ75: =SUMIFS(DATA!BD$3:BD$794,DATA!$F$3:$F$794,$A75,DATA!$B$3:$B$794,$C$2) -> 48570
A77: Net Plant in Service | C77: =C74-C75 -> 10201 | D77: =D74-D75 -> 10900 | E77: 11252 | F77: 12038 | G77: 12209 | H77: 15492 | I77: 15465 | J77: 17763 | K77: 21273 | L77: 21260 | M77: 21236 | N77: 21246 | O77: 21376 | P77: 26065 | Q77: 30297 | R77: 30999 | S77: 31020 | T77: 30848 | U77: 32071 | V77: 32036 | W77: 31953 | X77: 32531 | Y77: 32262 | Z77: 32011 | AA77: 32531 | AB77: 32282 | AC77: 32048 | AD77: 32203 | AE77: 32096 | AF77: 33908 | AG77: 33640 | AH77: 33391 | AI77: 34455 | AJ77: 34836 | AK77: 34860 | AL77: 34816 | AM77: 34432 | AN77: 36028 | AO77: 36079 | AP77: 36239 | AQ77: 36400 | AR77: 36515 | AS77: 36708 | AT77: 36888 | AU77: 36851 | AV77: 36781 | AW77: 36735 | AX77: 36640 | AY77: 36559 | AZ77: 36789
A79: Construction in Progress | C79: =SUMIFS(DATA!G$3:G$794,DATA!$F$3:$F$794,$A79,DATA!$B$3:$B$794,$C$2) -> 2105 | D79: =SUMIFS(DATA!H$3:H$794,DATA!$F$3:$F$794,$A79,DATA!$B$3:$B$794,$C$2) -> 2866 | E79: =SUMIFS(DATA!I$3:I$794,DATA!$F$3:$F$794,$A79,DATA!$B$3:$B$794,$C$2) -> 4164 | F79: =SUMIFS(DATA!J$3:J$794,DATA!$F$3:$F$794,$A79,DATA!$B$3:$B$794,$C$2) -> 5048 | G79: =SUMIFS(DATA!K$3:K$794,DATA!$F$3:$F$794,$A79,DATA!$B$3:$B$794,$C$2) -> 6617 | H79: =SUMIFS(DATA!L$3:L$794,DATA!$F$3:$F$794,$A79,DATA!$B$3:$B$794,$C$2) -> 5069 | I79: =SUMIFS(DATA!M$3:M$794,DATA!$F$3:$F$794,$A79,DATA!$B$3:$B$794,$C$2) -> 6411 | J79: =SUMIFS(DATA!N$3:N$794,DATA!$F$3:$F$794,$A79,DATA!$B$3:$B$794,$C$2) -> 5209 | K79: =SUMIFS(DATA!O$3:O$794,DATA!$F$3:$F$794,$A79,DATA!$B$3:$B$794,$C$2) -> 2873 | L79: =SUMIFS(DATA!P$3:P$794,DATA!$F$3:$F$794,$A79,DATA!$B$3:$B$794,$C$2) -> 4555 | M79: =SUMIFS(DATA!Q$3:Q$794,DATA!$F$3:$F$794,$A79,DATA!$B$3:$B$794,$C$2) -> 6192 | N79: =SUMIFS(DATA!R$3:R$794,DATA!$F$3:$F$794,$A79,DATA!$B$3:$B$794,$C$2) -> 7589 | O79: =SUMIFS(DATA!S$3:S$794,DATA!$F$3:$F$794,$A79,DATA!$B$3:$B$794,$C$2) -> 8716 | P79: =SUMIFS(DATA!T$3:T$794,DATA!$F$3:$F$794,$A79,DATA!$B$3:$B$794,$C$2) -> 5044 | Q79: =SUMIFS(DATA!U$3:U$794,DATA!$F$3:$F$794,$A79,DATA!$B$3:$B$794,$C$2) -> 1293 | R79: =SUMIFS(DATA!V$3:V$794,DATA!$F$3:$F$794,$A79,DATA!$B$3:$B$794,$C$2) -> 744 | S79: =SUMIFS(DATA!W$3:W$794,DATA!$F$3:$F$794,$A79,DATA!$B$3:$B$794,$C$2) -> 1075 | T79: =SUMIFS(DATA!X$3:X$794,DATA!$F$3:$F$794,$A79,DATA!$B$3:$B$794,$C$2) -> 1515 | U79: =SUMIFS(DATA!Y$3:Y$794,DATA!$F$3:$F$794,$A79,DATA!$B$3:$B$794,$C$2) -> 472 | V79: =SUMIFS(DATA!Z$3:Z$794,DATA!$F$3:$F$794,$A79,DATA!$B$3:$B$794,$C$2) -> 545 | W79: =SUMIFS(DATA!AA$3:AA$794,DATA!$F$3:$F$794,$A79,DATA!$B$3:$B$794,$C$2) -> 642 | X79: =SUMIFS(DATA!AB$3:AB$794,DATA!$F$3:$F$794,$A79,DATA!$B$3:$B$794,$C$2) -> 106 | Y79: =SUMIFS(DATA!AC$3:AC$794,DATA!$F$3:$F$794,$A79,DATA!$B$3:$B$794,$C$2) -> 395 | Z79: =SUMIFS(DATA!AD$3:AD$794,DATA!$F$3:$F$794,$A79,DATA!$B$3:$B$794,$C$2) -> 702 | AA79: =SUMIFS(DATA!AE$3:AE$794,DATA!$F$3:$F$794,$A79,DATA!$B$3:$B$794,$C$2) -> 269 | AB79: =SUMIFS(DATA!AF$3:AF$794,DATA!$F$3:$F$794,$A79,DATA!$B$3:$B$794,$C$2) -> 621 | AC79: =SUMIFS(DATA!AG$3:AG$794,DATA!$F$3:$F$794,$A79,DATA!$B$3:$B$794,$C$2) -> 997 | AD79: =SUMIFS(DATA!AH$3:AH$794,DATA!$F$3:$F$794,$A79,DATA!$B$3:$B$794,$C$2) -> 1205 | AE79: =SUMIFS(DATA!AI$3:AI$794,DATA!$F$3:$F$794,$A79,DATA!$B$3:$B$794,$C$2) -> 1808 | AF79: =SUMIFS(DATA!AJ$3:AJ$794,DATA!$F$3:$F$794,$A79,DATA!$B$3:$B$794,$C$2) -> 272 | AG79: =SUMIFS(DATA!AK$3:AK$794,DATA!$F$3:$F$794,$A79,DATA!$B$3:$B$794,$C$2) -> 851 | AH79: =SUMIFS(DATA!AL$3:AL$794,DATA!$F$3:$F$794,$A79,DATA!$B$3:$B$794,$C$2) -> 1440 | AI79: =SUMIFS(DATA!AM$3:AM$794,DATA!$F$3:$F$794,$A79,DATA!$B$3:$B$794,$C$2) -> 712 | AJ79: =SUMIFS(DATA!AN$3:AN$794,DATA!$F$3:$F$794,$A79,DATA!$B$3:$B$794,$C$2) -> 955 | AK79: =SUMIFS(DATA!AO$3:AO$794,DATA!$F$3:$F$794,$A79,DATA!$B$3:$B$794,$C$2) -> 1077 | AL79: =SUMIFS(DATA!AP$3:AP$794,DATA!$F$3:$F$794,$A79,DATA!$B$3:$B$794,$C$2) -> 1212 | AM79: =SUMIFS(DATA!AQ$3:AQ$794,DATA!$F$3:$F$794,$A79,DATA!$B$3:$B$794,$C$2) -> 1651 | AN79: =SUMIFS(DATA!AR$3:AR$794,DATA!$F$3:$F$794,$A79,DATA!$B$3:$B$794,$C$2) -> 137 | AO79: =SUMIFS(DATA!AS$3:AS$794,DATA!$F$3:$F$794,$A79,DATA!$B$3:$B$794,$C$2) -> 158 | AP79: =SUMIFS(DATA!AT$3:AT$794,DATA!$F$3:$F$794,$A79,DATA!$B$3:$B$794,$C$2) -> 128 | AQ79: =SUMIFS(DATA!AU$3:AU$794,DATA!$F$3:$F$794,$A79,DATA!$B$3:$B$794,$C$2) -> 122 | AR79: =SUMIFS(DATA!AV$3:AV$794,DATA!$F$3:$F$794,$A79,DATA!$B$3:$B$794,$C$2) -> 215 | AS79: =SUMIFS(DATA!AW$3:AW$794,DATA!$F$3:$F$794,$A79,DATA!$B$3:$B$794,$C$2) -> 139 | AT79: =SUMIFS(DATA!AX$3:AX$794,DATA!$F$3:$F$794,$A79,DATA!$B$3:$B$794,$C$2) -> 29 | AU79: =SUMIFS(DATA!AY$3:AY$794,DATA!$F$3:$F$794,$A79,DATA!$B$3:$B$794,$C$2) -> 56 | AV79: =SUMIFS(DATA!AZ$3:AZ$794,DATA!$F$3:$F$794,$A79,DATA!$B$3:$B$794,$C$2) -> 72 | AW79: =SUMIFS(DATA!BA$3:BA$794,DATA!$F$3:$F$794,$A79,DATA!$B$3:$B$794,$C$2) -> 97 | AX79: =SUMIFS(DATA!BB$3:BB$794,DATA!$F$3:$F$794,$A79,DATA!$B$3:$B$794,$C$2) -> 140 | AY79: =SUMIFS(DATA!BC$3:BC$794,DATA!$F$3:$F$794,$A79,DATA!$B$3:$B$794,$C$2) -> 200 | AZ79: =SUMIFS(DATA!BD$3:BD$794,DATA!$F$3:$F$794,$A79,DATA!$B$3:$B$794,$C$2) -> -89
A80: Current and Other Assets | C80: =SUMIFS(DATA!G$3:G$794,DATA!$F$3:$F$794,$A80,DATA!$B$3:$B$794,$C$2) -> 1869 | D80: =SUMIFS(DATA!H$3:H$794,DATA!$F$3:$F$794,$A80,DATA!$B$3:$B$794,$C$2) -> 1735 | E80: =SUMIFS(DATA!I$3:I$794,DATA!$F$3:$F$794,$A80,DATA!$B$3:$B$794,$C$2) -> 1391 | F80: =SUMIFS(DATA!J$3:J$794,DATA!$F$3:$F$794,$A80,DATA!$B$3:$B$794,$C$2) -> 1579 | G80: =SUMIFS(DATA!K$3:K$794,DATA!$F$3:$F$794,$A80,DATA!$B$3:$B$794,$C$2) -> 1791 | H80: =SUMIFS(DATA!L$3:L$794,DATA!$F$3:$F$794,$A80,DATA!$B$3:$B$794,$C$2) -> 2029 | I80: =SUMIFS(DATA!M$3:M$794,DATA!$F$3:$F$794,$A80,DATA!$B$3:$B$794,$C$2) -> 1845 | J80: =SUMIFS(DATA!N$3:N$794,DATA!$F$3:$F$794,$A80,DATA!$B$3:$B$794,$C$2) -> 1968 | K80: =SUMIFS(DATA!O$3:O$794,DATA!$F$3:$F$794,$A80,DATA!$B$3:$B$794,$C$2) -> 2032 | L80: =SUMIFS(DATA!P$3:P$794,DATA!$F$3:$F$794,$A80,DATA!$B$3:$B$794,$C$2) -> 1696 | M80: =SUMIFS(DATA!Q$3:Q$794,DATA!$F$3:$F$794,$A80,DATA!$B$3:$B$794,$C$2) -> 1782 | N80: =SUMIFS(DATA!R$3:R$794,DATA!$F$3:$F$794,$A80,DATA!$B$3:$B$794,$C$2) -> 2083 | O80: =SUMIFS(DATA!S$3:S$794,DATA!$F$3:$F$794,$A80,DATA!$B$3:$B$794,$C$2) -> 2335 | P80: =SUMIFS(DATA!T$3:T$794,DATA!$F$3:$F$794,$A80,DATA!$B$3:$B$794,$C$2) -> 2173 | Q80: =SUMIFS(DATA!U$3:U$794,DATA!$F$3:$F$794,$A80,DATA!$B$3:$B$794,$C$2) -> 2461 | R80: =SUMIFS(DATA!V$3:V$794,DATA!$F$3:$F$794,$A80,DATA!$B$3:$B$794,$C$2) -> 2758 | S80: =SUMIFS(DATA!W$3:W$794,DATA!$F$3:$F$794,$A80,DATA!$B$3:$B$794,$C$2) -> 3115 | T80: =SUMIFS(DATA!X$3:X$794,DATA!$F$3:$F$794,$A80,DATA!$B$3:$B$794,$C$2) -> 3351 | U80: =SUMIFS(DATA!Y$3:Y$794,DATA!$F$3:$F$794,$A80,DATA!$B$3:$B$794,$C$2) -> 3339 | V80: =SUMIFS(DATA!Z$3:Z$794,DATA!$F$3:$F$794,$A80,DATA!$B$3:$B$794,$C$2) -> 4380 | W80: =SUMIFS(DATA!AA$3:AA$794,DATA!$F$3:$F$794,$A80,DATA!$B$3:$B$794,$C$2) -> 4443 | X80: =SUMIFS(DATA!AB$3:AB$794,DATA!$F$3:$F$794,$A80,DATA!$B$3:$B$794,$C$2) -> 2696 | Y80: =SUMIFS(DATA!AC$3:AC$794,DATA!$F$3:$F$794,$A80,DATA!$B$3:$B$794,$C$2) -> 2779 | Z80: =SUMIFS(DATA!AD$3:AD$794,DATA!$F$3:$F$794,$A80,DATA!$B$3:$B$794,$C$2) -> 2737 | AA80: =SUMIFS(DATA!AE$3:AE$794,DATA!$F$3:$F$794,$A80,DATA!$B$3:$B$794,$C$2) -> 2549 | AB80: =SUMIFS(DATA!AF$3:AF$794,DATA!$F$3:$F$794,$A80,DATA!$B$3:$B$794,$C$2) -> 2598 | AC80: =SUMIFS(DATA!AG$3:AG$794,DATA!$F$3:$F$794,$A80,DATA!$B$3:$B$794,$C$2) -> 2549 | AD80: =SUMIFS(DATA!AH$3:AH$794,DATA!$F$3:$F$794,$A80,DATA!$B$3:$B$794,$C$2) -> 2591 | AE80: =SUMIFS(DATA!AI$3:AI$794,DATA!$F$3:$F$794,$A80,DATA!$B$3:$B$794,$C$2) -> 2541 | AF80: =SUMIFS(DATA!AJ$3:AJ$794,DATA!$F$3:$F$794,$A80,DATA!$B$3:$B$794,$C$2) -> 2516 | AG80: =SUMIFS(DATA!AK$3:AK$794,DATA!$F$3:$F$794,$A80,DATA!$B$3:$B$794,$C$2) -> 2468 | AH80: =SUMIFS(DATA!AL$3:AL$794,DATA!$F$3:$F$794,$A80,DATA!$B$3:$B$794,$C$2) -> 2699 | AI80: =SUMIFS(DATA!AM$3:AM$794,DATA!$F$3:$F$794,$A80,DATA!$B$3:$B$794,$C$2) -> 2748 | AJ80: =SUMIFS(DATA!AN$3:AN$794,DATA!$F$3:$F$794,$A80,DATA!$B$3:$B$794,$C$2) -> 2564 | AK80: =SUMIFS(DATA!AO$3:AO$794,DATA!$F$3:$F$794,$A80,DATA!$B$3:$B$794,$C$2) -> 2884 | AL80: =SUMIFS(DATA!AP$3:AP$794,DATA!$F$3:$F$794,$A80,DATA!$B$3:$B$794,$C$2) -> 3079 | AM80: =SUMIFS(DATA!AQ$3:AQ$794,DATA!$F$3:$F$794,$A80,DATA!$B$3:$B$794,$C$2) -> 3100 | AN80: =SUMIFS(DATA!AR$3:AR$794,DATA!$F$3:$F$794,$A80,DATA!$B$3:$B$794,$C$2) -> 2969 | AO80: =SUMIFS(DATA!AS$3:AS$794,DATA!$F$3:$F$794,$A80,DATA!$B$3:$B$794,$C$2) -> 3175 | AP80: =SUMIFS(DATA!AT$3:AT$794,DATA!$F$3:$F$794,$A80,DATA!$B$3:$B$794,$C$2) -> 3315 | AQ80: =SUMIFS(DATA!AU$3:AU$794,DATA!$F$3:$F$794,$A80,DATA!$B$3:$B$794,$C$2) -> 3415 | AR80: =SUMIFS(DATA!AV$3:AV$794,DATA!$F$3:$F$794,$A80,DATA!$B$3:$B$794,$C$2) -> 3304 | AS80: =SUMIFS(DATA!AW$3:AW$794,DATA!$F$3:$F$794,$A80,DATA!$B$3:$B$794,$C$2) -> 1871 | AT80: =SUMIFS(DATA!AX$3:AX$794,DATA!$F$3:$F$794,$A80,DATA!$B$3:$B$794,$C$2) -> 1273 | AU80: =SUMIFS(DATA!AY$3:AY$794,DATA!$F$3:$F$794,$A80,DATA!$B$3:$B$794,$C$2) -> 972 | AV80: =SUMIFS(DATA!AZ$3:AZ$794,DATA!$F$3:$F$794,$A80,DATA!$B$3:$B$794,$C$2) -> 866 | AW80: =SUMIFS(DATA!BA$3:BA$794,DATA!$F$3:$F$794,$A80,DATA!$B$3:$B$794,$C$2) -> 723 | AX80: =SUMIFS(DATA!BB$3:BB$794,DATA!$F$3:$F$794,$A80,DATA!$B$3:$B$794,$C$2) -> 284 | AY80: =SUMIFS(DATA!BC$3:BC$794,DATA!$F$3:$F$794,$A80,DATA!$B$3:$B$794,$C$2) -> 336 | AZ80: =SUMIFS(DATA!BD$3:BD$794,DATA!$F$3:$F$794,$A80,DATA!$B$3:$B$794,$C$2) -> 198
A81: Goodwill and Intangible Assets | C81: =SUMIFS(DATA!G$3:G$794,DATA!$F$3:$F$794,$A81,DATA!$B$3:$B$794,$C$2) -> 180 | D81: =SUMIFS(DATA!H$3:H$794,DATA!$F$3:$F$794,$A81,DATA!$B$3:$B$794,$C$2) -> 165 | E81: =SUMIFS(DATA!I$3:I$794,DATA!$F$3:$F$794,$A81,DATA!$B$3:$B$794,$C$2) -> 151 | F81: =SUMIFS(DATA!J$3:J$794,DATA!$F$3:$F$794,$A81,DATA!$B$3:$B$794,$C$2) -> 136 | G81: =SUMIFS(DATA!K$3:K$794,DATA!$F$3:$F$794,$A81,DATA!$B$3:$B$794,$C$2) -> 126 | H81: =SUMIFS(DATA!L$3:L$794,DATA!$F$3:$F$794,$A81,DATA!$B$3:$B$794,$C$2) -> 116 | I81: =SUMIFS(DATA!M$3:M$794,DATA!$F$3:$F$794,$A81,DATA!$B$3:$B$794,$C$2) -> 140 | J81: =SUMIFS(DATA!N$3:N$794,DATA!$F$3:$F$794,$A81,DATA!$B$3:$B$794,$C$2) -> 147 | K81: =SUMIFS(DATA!O$3:O$794,DATA!$F$3:$F$794,$A81,DATA!$B$3:$B$794,$C$2) -> 231 | L81: =SUMIFS(DATA!P$3:P$794,DATA!$F$3:$F$794,$A81,DATA!$B$3:$B$794,$C$2) -> 224 | M81: =SUMIFS(DATA!Q$3:Q$794,DATA!$F$3:$F$794,$A81,DATA!$B$3:$B$794,$C$2) -> 218 | N81: =SUMIFS(DATA!R$3:R$794,DATA!$F$3:$F$794,$A81,DATA!$B$3:$B$794,$C$2) -> 214 | O81: =SUMIFS(DATA!S$3:S$794,DATA!$F$3:$F$794,$A81,DATA!$B$3:$B$794,$C$2) -> 210 | P81: =SUMIFS(DATA!T$3:T$794,DATA!$F$3:$F$794,$A81,DATA!$B$3:$B$794,$C$2) -> 207 | Q81: =SUMIFS(DATA!U$3:U$794,DATA!$F$3:$F$794,$A81,DATA!$B$3:$B$794,$C$2) -> 203 | R81: =SUMIFS(DATA!V$3:V$794,DATA!$F$3:$F$794,$A81,DATA!$B$3:$B$794,$C$2) -> 199 | S81: =SUMIFS(DATA!W$3:W$794,DATA!$F$3:$F$794,$A81,DATA!$B$3:$B$794,$C$2) -> 196 | T81: =SUMIFS(DATA!X$3:X$794,DATA!$F$3:$F$794,$A81,DATA!$B$3:$B$794,$C$2) -> 192 | U81: =SUMIFS(DATA!Y$3:Y$794,DATA!$F$3:$F$794,$A81,DATA!$B$3:$B$794,$C$2) -> 188 | V81: =SUMIFS(DATA!Z$3:Z$794,DATA!$F$3:$F$794,$A81,DATA!$B$3:$B$794,$C$2) -> 185 | W81: =SUMIFS(DATA!AA$3:AA$794,DATA!$F$3:$F$794,$A81,DATA!$B$3:$B$794,$C$2) -> 181 | X81: =SUMIFS(DATA!AB$3:AB$794,DATA!$F$3:$F$794,$A81,DATA!$B$3:$B$794,$C$2) -> 177 | Y81: =SUMIFS(DATA!AC$3:AC$794,DATA!$F$3:$F$794,$A81,DATA!$B$3:$B$794,$C$2) -> 174 | Z81: =SUMIFS(DATA!AD$3:AD$794,DATA!$F$3:$F$794,$A81,DATA!$B$3:$B$794,$C$2) -> 170 | AA81: =SUMIFS(DATA!AE$3:AE$794,DATA!$F$3:$F$794,$A81,DATA!$B$3:$B$794,$C$2) -> 166 | AB81: =SUMIFS(DATA!AF$3:AF$794,DATA!$F$3:$F$794,$A81,DATA!$B$3:$B$794,$C$2) -> 163 | AC81: =SUMIFS(DATA!AG$3:AG$794,DATA!$F$3:$F$794,$A81,DATA!$B$3:$B$794,$C$2) -> 159 | AD81: =SUMIFS(DATA!AH$3:AH$794,DATA!$F$3:$F$794,$A81,DATA!$B$3:$B$794,$C$2) -> 155 | AE81: =SUMIFS(DATA!AI$3:AI$794,DATA!$F$3:$F$794,$A81,DATA!$B$3:$B$794,$C$2) -> 152 | AF81: =SUMIFS(DATA!AJ$3:AJ$794,DATA!$F$3:$F$794,$A81,DATA!$B$3:$B$794,$C$2) -> 148 | AG81: =SUMIFS(DATA!AK$3:AK$794,DATA!$F$3:$F$794,$A81,DATA!$B$3:$B$794,$C$2) -> 144 | AH81: =SUMIFS(DATA!AL$3:AL$794,DATA!$F$3:$F$794,$A81,DATA!$B$3:$B$794,$C$2) -> 141 | AI81: =SUMIFS(DATA!AM$3:AM$794,DATA!$F$3:$F$794,$A81,DATA!$B$3:$B$794,$C$2) -> 137 | AJ81: =SUMIFS(DATA!AN$3:AN$794,DATA!$F$3:$F$794,$A81,DATA!$B$3:$B$794,$C$2) -> 133 | AK81: =SUMIFS(DATA!AO$3:AO$794,DATA!$F$3:$F$794,$A81,DATA!$B$3:$B$794,$C$2) -> 130 | AL81: =SUMIFS(DATA!AP$3:AP$794,DATA!$F$3:$F$794,$A81,DATA!$B$3:$B$794,$C$2) -> 126 | AM81: =SUMIFS(DATA!AQ$3:AQ$794,DATA!$F$3:$F$794,$A81,DATA!$B$3:$B$794,$C$2) -> 123 | AN81: =SUMIFS(DATA!AR$3:AR$794,DATA!$F$3:$F$794,$A81,DATA!$B$3:$B$794,$C$2) -> 119 | AO81: =SUMIFS(DATA!AS$3:AS$794,DATA!$F$3:$F$794,$A81,DATA!$B$3:$B$794,$C$2) -> 115 | AP81: =SUMIFS(DATA!AT$3:AT$794,DATA!$F$3:$F$794,$A81,DATA!$B$3:$B$794,$C$2) -> 112 | AQ81: =SUMIFS(DATA!AU$3:AU$794,DATA!$F$3:$F$794,$A81,DATA!$B$3:$B$794,$C$2) -> 108 | AR81: =SUMIFS(DATA!AV$3:AV$794,DATA!$F$3:$F$794,$A81,DATA!$B$3:$B$794,$C$2) -> 104 | AS81: =SUMIFS(DATA!AW$3:AW$794,DATA!$F$3:$F$794,$A81,DATA!$B$3:$B$794,$C$2) -> 101 | AT81: =SUMIFS(DATA!AX$3:AX$794,DATA!$F$3:$F$794,$A81,DATA!$B$3:$B$794,$C$2) -> 97 | AU81: =SUMIFS(DATA!AY$3:AY$794,DATA!$F$3:$F$794,$A81,DATA!$B$3:$B$794,$C$2) -> 94 | AV81: =SUMIFS(DATA!AZ$3:AZ$794,DATA!$F$3:$F$794,$A81,DATA!$B$3:$B$794,$C$2) -> 90 | AW81: =SUMIFS(DATA!BA$3:BA$794,DATA!$F$3:$F$794,$A81,DATA!$B$3:$B$794,$C$2) -> 86 | AX81: =SUMIFS(DATA!BB$3:BB$794,DATA!$F$3:$F$794,$A81,DATA!$B$3:$B$794,$C$2) -> 83 | AY81: =SUMIFS(DATA!BC$3:BC$794,DATA!$F$3:$F$794,$A81,DATA!$B$3:$B$794,$C$2) -> 79 | AZ81: =SUMIFS(DATA!BD$3:BD$794,DATA!$F$3:$F$794,$A81,DATA!$B$3:$B$794,$C$2) -> 76
A82: Regulated Assets | C82: =SUMIFS(DATA!G$3:G$794,DATA!$F$3:$F$794,$A82,DATA!$B$3:$B$794,$C$2) -> 231 | D82: =SUMIFS(DATA!H$3:H$794,DATA!$F$3:$F$794,$A82,DATA!$B$3:$B$794,$C$2) -> 225 | E82: =SUMIFS(DATA!I$3:I$794,DATA!$F$3:$F$794,$A82,DATA!$B$3:$B$794,$C$2) -> 0 | F82: =SUMIFS(DATA!J$3:J$794,DATA!$F$3:$F$794,$A82,DATA!$B$3:$B$794,$C$2) -> 0 | G82: =SUMIFS(DATA!K$3:K$794,DATA!$F$3:$F$794,$A82,DATA!$B$3:$B$794,$C$2) -> 0 | H82: =SUMIFS(DATA!L$3:L$794,DATA!$F$3:$F$794,$A82,DATA!$B$3:$B$794,$C$2) -> 0 | I82: =SUMIFS(DATA!M$3:M$794,DATA!$F$3:$F$794,$A82,DATA!$B$3:$B$794,$C$2) -> 0 | J82: =SUMIFS(DATA!N$3:N$794,DATA!$F$3:$F$794,$A82,DATA!$B$3:$B$794,$C$2) -> 0 | K82: =SUMIFS(DATA!O$3:O$794,DATA!$F$3:$F$794,$A82,DATA!$B$3:$B$794,$C$2) -> 0 | L82: =SUMIFS(DATA!P$3:P$794,DATA!$F$3:$F$794,$A82,DATA!$B$3:$B$794,$C$2) -> 0 | M82: =SUMIFS(DATA!Q$3:Q$794,DATA!$F$3:$F$794,$A82,DATA!$B$3:$B$794,$C$2) -> 0 | N82: =SUMIFS(DATA!R$3:R$794,DATA!$F$3:$F$794,$A82,DATA!$B$3:$B$794,$C$2) -> 0 | O82: =SUMIFS(DATA!S$3:S$794,DATA!$F$3:$F$794,$A82,DATA!$B$3:$B$794,$C$2) -> 0 | P82: =SUMIFS(DATA!T$3:T$794,DATA!$F$3:$F$794,$A82,DATA!$B$3:$B$794,$C$2) -> 0 | Q82: =SUMIFS(DATA!U$3:U$794,DATA!$F$3:$F$794,$A82,DATA!$B$3:$B$794,$C$2) -> 0 | R82: =SUMIFS(DATA!V$3:V$794,DATA!$F$3:$F$794,$A82,DATA!$B$3:$B$794,$C$2) -> 0 | S82: =SUMIFS(DATA!W$3:W$794,DATA!$F$3:$F$794,$A82,DATA!$B$3:$B$794,$C$2) -> 0 | T82: =SUMIFS(DATA!X$3:X$794,DATA!$F$3:$F$794,$A82,DATA!$B$3:$B$794,$C$2) -> 0 | U82: =SUMIFS(DATA!Y$3:Y$794,DATA!$F$3:$F$794,$A82,DATA!$B$3:$B$794,$C$2) -> 0 | V82: =SUMIFS(DATA!Z$3:Z$794,DATA!$F$3:$F$794,$A82,DATA!$B$3:$B$794,$C$2) -> 0 | W82: =SUMIFS(DATA!AA$3:AA$794,DATA!$F$3:$F$794,$A82,DATA!$B$3:$B$794,$C$2) -> 0 | X82: =SUMIFS(DATA!AB$3:AB$794,DATA!$F$3:$F$794,$A82,DATA!$B$3:$B$794,$C$2) -> 0 | Y82: =SUMIFS(DATA!AC$3:AC$794,DATA!$F$3:$F$794,$A82,DATA!$B$3:$B$794,$C$2) -> 0 | Z82: =SUMIFS(DATA!AD$3:AD$794,DATA!$F$3:$F$794,$A82,DATA!$B$3:$B$794,$C$2) -> 0 | AA82: =SUMIFS(DATA!AE$3:AE$794,DATA!$F$3:$F$794,$A82,DATA!$B$3:$B$794,$C$2) -> 0 | AB82: =SUMIFS(DATA!AF$3:AF$794,DATA!$F$3:$F$794,$A82,DATA!$B$3:$B$794,$C$2) -> 0 | AC82: =SUMIFS(DATA!AG$3:AG$794,DATA!$F$3:$F$794,$A82,DATA!$B$3:$B$794,$C$2) -> 0 | AD82: =SUMIFS(DATA!AH$3:AH$794,DATA!$F$3:$F$794,$A82,DATA!$B$3:$B$794,$C$2) -> 0 | AE82: =SUMIFS(DATA!AI$3:AI$794,DATA!$F$3:$F$794,$A82,DATA!$B$3:$B$794,$C$2) -> 0 | AF82: =SUMIFS(DATA!AJ$3:AJ$794,DATA!$F$3:$F$794,$A82,DATA!$B$3:$B$794,$C$2) -> 0 | AG82: =SUMIFS(DATA!AK$3:AK$794,DATA!$F$3:$F$794,$A82,DATA!$B$3:$B$794,$C$2) -> 0 | AH82: =SUMIFS(DATA!AL$3:AL$794,DATA!$F$3:$F$794,$A82,DATA!$B$3:$B$794,$C$2) -> 0 | AI82: =SUMIFS(DATA!AM$3:AM$794,DATA!$F$3:$F$794,$A82,DATA!$B$3:$B$794,$C$2) -> 0 | AJ82: =SUMIFS(DATA!AN$3:AN$794,DATA!$F$3:$F$794,$A82,DATA!$B$3:$B$794,$C$2) -> 0 | AK82: =SUMIFS(DATA!AO$3:AO$794,DATA!$F$3:$F$794,$A82,DATA!$B$3:$B$794,$C$2) -> 0 | AL82: =SUMIFS(DATA!AP$3:AP$794,DATA!$F$3:$F$794,$A82,DATA!$B$3:$B$794,$C$2) -> 0 | AM82: =SUMIFS(DATA!AQ$3:AQ$794,DATA!$F$3:$F$794,$A82,DATA!$B$3:$B$794,$C$2) -> 0 | AN82: =SUMIFS(DATA!AR$3:AR$794,DATA!$F$3:$F$794,$A82,DATA!$B$3:$B$794,$C$2) -> 0 | AO82: =SUMIFS(DATA!AS$3:AS$794,DATA!$F$3:$F$794,$A82,DATA!$B$3:$B$794,$C$2) -> 0 | AP82: =SUMIFS(DATA!AT$3:AT$794,DATA!$F$3:$F$794,$A82,DATA!$B$3:$B$794,$C$2) -> 0 | AQ82: =SUMIFS(DATA!AU$3:AU$794,DATA!$F$3:$F$794,$A82,DATA!$B$3:$B$794,$C$2) -> 0 | AR82: =SUMIFS(DATA!AV$3:AV$794,DATA!$F$3:$F$794,$A82,DATA!$B$3:$B$794,$C$2) -> 0 | AS82: =SUMIFS(DATA!AW$3:AW$794,DATA!$F$3:$F$794,$A82,DATA!$B$3:$B$794,$C$2) -> 0 | AT82: =SUMIFS(DATA!AX$3:AX$794,DATA!$F$3:$F$794,$A82,DATA!$B$3:$B$794,$C$2) -> 0 | AU82: =SUMIFS(DATA!AY$3:AY$794,DATA!$F$3:$F$794,$A82,DATA!$B$3:$B$794,$C$2) -> 0 | AV82: =SUMIFS(DATA!AZ$3:AZ$794,DATA!$F$3:$F$794,$A82,DATA!$B$3:$B$794,$C$2) -> 0 | AW82: =SUMIFS(DATA!BA$3:BA$794,DATA!$F$3:$F$794,$A82,DATA!$B$3:$B$794,$C$2) -> 0 | AX82: =SUMIFS(DATA!BB$3:BB$794,DATA!$F$3:$F$794,$A82,DATA!$B$3:$B$794,$C$2) -> 0 | AY82: =SUMIFS(DATA!BC$3:BC$794,DATA!$F$3:$F$794,$A82,DATA!$B$3:$B$794,$C$2) -> 0 | AZ82: =SUMIFS(DATA!BD$3:BD$794,DATA!$F$3:$F$794,$A82,DATA!$B$3:$B$794,$C$2) -> 0
A83: Total Assets | B83: [Formula] | C83: =SUM(C77:C82) -> 14586 | D83: =SUM(D77:D82) -> 15891 | E83: 16958 | F83: 18801 | G83: 20743 | H83: 22706 | I83: 23861 | J83: 25087 | K83: 26409 | L83: 27735 | M83: 29428 | N83: 31132 | O83: 32637 | P83: 33489 | Q83: 34254 | R83: 34700 | S83: 35406 | T83: 35906 | U83: 36070 | V83: =SUM(V77:V82) -> 37146 | W83: 37219 | X83: 35510 | Y83: 35610 | Z83: 35620 | AA83: 35515 | AB83: 35664 | AC83: 35753 | AD83: 36154 | AE83: 36597 | AF83: 36844 | AG83: 37103 | AH83: 37671 | AI83: 38052 | AJ83: 38488 | AK83: 38951 | AL83: 39233 | AM83: 39306 | AN83: 39253 | AO83: 39527 | AP83: 39794 | AQ83: 40045 | AR83: 40138 | AS83: 38819 | AT83: 38287 | AU83: 37973 | AV83: 37809 | AW83: 37641 | AX83: 37147 | AY83: 37174 | AZ83: 36974
A84: Total Assets | B84: [Original] | C84: =SUMIFS(DATA!G$3:G$794,DATA!$F$3:$F$794,$A84,DATA!$B$3:$B$794,$C$2) -> 14587 | D84: =SUMIFS(DATA!H$3:H$794,DATA!$F$3:$F$794,$A84,DATA!$B$3:$B$794,$C$2) -> 15890 | E84: =SUMIFS(DATA!I$3:I$794,DATA!$F$3:$F$794,$A84,DATA!$B$3:$B$794,$C$2) -> 16958 | F84: =SUMIFS(DATA!J$3:J$794,DATA!$F$3:$F$794,$A84,DATA!$B$3:$B$794,$C$2) -> 18802 | G84: =SUMIFS(DATA!K$3:K$794,DATA!$F$3:$F$794,$A84,DATA!$B$3:$B$794,$C$2) -> 20742 | H84: =SUMIFS(DATA!L$3:L$794,DATA!$F$3:$F$794,$A84,DATA!$B$3:$B$794,$C$2) -> 22707 | I84: =SUMIFS(DATA!M$3:M$794,DATA!$F$3:$F$794,$A84,DATA!$B$3:$B$794,$C$2) -> 23861 | J84: =SUMIFS(DATA!N$3:N$794,DATA!$F$3:$F$794,$A84,DATA!$B$3:$B$794,$C$2) -> 25086 | K84: =SUMIFS(DATA!O$3:O$794,DATA!$F$3:$F$794,$A84,DATA!$B$3:$B$794,$C$2) -> 26409 | L84: =SUMIFS(DATA!P$3:P$794,DATA!$F$3:$F$794,$A84,DATA!$B$3:$B$794,$C$2) -> 27735 | M84: =SUMIFS(DATA!Q$3:Q$794,DATA!$F$3:$F$794,$A84,DATA!$B$3:$B$794,$C$2) -> 29430 | N84: =SUMIFS(DATA!R$3:R$794,DATA!$F$3:$F$794,$A84,DATA!$B$3:$B$794,$C$2) -> 31133 | O84: =SUMIFS(DATA!S$3:S$794,DATA!$F$3:$F$794,$A84,DATA!$B$3:$B$794,$C$2) -> 32637 | P84: =SUMIFS(DATA!T$3:T$794,DATA!$F$3:$F$794,$A84,DATA!$B$3:$B$794,$C$2) -> 33488 | Q84: =SUMIFS(DATA!U$3:U$794,DATA!$F$3:$F$794,$A84,DATA!$B$3:$B$794,$C$2) -> 34255 | R84: =SUMIFS(DATA!V$3:V$794,DATA!$F$3:$F$794,$A84,DATA!$B$3:$B$794,$C$2) -> 34700 | S84: =SUMIFS(DATA!W$3:W$794,DATA!$F$3:$F$794,$A84,DATA!$B$3:$B$794,$C$2) -> 35406 | T84: =SUMIFS(DATA!X$3:X$794,DATA!$F$3:$F$794,$A84,DATA!$B$3:$B$794,$C$2) -> 35906 | U84: =SUMIFS(DATA!Y$3:Y$794,DATA!$F$3:$F$794,$A84,DATA!$B$3:$B$794,$C$2) -> 36071 | V84: =SUMIFS(DATA!Z$3:Z$794,DATA!$F$3:$F$794,$A84,DATA!$B$3:$B$794,$C$2) -> 37145 | W84: =SUMIFS(DATA!AA$3:AA$794,DATA!$F$3:$F$794,$A84,DATA!$B$3:$B$794,$C$2) -> 37220 | X84: =SUMIFS(DATA!AB$3:AB$794,DATA!$F$3:$F$794,$A84,DATA!$B$3:$B$794,$C$2) -> 35511 | Y84: =SUMIFS(DATA!AC$3:AC$794,DATA!$F$3:$F$794,$A84,DATA!$B$3:$B$794,$C$2) -> 35610 | Z84: =SUMIFS(DATA!AD$3:AD$794,DATA!$F$3:$F$794,$A84,DATA!$B$3:$B$794,$C$2) -> 35621 | AA84: =SUMIFS(DATA!AE$3:AE$794,DATA!$F$3:$F$794,$A84,DATA!$B$3:$B$794,$C$2) -> 35516 | AB84: =SUMIFS(DATA!AF$3:AF$794,DATA!$F$3:$F$794,$A84,DATA!$B$3:$B$794,$C$2) -> 35664 | AC84: =SUMIFS(DATA!AG$3:AG$794,DATA!$F$3:$F$794,$A84,DATA!$B$3:$B$794,$C$2) -> 35753 | AD84: =SUMIFS(DATA!AH$3:AH$794,DATA!$F$3:$F$794,$A84,DATA!$B$3:$B$794,$C$2) -> 36154 | AE84: =SUMIFS(DATA!AI$3:AI$794,DATA!$F$3:$F$794,$A84,DATA!$B$3:$B$794,$C$2) -> 36597 | AF84: =SUMIFS(DATA!AJ$3:AJ$794,DATA!$F$3:$F$794,$A84,DATA!$B$3:$B$794,$C$2) -> 36844 | AG84: =SUMIFS(DATA!AK$3:AK$794,DATA!$F$3:$F$794,$A84,DATA!$B$3:$B$794,$C$2) -> 37103 | AH84: =SUMIFS(DATA!AL$3:AL$794,DATA!$F$3:$F$794,$A84,DATA!$B$3:$B$794,$C$2) -> 37671 | AI84: =SUMIFS(DATA!AM$3:AM$794,DATA!$F$3:$F$794,$A84,DATA!$B$3:$B$794,$C$2) -> 38053 | AJ84: =SUMIFS(DATA!AN$3:AN$794,DATA!$F$3:$F$794,$A84,DATA!$B$3:$B$794,$C$2) -> 38489 | AK84: =SUMIFS(DATA!AO$3:AO$794,DATA!$F$3:$F$794,$A84,DATA!$B$3:$B$794,$C$2) -> 38950 | AL84: =SUMIFS(DATA!AP$3:AP$794,DATA!$F$3:$F$794,$A84,DATA!$B$3:$B$794,$C$2) -> 39233 | AM84: =SUMIFS(DATA!AQ$3:AQ$794,DATA!$F$3:$F$794,$A84,DATA!$B$3:$B$794,$C$2) -> 39306 | AN84: =SUMIFS(DATA!AR$3:AR$794,DATA!$F$3:$F$794,$A84,DATA!$B$3:$B$794,$C$2) -> 39253 | AO84: =SUMIFS(DATA!AS$3:AS$794,DATA!$F$3:$F$794,$A84,DATA!$B$3:$B$794,$C$2) -> 39527 | AP84: =SUMIFS(DATA!AT$3:AT$794,DATA!$F$3:$F$794,$A84,DATA!$B$3:$B$794,$C$2) -> 39794 | AQ84: =SUMIFS(DATA!AU$3:AU$794,DATA!$F$3:$F$794,$A84,DATA!$B$3:$B$794,$C$2) -> 40045 | AR84: =SUMIFS(DATA!AV$3:AV$794,DATA!$F$3:$F$794,$A84,DATA!$B$3:$B$794,$C$2) -> 40138 | AS84: =SUMIFS(DATA!AW$3:AW$794,DATA!$F$3:$F$794,$A84,DATA!$B$3:$B$794,$C$2) -> 38818 | AT84: =SUMIFS(DATA!AX$3:AX$794,DATA!$F$3:$F$794,$A84,DATA!$B$3:$B$794,$C$2) -> 38289 | AU84: =SUMIFS(DATA!AY$3:AY$794,DATA!$F$3:$F$794,$A84,DATA!$B$3:$B$794,$C$2) -> 37972 | AV84: =SUMIFS(DATA!AZ$3:AZ$794,DATA!$F$3:$F$794,$A84,DATA!$B$3:$B$794,$C$2) -> 37809 | AW84: =SUMIFS(DATA!BA$3:BA$794,DATA!$F$3:$F$794,$A84,DATA!$B$3:$B$794,$C$2) -> 37642 | AX84: =SUMIFS(DATA!BB$3:BB$794,DATA!$F$3:$F$794,$A84,DATA!$B$3:$B$794,$C$2) -> 37147 | AY84: =SUMIFS(DATA!BC$3:BC$794,DATA!$F$3:$F$794,$A84,DATA!$B$3:$B$794,$C$2) -> 37174 | AZ84: =SUMIFS(DATA!BD$3:BD$794,DATA!$F$3:$F$794,$A84,DATA!$B$3:$B$794,$C$2) -> 36973
B85: [Difference] | C85: =C83-C84 -> -1 | D85: =D83-D84 -> 1 | E85: 0 | F85: -1 | G85: 1 | H85: -1 | I85: 0 | J85: 1 | K85: 0 | L85: 0 | M85: -2 | N85: -1 | O85: 0 | P85: 1 | Q85: -1 | R85: 0 | S85: 0 | T85: 0 | U85: -1 | V85: 1 | W85: -1 | X85: -1 | Y85: 0 | Z85: -1 | AA85: -1 | AB85: 0 | AC85: 0 | AD85: 0 | AE85: 0 | AF85: 0 | AG85: 0 | AH85: 0 | AI85: -1 | AJ85: -1 | AK85: 1 | AL85: 0 | AM85: 0 | AN85: 0 | AO85: 0 | AP85: 0 | AQ85: 0 | AR85: 0 | AS85: 1 | AT85: -2 | AU85: 1 | AV85: 0 | AW85: -1 | AX85: 0 | AY85: 0 | AZ85: 1
A87: LIABILITIES AND EQUITY
A89: Long Term Debt | C89: =SUMIFS(DATA!G$3:G$794,DATA!$F$3:$F$794,$A89,DATA!$B$3:$B$794,$C$2) -> 9289 | D89: =SUMIFS(DATA!H$3:H$794,DATA!$F$3:$F$794,$A89,DATA!$B$3:$B$794,$C$2) -> 11260 | E89: =SUMIFS(DATA!I$3:I$794,DATA!$F$3:$F$794,$A89,DATA!$B$3:$B$794,$C$2) -> 12802 | F89: =SUMIFS(DATA!J$3:J$794,DATA!$F$3:$F$794,$A89,DATA!$B$3:$B$794,$C$2) -> 14474 | G89: =SUMIFS(DATA!K$3:K$794,DATA!$F$3:$F$794,$A89,DATA!$B$3:$B$794,$C$2) -> 16170 | H89: =SUMIFS(DATA!L$3:L$794,DATA!$F$3:$F$794,$A89,DATA!$B$3:$B$794,$C$2) -> 17742 | I89: =SUMIFS(DATA!M$3:M$794,DATA!$F$3:$F$794,$A89,DATA!$B$3:$B$794,$C$2) -> 19438 | J89: =SUMIFS(DATA!N$3:N$794,DATA!$F$3:$F$794,$A89,DATA!$B$3:$B$794,$C$2) -> 20404 | K89: =SUMIFS(DATA!O$3:O$794,DATA!$F$3:$F$794,$A89,DATA!$B$3:$B$794,$C$2) -> 21727 | L89: =SUMIFS(DATA!P$3:P$794,DATA!$F$3:$F$794,$A89,DATA!$B$3:$B$794,$C$2) -> 23077 | M89: =SUMIFS(DATA!Q$3:Q$794,DATA!$F$3:$F$794,$A89,DATA!$B$3:$B$794,$C$2) -> 25080 | N89: =SUMIFS(DATA!R$3:R$794,DATA!$F$3:$F$794,$A89,DATA!$B$3:$B$794,$C$2) -> 26482 | O89: =SUMIFS(DATA!S$3:S$794,DATA!$F$3:$F$794,$A89,DATA!$B$3:$B$794,$C$2) -> 27235 | P89: =SUMIFS(DATA!T$3:T$794,DATA!$F$3:$F$794,$A89,DATA!$B$3:$B$794,$C$2) -> 28038 | Q89: =SUMIFS(DATA!U$3:U$794,DATA!$F$3:$F$794,$A89,DATA!$B$3:$B$794,$C$2) -> 28239 | R89: =SUMIFS(DATA!V$3:V$794,DATA!$F$3:$F$794,$A89,DATA!$B$3:$B$794,$C$2) -> 28380 | S89: =SUMIFS(DATA!W$3:W$794,DATA!$F$3:$F$794,$A89,DATA!$B$3:$B$794,$C$2) -> 28331 | T89: =SUMIFS(DATA!X$3:X$794,DATA!$F$3:$F$794,$A89,DATA!$B$3:$B$794,$C$2) -> 27634 | U89: =SUMIFS(DATA!Y$3:Y$794,DATA!$F$3:$F$794,$A89,DATA!$B$3:$B$794,$C$2) -> 27623 | V89: =SUMIFS(DATA!Z$3:Z$794,DATA!$F$3:$F$794,$A89,DATA!$B$3:$B$794,$C$2) -> 27396 | W89: =SUMIFS(DATA!AA$3:AA$794,DATA!$F$3:$F$794,$A89,DATA!$B$3:$B$794,$C$2) -> 25199 | X89: =SUMIFS(DATA!AB$3:AB$794,DATA!$F$3:$F$794,$A89,DATA!$B$3:$B$794,$C$2) -> 23601 | Y89: =SUMIFS(DATA!AC$3:AC$794,DATA!$F$3:$F$794,$A89,DATA!$B$3:$B$794,$C$2) -> 22920 | Z89: =SUMIFS(DATA!AD$3:AD$794,DATA!$F$3:$F$794,$A89,DATA!$B$3:$B$794,$C$2) -> 22521 | AA89: =SUMIFS(DATA!AE$3:AE$794,DATA!$F$3:$F$794,$A89,DATA!$B$3:$B$794,$C$2) -> 21573 | AB89: =SUMIFS(DATA!AF$3:AF$794,DATA!$F$3:$F$794,$A89,DATA!$B$3:$B$794,$C$2) -> 21975 | AC89: =SUMIFS(DATA!AG$3:AG$794,DATA!$F$3:$F$794,$A89,DATA!$B$3:$B$794,$C$2) -> 22277 | AD89: =SUMIFS(DATA!AH$3:AH$794,DATA!$F$3:$F$794,$A89,DATA!$B$3:$B$794,$C$2) -> 22029 | AE89: =SUMIFS(DATA!AI$3:AI$794,DATA!$F$3:$F$794,$A89,DATA!$B$3:$B$794,$C$2) -> 22179 | AF89: =SUMIFS(DATA!AJ$3:AJ$794,DATA!$F$3:$F$794,$A89,DATA!$B$3:$B$794,$C$2) -> 22078 | AG89: =SUMIFS(DATA!AK$3:AK$794,DATA!$F$3:$F$794,$A89,DATA!$B$3:$B$794,$C$2) -> 22827 | AH89: =SUMIFS(DATA!AL$3:AL$794,DATA!$F$3:$F$794,$A89,DATA!$B$3:$B$794,$C$2) -> 23425 | AI89: =SUMIFS(DATA!AM$3:AM$794,DATA!$F$3:$F$794,$A89,DATA!$B$3:$B$794,$C$2) -> 23824 | AJ89: =SUMIFS(DATA!AN$3:AN$794,DATA!$F$3:$F$794,$A89,DATA!$B$3:$B$794,$C$2) -> 24422 | AK89: =SUMIFS(DATA!AO$3:AO$794,DATA!$F$3:$F$794,$A89,DATA!$B$3:$B$794,$C$2) -> 24820 | AL89: =SUMIFS(DATA!AP$3:AP$794,DATA!$F$3:$F$794,$A89,DATA!$B$3:$B$794,$C$2) -> 24819 | AM89: =SUMIFS(DATA!AQ$3:AQ$794,DATA!$F$3:$F$794,$A89,DATA!$B$3:$B$794,$C$2) -> 24492 | AN89: =SUMIFS(DATA!AR$3:AR$794,DATA!$F$3:$F$794,$A89,DATA!$B$3:$B$794,$C$2) -> 24490 | AO89: =SUMIFS(DATA!AS$3:AS$794,DATA!$F$3:$F$794,$A89,DATA!$B$3:$B$794,$C$2) -> 24490 | AP89: =SUMIFS(DATA!AT$3:AT$794,DATA!$F$3:$F$794,$A89,DATA!$B$3:$B$794,$C$2) -> 24439 | AQ89: =SUMIFS(DATA!AU$3:AU$794,DATA!$F$3:$F$794,$A89,DATA!$B$3:$B$794,$C$2) -> 24239 | AR89: =SUMIFS(DATA!AV$3:AV$794,DATA!$F$3:$F$794,$A89,DATA!$B$3:$B$794,$C$2) -> 22638 | AS89: =SUMIFS(DATA!AW$3:AW$794,DATA!$F$3:$F$794,$A89,DATA!$B$3:$B$794,$C$2) -> 20638 | AT89: =SUMIFS(DATA!AX$3:AX$794,DATA!$F$3:$F$794,$A89,DATA!$B$3:$B$794,$C$2) -> 19837 | AU89: =SUMIFS(DATA!AY$3:AY$794,DATA!$F$3:$F$794,$A89,DATA!$B$3:$B$794,$C$2) -> 18429 | AV89: =SUMIFS(DATA!AZ$3:AZ$794,DATA!$F$3:$F$794,$A89,DATA!$B$3:$B$794,$C$2) -> 18629 | AW89: =SUMIFS(DATA!BA$3:BA$794,DATA!$F$3:$F$794,$A89,DATA!$B$3:$B$794,$C$2) -> 18303 | AX89: =SUMIFS(DATA!BB$3:BB$794,DATA!$F$3:$F$794,$A89,DATA!$B$3:$B$794,$C$2) -> 17302 | AY89: =SUMIFS(DATA!BC$3:BC$794,DATA!$F$3:$F$794,$A89,DATA!$B$3:$B$794,$C$2) -> 17302 | AZ89: =SUMIFS(DATA!BD$3:BD$794,DATA!$F$3:$F$794,$A89,DATA!$B$3:$B$794,$C$2) -> 16852
A90: Incremental Long Term Debt | D90: =D89-C89 -> 1971 | E90: =E89-D89 -> 1542 | F90: 1672 | G90: 1696 | H90: 1572 | I90: 1696 | J90: 966 | K90: 1323 | L90: 1350 | M90: 2003 | N90: 1402 | O90: 753 | P90: 803 | Q90: 201 | R90: 141 | S90: -49 | T90: -697 | U90: -11 | V90: -227 | W90: -2197 | X90: -1598 | Y90: -681 | Z90: -399 | AA90: -948 | AB90: 402 | AC90: 302 | AD90: -248 | AE90: 150 | AF90: -101 | AG90: 749 | AH90: 598 | AI90: 399 | AJ90: 598 | AK90: 398 | AL90: -1 | AM90: -327 | AN90: -2 | AO90: 0 | AP90: -51 | AQ90: -200 | AR90: -1601 | AS90: -2000 | AT90: -801 | AU90: -1408 | AV90: 200 | AW90: -326 | AX90: -1001 | AY90: 0 | AZ90: -450
A91: Current and Other Liabilities | C91: =SUMIFS(DATA!G$3:G$794,DATA!$F$3:$F$794,$A91,DATA!$B$3:$B$794,$C$2) -> 2231 | D91: =SUMIFS(DATA!H$3:H$794,DATA!$F$3:$F$794,$A91,DATA!$B$3:$B$794,$C$2) -> 1503 | E91: =SUMIFS(DATA!I$3:I$794,DATA!$F$3:$F$794,$A91,DATA!$B$3:$B$794,$C$2) -> 1659 | F91: =SUMIFS(DATA!J$3:J$794,DATA!$F$3:$F$794,$A91,DATA!$B$3:$B$794,$C$2) -> 1795 | G91: =SUMIFS(DATA!K$3:K$794,DATA!$F$3:$F$794,$A91,DATA!$B$3:$B$794,$C$2) -> 2007 | H91: =SUMIFS(DATA!L$3:L$794,DATA!$F$3:$F$794,$A91,DATA!$B$3:$B$794,$C$2) -> 2381 | I91: =SUMIFS(DATA!M$3:M$794,DATA!$F$3:$F$794,$A91,DATA!$B$3:$B$794,$C$2) -> 1904 | J91: =SUMIFS(DATA!N$3:N$794,DATA!$F$3:$F$794,$A91,DATA!$B$3:$B$794,$C$2) -> 2140 | K91: =SUMIFS(DATA!O$3:O$794,DATA!$F$3:$F$794,$A91,DATA!$B$3:$B$794,$C$2) -> 2092 | L91: =SUMIFS(DATA!P$3:P$794,DATA!$F$3:$F$794,$A91,DATA!$B$3:$B$794,$C$2) -> 1988 | M91: =SUMIFS(DATA!Q$3:Q$794,DATA!$F$3:$F$794,$A91,DATA!$B$3:$B$794,$C$2) -> 1491 | N91: =SUMIFS(DATA!R$3:R$794,DATA!$F$3:$F$794,$A91,DATA!$B$3:$B$794,$C$2) -> 1523 | O91: =SUMIFS(DATA!S$3:S$794,DATA!$F$3:$F$794,$A91,DATA!$B$3:$B$794,$C$2) -> 1921 | P91: =SUMIFS(DATA!T$3:T$794,DATA!$F$3:$F$794,$A91,DATA!$B$3:$B$794,$C$2) -> 1590 | Q91: =SUMIFS(DATA!U$3:U$794,DATA!$F$3:$F$794,$A91,DATA!$B$3:$B$794,$C$2) -> 1690 | R91: =SUMIFS(DATA!V$3:V$794,DATA!$F$3:$F$794,$A91,DATA!$B$3:$B$794,$C$2) -> 1586 | S91: =SUMIFS(DATA!W$3:W$794,DATA!$F$3:$F$794,$A91,DATA!$B$3:$B$794,$C$2) -> 1766 | T91: =SUMIFS(DATA!X$3:X$794,DATA!$F$3:$F$794,$A91,DATA!$B$3:$B$794,$C$2) -> 2219 | U91: =SUMIFS(DATA!Y$3:Y$794,DATA!$F$3:$F$794,$A91,DATA!$B$3:$B$794,$C$2) -> 1531 | V91: =SUMIFS(DATA!Z$3:Z$794,DATA!$F$3:$F$794,$A91,DATA!$B$3:$B$794,$C$2) -> 1751 | W91: =SUMIFS(DATA!AA$3:AA$794,DATA!$F$3:$F$794,$A91,DATA!$B$3:$B$794,$C$2) -> 3724 | X91: =SUMIFS(DATA!AB$3:AB$794,DATA!$F$3:$F$794,$A91,DATA!$B$3:$B$794,$C$2) -> 3315 | Y91: =SUMIFS(DATA!AC$3:AC$794,DATA!$F$3:$F$794,$A91,DATA!$B$3:$B$794,$C$2) -> 3800 | Z91: =SUMIFS(DATA!AD$3:AD$794,DATA!$F$3:$F$794,$A91,DATA!$B$3:$B$794,$C$2) -> 3915 | AA91: =SUMIFS(DATA!AE$3:AE$794,DATA!$F$3:$F$794,$A91,DATA!$B$3:$B$794,$C$2) -> 4465 | AB91: =SUMIFS(DATA!AF$3:AF$794,DATA!$F$3:$F$794,$A91,DATA!$B$3:$B$794,$C$2) -> 3922 | AC91: =SUMIFS(DATA!AG$3:AG$794,DATA!$F$3:$F$794,$A91,DATA!$B$3:$B$794,$C$2) -> 3422 | AD91: =SUMIFS(DATA!AH$3:AH$794,DATA!$F$3:$F$794,$A91,DATA!$B$3:$B$794,$C$2) -> 3785 | AE91: =SUMIFS(DATA!AI$3:AI$794,DATA!$F$3:$F$794,$A91,DATA!$B$3:$B$794,$C$2) -> 3792 | AF91: =SUMIFS(DATA!AJ$3:AJ$794,DATA!$F$3:$F$794,$A91,DATA!$B$3:$B$794,$C$2) -> 3854 | AG91: =SUMIFS(DATA!AK$3:AK$794,DATA!$F$3:$F$794,$A91,DATA!$B$3:$B$794,$C$2) -> 3078 | AH91: =SUMIFS(DATA!AL$3:AL$794,DATA!$F$3:$F$794,$A91,DATA!$B$3:$B$794,$C$2) -> 2761 | AI91: =SUMIFS(DATA!AM$3:AM$794,DATA!$F$3:$F$794,$A91,DATA!$B$3:$B$794,$C$2) -> 2457 | AJ91: =SUMIFS(DATA!AN$3:AN$794,DATA!$F$3:$F$794,$A91,DATA!$B$3:$B$794,$C$2) -> 2008 | AK91: =SUMIFS(DATA!AO$3:AO$794,DATA!$F$3:$F$794,$A91,DATA!$B$3:$B$794,$C$2) -> 1784 | AL91: =SUMIFS(DATA!AP$3:AP$794,DATA!$F$3:$F$794,$A91,DATA!$B$3:$B$794,$C$2) -> 1790 | AM91: =SUMIFS(DATA!AQ$3:AQ$794,DATA!$F$3:$F$794,$A91,DATA!$B$3:$B$794,$C$2) -> 1913 | AN91: =SUMIFS(DATA!AR$3:AR$794,DATA!$F$3:$F$794,$A91,DATA!$B$3:$B$794,$C$2) -> 1590 | AO91: =SUMIFS(DATA!AS$3:AS$794,DATA!$F$3:$F$794,$A91,DATA!$B$3:$B$794,$C$2) -> 1593 | AP91: =SUMIFS(DATA!AT$3:AT$794,DATA!$F$3:$F$794,$A91,DATA!$B$3:$B$794,$C$2) -> 1643 | AQ91: =SUMIFS(DATA!AU$3:AU$794,DATA!$F$3:$F$794,$A91,DATA!$B$3:$B$794,$C$2) -> 1817 | AR91: =SUMIFS(DATA!AV$3:AV$794,DATA!$F$3:$F$794,$A91,DATA!$B$3:$B$794,$C$2) -> 3237 | AS91: =SUMIFS(DATA!AW$3:AW$794,DATA!$F$3:$F$794,$A91,DATA!$B$3:$B$794,$C$2) -> 3650 | AT91: =SUMIFS(DATA!AX$3:AX$794,DATA!$F$3:$F$794,$A91,DATA!$B$3:$B$794,$C$2) -> 3664 | AU91: =SUMIFS(DATA!AY$3:AY$794,DATA!$F$3:$F$794,$A91,DATA!$B$3:$B$794,$C$2) -> 4502 | AV91: =SUMIFS(DATA!AZ$3:AZ$794,DATA!$F$3:$F$794,$A91,DATA!$B$3:$B$794,$C$2) -> 3896 | AW91: =SUMIFS(DATA!BA$3:BA$794,DATA!$F$3:$F$794,$A91,DATA!$B$3:$B$794,$C$2) -> 3818 | AX91: =SUMIFS(DATA!BB$3:BB$794,DATA!$F$3:$F$794,$A91,DATA!$B$3:$B$794,$C$2) -> 4090 | AY91: =SUMIFS(DATA!BC$3:BC$794,DATA!$F$3:$F$794,$A91,DATA!$B$3:$B$794,$C$2) -> 3889 | AZ91: =SUMIFS(DATA!BD$3:BD$794,DATA!$F$3:$F$794,$A91,DATA!$B$3:$B$794,$C$2) -> 3915
A92: Contributions in Aid of Construction | C92: =SUMIFS(DATA!G$3:G$794,DATA!$F$3:$F$794,$A92,DATA!$B$3:$B$794,$C$2) -> 325 | D92: =SUMIFS(DATA!H$3:H$794,DATA!$F$3:$F$794,$A92,DATA!$B$3:$B$794,$C$2) -> 334 | E92: =SUMIFS(DATA!I$3:I$794,DATA!$F$3:$F$794,$A92,DATA!$B$3:$B$794,$C$2) -> 339 | F92: =SUMIFS(DATA!J$3:J$794,DATA!$F$3:$F$794,$A92,DATA!$B$3:$B$794,$C$2) -> 344 | G92: =SUMIFS(DATA!K$3:K$794,DATA!$F$3:$F$794,$A92,DATA!$B$3:$B$794,$C$2) -> 348 | H92: =SUMIFS(DATA!L$3:L$794,DATA!$F$3:$F$794,$A92,DATA!$B$3:$B$794,$C$2) -> 358 | I92: =SUMIFS(DATA!M$3:M$794,DATA!$F$3:$F$794,$A92,DATA!$B$3:$B$794,$C$2) -> 364 | J92: =SUMIFS(DATA!N$3:N$794,DATA!$F$3:$F$794,$A92,DATA!$B$3:$B$794,$C$2) -> 371 | K92: =SUMIFS(DATA!O$3:O$794,DATA!$F$3:$F$794,$A92,DATA!$B$3:$B$794,$C$2) -> 378 | L92: =SUMIFS(DATA!P$3:P$794,DATA!$F$3:$F$794,$A92,DATA!$B$3:$B$794,$C$2) -> 385 | M92: =SUMIFS(DATA!Q$3:Q$794,DATA!$F$3:$F$794,$A92,DATA!$B$3:$B$794,$C$2) -> 392 | N92: =SUMIFS(DATA!R$3:R$794,DATA!$F$3:$F$794,$A92,DATA!$B$3:$B$794,$C$2) -> 400 | O92: =SUMIFS(DATA!S$3:S$794,DATA!$F$3:$F$794,$A92,DATA!$B$3:$B$794,$C$2) -> 407 | P92: =SUMIFS(DATA!T$3:T$794,DATA!$F$3:$F$794,$A92,DATA!$B$3:$B$794,$C$2) -> 415 | Q92: =SUMIFS(DATA!U$3:U$794,DATA!$F$3:$F$794,$A92,DATA!$B$3:$B$794,$C$2) -> 422 | R92: =SUMIFS(DATA!V$3:V$794,DATA!$F$3:$F$794,$A92,DATA!$B$3:$B$794,$C$2) -> 430 | S92: =SUMIFS(DATA!W$3:W$794,DATA!$F$3:$F$794,$A92,DATA!$B$3:$B$794,$C$2) -> 438 | T92: =SUMIFS(DATA!X$3:X$794,DATA!$F$3:$F$794,$A92,DATA!$B$3:$B$794,$C$2) -> 446 | U92: =SUMIFS(DATA!Y$3:Y$794,DATA!$F$3:$F$794,$A92,DATA!$B$3:$B$794,$C$2) -> 455 | V92: =SUMIFS(DATA!Z$3:Z$794,DATA!$F$3:$F$794,$A92,DATA!$B$3:$B$794,$C$2) -> 463 | W92: =SUMIFS(DATA!AA$3:AA$794,DATA!$F$3:$F$794,$A92,DATA!$B$3:$B$794,$C$2) -> 472 | X92: =SUMIFS(DATA!AB$3:AB$794,DATA!$F$3:$F$794,$A92,DATA!$B$3:$B$794,$C$2) -> 482 | Y92: =SUMIFS(DATA!AC$3:AC$794,DATA!$F$3:$F$794,$A92,DATA!$B$3:$B$794,$C$2) -> 492 | Z92: =SUMIFS(DATA!AD$3:AD$794,DATA!$F$3:$F$794,$A92,DATA!$B$3:$B$794,$C$2) -> 502 | AA92: =SUMIFS(DATA!AE$3:AE$794,DATA!$F$3:$F$794,$A92,DATA!$B$3:$B$794,$C$2) -> 512 | AB92: =SUMIFS(DATA!AF$3:AF$794,DATA!$F$3:$F$794,$A92,DATA!$B$3:$B$794,$C$2) -> 522 | AC92: =SUMIFS(DATA!AG$3:AG$794,DATA!$F$3:$F$794,$A92,DATA!$B$3:$B$794,$C$2) -> 533 | AD92: =SUMIFS(DATA!AH$3:AH$794,DATA!$F$3:$F$794,$A92,DATA!$B$3:$B$794,$C$2) -> 543 | AE92: =SUMIFS(DATA!AI$3:AI$794,DATA!$F$3:$F$794,$A92,DATA!$B$3:$B$794,$C$2) -> 554 | AF92: =SUMIFS(DATA!AJ$3:AJ$794,DATA!$F$3:$F$794,$A92,DATA!$B$3:$B$794,$C$2) -> 565 | AG92: =SUMIFS(DATA!AK$3:AK$794,DATA!$F$3:$F$794,$A92,DATA!$B$3:$B$794,$C$2) -> 577 | AH92: =SUMIFS(DATA!AL$3:AL$794,DATA!$F$3:$F$794,$A92,DATA!$B$3:$B$794,$C$2) -> 588 | AI92: =SUMIFS(DATA!AM$3:AM$794,DATA!$F$3:$F$794,$A92,DATA!$B$3:$B$794,$C$2) -> 600 | AJ92: =SUMIFS(DATA!AN$3:AN$794,DATA!$F$3:$F$794,$A92,DATA!$B$3:$B$794,$C$2) -> 611 | AK92: =SUMIFS(DATA!AO$3:AO$794,DATA!$F$3:$F$794,$A92,DATA!$B$3:$B$794,$C$2) -> 622 | AL92: =SUMIFS(DATA!AP$3:AP$794,DATA!$F$3:$F$794,$A92,DATA!$B$3:$B$794,$C$2) -> 634 | AM92: =SUMIFS(DATA!AQ$3:AQ$794,DATA!$F$3:$F$794,$A92,DATA!$B$3:$B$794,$C$2) -> 645 | AN92: =SUMIFS(DATA!AR$3:AR$794,DATA!$F$3:$F$794,$A92,DATA!$B$3:$B$794,$C$2) -> 656 | AO92: =SUMIFS(DATA!AS$3:AS$794,DATA!$F$3:$F$794,$A92,DATA!$B$3:$B$794,$C$2) -> 666 | AP92: =SUMIFS(DATA!AT$3:AT$794,DATA!$F$3:$F$794,$A92,DATA!$B$3:$B$794,$C$2) -> 677 | AQ92: =SUMIFS(DATA!AU$3:AU$794,DATA!$F$3:$F$794,$A92,DATA!$B$3:$B$794,$C$2) -> 700 | AR92: =SUMIFS(DATA!AV$3:AV$794,DATA!$F$3:$F$794,$A92,DATA!$B$3:$B$794,$C$2) -> 722 | AS92: =SUMIFS(DATA!AW$3:AW$794,DATA!$F$3:$F$794,$A92,DATA!$B$3:$B$794,$C$2) -> 745 | AT92: =SUMIFS(DATA!AX$3:AX$794,DATA!$F$3:$F$794,$A92,DATA!$B$3:$B$794,$C$2) -> 768 | AU92: =SUMIFS(DATA!AY$3:AY$794,DATA!$F$3:$F$794,$A92,DATA!$B$3:$B$794,$C$2) -> 791 | AV92: =SUMIFS(DATA!AZ$3:AZ$794,DATA!$F$3:$F$794,$A92,DATA!$B$3:$B$794,$C$2) -> 813 | AW92: =SUMIFS(DATA!BA$3:BA$794,DATA!$F$3:$F$794,$A92,DATA!$B$3:$B$794,$C$2) -> 836 | AX92: =SUMIFS(DATA!BB$3:BB$794,DATA!$F$3:$F$794,$A92,DATA!$B$3:$B$794,$C$2) -> 859 | AY92: =SUMIFS(DATA!BC$3:BC$794,DATA!$F$3:$F$794,$A92,DATA!$B$3:$B$794,$C$2) -> 881 | AZ92: =SUMIFS(DATA!BD$3:BD$794,DATA!$F$3:$F$794,$A92,DATA!$B$3:$B$794,$C$2) -> 904
A93: [All Cases 2015 Retained Earnings Adj.] | E93: -257
A94: Retained Earnings | B94: [Formula] | C94: 2442 | D94: =C94+D46+D93 -> 2504.635 | E94: 2299.759072 | F94: 2380.015829 | G94: 2451.785584 | H94: 2493.011822 | I94: 2440.898818 | J94: 2477.952395 | K94: 2541.388299 | L94: 2639.807689 | M94: 2837.602548 | N94: 3097.725929 | O94: 3441.417782 | P94: 3813.218323 | Q94: 4268.982008 | R94: 4667.892141 | S94: 5233.172111 | T94: 5964.079899 | U94: 6817.036905 | V94: 7885.867927 | W94: 8176.067927 | X94: 8464.667927 | Y94: 8749.267927 | Z94: 9033.867927 | AA94: 9316.467927 | AB94: 9596.067927 | AC94: 9872.467927 | AD94: 10147.46793 | AE94: 10422.82166 | AF94: 10698.42166 | AG94: 10973.42166 | AH94: 11248.62166 | AI94: 11523.66915 | AJ94: =AI94+AJ46+AJ93 -> 11798.86915 | AK94: 12074.46915 | AL94: 12343.23906 | AM94: 12607.95579 | AN94: 12868.02809 | AO94: 13127.27328 | AP94: 13382.90877 | AQ94: 13636.33726 | AR94: 13885.94259 | AS94: 14129.74165 | AT94: 14363.18594 | AU94: 14593.18101 | AV94: 14812.64802 | AW94: 15026.90962 | AX94: 15236.76301 | AY94: 15441.21169 | AZ94: 15640.0546
A95: Retained Earnings | B95: [Original] | C95: =SUMIFS(DATA!G$3:G$794,DATA!$F$3:$F$794,$A95,DATA!$B$3:$B$794,$C$2) -> 2442 | D95: =SUMIFS(DATA!H$3:H$794,DATA!$F$3:$F$794,$A95,DATA!$B$3:$B$794,$C$2) -> 2505 | E95: =SUMIFS(DATA!I$3:I$794,DATA!$F$3:$F$794,$A95,DATA!$B$3:$B$794,$C$2) -> 2299 | F95: =SUMIFS(DATA!J$3:J$794,DATA!$F$3:$F$794,$A95,DATA!$B$3:$B$794,$C$2) -> 2378 | G95: =SUMIFS(DATA!K$3:K$794,DATA!$F$3:$F$794,$A95,DATA!$B$3:$B$794,$C$2) -> 2450 | H95: =SUMIFS(DATA!L$3:L$794,DATA!$F$3:$F$794,$A95,DATA!$B$3:$B$794,$C$2) -> 2490 | I95: =SUMIFS(DATA!M$3:M$794,DATA!$F$3:$F$794,$A95,DATA!$B$3:$B$794,$C$2) -> 2437 | J95: =SUMIFS(DATA!N$3:N$794,DATA!$F$3:$F$794,$A95,DATA!$B$3:$B$794,$C$2) -> 2475 | K95: =SUMIFS(DATA!O$3:O$794,DATA!$F$3:$F$794,$A95,DATA!$B$3:$B$794,$C$2) -> 2538 | L95: =SUMIFS(DATA!P$3:P$794,DATA!$F$3:$F$794,$A95,DATA!$B$3:$B$794,$C$2) -> 2638 | M95: =SUMIFS(DATA!Q$3:Q$794,DATA!$F$3:$F$794,$A95,DATA!$B$3:$B$794,$C$2) -> 2837 | N95: =SUMIFS(DATA!R$3:R$794,DATA!$F$3:$F$794,$A95,DATA!$B$3:$B$794,$C$2) -> 3097 | O95: =SUMIFS(DATA!S$3:S$794,DATA!$F$3:$F$794,$A95,DATA!$B$3:$B$794,$C$2) -> 3443 | P95: =SUMIFS(DATA!T$3:T$794,DATA!$F$3:$F$794,$A95,DATA!$B$3:$B$794,$C$2) -> 3816 | Q95: =SUMIFS(DATA!U$3:U$794,DATA!$F$3:$F$794,$A95,DATA!$B$3:$B$794,$C$2) -> 4273 | R95: =SUMIFS(DATA!V$3:V$794,DATA!$F$3:$F$794,$A95,DATA!$B$3:$B$794,$C$2) -> 4673 | S95: =SUMIFS(DATA!W$3:W$794,DATA!$F$3:$F$794,$A95,DATA!$B$3:$B$794,$C$2) -> 5241 | T95: =SUMIFS(DATA!X$3:X$794,DATA!$F$3:$F$794,$A95,DATA!$B$3:$B$794,$C$2) -> 5975 | U95: =SUMIFS(DATA!Y$3:Y$794,DATA!$F$3:$F$794,$A95,DATA!$B$3:$B$794,$C$2) -> 6832 | V95: =SUMIFS(DATA!Z$3:Z$794,DATA!$F$3:$F$794,$A95,DATA!$B$3:$B$794,$C$2) -> 7904 | W95: =SUMIFS(DATA!AA$3:AA$794,DATA!$F$3:$F$794,$A95,DATA!$B$3:$B$794,$C$2) -> 8194 | X95: =SUMIFS(DATA!AB$3:AB$794,DATA!$F$3:$F$794,$A95,DATA!$B$3:$B$794,$C$2) -> 8483 | Y95: =SUMIFS(DATA!AC$3:AC$794,DATA!$F$3:$F$794,$A95,DATA!$B$3:$B$794,$C$2) -> 8767 | Z95: =SUMIFS(DATA!AD$3:AD$794,DATA!$F$3:$F$794,$A95,DATA!$B$3:$B$794,$C$2) -> 9052 | AA95: =SUMIFS(DATA!AE$3:AE$794,DATA!$F$3:$F$794,$A95,DATA!$B$3:$B$794,$C$2) -> 9335 | AB95: =SUMIFS(DATA!AF$3:AF$794,DATA!$F$3:$F$794,$A95,DATA!$B$3:$B$794,$C$2) -> 9614 | AC95: =SUMIFS(DATA!AG$3:AG$794,DATA!$F$3:$F$794,$A95,DATA!$B$3:$B$794,$C$2) -> 9891 | AD95: =SUMIFS(DATA!AH$3:AH$794,DATA!$F$3:$F$794,$A95,DATA!$B$3:$B$794,$C$2) -> 10166 | AE95: =SUMIFS(DATA!AI$3:AI$794,DATA!$F$3:$F$794,$A95,DATA!$B$3:$B$794,$C$2) -> 10441 | AF95: =SUMIFS(DATA!AJ$3:AJ$794,DATA!$F$3:$F$794,$A95,DATA!$B$3:$B$794,$C$2) -> 10716 | AG95: =SUMIFS(DATA!AK$3:AK$794,DATA!$F$3:$F$794,$A95,DATA!$B$3:$B$794,$C$2) -> 10991 | AH95: =SUMIFS(DATA!AL$3:AL$794,DATA!$F$3:$F$794,$A95,DATA!$B$3:$B$794,$C$2) -> 11267 | AI95: =SUMIFS(DATA!AM$3:AM$794,DATA!$F$3:$F$794,$A95,DATA!$B$3:$B$794,$C$2) -> 11542 | AJ95: =SUMIFS(DATA!AN$3:AN$794,DATA!$F$3:$F$794,$A95,DATA!$B$3:$B$794,$C$2) -> 11817 | AK95: =SUMIFS(DATA!AO$3:AO$794,DATA!$F$3:$F$794,$A95,DATA!$B$3:$B$794,$C$2) -> 12092 | AL95: =SUMIFS(DATA!AP$3:AP$794,DATA!$F$3:$F$794,$A95,DATA!$B$3:$B$794,$C$2) -> 12361 | AM95: =SUMIFS(DATA!AQ$3:AQ$794,DATA!$F$3:$F$794,$A95,DATA!$B$3:$B$794,$C$2) -> 12626 | AN95: =SUMIFS(DATA!AR$3:AR$794,DATA!$F$3:$F$794,$A95,DATA!$B$3:$B$794,$C$2) -> 12887 | AO95: =SUMIFS(DATA!AS$3:AS$794,DATA!$F$3:$F$794,$A95,DATA!$B$3:$B$794,$C$2) -> 13147 | AP95: =SUMIFS(DATA!AT$3:AT$794,DATA!$F$3:$F$794,$A95,DATA!$B$3:$B$794,$C$2) -> 13404 | AQ95: =SUMIFS(DATA!AU$3:AU$794,DATA!$F$3:$F$794,$A95,DATA!$B$3:$B$794,$C$2) -> 13659 | AR95: =SUMIFS(DATA!AV$3:AV$794,DATA!$F$3:$F$794,$A95,DATA!$B$3:$B$794,$C$2) -> 13909 | AS95: =SUMIFS(DATA!AW$3:AW$794,DATA!$F$3:$F$794,$A95,DATA!$B$3:$B$794,$C$2) -> 14154 | AT95: =SUMIFS(DATA!AX$3:AX$794,DATA!$F$3:$F$794,$A95,DATA!$B$3:$B$794,$C$2) -> 14389 | AU95: =SUMIFS(DATA!AY$3:AY$794,DATA!$F$3:$F$794,$A95,DATA!$B$3:$B$794,$C$2) -> 14620 | AV95: =SUMIFS(DATA!AZ$3:AZ$794,DATA!$F$3:$F$794,$A95,DATA!$B$3:$B$794,$C$2) -> 14840 | AW95: =SUMIFS(DATA!BA$3:BA$794,DATA!$F$3:$F$794,$A95,DATA!$B$3:$B$794,$C$2) -> 15055 | AX95: =SUMIFS(DATA!BB$3:BB$794,DATA!$F$3:$F$794,$A95,DATA!$B$3:$B$794,$C$2) -> 15266 | AY95: =SUMIFS(DATA!BC$3:BC$794,DATA!$F$3:$F$794,$A95,DATA!$B$3:$B$794,$C$2) -> 15471 | AZ95: =SUMIFS(DATA!BD$3:BD$794,DATA!$F$3:$F$794,$A95,DATA!$B$3:$B$794,$C$2) -> 15671
A96: Accumulated Other Comprehensive Income | C96: =SUMIFS(DATA!G$3:G$794,DATA!$F$3:$F$794,$A96,DATA!$B$3:$B$794,$C$2) -> 299 | D96: =SUMIFS(DATA!H$3:H$794,DATA!$F$3:$F$794,$A96,DATA!$B$3:$B$794,$C$2) -> 287 | E96: =SUMIFS(DATA!I$3:I$794,DATA!$F$3:$F$794,$A96,DATA!$B$3:$B$794,$C$2) -> -142 | F96: =SUMIFS(DATA!J$3:J$794,DATA!$F$3:$F$794,$A96,DATA!$B$3:$B$794,$C$2) -> -189 | G96: =SUMIFS(DATA!K$3:K$794,DATA!$F$3:$F$794,$A96,DATA!$B$3:$B$794,$C$2) -> -232 | H96: =SUMIFS(DATA!L$3:L$794,DATA!$F$3:$F$794,$A96,DATA!$B$3:$B$794,$C$2) -> -264 | I96: =SUMIFS(DATA!M$3:M$794,DATA!$F$3:$F$794,$A96,DATA!$B$3:$B$794,$C$2) -> -283 | J96: =SUMIFS(DATA!N$3:N$794,DATA!$F$3:$F$794,$A96,DATA!$B$3:$B$794,$C$2) -> -303 | K96: =SUMIFS(DATA!O$3:O$794,DATA!$F$3:$F$794,$A96,DATA!$B$3:$B$794,$C$2) -> -326 | L96: =SUMIFS(DATA!P$3:P$794,DATA!$F$3:$F$794,$A96,DATA!$B$3:$B$794,$C$2) -> -354 | M96: =SUMIFS(DATA!Q$3:Q$794,DATA!$F$3:$F$794,$A96,DATA!$B$3:$B$794,$C$2) -> -370 | N96: =SUMIFS(DATA!R$3:R$794,DATA!$F$3:$F$794,$A96,DATA!$B$3:$B$794,$C$2) -> -370 | O96: =SUMIFS(DATA!S$3:S$794,DATA!$F$3:$F$794,$A96,DATA!$B$3:$B$794,$C$2) -> -369 | P96: =SUMIFS(DATA!T$3:T$794,DATA!$F$3:$F$794,$A96,DATA!$B$3:$B$794,$C$2) -> -369 | Q96: =SUMIFS(DATA!U$3:U$794,DATA!$F$3:$F$794,$A96,DATA!$B$3:$B$794,$C$2) -> -369 | R96: =SUMIFS(DATA!V$3:V$794,DATA!$F$3:$F$794,$A96,DATA!$B$3:$B$794,$C$2) -> -369 | S96: =SUMIFS(DATA!W$3:W$794,DATA!$F$3:$F$794,$A96,DATA!$B$3:$B$794,$C$2) -> -369 | T96: =SUMIFS(DATA!X$3:X$794,DATA!$F$3:$F$794,$A96,DATA!$B$3:$B$794,$C$2) -> -369 | U96: =SUMIFS(DATA!Y$3:Y$794,DATA!$F$3:$F$794,$A96,DATA!$B$3:$B$794,$C$2) -> -369 | V96: =SUMIFS(DATA!Z$3:Z$794,DATA!$F$3:$F$794,$A96,DATA!$B$3:$B$794,$C$2) -> -369 | W96: =SUMIFS(DATA!AA$3:AA$794,DATA!$F$3:$F$794,$A96,DATA!$B$3:$B$794,$C$2) -> -369 | X96: =SUMIFS(DATA!AB$3:AB$794,DATA!$F$3:$F$794,$A96,DATA!$B$3:$B$794,$C$2) -> -369 | Y96: =SUMIFS(DATA!AC$3:AC$794,DATA!$F$3:$F$794,$A96,DATA!$B$3:$B$794,$C$2) -> -369 | Z96: =SUMIFS(DATA!AD$3:AD$794,DATA!$F$3:$F$794,$A96,DATA!$B$3:$B$794,$C$2) -> -369 | AA96: =SUMIFS(DATA!AE$3:AE$794,DATA!$F$3:$F$794,$A96,DATA!$B$3:$B$794,$C$2) -> -369 | AB96: =SUMIFS(DATA!AF$3:AF$794,DATA!$F$3:$F$794,$A96,DATA!$B$3:$B$794,$C$2) -> -369 | AC96: =SUMIFS(DATA!AG$3:AG$794,DATA!$F$3:$F$794,$A96,DATA!$B$3:$B$794,$C$2) -> -369 | AD96: =SUMIFS(DATA!AH$3:AH$794,DATA!$F$3:$F$794,$A96,DATA!$B$3:$B$794,$C$2) -> -369 | AE96: =SUMIFS(DATA!AI$3:AI$794,DATA!$F$3:$F$794,$A96,DATA!$B$3:$B$794,$C$2) -> -369 | AF96: =SUMIFS(DATA!AJ$3:AJ$794,DATA!$F$3:$F$794,$A96,DATA!$B$3:$B$794,$C$2) -> -369 | AG96: =SUMIFS(DATA!AK$3:AK$794,DATA!$F$3:$F$794,$A96,DATA!$B$3:$B$794,$C$2) -> -369 | AH96: =SUMIFS(DATA!AL$3:AL$794,DATA!$F$3:$F$794,$A96,DATA!$B$3:$B$794,$C$2) -> -369 | AI96: =SUMIFS(DATA!AM$3:AM$794,DATA!$F$3:$F$794,$A96,DATA!$B$3:$B$794,$C$2) -> -369 | AJ96: =SUMIFS(DATA!AN$3:AN$794,DATA!$F$3:$F$794,$A96,DATA!$B$3:$B$794,$C$2) -> -369 | AK96: =SUMIFS(DATA!AO$3:AO$794,DATA!$F$3:$F$794,$A96,DATA!$B$3:$B$794,$C$2) -> -369 | AL96: =SUMIFS(DATA!AP$3:AP$794,DATA!$F$3:$F$794,$A96,DATA!$B$3:$B$794,$C$2) -> -369 | AM96: =SUMIFS(DATA!AQ$3:AQ$794,DATA!$F$3:$F$794,$A96,DATA!$B$3:$B$794,$C$2) -> -369 | AN96: =SUMIFS(DATA!AR$3:AR$794,DATA!$F$3:$F$794,$A96,DATA!$B$3:$B$794,$C$2) -> -369 | AO96: =SUMIFS(DATA!AS$3:AS$794,DATA!$F$3:$F$794,$A96,DATA!$B$3:$B$794,$C$2) -> -369 | AP96: =SUMIFS(DATA!AT$3:AT$794,DATA!$F$3:$F$794,$A96,DATA!$B$3:$B$794,$C$2) -> -369 | AQ96: =SUMIFS(DATA!AU$3:AU$794,DATA!$F$3:$F$794,$A96,DATA!$B$3:$B$794,$C$2) -> -369 | AR96: =SUMIFS(DATA!AV$3:AV$794,DATA!$F$3:$F$794,$A96,DATA!$B$3:$B$794,$C$2) -> -369 | AS96: =SUMIFS(DATA!AW$3:AW$794,DATA!$F$3:$F$794,$A96,DATA!$B$3:$B$794,$C$2) -> -369 | AT96: =SUMIFS(DATA!AX$3:AX$794,DATA!$F$3:$F$794,$A96,DATA!$B$3:$B$794,$C$2) -> -369 | AU96: =SUMIFS(DATA!AY$3:AY$794,DATA!$F$3:$F$794,$A96,DATA!$B$3:$B$794,$C$2) -> -369 | AV96: =SUMIFS(DATA!AZ$3:AZ$794,DATA!$F$3:$F$794,$A96,DATA!$B$3:$B$794,$C$2) -> -369 | AW96: =SUMIFS(DATA!BA$3:BA$794,DATA!$F$3:$F$794,$A96,DATA!$B$3:$B$794,$C$2) -> -369 | AX96: =SUMIFS(DATA!BB$3:BB$794,DATA!$F$3:$F$794,$A96,DATA!$B$3:$B$794,$C$2) -> -369 | AY96: =SUMIFS(DATA!BC$3:BC$794,DATA!$F$3:$F$794,$A96,DATA!$B$3:$B$794,$C$2) -> -369 | AZ96: =SUMIFS(DATA!BD$3:BD$794,DATA!$F$3:$F$794,$A96,DATA!$B$3:$B$794,$C$2) -> -369
A97: Total Liabilities and Equity | B97: [Formula] | C97: =SUM(C89:C92,C94,C96) -> 14586 | D97: =SUM(D89:D92,D94,D96) -> 17859.635 | E97: 18499.75907 | F97: 20476.01583 | G97: 22440.78558 | H97: 24282.01182 | I97: 25559.89882 | J97: 26055.9524 | K97: 27735.3883 | L97: 29085.80769 | M97: 31433.60255 | N97: 32534.72593 | O97: 33388.41778 | P97: 34290.21832 | Q97: 34451.98201 | R97: 34835.89214 | S97: 35350.17211 | T97: 35197.0799 | U97: 36046.0369 | V97: =SUM(V89:V92,V94,V96) -> 36899.86793 | W97: 35005.06793 | X97: 33895.66793 | Y97: 34911.26793 | Z97: 35203.86793 | AA97: 34549.46793 | AB97: 36048.06793 | AC97: 36037.46793 | AD97: 35887.46793 | AE97: 36728.82166 | AF97: 36725.42166 | AG97: 37835.42166 | AH97: 38251.62166 | AI97: 38434.66915 | AJ97: 39068.86915 | AK97: 39329.46915 | AL97: 39216.23906 | AM97: 38961.95579 | AN97: 39233.02809 | AO97: 39507.27328 | AP97: 39721.90877 | AQ97: 39823.33726 | AR97: 38512.94259 | AS97: 36793.74165 | AT97: 37462.18594 | AU97: 36538.18101 | AV97: 37981.64802 | AW97: 37288.90962 | AX97: 36117.76301 | AY97: 37144.21169 | AZ97: 36492.0546
A98: Total Liabilities and Equity | B98: [Original] | C98: =SUMIFS(DATA!G$3:G$794,DATA!$F$3:$F$794,$A98,DATA!$B$3:$B$794,$C$2) -> 14587 | D98: =SUMIFS(DATA!H$3:H$794,DATA!$F$3:$F$794,$A98,DATA!$B$3:$B$794,$C$2) -> 15890 | E98: =SUMIFS(DATA!I$3:I$794,DATA!$F$3:$F$794,$A98,DATA!$B$3:$B$794,$C$2) -> 16958 | F98: =SUMIFS(DATA!J$3:J$794,DATA!$F$3:$F$794,$A98,DATA!$B$3:$B$794,$C$2) -> 18802 | G98: =SUMIFS(DATA!K$3:K$794,DATA!$F$3:$F$794,$A98,DATA!$B$3:$B$794,$C$2) -> 20742 | H98: =SUMIFS(DATA!L$3:L$794,DATA!$F$3:$F$794,$A98,DATA!$B$3:$B$794,$C$2) -> 22707 | I98: =SUMIFS(DATA!M$3:M$794,DATA!$F$3:$F$794,$A98,DATA!$B$3:$B$794,$C$2) -> 23861 | J98: =SUMIFS(DATA!N$3:N$794,DATA!$F$3:$F$794,$A98,DATA!$B$3:$B$794,$C$2) -> 25086 | K98: =SUMIFS(DATA!O$3:O$794,DATA!$F$3:$F$794,$A98,DATA!$B$3:$B$794,$C$2) -> 26409 | L98: =SUMIFS(DATA!P$3:P$794,DATA!$F$3:$F$794,$A98,DATA!$B$3:$B$794,$C$2) -> 27735 | M98: =SUMIFS(DATA!Q$3:Q$794,DATA!$F$3:$F$794,$A98,DATA!$B$3:$B$794,$C$2) -> 29430 | N98: =SUMIFS(DATA!R$3:R$794,DATA!$F$3:$F$794,$A98,DATA!$B$3:$B$794,$C$2) -> 31133 | O98: =SUMIFS(DATA!S$3:S$794,DATA!$F$3:$F$794,$A98,DATA!$B$3:$B$794,$C$2) -> 32637 | P98: =SUMIFS(DATA!T$3:T$794,DATA!$F$3:$F$794,$A98,DATA!$B$3:$B$794,$C$2) -> 33488 | Q98: =SUMIFS(DATA!U$3:U$794,DATA!$F$3:$F$794,$A98,DATA!$B$3:$B$794,$C$2) -> 34255 | R98: =SUMIFS(DATA!V$3:V$794,DATA!$F$3:$F$794,$A98,DATA!$B$3:$B$794,$C$2) -> 34700 | S98: =SUMIFS(DATA!W$3:W$794,DATA!$F$3:$F$794,$A98,DATA!$B$3:$B$794,$C$2) -> 35406 | T98: =SUMIFS(DATA!X$3:X$794,DATA!$F$3:$F$794,$A98,DATA!$B$3:$B$794,$C$2) -> 35906 | U98: =SUMIFS(DATA!Y$3:Y$794,DATA!$F$3:$F$794,$A98,DATA!$B$3:$B$794,$C$2) -> 36071 | V98: =SUMIFS(DATA!Z$3:Z$794,DATA!$F$3:$F$794,$A98,DATA!$B$3:$B$794,$C$2) -> 37145 | W98: =SUMIFS(DATA!AA$3:AA$794,DATA!$F$3:$F$794,$A98,DATA!$B$3:$B$794,$C$2) -> 37220 | X98: =SUMIFS(DATA!AB$3:AB$794,DATA!$F$3:$F$794,$A98,DATA!$B$3:$B$794,$C$2) -> 35511 | Y98: =SUMIFS(DATA!AC$3:AC$794,DATA!$F$3:$F$794,$A98,DATA!$B$3:$B$794,$C$2) -> 35610 | Z98: =SUMIFS(DATA!AD$3:AD$794,DATA!$F$3:$F$794,$A98,DATA!$B$3:$B$794,$C$2) -> 35621 | AA98: =SUMIFS(DATA!AE$3:AE$794,DATA!$F$3:$F$794,$A98,DATA!$B$3:$B$794,$C$2) -> 35516 | AB98: =SUMIFS(DATA!AF$3:AF$794,DATA!$F$3:$F$794,$A98,DATA!$B$3:$B$794,$C$2) -> 35664 | AC98: =SUMIFS(DATA!AG$3:AG$794,DATA!$F$3:$F$794,$A98,DATA!$B$3:$B$794,$C$2) -> 35753 | AD98: =SUMIFS(DATA!AH$3:AH$794,DATA!$F$3:$F$794,$A98,DATA!$B$3:$B$794,$C$2) -> 36154 | AE98: =SUMIFS(DATA!AI$3:AI$794,DATA!$F$3:$F$794,$A98,DATA!$B$3:$B$794,$C$2) -> 36597 | AF98: =SUMIFS(DATA!AJ$3:AJ$794,DATA!$F$3:$F$794,$A98,DATA!$B$3:$B$794,$C$2) -> 36844 | AG98: =SUMIFS(DATA!AK$3:AK$794,DATA!$F$3:$F$794,$A98,DATA!$B$3:$B$794,$C$2) -> 37103 | AH98: =SUMIFS(DATA!AL$3:AL$794,DATA!$F$3:$F$794,$A98,DATA!$B$3:$B$794,$C$2) -> 37671 | AI98: =SUMIFS(DATA!AM$3:AM$794,DATA!$F$3:$F$794,$A98,DATA!$B$3:$B$794,$C$2) -> 38053 | AJ98: =SUMIFS(DATA!AN$3:AN$794,DATA!$F$3:$F$794,$A98,DATA!$B$3:$B$794,$C$2) -> 38489 | AK98: =SUMIFS(DATA!AO$3:AO$794,DATA!$F$3:$F$794,$A98,DATA!$B$3:$B$794,$C$2) -> 38950 | AL98: =SUMIFS(DATA!AP$3:AP$794,DATA!$F$3:$F$794,$A98,DATA!$B$3:$B$794,$C$2) -> 39233 | AM98: =SUMIFS(DATA!AQ$3:AQ$794,DATA!$F$3:$F$794,$A98,DATA!$B$3:$B$794,$C$2) -> 39306 | AN98: =SUMIFS(DATA!AR$3:AR$794,DATA!$F$3:$F$794,$A98,DATA!$B$3:$B$794,$C$2) -> 39253 | AO98: =SUMIFS(DATA!AS$3:AS$794,DATA!$F$3:$F$794,$A98,DATA!$B$3:$B$794,$C$2) -> 39527 | AP98: =SUMIFS(DATA!AT$3:AT$794,DATA!$F$3:$F$794,$A98,DATA!$B$3:$B$794,$C$2) -> 39794 | AQ98: =SUMIFS(DATA!AU$3:AU$794,DATA!$F$3:$F$794,$A98,DATA!$B$3:$B$794,$C$2) -> 40045 | AR98: =SUMIFS(DATA!AV$3:AV$794,DATA!$F$3:$F$794,$A98,DATA!$B$3:$B$794,$C$2) -> 40138 | AS98: =SUMIFS(DATA!AW$3:AW$794,DATA!$F$3:$F$794,$A98,DATA!$B$3:$B$794,$C$2) -> 38818 | AT98: =SUMIFS(DATA!AX$3:AX$794,DATA!$F$3:$F$794,$A98,DATA!$B$3:$B$794,$C$2) -> 38289 | AU98: =SUMIFS(DATA!AY$3:AY$794,DATA!$F$3:$F$794,$A98,DATA!$B$3:$B$794,$C$2) -> 37972 | AV98: =SUMIFS(DATA!AZ$3:AZ$794,DATA!$F$3:$F$794,$A98,DATA!$B$3:$B$794,$C$2) -> 37809 | AW98: =SUMIFS(DATA!BA$3:BA$794,DATA!$F$3:$F$794,$A98,DATA!$B$3:$B$794,$C$2) -> 37642 | AX98: =SUMIFS(DATA!BB$3:BB$794,DATA!$F$3:$F$794,$A98,DATA!$B$3:$B$794,$C$2) -> 37147 | AY98: =SUMIFS(DATA!BC$3:BC$794,DATA!$F$3:$F$794,$A98,DATA!$B$3:$B$794,$C$2) -> 37174 | AZ98: =SUMIFS(DATA!BD$3:BD$794,DATA!$F$3:$F$794,$A98,DATA!$B$3:$B$794,$C$2) -> 36973
B99: [Difference] | C99: =C97-C98 -> -1 | D99: =D97-D98 -> 1969.635 | E99: =E97-E98 -> 1541.759072 | F99: =F97-F98 -> 1674.015829 | G99: =G97-G98 -> 1698.785584 | H99: =H97-H98 -> 1575.011822 | I99: =I97-I98 -> 1698.898818 | J99: =J97-J98 -> 969.9523952 | K99: =K97-K98 -> 1326.388299 | L99: =L97-L98 -> 1350.807689 | M99: =M97-M98 -> 2003.602548 | N99: =N97-N98 -> 1401.725929 | O99: =O97-O98 -> 751.4177815 | P99: =P97-P98 -> 802.2183227 | Q99: =Q97-Q98 -> 196.9820076 | R99: =R97-R98 -> 135.8921409 | S99: =S97-S98 -> -55.82788882 | T99: =T97-T98 -> -708.9201011 | U99: =U97-U98 -> -24.96309524 | V99: =V97-V98 -> -245.1320734 | W99: =W97-W98 -> -2214.932073 | X99: =X97-X98 -> -1615.332073 | Y99: =Y97-Y98 -> -698.7320734 | Z99: =Z97-Z98 -> -417.1320734 | AA99: =AA97-AA98 -> -966.5320734 | AB99: =AB97-AB98 -> 384.0679266 | AC99: =AC97-AC98 -> 284.4679266 | AD99: =AD97-AD98 -> -266.5320734 | AE99: =AE97-AE98 -> 131.821656 | AF99: =AF97-AF98 -> -118.578344 | AG99: =AG97-AG98 -> 732.421656 | AH99: =AH97-AH98 -> 580.621656 | AI99: =AI97-AI98 -> 381.6691487 | AJ99: =AJ97-AJ98 -> 579.8691487 | AK99: =AK97-AK98 -> 379.4691487 | AL99: =AL97-AL98 -> -16.76094332 | AM99: =AM97-AM98 -> -344.044211 | AN99: =AN97-AN98 -> -19.97190608 | AO99: =AO97-AO98 -> -19.72672086 | AP99: =AP97-AP98 -> -72.09123333 | AQ99: =AQ97-AQ98 -> -221.6627372 | AR99: =AR97-AR98 -> -1625.057414 | AS99: =AS97-AS98 -> -2024.258349 | AT99: =AT97-AT98 -> -826.8140564 | AU99: =AU97-AU98 -> -1433.818993 | AV99: =AV97-AV98 -> 172.6480217 | AW99: =AW97-AW98 -> -353.0903779 | AX99: =AX97-AX98 -> -1029.236986 | AY99: =AY97-AY98 -> -29.7883108 | AZ99: =AZ97-AZ98 -> -480.9453989
C101: 2013 | D101: 2014 | E101: 2015 | F101: 2016 | G101: 2017 | H101: 2018 | I101: 2019 | J101: 2020 | K101: 2021 | L101: 2022 | M101: 2023 | N101: 2024 | O101: 2025 | P101: 2026 | Q101: 2027 | R101: 2028 | S101: 2029 | T101: 2030 | U101: 2031 | V101: 2032 | W101: 2033 | X101: 2034 | Y101: 2035 | Z101: 2036 | AA101: 2037 | AB101: 2038 | AC101: 2039 | AD101: 2040 | AE101: 2041 | AF101: 2042 | AG101: 2043 | AH101: 2044 | AI101: 2045 | AJ101: 2046 | AK101: 2047 | AL101: 2048 | AM101: 2049 | AN101: 2050 | AO101: 2051 | AP101: 2052 | AQ101: 2053 | AR101: 2054 | AS101: 2055 | AT101: 2056 | AU101: 2057 | AV101: 2058 | AW101: 2059 | AX101: 2060 | AY101: 2061 | AZ101: 2062
A102: OPERATING ACTIVITIES
A103: Cash Receipts from Customers | C103: =SUMIFS(DATA!G$3:G$794,DATA!$F$3:$F$794,$A103,DATA!$B$3:$B$794,$C$2) -> 1692 | D103: =SUMIFS(DATA!H$3:H$794,DATA!$F$3:$F$794,$A103,DATA!$B$3:$B$794,$C$2) -> 1768 | E103: =SUMIFS(DATA!I$3:I$794,DATA!$F$3:$F$794,$A103,DATA!$B$3:$B$794,$C$2) -> 1826 | F103: =SUMIFS(DATA!J$3:J$794,DATA!$F$3:$F$794,$A103,DATA!$B$3:$B$794,$C$2) -> 1939 | G103: =SUMIFS(DATA!K$3:K$794,DATA!$F$3:$F$794,$A103,DATA!$B$3:$B$794,$C$2) -> 2035 | H103: =SUMIFS(DATA!L$3:L$794,DATA!$F$3:$F$794,$A103,DATA!$B$3:$B$794,$C$2) -> 2148 | I103: =SUMIFS(DATA!M$3:M$794,DATA!$F$3:$F$794,$A103,DATA!$B$3:$B$794,$C$2) -> 2236 | J103: =SUMIFS(DATA!N$3:N$794,DATA!$F$3:$F$794,$A103,DATA!$B$3:$B$794,$C$2) -> 2364 | K103: =SUMIFS(DATA!O$3:O$794,DATA!$F$3:$F$794,$A103,DATA!$B$3:$B$794,$C$2) -> 2745 | L103: =SUMIFS(DATA!P$3:P$794,DATA!$F$3:$F$794,$A103,DATA!$B$3:$B$794,$C$2) -> 2959 | M103: =SUMIFS(DATA!Q$3:Q$794,DATA!$F$3:$F$794,$A103,DATA!$B$3:$B$794,$C$2) -> 3088 | N103: =SUMIFS(DATA!R$3:R$794,DATA!$F$3:$F$794,$A103,DATA!$B$3:$B$794,$C$2) -> 3191 | O103: =SUMIFS(DATA!S$3:S$794,DATA!$F$3:$F$794,$A103,DATA!$B$3:$B$794,$C$2) -> 3309 | P103: =SUMIFS(DATA!T$3:T$794,DATA!$F$3:$F$794,$A103,DATA!$B$3:$B$794,$C$2) -> 3484 | Q103: =SUMIFS(DATA!U$3:U$794,DATA!$F$3:$F$794,$A103,DATA!$B$3:$B$794,$C$2) -> 3892 | R103: =SUMIFS(DATA!V$3:V$794,DATA!$F$3:$F$794,$A103,DATA!$B$3:$B$794,$C$2) -> 4110 | S103: =SUMIFS(DATA!W$3:W$794,DATA!$F$3:$F$794,$A103,DATA!$B$3:$B$794,$C$2) -> 4280 | T103: =SUMIFS(DATA!X$3:X$794,DATA!$F$3:$F$794,$A103,DATA!$B$3:$B$794,$C$2) -> 4443 | U103: =SUMIFS(DATA!Y$3:Y$794,DATA!$F$3:$F$794,$A103,DATA!$B$3:$B$794,$C$2) -> 4628 | V103: =SUMIFS(DATA!Z$3:Z$794,DATA!$F$3:$F$794,$A103,DATA!$B$3:$B$794,$C$2) -> 4818 | W103: =SUMIFS(DATA!AA$3:AA$794,DATA!$F$3:$F$794,$A103,DATA!$B$3:$B$794,$C$2) -> 4020 | X103: =SUMIFS(DATA!AB$3:AB$794,DATA!$F$3:$F$794,$A103,DATA!$B$3:$B$794,$C$2) -> 4050 | Y103: =SUMIFS(DATA!AC$3:AC$794,DATA!$F$3:$F$794,$A103,DATA!$B$3:$B$794,$C$2) -> 4110 | Z103: =SUMIFS(DATA!AD$3:AD$794,DATA!$F$3:$F$794,$A103,DATA!$B$3:$B$794,$C$2) -> 4131 | AA103: =SUMIFS(DATA!AE$3:AE$794,DATA!$F$3:$F$794,$A103,DATA!$B$3:$B$794,$C$2) -> 4128 | AB103: =SUMIFS(DATA!AF$3:AF$794,DATA!$F$3:$F$794,$A103,DATA!$B$3:$B$794,$C$2) -> 4171 | AC103: =SUMIFS(DATA!AG$3:AG$794,DATA!$F$3:$F$794,$A103,DATA!$B$3:$B$794,$C$2) -> 4190 | AD103: =SUMIFS(DATA!AH$3:AH$794,DATA!$F$3:$F$794,$A103,DATA!$B$3:$B$794,$C$2) -> 4231 | AE103: =SUMIFS(DATA!AI$3:AI$794,DATA!$F$3:$F$794,$A103,DATA!$B$3:$B$794,$C$2) -> 4302 | AF103: =SUMIFS(DATA!AJ$3:AJ$794,DATA!$F$3:$F$794,$A103,DATA!$B$3:$B$794,$C$2) -> 4399 | AG103: =SUMIFS(DATA!AK$3:AK$794,DATA!$F$3:$F$794,$A103,DATA!$B$3:$B$794,$C$2) -> 4513 | AH103: =SUMIFS(DATA!AL$3:AL$794,DATA!$F$3:$F$794,$A103,DATA!$B$3:$B$794,$C$2) -> 4564 | AI103: =SUMIFS(DATA!AM$3:AM$794,DATA!$F$3:$F$794,$A103,DATA!$B$3:$B$794,$C$2) -> 4655 | AJ103: =SUMIFS(DATA!AN$3:AN$794,DATA!$F$3:$F$794,$A103,DATA!$B$3:$B$794,$C$2) -> 4758 | AK103: =SUMIFS(DATA!AO$3:AO$794,DATA!$F$3:$F$794,$A103,DATA!$B$3:$B$794,$C$2) -> 4911 | AL103: =SUMIFS(DATA!AP$3:AP$794,DATA!$F$3:$F$794,$A103,DATA!$B$3:$B$794,$C$2) -> 4952 | AM103: =SUMIFS(DATA!AQ$3:AQ$794,DATA!$F$3:$F$794,$A103,DATA!$B$3:$B$794,$C$2) -> 4977 | AN103: =SUMIFS(DATA!AR$3:AR$794,DATA!$F$3:$F$794,$A103,DATA!$B$3:$B$794,$C$2) -> 5013 | AO103: =SUMIFS(DATA!AS$3:AS$794,DATA!$F$3:$F$794,$A103,DATA!$B$3:$B$794,$C$2) -> 5129 | AP103: =SUMIFS(DATA!AT$3:AT$794,DATA!$F$3:$F$794,$A103,DATA!$B$3:$B$794,$C$2) -> 5181 | AQ103: =SUMIFS(DATA!AU$3:AU$794,DATA!$F$3:$F$794,$A103,DATA!$B$3:$B$794,$C$2) -> 5225 | AR103: =SUMIFS(DATA!AV$3:AV$794,DATA!$F$3:$F$794,$A103,DATA!$B$3:$B$794,$C$2) -> 5326 | AS103: =SUMIFS(DATA!AW$3:AW$794,DATA!$F$3:$F$794,$A103,DATA!$B$3:$B$794,$C$2) -> 5369 | AT103: =SUMIFS(DATA!AX$3:AX$794,DATA!$F$3:$F$794,$A103,DATA!$B$3:$B$794,$C$2) -> 5385 | AU103: =SUMIFS(DATA!AY$3:AY$794,DATA!$F$3:$F$794,$A103,DATA!$B$3:$B$794,$C$2) -> 5443 | AV103: =SUMIFS(DATA!AZ$3:AZ$794,DATA!$F$3:$F$794,$A103,DATA!$B$3:$B$794,$C$2) -> 5443 | AW103: =SUMIFS(DATA!BA$3:BA$794,DATA!$F$3:$F$794,$A103,DATA!$B$3:$B$794,$C$2) -> 5490 | AX103: =SUMIFS(DATA!BB$3:BB$794,DATA!$F$3:$F$794,$A103,DATA!$B$3:$B$794,$C$2) -> 5549 | AY103: =SUMIFS(DATA!BC$3:BC$794,DATA!$F$3:$F$794,$A103,DATA!$B$3:$B$794,$C$2) -> 5591 | AZ103: =SUMIFS(DATA!BD$3:BD$794,DATA!$F$3:$F$794,$A103,DATA!$B$3:$B$794,$C$2) -> 5641
A104: Cash Paid to Suppliers and Employees | C104: =SUMIFS(DATA!G$3:G$794,DATA!$F$3:$F$794,$A104,DATA!$B$3:$B$794,$C$2) -> -782 | D104: =SUMIFS(DATA!H$3:H$794,DATA!$F$3:$F$794,$A104,DATA!$B$3:$B$794,$C$2) -> -822 | E104: =SUMIFS(DATA!I$3:I$794,DATA!$F$3:$F$794,$A104,DATA!$B$3:$B$794,$C$2) -> -900 | F104: =SUMIFS(DATA!J$3:J$794,DATA!$F$3:$F$794,$A104,DATA!$B$3:$B$794,$C$2) -> -931 | G104: =SUMIFS(DATA!K$3:K$794,DATA!$F$3:$F$794,$A104,DATA!$B$3:$B$794,$C$2) -> -963 | H104: =SUMIFS(DATA!L$3:L$794,DATA!$F$3:$F$794,$A104,DATA!$B$3:$B$794,$C$2) -> -1001 | I104: =SUMIFS(DATA!M$3:M$794,DATA!$F$3:$F$794,$A104,DATA!$B$3:$B$794,$C$2) -> -1024 | J104: =SUMIFS(DATA!N$3:N$794,DATA!$F$3:$F$794,$A104,DATA!$B$3:$B$794,$C$2) -> -1048 | K104: =SUMIFS(DATA!O$3:O$794,DATA!$F$3:$F$794,$A104,DATA!$B$3:$B$794,$C$2) -> -1136 | L104: =SUMIFS(DATA!P$3:P$794,DATA!$F$3:$F$794,$A104,DATA!$B$3:$B$794,$C$2) -> -1175 | M104: =SUMIFS(DATA!Q$3:Q$794,DATA!$F$3:$F$794,$A104,DATA!$B$3:$B$794,$C$2) -> -1202 | N104: =SUMIFS(DATA!R$3:R$794,DATA!$F$3:$F$794,$A104,DATA!$B$3:$B$794,$C$2) -> -1230 | O104: =SUMIFS(DATA!S$3:S$794,DATA!$F$3:$F$794,$A104,DATA!$B$3:$B$794,$C$2) -> -1262 | P104: =SUMIFS(DATA!T$3:T$794,DATA!$F$3:$F$794,$A104,DATA!$B$3:$B$794,$C$2) -> -1266 | Q104: =SUMIFS(DATA!U$3:U$794,DATA!$F$3:$F$794,$A104,DATA!$B$3:$B$794,$C$2) -> -1297 | R104: =SUMIFS(DATA!V$3:V$794,DATA!$F$3:$F$794,$A104,DATA!$B$3:$B$794,$C$2) -> -1331 | S104: =SUMIFS(DATA!W$3:W$794,DATA!$F$3:$F$794,$A104,DATA!$B$3:$B$794,$C$2) -> -1357 | T104: =SUMIFS(DATA!X$3:X$794,DATA!$F$3:$F$794,$A104,DATA!$B$3:$B$794,$C$2) -> -1378 | U104: =SUMIFS(DATA!Y$3:Y$794,DATA!$F$3:$F$794,$A104,DATA!$B$3:$B$794,$C$2) -> -1402 | V104: =SUMIFS(DATA!Z$3:Z$794,DATA!$F$3:$F$794,$A104,DATA!$B$3:$B$794,$C$2) -> -1427 | W104: =SUMIFS(DATA!AA$3:AA$794,DATA!$F$3:$F$794,$A104,DATA!$B$3:$B$794,$C$2) -> -1452 | X104: =SUMIFS(DATA!AB$3:AB$794,DATA!$F$3:$F$794,$A104,DATA!$B$3:$B$794,$C$2) -> -1477 | Y104: =SUMIFS(DATA!AC$3:AC$794,DATA!$F$3:$F$794,$A104,DATA!$B$3:$B$794,$C$2) -> -1505 | Z104: =SUMIFS(DATA!AD$3:AD$794,DATA!$F$3:$F$794,$A104,DATA!$B$3:$B$794,$C$2) -> -1521 | AA104: =SUMIFS(DATA!AE$3:AE$794,DATA!$F$3:$F$794,$A104,DATA!$B$3:$B$794,$C$2) -> -1522 | AB104: =SUMIFS(DATA!AF$3:AF$794,DATA!$F$3:$F$794,$A104,DATA!$B$3:$B$794,$C$2) -> -1547 | AC104: =SUMIFS(DATA!AG$3:AG$794,DATA!$F$3:$F$794,$A104,DATA!$B$3:$B$794,$C$2) -> -1578 | AD104: =SUMIFS(DATA!AH$3:AH$794,DATA!$F$3:$F$794,$A104,DATA!$B$3:$B$794,$C$2) -> -1622 | AE104: =SUMIFS(DATA!AI$3:AI$794,DATA!$F$3:$F$794,$A104,DATA!$B$3:$B$794,$C$2) -> -1664 | AF104: =SUMIFS(DATA!AJ$3:AJ$794,DATA!$F$3:$F$794,$A104,DATA!$B$3:$B$794,$C$2) -> -1725 | AG104: =SUMIFS(DATA!AK$3:AK$794,DATA!$F$3:$F$794,$A104,DATA!$B$3:$B$794,$C$2) -> -1770 | AH104: =SUMIFS(DATA!AL$3:AL$794,DATA!$F$3:$F$794,$A104,DATA!$B$3:$B$794,$C$2) -> -1817 | AI104: =SUMIFS(DATA!AM$3:AM$794,DATA!$F$3:$F$794,$A104,DATA!$B$3:$B$794,$C$2) -> -1880 | AJ104: =SUMIFS(DATA!AN$3:AN$794,DATA!$F$3:$F$794,$A104,DATA!$B$3:$B$794,$C$2) -> -1940 | AK104: =SUMIFS(DATA!AO$3:AO$794,DATA!$F$3:$F$794,$A104,DATA!$B$3:$B$794,$C$2) -> -2013 | AL104: =SUMIFS(DATA!AP$3:AP$794,DATA!$F$3:$F$794,$A104,DATA!$B$3:$B$794,$C$2) -> -2069 | AM104: =SUMIFS(DATA!AQ$3:AQ$794,DATA!$F$3:$F$794,$A104,DATA!$B$3:$B$794,$C$2) -> -2079 | AN104: =SUMIFS(DATA!AR$3:AR$794,DATA!$F$3:$F$794,$A104,DATA!$B$3:$B$794,$C$2) -> -2113 | AO104: =SUMIFS(DATA!AS$3:AS$794,DATA!$F$3:$F$794,$A104,DATA!$B$3:$B$794,$C$2) -> -2149 | AP104: =SUMIFS(DATA!AT$3:AT$794,DATA!$F$3:$F$794,$A104,DATA!$B$3:$B$794,$C$2) -> -2187 | AQ104: =SUMIFS(DATA!AU$3:AU$794,DATA!$F$3:$F$794,$A104,DATA!$B$3:$B$794,$C$2) -> -2224 | AR104: =SUMIFS(DATA!AV$3:AV$794,DATA!$F$3:$F$794,$A104,DATA!$B$3:$B$794,$C$2) -> -2261 | AS104: =SUMIFS(DATA!AW$3:AW$794,DATA!$F$3:$F$794,$A104,DATA!$B$3:$B$794,$C$2) -> -2297 | AT104: =SUMIFS(DATA!AX$3:AX$794,DATA!$F$3:$F$794,$A104,DATA!$B$3:$B$794,$C$2) -> -2336 | AU104: =SUMIFS(DATA!AY$3:AY$794,DATA!$F$3:$F$794,$A104,DATA!$B$3:$B$794,$C$2) -> -2373 | AV104: =SUMIFS(DATA!AZ$3:AZ$794,DATA!$F$3:$F$794,$A104,DATA!$B$3:$B$794,$C$2) -> -2411 | AW104: =SUMIFS(DATA!BA$3:BA$794,DATA!$F$3:$F$794,$A104,DATA!$B$3:$B$794,$C$2) -> -2451 | AX104: =SUMIFS(DATA!BB$3:BB$794,DATA!$F$3:$F$794,$A104,DATA!$B$3:$B$794,$C$2) -> -2491 | AY104: =SUMIFS(DATA!BC$3:BC$794,DATA!$F$3:$F$794,$A104,DATA!$B$3:$B$794,$C$2) -> -2524 | AZ104: =SUMIFS(DATA!BD$3:BD$794,DATA!$F$3:$F$794,$A104,DATA!$B$3:$B$794,$C$2) -> -2566
A105: Interest Paid | C105: =SUMIFS(DATA!G$3:G$794,DATA!$F$3:$F$794,$A105,DATA!$B$3:$B$794,$C$2) -> -466 | D105: =SUMIFS(DATA!H$3:H$794,DATA!$F$3:$F$794,$A105,DATA!$B$3:$B$794,$C$2) -> -474 | E105: =SUMIFS(DATA!I$3:I$794,DATA!$F$3:$F$794,$A105,DATA!$B$3:$B$794,$C$2) -> -510 | F105: =SUMIFS(DATA!J$3:J$794,DATA!$F$3:$F$794,$A105,DATA!$B$3:$B$794,$C$2) -> -558 | G105: =SUMIFS(DATA!K$3:K$794,DATA!$F$3:$F$794,$A105,DATA!$B$3:$B$794,$C$2) -> -604 | H105: =SUMIFS(DATA!L$3:L$794,DATA!$F$3:$F$794,$A105,DATA!$B$3:$B$794,$C$2) -> -699 | I105: =SUMIFS(DATA!M$3:M$794,DATA!$F$3:$F$794,$A105,DATA!$B$3:$B$794,$C$2) -> -814 | J105: =SUMIFS(DATA!N$3:N$794,DATA!$F$3:$F$794,$A105,DATA!$B$3:$B$794,$C$2) -> -816 | K105: =SUMIFS(DATA!O$3:O$794,DATA!$F$3:$F$794,$A105,DATA!$B$3:$B$794,$C$2) -> -1031 | L105: =SUMIFS(DATA!P$3:P$794,DATA!$F$3:$F$794,$A105,DATA!$B$3:$B$794,$C$2) -> -1127 | M105: =SUMIFS(DATA!Q$3:Q$794,DATA!$F$3:$F$794,$A105,DATA!$B$3:$B$794,$C$2) -> -1091 | N105: =SUMIFS(DATA!R$3:R$794,DATA!$F$3:$F$794,$A105,DATA!$B$3:$B$794,$C$2) -> -1093 | O105: =SUMIFS(DATA!S$3:S$794,DATA!$F$3:$F$794,$A105,DATA!$B$3:$B$794,$C$2) -> -1097 | P105: =SUMIFS(DATA!T$3:T$794,DATA!$F$3:$F$794,$A105,DATA!$B$3:$B$794,$C$2) -> -1218 | Q105: =SUMIFS(DATA!U$3:U$794,DATA!$F$3:$F$794,$A105,DATA!$B$3:$B$794,$C$2) -> -1441 | R105: =SUMIFS(DATA!V$3:V$794,DATA!$F$3:$F$794,$A105,DATA!$B$3:$B$794,$C$2) -> -1639 | S105: =SUMIFS(DATA!W$3:W$794,DATA!$F$3:$F$794,$A105,DATA!$B$3:$B$794,$C$2) -> -1625 | T105: =SUMIFS(DATA!X$3:X$794,DATA!$F$3:$F$794,$A105,DATA!$B$3:$B$794,$C$2) -> -1596 | U105: =SUMIFS(DATA!Y$3:Y$794,DATA!$F$3:$F$794,$A105,DATA!$B$3:$B$794,$C$2) -> -1619 | V105: =SUMIFS(DATA!Z$3:Z$794,DATA!$F$3:$F$794,$A105,DATA!$B$3:$B$794,$C$2) -> -1530 | W105: =SUMIFS(DATA!AA$3:AA$794,DATA!$F$3:$F$794,$A105,DATA!$B$3:$B$794,$C$2) -> -1502 | X105: =SUMIFS(DATA!AB$3:AB$794,DATA!$F$3:$F$794,$A105,DATA!$B$3:$B$794,$C$2) -> -1487 | Y105: =SUMIFS(DATA!AC$3:AC$794,DATA!$F$3:$F$794,$A105,DATA!$B$3:$B$794,$C$2) -> -1477 | Z105: =SUMIFS(DATA!AD$3:AD$794,DATA!$F$3:$F$794,$A105,DATA!$B$3:$B$794,$C$2) -> -1475 | AA105: =SUMIFS(DATA!AE$3:AE$794,DATA!$F$3:$F$794,$A105,DATA!$B$3:$B$794,$C$2) -> -1469 | AB105: =SUMIFS(DATA!AF$3:AF$794,DATA!$F$3:$F$794,$A105,DATA!$B$3:$B$794,$C$2) -> -1446 | AC105: =SUMIFS(DATA!AG$3:AG$794,DATA!$F$3:$F$794,$A105,DATA!$B$3:$B$794,$C$2) -> -1437 | AD105: =SUMIFS(DATA!AH$3:AH$794,DATA!$F$3:$F$794,$A105,DATA!$B$3:$B$794,$C$2) -> -1417 | AE105: =SUMIFS(DATA!AI$3:AI$794,DATA!$F$3:$F$794,$A105,DATA!$B$3:$B$794,$C$2) -> -1432 | AF105: =SUMIFS(DATA!AJ$3:AJ$794,DATA!$F$3:$F$794,$A105,DATA!$B$3:$B$794,$C$2) -> -1443 | AG105: =SUMIFS(DATA!AK$3:AK$794,DATA!$F$3:$F$794,$A105,DATA!$B$3:$B$794,$C$2) -> -1439 | AH105: =SUMIFS(DATA!AL$3:AL$794,DATA!$F$3:$F$794,$A105,DATA!$B$3:$B$794,$C$2) -> -1432 | AI105: =SUMIFS(DATA!AM$3:AM$794,DATA!$F$3:$F$794,$A105,DATA!$B$3:$B$794,$C$2) -> -1449 | AJ105: =SUMIFS(DATA!AN$3:AN$794,DATA!$F$3:$F$794,$A105,DATA!$B$3:$B$794,$C$2) -> -1444 | AK105: =SUMIFS(DATA!AO$3:AO$794,DATA!$F$3:$F$794,$A105,DATA!$B$3:$B$794,$C$2) -> -1483 | AL105: =SUMIFS(DATA!AP$3:AP$794,DATA!$F$3:$F$794,$A105,DATA!$B$3:$B$794,$C$2) -> -1470 | AM105: =SUMIFS(DATA!AQ$3:AQ$794,DATA!$F$3:$F$794,$A105,DATA!$B$3:$B$794,$C$2) -> -1462 | AN105: =SUMIFS(DATA!AR$3:AR$794,DATA!$F$3:$F$794,$A105,DATA!$B$3:$B$794,$C$2) -> -1447 | AO105: =SUMIFS(DATA!AS$3:AS$794,DATA!$F$3:$F$794,$A105,DATA!$B$3:$B$794,$C$2) -> -1420 | AP105: =SUMIFS(DATA!AT$3:AT$794,DATA!$F$3:$F$794,$A105,DATA!$B$3:$B$794,$C$2) -> -1413 | AQ105: =SUMIFS(DATA!AU$3:AU$794,DATA!$F$3:$F$794,$A105,DATA!$B$3:$B$794,$C$2) -> -1412 | AR105: =SUMIFS(DATA!AV$3:AV$794,DATA!$F$3:$F$794,$A105,DATA!$B$3:$B$794,$C$2) -> -1402 | AS105: =SUMIFS(DATA!AW$3:AW$794,DATA!$F$3:$F$794,$A105,DATA!$B$3:$B$794,$C$2) -> -1378 | AT105: =SUMIFS(DATA!AX$3:AX$794,DATA!$F$3:$F$794,$A105,DATA!$B$3:$B$794,$C$2) -> -1296 | AU105: =SUMIFS(DATA!AY$3:AY$794,DATA!$F$3:$F$794,$A105,DATA!$B$3:$B$794,$C$2) -> -1264 | AV105: =SUMIFS(DATA!AZ$3:AZ$794,DATA!$F$3:$F$794,$A105,DATA!$B$3:$B$794,$C$2) -> -1215 | AW105: =SUMIFS(DATA!BA$3:BA$794,DATA!$F$3:$F$794,$A105,DATA!$B$3:$B$794,$C$2) -> -1194 | AX105: =SUMIFS(DATA!BB$3:BB$794,DATA!$F$3:$F$794,$A105,DATA!$B$3:$B$794,$C$2) -> -1166 | AY105: =SUMIFS(DATA!BC$3:BC$794,DATA!$F$3:$F$794,$A105,DATA!$B$3:$B$794,$C$2) -> -1126 | AZ105: =SUMIFS(DATA!BD$3:BD$794,DATA!$F$3:$F$794,$A105,DATA!$B$3:$B$794,$C$2) -> -1105
A106: Interest Received | C106: =SUMIFS(DATA!G$3:G$794,DATA!$F$3:$F$794,$A106,DATA!$B$3:$B$794,$C$2) -> 28 | D106: =SUMIFS(DATA!H$3:H$794,DATA!$F$3:$F$794,$A106,DATA!$B$3:$B$794,$C$2) -> 17 | E106: =SUMIFS(DATA!I$3:I$794,DATA!$F$3:$F$794,$A106,DATA!$B$3:$B$794,$C$2) -> 24 | F106: =SUMIFS(DATA!J$3:J$794,DATA!$F$3:$F$794,$A106,DATA!$B$3:$B$794,$C$2) -> 26 | G106: =SUMIFS(DATA!K$3:K$794,DATA!$F$3:$F$794,$A106,DATA!$B$3:$B$794,$C$2) -> 31 | H106: =SUMIFS(DATA!L$3:L$794,DATA!$F$3:$F$794,$A106,DATA!$B$3:$B$794,$C$2) -> 39 | I106: =SUMIFS(DATA!M$3:M$794,DATA!$F$3:$F$794,$A106,DATA!$B$3:$B$794,$C$2) -> 41 | J106: =SUMIFS(DATA!N$3:N$794,DATA!$F$3:$F$794,$A106,DATA!$B$3:$B$794,$C$2) -> 38 | K106: =SUMIFS(DATA!O$3:O$794,DATA!$F$3:$F$794,$A106,DATA!$B$3:$B$794,$C$2) -> 35 | L106: =SUMIFS(DATA!P$3:P$794,DATA!$F$3:$F$794,$A106,DATA!$B$3:$B$794,$C$2) -> 33 | M106: =SUMIFS(DATA!Q$3:Q$794,DATA!$F$3:$F$794,$A106,DATA!$B$3:$B$794,$C$2) -> 17 | N106: =SUMIFS(DATA!R$3:R$794,DATA!$F$3:$F$794,$A106,DATA!$B$3:$B$794,$C$2) -> 19 | O106: =SUMIFS(DATA!S$3:S$794,DATA!$F$3:$F$794,$A106,DATA!$B$3:$B$794,$C$2) -> 28 | P106: =SUMIFS(DATA!T$3:T$794,DATA!$F$3:$F$794,$A106,DATA!$B$3:$B$794,$C$2) -> 33 | Q106: =SUMIFS(DATA!U$3:U$794,DATA!$F$3:$F$794,$A106,DATA!$B$3:$B$794,$C$2) -> 41 | R106: =SUMIFS(DATA!V$3:V$794,DATA!$F$3:$F$794,$A106,DATA!$B$3:$B$794,$C$2) -> 55 | S106: =SUMIFS(DATA!W$3:W$794,DATA!$F$3:$F$794,$A106,DATA!$B$3:$B$794,$C$2) -> 71 | T106: =SUMIFS(DATA!X$3:X$794,DATA!$F$3:$F$794,$A106,DATA!$B$3:$B$794,$C$2) -> 78 | U106: =SUMIFS(DATA!Y$3:Y$794,DATA!$F$3:$F$794,$A106,DATA!$B$3:$B$794,$C$2) -> 89 | V106: =SUMIFS(DATA!Z$3:Z$794,DATA!$F$3:$F$794,$A106,DATA!$B$3:$B$794,$C$2) -> 70 | W106: =SUMIFS(DATA!AA$3:AA$794,DATA!$F$3:$F$794,$A106,DATA!$B$3:$B$794,$C$2) -> 86 | X106: =SUMIFS(DATA!AB$3:AB$794,DATA!$F$3:$F$794,$A106,DATA!$B$3:$B$794,$C$2) -> 64 | Y106: =SUMIFS(DATA!AC$3:AC$794,DATA!$F$3:$F$794,$A106,DATA!$B$3:$B$794,$C$2) -> 61 | Z106: =SUMIFS(DATA!AD$3:AD$794,DATA!$F$3:$F$794,$A106,DATA!$B$3:$B$794,$C$2) -> 60 | AA106: =SUMIFS(DATA!AE$3:AE$794,DATA!$F$3:$F$794,$A106,DATA!$B$3:$B$794,$C$2) -> 68 | AB106: =SUMIFS(DATA!AF$3:AF$794,DATA!$F$3:$F$794,$A106,DATA!$B$3:$B$794,$C$2) -> 69 | AC106: =SUMIFS(DATA!AG$3:AG$794,DATA!$F$3:$F$794,$A106,DATA!$B$3:$B$794,$C$2) -> 73 | AD106: =SUMIFS(DATA!AH$3:AH$794,DATA!$F$3:$F$794,$A106,DATA!$B$3:$B$794,$C$2) -> 83 | AE106: =SUMIFS(DATA!AI$3:AI$794,DATA!$F$3:$F$794,$A106,DATA!$B$3:$B$794,$C$2) -> 84 | AF106: =SUMIFS(DATA!AJ$3:AJ$794,DATA!$F$3:$F$794,$A106,DATA!$B$3:$B$794,$C$2) -> 90 | AG106: =SUMIFS(DATA!AK$3:AK$794,DATA!$F$3:$F$794,$A106,DATA!$B$3:$B$794,$C$2) -> 96 | AH106: =SUMIFS(DATA!AL$3:AL$794,DATA!$F$3:$F$794,$A106,DATA!$B$3:$B$794,$C$2) -> 103 | AI106: =SUMIFS(DATA!AM$3:AM$794,DATA!$F$3:$F$794,$A106,DATA!$B$3:$B$794,$C$2) -> 114 | AJ106: =SUMIFS(DATA!AN$3:AN$794,DATA!$F$3:$F$794,$A106,DATA!$B$3:$B$794,$C$2) -> 122 | AK106: =SUMIFS(DATA!AO$3:AO$794,DATA!$F$3:$F$794,$A106,DATA!$B$3:$B$794,$C$2) -> 127 | AL106: =SUMIFS(DATA!AP$3:AP$794,DATA!$F$3:$F$794,$A106,DATA!$B$3:$B$794,$C$2) -> 140 | AM106: =SUMIFS(DATA!AQ$3:AQ$794,DATA!$F$3:$F$794,$A106,DATA!$B$3:$B$794,$C$2) -> 141 | AN106: =SUMIFS(DATA!AR$3:AR$794,DATA!$F$3:$F$794,$A106,DATA!$B$3:$B$794,$C$2) -> 151 | AO106: =SUMIFS(DATA!AS$3:AS$794,DATA!$F$3:$F$794,$A106,DATA!$B$3:$B$794,$C$2) -> 145 | AP106: =SUMIFS(DATA!AT$3:AT$794,DATA!$F$3:$F$794,$A106,DATA!$B$3:$B$794,$C$2) -> 156 | AQ106: =SUMIFS(DATA!AU$3:AU$794,DATA!$F$3:$F$794,$A106,DATA!$B$3:$B$794,$C$2) -> 166 | AR106: =SUMIFS(DATA!AV$3:AV$794,DATA!$F$3:$F$794,$A106,DATA!$B$3:$B$794,$C$2) -> 176 | AS106: =SUMIFS(DATA!AW$3:AW$794,DATA!$F$3:$F$794,$A106,DATA!$B$3:$B$794,$C$2) -> 171 | AT106: =SUMIFS(DATA!AX$3:AX$794,DATA!$F$3:$F$794,$A106,DATA!$B$3:$B$794,$C$2) -> 137 | AU106: =SUMIFS(DATA!AY$3:AY$794,DATA!$F$3:$F$794,$A106,DATA!$B$3:$B$794,$C$2) -> 142 | AV106: =SUMIFS(DATA!AZ$3:AZ$794,DATA!$F$3:$F$794,$A106,DATA!$B$3:$B$794,$C$2) -> 139 | AW106: =SUMIFS(DATA!BA$3:BA$794,DATA!$F$3:$F$794,$A106,DATA!$B$3:$B$794,$C$2) -> 142 | AX106: =SUMIFS(DATA!BB$3:BB$794,DATA!$F$3:$F$794,$A106,DATA!$B$3:$B$794,$C$2) -> 140 | AY106: =SUMIFS(DATA!BC$3:BC$794,DATA!$F$3:$F$794,$A106,DATA!$B$3:$B$794,$C$2) -> 134 | AZ106: =SUMIFS(DATA!BD$3:BD$794,DATA!$F$3:$F$794,$A106,DATA!$B$3:$B$794,$C$2) -> 137
A107: Cash from Operating Activities | C107: =SUM(C103:C106) -> 472 | D107: =SUM(D103:D106) -> 489 | E107: 440 | F107: 476 | G107: 499 | H107: 487 | I107: =SUM(I103:I106) -> 439 | J107: =SUM(J103:J106) -> 538 | K107: =SUM(K103:K106) -> 613 | L107: =SUM(L103:L106) -> 690 | M107: 812 | N107: =SUM(N103:N106) -> 887 | O107: =SUM(O103:O106) -> 978 | P107: =SUM(P103:P106) -> 1033 | Q107: =SUM(Q103:Q106) -> 1195 | R107: 1195 | S107: =SUM(S103:S106) -> 1369 | T107: =SUM(T103:T106) -> 1547 | U107: =SUM(U103:U106) -> 1696 | V107: =SUM(V103:V106) -> 1931 | W107: 1152 | X107: =SUM(X103:X106) -> 1150 | Y107: =SUM(Y103:Y106) -> 1189 | Z107: =SUM(Z103:Z106) -> 1195 | AA107: =SUM(AA103:AA106) -> 1205 | AB107: 1247 | AC107: =SUM(AC103:AC106) -> 1248 | AD107: =SUM(AD103:AD106) -> 1275 | AE107: =SUM(AE103:AE106) -> 1290 | AF107: =SUM(AF103:AF106) -> 1321 | AG107: 1400 | AH107: =SUM(AH103:AH106) -> 1418 | AI107: =SUM(AI103:AI106) -> 1440 | AJ107: =SUM(AJ103:AJ106) -> 1496 | AK107: =SUM(AK103:AK106) -> 1542 | AL107: 1553 | AM107: =SUM(AM103:AM106) -> 1577 | AN107: =SUM(AN103:AN106) -> 1604 | AO107: =SUM(AO103:AO106) -> 1705 | AP107: =SUM(AP103:AP106) -> 1737 | AQ107: 1755 | AR107: =SUM(AR103:AR106) -> 1839 | AS107: =SUM(AS103:AS106) -> 1865 | AT107: =SUM(AT103:AT106) -> 1890 | AU107: =SUM(AU103:AU106) -> 1948 | AV107: 1956 | AW107: =SUM(AW103:AW106) -> 1987 | AX107: =SUM(AX103:AX106) -> 2032 | AY107: =SUM(AY103:AY106) -> 2075 | AZ107: =SUM(AZ103:AZ106) -> 2107
A109: FINANCING ACTIVITIES | F109: =SUM(F110,F112) -> 1678 | G109: =SUM(G110,G112) -> 1833 | H109: 1850 | I109: 1161 | J109: 1284 | K109: 1355 | L109: 1111 | M109: 1528 | N109: 1390 | O109: 1190 | P109: 340 | Q109: 190 | R109: 190 | S109: 130 | T109: -260 | U109: -710 | V109: -23 | W109: -240 | X109: -2010 | Y109: -210 | Z109: -293 | AA109: -410 | AB109: -160 | AC109: -210 | AD109: 90 | AE109: 140 | AF109: -60 | AG109: -110 | AH109: 330 | AI109: -10 | AJ109: -10 | AK109: 380 | AL109: -10 | AM109: -210 | AN109: -345 | AO109: -10 | AP109: -10 | AQ109: -60 | AR109: -210 | AS109: -1610 | AT109: -800 | AU109: -610 | AV109: -407 | AW109: -410 | AX109: -725 | AY109: -200 | AZ109: -390
A110: Proceeds from Long Term Debt | C110: =SUMIFS(DATA!G$3:G$794,DATA!$F$3:$F$794,$A110,DATA!$B$3:$B$794,$C$2) -> 836 | D110: =SUMIFS(DATA!H$3:H$794,DATA!$F$3:$F$794,$A110,DATA!$B$3:$B$794,$C$2) -> 2170 | E110: =SUMIFS(DATA!I$3:I$794,DATA!$F$3:$F$794,$A110,DATA!$B$3:$B$794,$C$2) -> 1760 | F110: =SUMIFS(DATA!J$3:J$794,DATA!$F$3:$F$794,$A110,DATA!$B$3:$B$794,$C$2) -> 1990 | G110: =SUMIFS(DATA!K$3:K$794,DATA!$F$3:$F$794,$A110,DATA!$B$3:$B$794,$C$2) -> 2180 | H110: =SUMIFS(DATA!L$3:L$794,DATA!$F$3:$F$794,$A110,DATA!$B$3:$B$794,$C$2) -> 2380 | I110: =SUMIFS(DATA!M$3:M$794,DATA!$F$3:$F$794,$A110,DATA!$B$3:$B$794,$C$2) -> 1990 | J110: =SUMIFS(DATA!N$3:N$794,DATA!$F$3:$F$794,$A110,DATA!$B$3:$B$794,$C$2) -> 1590 | K110: =SUMIFS(DATA!O$3:O$794,DATA!$F$3:$F$794,$A110,DATA!$B$3:$B$794,$C$2) -> 1990 | L110: =SUMIFS(DATA!P$3:P$794,DATA!$F$3:$F$794,$A110,DATA!$B$3:$B$794,$C$2) -> 1790 | M110: =SUMIFS(DATA!Q$3:Q$794,DATA!$F$3:$F$794,$A110,DATA!$B$3:$B$794,$C$2) -> 1960 | N110: =SUMIFS(DATA!R$3:R$794,DATA!$F$3:$F$794,$A110,DATA!$B$3:$B$794,$C$2) -> 1390 | O110: =SUMIFS(DATA!S$3:S$794,DATA!$F$3:$F$794,$A110,DATA!$B$3:$B$794,$C$2) -> 1190 | P110: =SUMIFS(DATA!T$3:T$794,DATA!$F$3:$F$794,$A110,DATA!$B$3:$B$794,$C$2) -> 790 | Q110: =SUMIFS(DATA!U$3:U$794,DATA!$F$3:$F$794,$A110,DATA!$B$3:$B$794,$C$2) -> 190 | R110: =SUMIFS(DATA!V$3:V$794,DATA!$F$3:$F$794,$A110,DATA!$B$3:$B$794,$C$2) -> 190 | S110: =SUMIFS(DATA!W$3:W$794,DATA!$F$3:$F$794,$A110,DATA!$B$3:$B$794,$C$2) -> 190 | T110: =SUMIFS(DATA!X$3:X$794,DATA!$F$3:$F$794,$A110,DATA!$B$3:$B$794,$C$2) -> -40 | U110: =SUMIFS(DATA!Y$3:Y$794,DATA!$F$3:$F$794,$A110,DATA!$B$3:$B$794,$C$2) -> -10 | V110: =SUMIFS(DATA!Z$3:Z$794,DATA!$F$3:$F$794,$A110,DATA!$B$3:$B$794,$C$2) -> -10 | W110: =SUMIFS(DATA!AA$3:AA$794,DATA!$F$3:$F$794,$A110,DATA!$B$3:$B$794,$C$2) -> -40 | X110: =SUMIFS(DATA!AB$3:AB$794,DATA!$F$3:$F$794,$A110,DATA!$B$3:$B$794,$C$2) -> 140 | Y110: =SUMIFS(DATA!AC$3:AC$794,DATA!$F$3:$F$794,$A110,DATA!$B$3:$B$794,$C$2) -> 1520 | Z110: =SUMIFS(DATA!AD$3:AD$794,DATA!$F$3:$F$794,$A110,DATA!$B$3:$B$794,$C$2) -> 1980 | AA110: =SUMIFS(DATA!AE$3:AE$794,DATA!$F$3:$F$794,$A110,DATA!$B$3:$B$794,$C$2) -> 1920 | AB110: =SUMIFS(DATA!AF$3:AF$794,DATA!$F$3:$F$794,$A110,DATA!$B$3:$B$794,$C$2) -> 2740 | AC110: =SUMIFS(DATA!AG$3:AG$794,DATA!$F$3:$F$794,$A110,DATA!$B$3:$B$794,$C$2) -> 2180 | AD110: =SUMIFS(DATA!AH$3:AH$794,DATA!$F$3:$F$794,$A110,DATA!$B$3:$B$794,$C$2) -> 1950 | AE110: =SUMIFS(DATA!AI$3:AI$794,DATA!$F$3:$F$794,$A110,DATA!$B$3:$B$794,$C$2) -> 2380 | AF110: =SUMIFS(DATA!AJ$3:AJ$794,DATA!$F$3:$F$794,$A110,DATA!$B$3:$B$794,$C$2) -> 2180 | AG110: =SUMIFS(DATA!AK$3:AK$794,DATA!$F$3:$F$794,$A110,DATA!$B$3:$B$794,$C$2) -> 2130 | AH110: =SUMIFS(DATA!AL$3:AL$794,DATA!$F$3:$F$794,$A110,DATA!$B$3:$B$794,$C$2) -> 1770 | AI110: =SUMIFS(DATA!AM$3:AM$794,DATA!$F$3:$F$794,$A110,DATA!$B$3:$B$794,$C$2) -> 1180 | AJ110: =SUMIFS(DATA!AN$3:AN$794,DATA!$F$3:$F$794,$A110,DATA!$B$3:$B$794,$C$2) -> 780 | AK110: =SUMIFS(DATA!AO$3:AO$794,DATA!$F$3:$F$794,$A110,DATA!$B$3:$B$794,$C$2) -> 570 | AL110: =SUMIFS(DATA!AP$3:AP$794,DATA!$F$3:$F$794,$A110,DATA!$B$3:$B$794,$C$2) -> 180 | AM110: =SUMIFS(DATA!AQ$3:AQ$794,DATA!$F$3:$F$794,$A110,DATA!$B$3:$B$794,$C$2) -> -20 | AN110: =SUMIFS(DATA!AR$3:AR$794,DATA!$F$3:$F$794,$A110,DATA!$B$3:$B$794,$C$2) -> -60 | AO110: =SUMIFS(DATA!AS$3:AS$794,DATA!$F$3:$F$794,$A110,DATA!$B$3:$B$794,$C$2) -> -20 | AP110: =SUMIFS(DATA!AT$3:AT$794,DATA!$F$3:$F$794,$A110,DATA!$B$3:$B$794,$C$2) -> -20 | AQ110: =SUMIFS(DATA!AU$3:AU$794,DATA!$F$3:$F$794,$A110,DATA!$B$3:$B$794,$C$2) -> -50 | AR110: =SUMIFS(DATA!AV$3:AV$794,DATA!$F$3:$F$794,$A110,DATA!$B$3:$B$794,$C$2) -> -70 | AS110: =SUMIFS(DATA!AW$3:AW$794,DATA!$F$3:$F$794,$A110,DATA!$B$3:$B$794,$C$2) -> -90 | AT110: =SUMIFS(DATA!AX$3:AX$794,DATA!$F$3:$F$794,$A110,DATA!$B$3:$B$794,$C$2) -> 1180 | AU110: =SUMIFS(DATA!AY$3:AY$794,DATA!$F$3:$F$794,$A110,DATA!$B$3:$B$794,$C$2) -> 1310 | AV110: =SUMIFS(DATA!AZ$3:AZ$794,DATA!$F$3:$F$794,$A110,DATA!$B$3:$B$794,$C$2) -> 2340 | AW110: =SUMIFS(DATA!BA$3:BA$794,DATA!$F$3:$F$794,$A110,DATA!$B$3:$B$794,$C$2) -> 1770 | AX110: =SUMIFS(DATA!BB$3:BB$794,DATA!$F$3:$F$794,$A110,DATA!$B$3:$B$794,$C$2) -> 1350 | AY110: =SUMIFS(DATA!BC$3:BC$794,DATA!$F$3:$F$794,$A110,DATA!$B$3:$B$794,$C$2) -> 2180 | AZ110: =SUMIFS(DATA!BD$3:BD$794,DATA!$F$3:$F$794,$A110,DATA!$B$3:$B$794,$C$2) -> 1790
